Workbook

Sheet AAAA (hidden)

Sheet BBBB (hidden)

Sheet Notes
B2: Workbook notes
B3: There are no locked formulae or hidden cells in these worksheets. Changes made to the input cells found in the Treatments and Machines sheet should be automatically reflected throughout the gross margin sheets. Cells highlighted in yellow are input cells. Changes made to any cells with formulas are made at the users risk.
B4: It is strongly recommended that the gross margin budgets contained in this spreadsheet be used as a template ONLY and should be changed to take account of movements in commodity prices, changes in seasonal conditions and the individual characteristics of production systems
B6: How gross margins are calculated in this workbook
B7: These gross margins are to be used as a guide only and should be adjusted where necessary to better reflect the operation being assessed.
B9: The gross margins in this workbook are calculated using two methods.
B10: The first method uses the typical gross margin approach based on the allocation of variable costs to enterprises or activities but includes an allowance for the labour costs associated with machinery operation. It also has the usual allowance of FORM and other variable expenses associated with allocating machinery operating costs to gross margins.
B11: The second method calculates a pseudo "contract" rate to cost machinery operations based on the economic costs of machine ownership and use over time. The contract rate calculated apportions overhead, operating and labour costs on a per hectare basis for the use of the machines or combinations of machines. To this figure an allowance for profit and minor travel costs is added. The amount added to cover profit and other costs can be varied in the machinery worksheet. The final figure roughly represents the rate that could be charged by a farmer who was asked to do some work on a contract basis for a neighbour and who also wanted to recover a proportional share of the costs of owning and operating the machines plus the labour asociated with the activity plus some small measure of profit. The contract rate does not represent what should be charged by a contracting business to undertake the same activity as that form of business would incur different costs.
B12: The results of both methods are reported on the gross margin summary sheet and allow comparison of the relative profitability of the forages whether they are grown with machinery that is already part of the business or grown using machinery that is accessed at a "contract rate".
B14: Please note that forage crops that have a life of more than one year and/or have establishment costs that contribute to production over a number of years, have their establishment costs amortised (added as an equivalent annual cost) in the calculation of the gross margin. The amortisation process includes the opportunity cost of the capital applied in the pasture establishment process to the calculation of the gross margin. This allows a broad comparison of annual forage crops with those that have longer lives. More detailed investment analysis techniques should be applied prior to an investment in long lived forage crops before a final decision is made to commit resources to their production.
B15: Where appropriate, the costs of developing a long lived forage and the amortised value of these costs are shown in the section of each worksheet titled Development Costs Calculator
B16: Gross margin notes in general
B17: Some short term decisions involve the use of resources that have an effective life of more than one production period. For example, farming plant normally lasts for a number of years and can contribute to the production of many activities.
B18: In a gross margin analysis, the costs of farming plant to an enterprise or activity are usually apportioned on an hourly and rate of use basis. This allows inclusion in the gross margin of the proportional amount of operating costs of the farming plant used by each enterprise or activity, improving the validity of the comparison where different forage crops require different amounts of machinery inputs.
B19: Farming plant is normally costed in gross margins on the basis of the Fuel, Oil, Repairs and Maintenance (F.O.R.M.) used on a per hour basis in the production of the output. Note that the ownership costs of the plant are not included.
B20: For each tractor/implement or harvester combination in the enterprise or activity the following rule of thumb calculations of cost are made:
B21: · Fuel = fuel consumption (litres per hour) multiplied by the fuel cost (cents per litre net of rebates)
B22: · Oil can usually be assessed as 10% of fuel cost
B23: · Repairs and Maintenance. To calculate a share of repairs and maintenance, firstly identify the replacement cost of the machine. This can be the current new value of the machine or the second hand value if it is going to be replaced with a used machine. Then identify the total cost of all repairs likely to be incurred over the life of the machine and calculate that as a percentage of the replacement value. The longer the machine is kept the higher the percentage – up to 70% or more for a tractor that is kept a long time (> 5000 hours) and used to undertake heavy work. To calculate the hourly cost of repairs and maintenance the replacement cost of the machine is multiplied by the percentage of the replacement cost of the machine spent on repairs over the life of the machine and divided by the hours of life of the machine. For example, if a machine costs $10,000 and about $3,000 is expected to be spent on repairs and maintenance over its five year life, then about 30% of the cost of the machine will be spent on repairs. If the machine is used for 100 hours per annum, the hourly cost of repairs and maintenance is about $6 per hour of use.
B24: These rules of thumb are sufficiently accurate to allow the inclusion of the relative FORM costs in a gross margin analysis.

Sheet Prices
B3: Prices data | R3: Central Queensland sale yard selling fees (2012)
C4: The prices applied in this workbook are based on market price data collected by MLA or Departmental staff. All livestock are valued at their average expected market value in the paddock at the time the forage crop is stocked. | T4: Gracemere | U4: Emerald | V4: Moura | W4: Belyando / Clermont
C5: The prices applied to livestock inputs are generally the median value attainable for the relevant weight range at the most relevant store sale or abattoir at the date nearest to the date the forage is stocked. | R5: Yard Fees | S5: Scale Cattle sold/ unsold | T5: 6.77 | V5: 3.5 | W5: 1.1
C6: The relevant input price is converted to a value in the paddock by allowing for selling expenses (if the livestock are already owned) or purchase expenses (if the livestock are being purchased to stock the forage) | S6: Scale Cattle - Sold / Unsold - Bulls | T6: 8.5 | U6: 5.27
C7: The prices applied to steer sales are generally the median value attained for the relevant slaughter weight range and quality at a relevant abattoir or store sale at the end of the forage grazing. | S7: Scale Cattle - Sold / Unsold - Calves | T7: 3.36
S8: Non Scale Cattle - Sold / Unsold | T8: 6.77
C9: Although average prices have been applied in the example gross margins, it should be noted that the difference between the purchase price of steers and the sale price of ox | S9: Stud Sale Cattle - Sold / Unsold | T9: 6.77
C10: can vary significantly over time. The graph of difference shown below indicates that the difference in prices paid and received can be either positive or negative by up to 20 cents per kilogram liveweight | S10: Auction Sales | W10: 1.32
C11: The profitability of any steer growing or fattening enterprise can be greatly impacted by the relationship between purchase and sale price and price ranges relevant to the | S11: Stud Sales | W11: 3.23
C12: enterprise and opportunities under consideration should always be used. | S12: Fat Cattle | U12: 5.27
S13: Store Cattle | U13: 4.73
C14: The data used to calculate the Mean, Median, Max and Min are attached to this sheet beginning at row 100. | S14: Combined Fat Store Sales | U14: 5
R15: Weighing Fees | S15: Weighing | T15: 4.19 | U15: 4.23 | W15: 1.82
C16: Store steer prices have tended upwards over the life of the data shown. The 300 to 400 kilogram live steer class has risen from about 150 to 180 cents per kilogram over the period | S16: Weighing <= 50 head | V16: 3
C17: Ox prices at Dinmore have also trended upwards over the same period but not to the same extent. Ox prices have risen from about 160 to about 175 cents per kilo liveweight over the same period. | S17: Weighing > 50 head | V17: 2.5
S18: Weighing / Scanning | T18: 5.39
S19: Weighing / Scanning / Dipping | T19: 6.22
S20: Special Weighs | T20: 1.58 | U20: 4.23 | X20: (including NLIS database transfer)
D21: Elders Gracemere Store Prices | J21: Dinmore Prices | R21: NLIS Replacement Tags Fee | T21: 5.99 | U21: 35 | V21: 10 | W21: 27.28
D22: cents per kilogram liveweight | J22: cents per kilogram dressed weight | R22: NLIS Replacement Tags replacing a Non Reading Tag | U22: 0
D23: For | E23: 2009-05-05 | F23: to | G23: 2012-06-29 | J23: For | K23: 2009-06-01 | L23: to | M23: 2012-06-29 | R23: NLIS Database Transfer Yard Dues | U23: 2
R24: Scanning | S24: Cattle | T24: 5.99 | V24: 2
D25: Steers (kg liveweight) | K25: Grass Fed Jap Ox | L25: Grass Fed Ox | S25: Bulls | V25: 4
B26: Live weight range | D26: <200 | E26: 201-300 | F26: 301-400 | G26: 401-500 | H26: >500 | J26: Grade | K26: J | L26: I | R26: Transferring NLIS Tags (paddock sales) | U26: 30 | W26: 34.82
C27: Mean | D27: 194.9160305 | E27: 189.494697 | F27: 168.4496241 | G27: 164.3772727 | H27: 164.5582677 | J27: Wt (kg) | K27: 300-319 | L27: 240-259 | R27: Dipping Fees | S27: Cattle Single Dipping | T27: 2.52 | U27: 1.59 | V27: 3 | W27: 1.73
C28: Median | D28: 198 | E28: 193 | F28: 169 | G28: 165 | H28: 163 | J28: Teeth | K28: 0-6 | L28: 0-4 | S28: Bulls Single Dipping | T28: 3.78 | V28: 5
C29: Max | D29: 259.2 | E29: 227.4 | F29: 200.4 | G29: 189 | H29: 190 | J29: Fat (mm) | K29: 7-22 | L29: 7-22 | S29: Cows and Calves Single Dip | V29: 4
C30: Min | D30: 137 | E30: 125 | F30: 134 | G30: 133 | H30: 131 | S30: Cows and Calves Clearing Dip | V30: 5
J31: Mean | K31: 3.256168224 | L31: 3.156168224 | S31: Cattle Clearing Dip | V31: 4
J32: Median | K32: 3.25 | L32: 3.15 | S32: Bulls Clearing Dip | V32: 6
J33: Max | K33: 3.65 | L33: 3.55 | R33: Loading / Unloading Fee | T33: 1.37 | U33: 10 | X33: per deck
J34: Min | K34: 2.85 | L34: 2.75 | R34: Loading / Unloading Rail Wagon | T34: 42
R35: Use of Vet/ Crush Facilities | T35: 2.05 | U35: 0.32 | W35: 0.77
R36: Disposal of Dead Beast | T36: 199.5 | W36: 143.59
R37: Yard Reconstruction Levy (all stock) | T37: 1.16
R38: Sale by Visual Weigh | U38: 15 | X38: per 100 head
R39: Spelling Fees | S39: Without Feed per day | U39: 0.44
S40: With Feed per day | U40: 0.73
S41: Cleaning Fee per head | U41: 0.5
S42: Paddock per head per day | T42: 0.71 | U42: 0.5
S43: Ex Sale Cattle per head | T43: 0.74
S44: Non Sale Cattle per head | T44: 2.05
R45: Cattle Sold at Private Yards | U45: 4.18
R47: Cattle Total (normal sale, no spell, no special charges) | T47: =SUM(T5,T18,T33,T37) -> 14.69
I99: Dressing percentage
C100: Elders Gracemere Store Prices | J100: 0.52 | N100: Dinmore Prices
C101: Date | D101: 201-300 stores Gracemere c/kg live | E101: 301-400 stores Gracemere c/kg live | F101: >500 stores Gracemere c/kg live | G101: Grass Fed Jap Ox Dinmore c/kg live equivalent | H101: Grass Fed Ox Dinmore C/kg live equivalent | I101: Dinmore price converted to cents per kg dressed | J101: Dinmore price converted to cents per kg dressed | K101: Dinmore prices aligned with Gracemere dates | L101: Dinmore prices aligned with Gracemere dates | M101: Jap ox price minus medium store price | N101: Date | O101: Grass Fed Jap Ox | P101: Grass Fed Ox
C102: 2009-06-05 | D102: 180 | E102: 150 | F102: 152 | N102: 2009-06-01
C103: 2009-06-12 | D103: 164 | E103: 150 | F103: 148 | N103: 2009-08-03
C104: 2009-06-19 | D104: 173 | E104: 162 | F104: 154 | N104: 2009-08-26
C105: 2009-06-26 | D105: 173 | E105: 153 | F105: 154 | N105: 2009-09-30
C106: 2009-07-03 | D106: 155 | E106: 151 | F106: 152 | N106: 2009-10-13 | O106: 2.85 | P106: 2.75
C107: 2009-07-10 | D107: 160 | E107: 153 | F107: 163 | N107: 2009-10-19
C108: 2009-07-17 | D108: 165 | E108: 154 | F108: 156 | N108: 2009-10-26
C109: 2009-07-24 | D109: 163 | E109: 158 | F109: 158 | N109: 2009-10-30
C110: 2009-07-31 | D110: 163 | E110: 162 | F110: 148 | N110: 2010-01-11 | O110: 2.9 | P110: 2.8
C111: 2009-08-07 | D111: 160 | E111: 150 | F111: 153 | N111: 2010-01-15 | O111: 3.02 | P111: 2.92
C112: 2009-08-14 | D112: 140 | E112: 139 | F112: 148 | N112: 2010-01-25 | O112: 3.02 | P112: 2.92
C113: 2009-08-21 | D113: 155 | E113: 153 | F113: 152 | N113: 2010-01-28 | O113: 3.07 | P113: 2.97
C114: 2009-08-28 | D114: 166 | E114: 148 | F114: 155 | N114: 2010-01-29
C115: 2009-09-04 | D115: 166 | E115: 155 | F115: 151 | N115: 2010-02-03
C116: 2009-09-11 | D116: 160 | E116: 147 | N116: 2010-02-17
C117: 2009-09-18 | D117: 147 | E117: 144 | F117: 150 | N117: 2010-02-26
C118: 2009-09-25 | D118: 153 | E118: 140 | F118: 145 | N118: 2010-03-08
C119: 2009-10-02 | D119: 163 | E119: 145 | F119: 150 | N119: 2010-03-17 | O119: 3.25 | P119: 3.15
C120: 2009-10-09 | D120: 165 | E120: 145 | F120: 151 | N120: 2010-03-22 | O120: 3.15 | P120: 3.05
C121: 2009-10-16 | D121: 149 | E121: 134 | F121: 153 | G121: =I121*$J$100 -> 148.2 | H121: =J121*$J$100 -> 143 | I121: =K121*100 -> 285 | J121: =L121*100 -> 275 | K121: =O106 -> 2.85 | L121: =P106 -> 2.75 | M121: =IF(OR(E121<=0,G121<=0),"",(G121-E121)/100) -> 0.142 | N121: 2010-03-26 | O121: 3.1 | P121: 3
C122: 2009-10-23 | D122: 160 | E122: 144 | F122: 157 | M122: =IF(OR(E122<=0,G122<=0),"",(G122-E122)/100) ->  | N122: 2010-03-31
C123: 2009-10-30 | D123: 164 | E123: 144 | F123: 147 | N123: 2010-04-07
C124: 2009-11-06 | D124: 161 | E124: 148 | F124: 158 | N124: 2010-04-14 | O124: 3.2 | P124: 3.1
C125: 2009-11-13 | D125: 160 | E125: 161 | N125: 2010-04-16 | O125: 3.2 | P125: 3.1
C126: 2009-11-20 | D126: 160 | E126: 156 | F126: 165 | N126: 2010-04-19
C127: 2009-11-27 | D127: 150 | E127: 142 | F127: 150 | N127: 2010-04-21 | O127: 3.15 | P127: 3.05
C128: 2009-12-04 | D128: 125 | E128: 139 | F128: 155 | N128: 2010-04-27
C129: 2009-12-11 | D129: 142 | E129: 139 | F129: 131 | N129: 2010-05-07 | O129: 3.1 | P129: 3
C130: 2010-01-15 | D130: 169 | E130: 147 | G130: =I130*$J$100 -> 150.8 | H130: 145.6 | I130: =K130*100 -> 290 | J130: 280 | K130: =O110 -> 2.9 | L130: 2.8 | M130: 0.038 | N130: 2010-05-10 | O130: 3.15 | P130: 3.05
C131: 2010-01-22 | D131: 165 | E131: 153 | G131: 157.04 | H131: 151.84 | I131: 302 | J131: 292 | K131: 3.02 | L131: 2.92 | M131: 0.0404 | N131: 2010-05-17 | O131: 3.15 | P131: 3.05
C132: 2010-01-29 | D132: 157 | E132: 156 | G132: 157.04 | H132: 151.84 | I132: 302 | J132: 292 | K132: 3.02 | L132: 2.92 | M132: 0.0104 | N132: 2010-05-19 | O132: 3.15 | P132: 3.05
C133: 2010-02-05 | D133: 159 | E133: 155 | F133: 172 | G133: 159.64 | H133: 154.44 | I133: 307 | J133: 297 | K133: 3.07 | L133: 2.97 | M133: 0.0464 | N133: 2010-05-26 | O133: 3.25 | P133: 3.15
C134: 2010-02-26 | D134: 184 | E134: 174 | F134: 171 | N134: 2010-06-02 | O134: 3.2 | P134: 3.1
C135: 2010-03-05 | D135: 194 | E135: 170 | F135: 175 | N135: 2010-06-04
C136: 2010-03-12 | D136: 192 | E136: 172 | F136: 171 | N136: 2010-06-11
C137: 2010-03-19 | D137: 183 | E137: 168 | F137: 165 | G137: =I137*$J$100 -> 169 | H137: =J137*$J$100 -> 163.8 | I137: =K137*100 -> 325 | J137: =L137*100 -> 315 | K137: =O119 -> 3.25 | L137: 3.15 | M137: 0.01 | N137: 2010-06-18 | O137: 3.15 | P137: 3.05
C138: 2010-03-26 | D138: 185 | E138: 176 | F138: 154 | G138: 163.8 | H138: 158.6 | I138: 315 | J138: 305 | K138: 3.15 | L138: 3.05 | M138: -0.122 | N138: 2010-07-02 | O138: 3.15 | P138: 3.05
C139: 2010-04-02 | D139: 189 | E139: 169 | F139: 154 | G139: 161.2 | H139: 156 | I139: 310 | J139: 300 | K139: 3.1 | L139: 3 | M139: -0.078 | N139: 2010-07-14
C140: 2010-04-09 | D140: 180 | E140: 166 | F140: 156 | G140: 166.4 | H140: 161.2 | I140: 320 | J140: 310 | K140: =O124 -> 3.2 | L140: =P124 -> 3.1 | M140: 0.004 | N140: 2010-07-26
C141: 2010-04-23 | D141: 183 | E141: 168 | F141: 152 | G141: 166.4 | H141: 161.2 | I141: 320 | J141: 310 | K141: =O125 -> 3.2 | L141: =P125 -> 3.1 | M141: -0.016 | N141: 2010-07-30
C142: 2010-04-30 | D142: 176 | E142: 164 | F142: 158 | G142: 163.8 | H142: 158.6 | I142: 315 | J142: 305 | K142: =O127 -> 3.15 | L142: =P127 -> 3.05 | M142: -0.002 | N142: 2010-08-11 | O142: 3.2 | P142: 3.1
C143: 2010-05-07 | D143: 186 | E143: 166 | F143: 164 | G143: 161.2 | H143: 156 | I143: 310 | J143: 300 | K143: =O129 -> 3.1 | L143: 3 | M143: -0.048 | N143: 2010-08-24
C144: 2010-05-14 | D144: 179 | E144: 162 | F144: 160 | G144: 163.8 | H144: 158.6 | I144: 315 | J144: 305 | K144: 3.15 | L144: 3.05 | M144: 0.018 | N144: 2010-09-01
C145: 2010-05-21 | D145: 184 | E145: 158 | F145: 161 | G145: 163.8 | H145: 158.6 | I145: 315 | J145: 305 | K145: 3.15 | L145: 3.05 | M145: 0.058 | N145: 2010-09-06 | O145: 3.25 | P145: 3.15
C146: 2010-05-28 | D146: 180 | E146: 155 | F146: 155 | G146: 163.8 | H146: 158.6 | I146: 315 | J146: 305 | K146: 3.15 | L146: 3.05 | M146: 0.088 | N146: 2010-09-15 | O146: 3.25 | P146: 3.15
C147: 2010-06-04 | D147: 171 | E147: 159 | F147: 159 | G147: 169 | H147: 163.8 | I147: 325 | J147: 315 | K147: 3.25 | L147: 3.15 | M147: 0.1 | N147: 2010-09-22 | O147: 3.25 | P147: 3.15
C148: 2010-06-11 | D148: 185 | E148: 160 | F148: 159 | G148: 166.4 | H148: 161.2 | I148: 320 | J148: 310 | K148: 3.2 | L148: 3.1 | M148: 0.064 | N148: 2010-09-27
C149: 2010-06-18 | D149: 178 | E149: 162 | F149: 162 | G149: 163.8 | H149: 158.6 | I149: 315 | J149: 305 | K149: =O137 -> 3.15 | L149: =P137 -> 3.05 | M149: 0.018 | N149: 2010-10-01
C150: 2010-06-25 | D150: 186 | E150: 162 | F150: 157 | N150: 2010-10-08 | O150: 3.25 | P150: 3.15
C151: 2010-07-02 | D151: 174 | E151: 154 | F151: 165 | G151: =I151*$J$100 -> 163.8 | H151: =J151*$J$100 -> 158.6 | I151: =K151*100 -> 315 | J151: =L151*100 -> 305 | K151: =O138 -> 3.15 | L151: =P138 -> 3.05 | M151: 0.098 | N151: 2010-10-19
C152: 2010-07-16 | D152: 186 | E152: 162 | F152: 166 | N152: 2010-10-27 | O152: 3.2 | P152: 3.1
C153: 2010-07-23 | D153: 186 | E153: 169 | F153: 160 | N153: 2010-11-08 | O153: 3.15 | P153: 3.05
C154: 2010-07-30 | D154: 182 | E154: 161 | F154: 164 | N154: 2010-11-13
C155: 2010-08-06 | D155: 189 | E155: 170 | F155: 154 | N155: 2010-12-01 | O155: 3.25 | P155: 3.15
C156: 2010-08-13 | D156: 206 | E156: 169 | F156: 172 | G156: =I156*$J$100 -> 166.4 | H156: =J156*$J$100 -> 161.2 | I156: =K156*100 -> 320 | J156: =L156*100 -> 310 | K156: =O142 -> 3.2 | L156: =P142 -> 3.1 | M156: -0.026 | N156: 2010-12-03 | O156: 3.25 | P156: 3.15
C157: 2010-08-20 | D157: 196 | E157: 165 | F157: 163 | N157: 2010-12-08 | O157: 3.25 | P157: 3.15
C158: 2010-08-27 | D158: 190 | E158: 168 | F158: 163 | N158: 2011-01-14 | O158: 3.35 | P158: 3.25
C159: 2010-09-03 | D159: 186 | E159: 165 | F159: 156 | G159: =I159*$J$100 -> 169 | H159: 163.8 | I159: =K159*100 -> 325 | J159: 315 | K159: =O145 -> 3.25 | L159: 3.15 | M159: 0.04 | N159: 2011-01-21 | O159: 3.45 | P159: 3.35
C160: 2010-09-10 | D160: 177 | E160: 171 | F160: 173 | G160: 169 | H160: 163.8 | I160: 325 | J160: 315 | K160: 3.25 | L160: 3.15 | M160: -0.02 | N160: 2011-01-26 | O160: 3.45 | P160: 3.35
C161: 2010-09-17 | D161: 189 | E161: 185 | G161: 169 | H161: 163.8 | I161: 325 | J161: 315 | K161: 3.25 | L161: 3.15 | M161: -0.16 | N161: 2011-02-07 | O161: 3.35 | P161: 3.25
C162: 2010-10-01 | D162: 185 | E162: 182 | F162: 170 | N162: 2011-02-21 | O162: 3.35 | P162: 3.25
C163: 2010-10-08 | D163: 188 | E163: 166 | F163: 164 | G163: =I163*$J$100 -> 169 | H163: =J163*$J$100 -> 163.8 | I163: =K163*100 -> 325 | J163: =L163*100 -> 315 | K163: =O150 -> 3.25 | L163: =P150 -> 3.15 | M163: 0.03 | N163: 2011-02-25 | O163: 3.4 | P163: 3.3
C164: 2010-10-15 | D164: 195 | E164: 170 | F164: 169 | N164: 2011-03-07
C165: 2010-10-22 | D165: 195 | E165: 174 | F165: 169 | G165: =I165*$J$100 -> 166.4 | H165: =J165*$J$100 -> 161.2 | I165: =K165*100 -> 320 | J165: =L165*100 -> 310 | K165: =O152 -> 3.2 | L165: =P152 -> 3.1 | M165: -0.076 | N165: 2011-03-23 | O165: 3.5 | P165: 3.4
C166: 2010-10-29 | D166: 192 | E166: 168 | F166: 169 | N166: 2011-03-28
C167: 2010-11-05 | D167: 194 | E167: 176 | F167: 170 | G167: =I167*$J$100 -> 163.8 | H167: =J167*$J$100 -> 158.6 | I167: =K167*100 -> 315 | J167: =L167*100 -> 305 | K167: =O153 -> 3.15 | L167: =P153 -> 3.05 | M167: -0.122 | N167: 2011-03-31
C168: 2010-11-12 | D168: 200 | E168: 170 | F168: 168 | N168: 2011-04-06 | O168: 3.5 | P168: 3.4
C169: 2010-11-19 | D169: 193 | E169: 178 | F169: 173 | N169: 2011-04-08 | O169: 3.5 | P169: 3.4
C170: 2010-11-26 | D170: 208 | E170: 181 | F170: 172 | N170: 2011-04-18 | O170: 3.45 | P170: 3.35
C171: 2010-12-03 | D171: 204 | E171: 175 | F171: 168 | G171: =I171*$J$100 -> 169 | H171: 163.8 | I171: =K171*100 -> 325 | J171: 315 | K171: =O155 -> 3.25 | L171: 3.15 | M171: -0.06 | N171: 2011-04-26 | O171: 3.4 | P171: 3.3
C172: 2010-12-10 | D172: 216 | E172: 186 | F172: 181 | G172: 169 | H172: 163.8 | I172: 325 | J172: 315 | K172: 3.25 | L172: 3.15 | M172: -0.17 | N172: 2011-04-27 | O172: 3.35 | P172: 3.25
C173: 2011-01-28 | D173: 210 | E173: 183 | F173: 176 | G173: 169 | H173: 163.8 | I173: 325 | J173: 315 | K173: 3.25 | L173: 3.15 | M173: -0.14 | N173: 2011-04-29 | O173: 3.25 | P173: 3.15
C174: 2011-02-04 | D174: 203 | E174: 185 | F174: 166 | G174: 174.2 | H174: 169 | I174: 335 | J174: 325 | K174: 3.35 | L174: 3.25 | M174: -0.108 | N174: 2011-05-03 | O174: 3.15 | P174: 3.05
C175: 2011-02-11 | D175: 206 | E175: 183 | F175: 169 | G175: 179.4 | H175: 174.2 | I175: 345 | J175: 335 | K175: 3.45 | L175: 3.35 | M175: -0.036 | N175: 2011-05-05 | O175: 3.1 | P175: 3
C176: 2011-02-18 | D176: 199 | E176: 184 | F176: 172 | G176: 179.4 | H176: 174.2 | I176: 345 | J176: 335 | K176: 3.45 | L176: 3.35 | M176: -0.046 | N176: 2011-05-06 | O176: 3.1 | P176: 3
C177: 2011-02-25 | D177: 208 | E177: 183 | F177: 170 | G177: 174.2 | H177: 169 | I177: 335 | J177: 325 | K177: 3.35 | L177: 3.25 | M177: -0.088 | N177: 2011-05-16 | O177: 3.1 | P177: 3
C178: 2011-03-04 | D178: 201 | E178: 185 | F178: 174 | G178: 174.2 | H178: 169 | I178: 335 | J178: 325 | K178: 3.35 | L178: 3.25 | M178: -0.108 | N178: 2011-05-23 | O178: 3.12 | P178: 3.02
C179: 2011-03-11 | D179: 205 | E179: 194 | F179: 189 | N179: 2011-05-31 | O179: 3.17 | P179: 3.07
C180: 2011-03-18 | D180: 205 | E180: 185 | F180: 190 | N180: 2011-06-01 | O180: 3.25 | P180: 3.15
C181: 2011-03-25 | D181: 205 | E181: 198 | F181: 190 | G181: =I181*$J$100 -> 182 | H181: =J181*$J$100 -> 176.8 | I181: =K181*100 -> 350 | J181: =L181*100 -> 340 | K181: =O165 -> 3.5 | L181: =P165 -> 3.4 | M181: -0.16 | N181: 2011-06-06 | O181: 3.25 | P181: 3.15
C182: 2011-04-08 | D182: 227.4 | E182: 200.4 | F182: 185.7 | G182: 182 | H182: 176.8 | I182: 350 | J182: 340 | K182: =O168 -> 3.5 | L182: =P168 -> 3.4 | M182: -0.184 | N182: 2011-06-08 | O182: 3.15 | P182: 3.05
C183: 2011-04-29 | D183: 219 | E183: 197 | F183: 169 | G183: 169 | H183: 163.8 | I183: 325 | J183: 315 | K183: =O173 -> 3.25 | L183: =P173 -> 3.15 | M183: -0.28 | N183: 2011-06-20 | O183: 3 | P183: 2.9
C184: 2011-05-06 | D184: 206 | E184: 175 | F184: 156 | G184: 163.8 | H184: 158.6 | I184: 315 | J184: 305 | K184: =O174 -> 3.15 | L184: =P174 -> 3.05 | M184: -0.112 | N184: 2011-06-22 | O184: 3 | P184: 2.9
C185: 2011-05-13 | D185: 217 | E185: 176 | F185: 171 | G185: 161.2 | H185: 156 | I185: 310 | J185: 300 | K185: =O177 -> 3.1 | L185: =P177 -> 3 | M185: -0.148 | N185: 2011-06-27 | O185: 3 | P185: 2.9
C186: 2011-05-20 | D186: 213.6 | E186: 172.1 | F186: 156.2 | G186: 162.24 | H186: 157.04 | I186: 312 | J186: 302 | K186: =O178 -> 3.12 | L186: =P178 -> 3.02 | M186: =IF(OR(E186<=0,G186<=0),"",(G186-E186)/100) -> -0.0986 | N186: 2011-07-13 | O186: 3 | P186: 2.9
C187: 2011-06-03 | D187: 224.1 | E187: 184.8 | F187: 168 | G187: 169 | H187: 163.8 | I187: 325 | J187: 315 | K187: =O180 -> 3.25 | L187: =P180 -> 3.15 | M187: -0.158 | N187: 2011-07-15 | O187: 3 | P187: 2.9
C188: 2011-06-10 | D188: 204.1 | E188: 166 | F188: 157 | G188: 163.8 | H188: 158.6 | I188: 315 | J188: 305 | K188: =O182 -> 3.15 | L188: 3.05 | M188: -0.022 | N188: 2011-07-20 | O188: 3 | P188: 2.9
C189: 2011-06-17 | D189: 214 | E189: 169 | F189: 153 | G189: 156 | H189: 150.8 | I189: 300 | J189: 290 | K189: 3 | L189: 2.9 | M189: -0.13 | N189: 2011-07-27 | O189: 3 | P189: 2.9
C190: 2011-06-24 | D190: 206 | E190: 166 | F190: 157 | G190: 156 | H190: 150.8 | I190: 300 | J190: 290 | K190: 3 | L190: 2.9 | M190: -0.1 | N190: 2011-08-08 | O190: 3.1 | P190: 3
C191: 2011-07-01 | D191: 207 | E191: 166 | F191: 151 | G191: 156 | H191: 150.8 | I191: 300 | J191: 290 | K191: =O186 -> 3 | L191: 2.9 | M191: -0.1 | N191: 2011-08-15 | O191: 3.15 | P191: 3.05
C192: 2011-07-08 | D192: 193 | E192: 168 | F192: 154 | G192: 156 | H192: 150.8 | I192: 300 | J192: 290 | K192: 3 | L192: 2.9 | M192: -0.12 | N192: 2011-08-17 | O192: 3.15 | P192: 3.05
C193: 2011-07-15 | D193: 191 | E193: 173 | F193: 162 | G193: 156 | H193: 150.8 | I193: 300 | J193: 290 | K193: 3 | L193: 2.9 | M193: -0.17 | N193: 2011-08-22 | O193: 3.2 | P193: 3.1
C194: 2011-07-22 | D194: 202 | E194: 164 | F194: 162 | G194: 156 | H194: 150.8 | I194: 300 | J194: 290 | K194: 3 | L194: 2.9 | M194: -0.08 | N194: 2011-08-24 | O194: 3.2 | P194: 3.1
C195: 2011-07-29 | D195: 202 | E195: 170 | F195: 151 | G195: 161.2 | H195: 156 | I195: 310 | J195: 300 | K195: 3.1 | L195: 3 | M195: -0.088 | N195: 2011-08-25
C196: 2011-08-05 | D196: 200 | E196: 165 | F196: 156 | G196: 161.2 | H196: 156 | I196: 310 | J196: 300 | K196: =O190 -> 3.1 | L196: 3 | M196: -0.038 | N196: 2011-08-31 | O196: 3.27 | P196: 3.17
C197: 2011-08-12 | D197: 200.1 | E197: 162.5 | F197: 163 | G197: 163.8 | H197: 158.6 | I197: 315 | J197: 305 | K197: 3.15 | L197: 3.05 | M197: 0.013 | N197: 2011-09-07 | O197: 3.35 | P197: 3.25
C198: 2011-08-19 | D198: 196 | E198: 172 | F198: 168 | G198: 163.8 | H198: 158.6 | I198: 315 | J198: 305 | K198: 3.15 | L198: 3.05 | M198: -0.082 | N198: 2011-09-16 | O198: 3.35 | P198: 3.25
C199: 2011-08-26 | D199: 207 | E199: 174 | F199: 163 | G199: 166.4 | H199: 161.2 | I199: 320 | J199: 310 | K199: =O194 -> 3.2 | L199: =P194 -> 3.1 | M199: -0.076 | N199: 2011-09-19 | O199: 3.45 | P199: 3.35
C200: 2011-09-02 | D200: 203 | E200: 185 | F200: 159 | G200: 170.04 | H200: 164.84 | I200: 327 | J200: 317 | K200: =O196 -> 3.27 | L200: 3.17 | M200: -0.1496 | N200: 2011-09-27 | O200: 3.52 | P200: 3.42
C201: 2011-09-09 | D201: 221 | E201: 164 | F201: 168 | G201: 174.2 | H201: 169 | I201: 335 | J201: 325 | K201: 3.35 | L201: 3.25 | M201: 0.102 | N201: 2011-10-10 | O201: 3.55 | P201: 3.45
C202: 2011-09-16 | D202: 213 | E202: 177 | F202: 159 | G202: 174.2 | H202: 169 | I202: 335 | J202: 325 | K202: 3.35 | L202: 3.25 | M202: -0.028 | N202: 2011-10-26 | O202: 3.55 | P202: 3.45
C203: 2011-09-23 | D203: 213 | E203: 184 | F203: 172 | G203: 179.4 | H203: 174.2 | I203: 345 | J203: 335 | K203: 3.45 | L203: 3.35 | M203: -0.046 | N203: 2011-10-28 | O203: 3.5 | P203: 3.4
C204: 2011-09-30 | D204: 193 | E204: 183 | F204: 184 | G204: 183.04 | H204: 177.84 | I204: 352 | J204: 342 | K204: 3.52 | L204: 3.42 | M204: 0.0004 | N204: 2011-11-04 | O204: 3.45 | P204: 3.35
C205: 2011-10-07 | D205: 206 | E205: 177 | F205: 187 | G205: 184.6 | H205: 179.4 | I205: 355 | J205: 345 | K205: 3.55 | L205: 3.45 | M205: 0.076 | N205: 2011-11-09 | O205: 3.45 | P205: 3.35
C206: 2011-10-14 | D206: 202 | E206: 175 | F206: 174 | N206: 2011-11-23 | O206: 3.57 | P206: 3.47
C207: 2011-10-21 | D207: 204 | E207: 184 | F207: 189 | G207: =I207*$J$100 -> 184.6 | H207: =J207*$J$100 -> 179.4 | I207: =K207*100 -> 355 | J207: =L207*100 -> 345 | K207: =O202 -> 3.55 | L207: =P202 -> 3.45 | M207: 0.006 | N207: 2011-11-25 | O207: 3.65 | P207: 3.55
C208: 2011-10-28 | D208: 202 | E208: 181 | F208: 182 | G208: 182 | H208: 176.8 | I208: 350 | J208: 340 | K208: 3.5 | L208: 3.4 | M208: 0.01 | N208: 2011-12-01 | O208: 3.65 | P208: 3.55
C209: 2011-11-04 | D209: 203 | E209: 175 | F209: 177 | G209: 179.4 | H209: 174.2 | I209: 345 | J209: 335 | K209: 3.45 | L209: 3.35 | M209: 0.044 | N209: 2011-12-06 | O209: 3.65 | P209: 3.55
C210: 2011-11-11 | D210: 211 | E210: 162 | F210: 174 | G210: 179.4 | H210: 174.2 | I210: 345 | J210: 335 | K210: 3.45 | L210: 3.35 | M210: 0.174 | N210: 2011-12-15 | O210: 3.65 | P210: 3.55
C211: 2011-11-18 | D211: 213 | E211: 188 | F211: 188 | G211: 185.64 | H211: 180.44 | I211: 357 | J211: 347 | K211: 3.57 | L211: 3.47 | M211: -0.0236 | N211: 2012-01-16 | O211: 3.6 | P211: 3.5
C212: 2011-11-25 | D212: 206 | E212: 177 | F212: 189 | G212: 189.8 | H212: 184.6 | I212: 365 | J212: 355 | K212: 3.65 | L212: 3.55 | M212: 0.128 | N212: 2012-01-18 | O212: 3.5 | P212: 3.4
C213: 2011-12-02 | D213: 210 | E213: 173 | F213: 187 | G213: 189.8 | H213: 184.6 | I213: 365 | J213: 355 | K213: 3.65 | L213: 3.55 | M213: 0.168 | N213: 2012-01-23 | O213: 3.4 | P213: 3.3
C214: 2011-12-09 | D214: 214 | E214: 189 | F214: 184 | G214: 189.8 | H214: 184.6 | I214: 365 | J214: 355 | K214: 3.65 | L214: 3.55 | M214: 0.008 | N214: 2012-01-25
C215: 2011-12-16 | D215: 225 | E215: 200 | F215: 187 | G215: 189.8 | H215: 184.6 | I215: 365 | J215: 355 | K215: 3.65 | L215: 3.55 | M215: -0.102 | N215: 2012-01-30 | O215: 3.4 | P215: 3.3
C216: 2012-01-13 | E216: 192 | F216: 186 | G216: 189.8 | H216: 184.6 | I216: 365 | J216: 355 | K216: =O210 -> 3.65 | L216: =P210 -> 3.55 | M216: -0.022 | N216: 2012-02-10 | O216: 3.35 | P216: 3.25
C217: 2012-01-20 | D217: 206 | E217: 169 | F217: 178 | G217: 182 | H217: 176.8 | I217: 350 | J217: 340 | K217: =O212 -> 3.5 | L217: =P212 -> 3.4 | M217: 0.13 | N217: 2012-02-13 | O217: 3.3 | P217: 3.2
C218: 2012-02-17 | D218: 209 | E218: 185 | F218: 168 | G218: 171.6 | H218: 166.4 | I218: 330 | J218: 320 | K218: =O217 -> 3.3 | L218: =P217 -> 3.2 | M218: -0.134 | N218: 2012-02-24 | O218: 3.3 | P218: 3.2
C219: 2012-02-24 | D219: 215 | E219: 186 | F219: 171 | G219: 171.6 | H219: 166.4 | I219: 330 | J219: 320 | K219: =O218 -> 3.3 | L219: =P218 -> 3.2 | M219: -0.144 | N219: 2012-02-29 | O219: 3.35 | P219: 3.25
C220: 2012-03-02 | D220: 218 | E220: 179 | F220: 176 | G220: 174.2 | H220: 169 | I220: 335 | J220: 325 | K220: =O220 -> 3.35 | L220: 3.25 | M220: -0.048 | N220: 2012-03-05 | O220: 3.35 | P220: 3.25
C221: 2012-03-09 | D221: 208 | E221: 172 | F221: 175 | G221: 176.8 | H221: 171.6 | I221: 340 | J221: 330 | K221: 3.4 | L221: 3.3 | M221: 0.048 | N221: 2012-03-09 | O221: 3.4 | P221: 3.3
C222: 2012-03-16 | D222: 222 | E222: 193 | F222: 175 | G222: 174.2 | H222: 169 | I222: 335 | J222: 325 | K222: 3.35 | L222: 3.25 | M222: -0.188 | N222: 2012-03-16 | O222: 3.35 | P222: 3.25
C223: 2012-03-23 | G223: 176.8 | H223: 171.6 | I223: 340 | J223: 330 | K223: 3.4 | L223: 3.3 | N223: 2012-03-21 | O223: 3.4 | P223: 3.3
C224: 2012-03-30 | D224: 218 | E224: 181 | F224: 163 | G224: 171.6 | H224: 166.4 | I224: 330 | J224: 320 | K224: =O225 -> 3.3 | L224: =P225 -> 3.2 | M224: -0.094 | N224: 2012-03-28 | O224: 3.4 | P224: 3.3
C225: 2012-04-13 | D225: 205 | E225: 185 | F225: 160 | G225: 163.8 | H225: 158.6 | I225: 315 | J225: 305 | K225: =O228 -> 3.15 | L225: 3.05 | M225: -0.212 | N225: 2012-03-29 | O225: 3.3 | P225: 3.2
C226: 2012-04-20 | D226: 201 | E226: 172 | F226: 156 | G226: 161.2 | H226: 156 | I226: 310 | J226: 300 | K226: 3.1 | L226: 3 | M226: -0.108 | N226: 2012-04-04 | O226: 3.25 | P226: 3.15
C227: 2012-04-27 | D227: 200 | E227: 173 | F227: 158 | G227: 161.2 | H227: 156 | I227: 310 | J227: 300 | K227: 3.1 | L227: 3 | M227: -0.118 | N227: 2012-04-11 | O227: 3.2 | P227: 3.1
C228: 2012-05-04 | D228: 204 | E228: 176 | F228: 163 | G228: 163.8 | H228: 158.6 | I228: 315 | J228: 305 | K228: =O232 -> 3.15 | L228: 3.05 | M228: -0.122 | N228: 2012-04-13 | O228: 3.15 | P228: 3.05
C229: 2012-05-11 | D229: 193 | E229: 175 | F229: 165 | G229: 163.8 | H229: 158.6 | I229: 315 | J229: 305 | K229: 3.15 | L229: 3.05 | M229: -0.112 | N229: 2012-04-18 | O229: 3.1 | P229: 3
C230: 2012-05-18 | D230: 194 | E230: 181 | F230: 166 | G230: 166.4 | H230: 161.2 | I230: 320 | J230: 310 | K230: 3.2 | L230: 3.1 | M230: -0.146 | N230: 2012-04-27 | O230: 3.1 | P230: 3
C231: 2012-05-25 | D231: 191 | E231: 174 | F231: 167 | G231: 163.8 | H231: 158.6 | I231: 315 | J231: 305 | K231: 3.15 | L231: 3.05 | M231: -0.102 | N231: 2012-04-30 | O231: 3.15 | P231: 3.05
C232: 2012-06-01 | D232: 199 | E232: 180 | F232: 158 | G232: 163.8 | H232: 158.6 | I232: 315 | J232: 305 | K232: =O237 -> 3.15 | L232: 3.05 | M232: -0.162 | N232: 2012-05-09 | O232: 3.15 | P232: 3.05
C233: 2012-06-08 | D233: 193 | E233: 178 | F233: 164 | G233: 166.4 | H233: 161.2 | I233: 320 | J233: 310 | K233: 3.2 | L233: 3.1 | M233: -0.116 | N233: 2012-05-14 | O233: 3.15 | P233: 3.05
C234: 2012-06-15 | G234: 166.4 | H234: 161.2 | I234: 320 | J234: 310 | K234: 3.2 | L234: 3.1 | N234: 2012-05-17 | O234: 3.2 | P234: 3.1
C235: 2012-06-22 | D235: 202 | E235: 167 | F235: 156 | G235: 161.2 | H235: 156 | I235: 310 | J235: 300 | K235: 3.1 | L235: 3 | M235: -0.058 | N235: 2012-05-23 | O235: 3.15 | P235: 3.05
C236: 2012-06-29 | D236: 187 | E236: 158 | F236: 165 | N236: 2012-05-31 | O236: 3.15 | P236: 3.05
N237: 2012-06-04 | O237: 3.15 | P237: 3.05
N238: 2012-06-12 | O238: 3.2 | P238: 3.1
N239: 2012-06-20 | O239: 3.2 | P239: 3.1
N240: 2012-06-22 | O240: 3.1 | P240: 3

Sheet Machines
B2: FARM MACHINERY COSTING
B3: The machinery used to grow forage crops is detailed here. The worksheet calculates both FORM and approximate contract rates. These values are shown at the bottom of the worksheet for each machine combination
B5: Fuel price ($/Litre net of rebates) : | C5: 1
B6: Labour cost ($/hr) : | C6: 25
B7: Interest Rate (%) | C7: 0.08
B8: Inflation Rate (%) | C8: 0.03
B9: Insurance Cost $ per $1000 insured | C9: 10
B11: Tractor Costing | C11: Tractor | F11: Tractor | I11: Tractor | K11: 1 | L11: 2
C12: 180 kw FWA | D12: =C12 -> 180 kw FWA | E12: =C12 -> 180 kw FWA | F12: D&G | G12: =F12 -> D&G | H12: =G12 -> D&G | I12: 77kw 2wd | J12: =I12 -> 77kw 2wd | K12: Own Header | L12: Cotton Picker
B13: Tractor Number for matching with implement | C13: 1 | D13: 2 | E13: 3 | F13: 4 | G13: 5 | H13: 6 | I13: 7 | J13: 8
C14: Fuel use rate 1 | D14: Fuel use rate 2 | E14: Fuel use rate 3 | F14: Fuel use rate 1 | G14: Fuel use rate 2 | H14: Fuel use rate 3 | I14: Fuel use rate 1 | J14: Fuel use rate 2
B15: MACHINERY INPUTS:- | C15: =C12 -> 180 kw FWA | D15: =D12 -> 180 kw FWA | E15: 180 kw FWA | F15: D&G | G15: D&G | H15: D&G | I15: 77kw 2wd | J15: 77kw 2wd
B16: ------------------------------------------------ | C16: -------------------------- | D16: -------------------------- | E16: -------------------------- | F16: -------------------------- | G16: -------------------------- | H16: -------------------------- | I16: -------------------------- | J16: -------------------------- | K16: -------------------------- | L16: --------------------------
B17: Fuel Consumption (litres/hour) | C17: 60 | D17: 45 | E17: 25 | F17: 45 | I17: 20 | K17: 50
B18: Replacement Price($) | C18: 170000 | D18: =C18 -> 170000 | E18: =D18 -> 170000 | F18: 120000 | G18: =F18 -> 120000 | H18: 120000 | I18: 80000 | J18: =I18 -> 80000 | K18: 250000
B19: Repairs(% Replacement life over the expected life) | C19: 0.35 | D19: =C19 -> 0.35 | E19: 0.35 | F19: 0.3 | G19: 0.3 | H19: 0.3 | I19: 0.3 | J19: =I19 -> 0.3 | K19: 0.5
B20: Hours/Life | C20: 5000 | D20: 5000 | E20: 5000 | F20: 5000 | G20: 5000 | H20: 5000 | I20: 5000 | J20: =I20 -> 5000 | K20: 5000
B21: Trade In(% Replacement life) | C21: 0.4 | D21: 0.4 | E21: 0.4 | F21: 0.4 | G21: 0.4 | H21: 0.4 | I21: 0.25 | J21: =I21 -> 0.25 | K21: 0.25
B22: Hours/Year (all uses) | C22: 300 | D22: 300 | E22: 300 | F22: 250 | G22: 250 | H22: 250 | I22: 250 | J22: =I22 -> 250 | K22: 250
B23: Labour Cost($/h) | C23: =$C$6 -> 25 | D23: 25 | E23: 25 | F23: 25 | G23: 25 | H23: 25 | I23: 25 | J23: 25 | K23: 25 | L23: 25
B24: Average work rate (ha/h) Header and cotton picker only | K24: 5
B26: COST ESTIMATES($/hour)
B27: Fuel, Oil Cost | C27: =C17*C5+C17*0.1*C5 -> 66 | D27: =D17*$C$5*1.1 -> 49.5 | E27: 27.5 | F27: 49.5 | G27: 0 | H27: 0 | I27: 22 | J27: 0 | K27: 55 | L27: =L17*$C$5*1.1 -> 0
B28: Repairs, Tyres Cost | C28: =C18*C19/C20 -> 11.9 | D28: 11.9 | E28: 11.9 | F28: 7.2 | G28: 7.2 | H28: 7.2 | I28: 4.8 | J28: 4.8 | K28: 25
B29: Depreciation | C29: =(C18-(C18*C21))/C20 -> 20.4 | D29: 20.4 | E29: 20.4 | F29: 14.4 | G29: 14.4 | H29: 14.4 | I29: 12 | J29: 12 | K29: 37.5
B30: Interest | C30: =((C18+(C18*C21))/2)/C22*($C$7-$C$8) -> 19.83333333 | D30: 19.83333333 | E30: 19.83333333 | F30: 16.8 | G30: 16.8 | H30: 16.8 | I30: 10 | J30: 10 | K30: 31.25
B31: Shelter | C31: =0.005*C18/C22 -> 2.833333333 | D31: =0.005*D18/D22 -> 2.833333333 | E31: 2.833333333 | F31: 2.4 | G31: 2.4 | H31: 2.4 | I31: 1.6 | J31: 1.6 | K31: 5 | L31: =0.005*L18/L22 -> 
B32: Insurance | C32: =C18*$C$9/1000/C22 -> 5.666666667 | D32: 5.666666667 | E32: 5.666666667 | F32: 4.8 | G32: 4.8 | H32: 4.8 | I32: 3.2 | J32: 3.2 | K32: 10
B33: Labour | C33: =C23 -> 25 | D33: 25 | E33: 25 | F33: 25 | G33: 25 | H33: 25 | I33: 25 | J33: 25 | K33: 25 | L33: =L23 -> 25
B34: COST ESTIMATE ($/hour)
B35: Tractor only Fuel Oil Repairs Maintenance (FORM) per hour | C35: =C27+C28 -> 77.9 | D35: 61.4 | E35: 39.4 | F35: 56.7 | G35: 7.2 | H35: 7.2 | I35: 26.8 | J35: 4.8 | K35: 80 | L35: =L27+L28 -> 
B36: Total Cost of tractor per hour | C36: =SUM(C27:C33) -> 151.6333333 | D36: 135.1333333 | E36: 113.1333333 | F36: 120.1 | G36: 70.6 | H36: 70.6 | I36: 78.6 | J36: 56.6 | K36: 188.75
B39: Cost estimates ($/ha) for own header or picker
B40: Work rate (ha/hour) | K40: =K24 -> 5 | L40: =L24 -> 0
B41: Fuel and Oil Cost / ha | K41: =K27/K40 -> 11 | L41: =L27/L40 -> 
B42: Repairs and Maintenance / ha | K42: =K28/K40 -> 5 | L42: =L28/L40 -> 
B43: Total FORM / ha | K43: =SUM(K41:K42) -> 16 | L43: =SUM(L41:L42) -> 
B44: Contract rate | K44: =(K36+(K36*$C$89))/K40 -> 45.3 | L44: =(L36+(L36*$C$89))/L40 -> 
C45: OPERATION:
C46: Machine No.
B47: Machine and implement costing | C47: 1 | D47: 2 | E47: 3 | F47: 4 | G47: 5 | H47: 6 | I47: 7 | J47: 8 | K47: 9 | L47: 10 | M47: 11 | N47: 12 | O47: 13 | P47: 14 | Q47: 15
B48: Implement name | C48: Linkage spray rig | D48: No till seeder | E48: Tyne cultivator | F48: Chisel plough | H48: Leucaena planter | I48: Grass planter | J48: 12m Gyral planter | K48: 12 m chisel | L48: Spray Rig
B49: Implement description | C49: 18m | D49: 12 metres | E49: 6 metres | F49: 6 metre
C50: Tractor No | D50: Tractor No | E50: Tractor No | F50: Tractor No | G50: Tractor No | H50: Tractor No | I50: Tractor No | J50: Tractor No | K50: Tractor No | L50: Tractor No | M50: Tractor No | N50: Tractor No | O50: Tractor No | P50: Tractor No | Q50: Tractor No
B51: Tractor number for matching fuel use rate | C51: 7 | D51: 2 | E51: 3 | F51: 1 | G51: 1 | H51: 7 | I51: 7 | J51: 4 | K51: 4 | L51: 7 | M51: 4 | N51: 1 | O51: 2 | P51: 4 | Q51: 2
B53: Replacement Price($) | C53: 45000 | D53: 150000 | E53: 5000 | F53: 15000 | H53: 25000 | I53: 5000 | J53: 100000 | K53: 60000 | L53: 100000
B54: Repairs(% Replacement price) | C54: 0.25 | D54: 0.2 | E54: 0.25 | F54: 0.5 | H54: 0.25 | I54: 0.25 | J54: 0.25 | K54: 0.25 | L54: 0.5
B55: Hours/Life | C55: 2000 | D55: 2500 | E55: 2500 | F55: 2500 | H55: 5000 | I55: 1000 | J55: 2000 | K55: 2500 | L55: 2000
B56: Trade In(% Replacement price) | C56: 0.15 | D56: 0.25 | E56: 0.2 | F56: 0.2 | H56: 0.1 | I56: 0.1 | J56: 0.15 | K56: 0.25 | L56: 0.25
B57: Hours/Year | C57: 150 | D57: 250 | E57: 100 | F57: 100 | H57: 100 | I57: 20 | J57: 200 | K57: 250 | L57: 200
B58: Average work rate (ha/h) | C58: 17 | D58: 8 | E58: 4 | F58: 3.5 | H58: 5.5 | I58: 10 | J58: 8 | K58: 8 | L58: 30
B60: COST ESTIMATES($/hour)
B61: Repairs, Tyres Cost | C61: =C53*C54/C55 -> 5.625 | D61: 12 | E61: 0.5 | F61: 3 | H61: 1.25 | I61: 1.25 | J61: 12.5 | K61: 6 | L61: 25
B62: Depreciation | C62: =(C53-(C53*C56))/C55 -> 19.125 | D62: 45 | E62: 1.6 | F62: 4.8 | H62: 4.5 | I62: 4.5 | J62: 42.5 | K62: 18 | L62: 37.5
B63: Interest | C63: =((C53+(C53*C56))/2)/C57*($C$7-$C$8) -> 8.625 | D63: 18.75 | E63: 1.5 | F63: =((F53+(F53*F56))/2)/F57*($C$7-$C$8) -> 4.5 | H63: 6.875 | I63: 6.875 | J63: 14.375 | K63: 7.5 | L63: 15.625
B64: Shelter | C64: =0.005*C53/C57 -> 1.5 | D64: =0.005*D53/D57 -> 3 | E64: =0.005*E53/E57 -> 0.25 | F64: 0.75 | H64: 1.25 | I64: 1.25 | J64: 2.5 | K64: =0.005*K53/K57 -> 1.2 | L64: 2.5
B67: COST ESTIMATE ($/hour)
B68: FORM per hour | C68: =C61 -> 5.625 | D68: 12 | E68: 0.5 | F68: 3 | H68: 1.25 | I68: 1.25 | J68: 12.5 | K68: 6 | L68: 25
B69: Total Cost (including tractor) | C69: =SUM(C61:C66)+HLOOKUP(C51,$C$13:$J$36,24) -> 113.475 | D69: 213.8833333 | E69: 116.9833333 | F69: 164.6833333 | H69: 92.475 | I69: 92.475 | J69: 191.975 | K69: 152.8 | L69: 159.225
B71: COST ESTIMATES($/ha)
B72: Work rate (ha/hour) | C72: =C58 -> 17 | D72: 8 | E72: 4 | F72: 3.5 | G72: 0 | H72: 5.5 | I72: 10 | J72: 8 | K72: 8 | L72: 30 | M72: 0 | N72: 0 | O72: 0 | P72: 0 | Q72: 0
B73: Fuel and Oil Cost / ha | C73: =HLOOKUP(C51,$C$13:$J$27,15)/C72 -> 1.294117647 | D73: 6.1875 | E73: 6.875 | F73: 18.85714286 | H73: 4 | I73: 2.2 | J73: 6.1875 | K73: 6.1875 | L73: 0.7333333333
B74: Repairs and Maintenance / ha | C74: =(HLOOKUP(C51,$C$13:$J$28,16)+C61)/C72 -> 0.6132352941 | D74: 2.9875 | E74: 3.1 | F74: 4.257142857 | H74: 1.1 | I74: 0.605 | J74: 2.4625 | K74: 1.65 | L74: 0.9933333333
B75: Total FORM ($/ ha) | C75: =SUM(C73:C74) -> 1.907352941 | D75: =SUM(D73:D74) -> 9.175 | E75: 9.975 | F75: 23.11428571 | H75: 5.1 | I75: 2.805 | J75: 8.65 | K75: 7.8375 | L75: 1.726666667
B76: Labour cost | C76: =HLOOKUP(C51,$C$13:$J$33,21)/C72 -> 1.470588235 | D76: =HLOOKUP(D51,$C$13:$J$33,21)/D72 -> 3.125 | E76: 6.25 | F76: 7.142857143 | H76: 4.545454545 | I76: 2.5 | J76: 3.125 | K76: 3.125 | L76: 0.8333333333
B78: TOTAL machinery costs including ownership costs($/ha)
B79: Fuel & Oil | C79: =C73 -> 1.294117647 | D79: =D73 -> 6.1875 | E79: 6.875 | F79: 18.85714286 | H79: 4 | I79: 2.2 | J79: 6.1875 | K79: 6.1875 | L79: 0.7333333333
B80: Repairs & Maintenance | C80: =(HLOOKUP(C51,$C$13:$J$28,16)+C61)/C72 -> 0.6132352941 | D80: =(HLOOKUP(D51,$C$13:$J$28,16)+D61)/D72 -> 2.9875 | E80: 3.1 | F80: 4.257142857 | H80: 1.1 | I80: 0.605 | J80: 2.4625 | K80: 1.65 | L80: 0.9933333333
B81: Depreciation | C81: =(HLOOKUP(C51,$C$13:$J$29,17)+C62)/C72 -> 1.830882353 | D81: =(HLOOKUP(D51,$C$13:$J$29,17)+D62)/D72 -> 8.175 | E81: 5.5 | F81: 7.2 | H81: 3 | I81: 1.65 | J81: 7.1125 | K81: 4.05 | L81: 1.65
B82: Interest | C82: =(HLOOKUP(C51,$C$13:$J$30,18)+C63)/C72 -> 1.095588235 | D82: =(HLOOKUP(D51,$C$13:$J$30,18)+D63)/D72 -> 4.822916667 | E82: 5.333333333 | F82: 6.952380952 | H82: 3.068181818 | I82: 1.6875 | J82: 3.896875 | K82: 3.0375 | L82: 0.8541666667
B83: Shelter | C83: =(HLOOKUP(C51,$C$13:$J$31,19)+C64)/C72 -> 0.1823529412 | D83: =(HLOOKUP(D51,$C$13:$J$31,19)+D64)/D72 -> 0.7291666667 | E83: 0.7708333333 | F83: 1.023809524 | H83: 0.5181818182 | I83: 0.285 | J83: 0.6125 | K83: 0.45 | L83: 0.1366666667
B84: Insurance | C84: =(HLOOKUP(C51,$C$13:$J$32,20))/C72 -> 0.1882352941 | D84: =(HLOOKUP(D51,$C$13:$J$32,20))/D72 -> 0.7083333333 | E84: 1.416666667 | F84: 1.619047619 | H84: 0.5818181818 | I84: 0.32 | J84: 0.6 | K84: 0.6 | L84: 0.1066666667
B85: Labour | C85: =(HLOOKUP(C51,$C$13:$J$33,21))/C72 -> 1.470588235 | D85: =(HLOOKUP(D51,$C$13:$J$33,21))/D72 -> 3.125 | E85: 6.25 | F85: 7.142857143 | H85: 4.545454545 | I85: 2.5 | J85: 3.125 | K85: 3.125 | L85: 0.8333333333
B86: Total Cost ($/ha) | C86: =SUM(C79:C85) -> 6.675 | D86: =SUM(D79:D85) -> 26.73541667 | E86: 29.24583333 | F86: 47.05238095 | H86: 16.81363636 | I86: 9.2475 | J86: 23.996875 | K86: 19.1 | L86: 5.3075
B87: Estimated contractor rate (total cost plus allowance for travel and profit) $/ha | C87: =C86*(1+$C$89) -> 8.01 | D87: 32.0825 | E87: 35.095 | F87: 56.46285714 | H87: 20.17636364 | I87: 11.097 | J87: 28.79625 | K87: 22.92 | L87: 6.369
B89: Allowance for travel and profit | C89: 0.2
B96: Notes
B97: Farming plant is normally costed in gross margins on the basis of the Fuel, Oil, Repairs and Maintenance (F.O.R.M.) used on a per hour basis in the production of the output. Note that the ownership costs of the plant are not included.
B98: For each tractor/implement or harvester combination in the enterprise or activity the following rule of thumb calculations of cost are made:
B99: · Fuel = fuel consumption (litres per hour) multiplied by the fuel cost (cents per litre net of rebates)
B100: · Oil can usually be assessed as 10% of fuel cost
B101: · Repairs and Maintenance. To calculate a share of repairs and maintenance, firstly identify the replacement cost of the machine. This can be the current new value of the machine or the second hand value if it is going to be replaced with a used machine. Then identify the total cost of all repairs likely to be incurred over the life of the machine and calculate that as a percentage of the replacement value. The longer the machine is kept the higher the percentage – up to 70% or more for a tractor that is kept a long time (> 5000 hours) and used to undertake heavy work. To calculate the hourly cost of repairs and maintenance the replacement cost of the machine is multiplied by the percentage of the replacement cost of the machine spent on repairs over the life of the machine and divided by the hours of life of the machine. For example, if a machine costs $10,000 and about $3,000 is expected to be spent on repairs and maintenance over its five year life, then about 30% of the cost of the machine will be spent on repairs. If the machine is used for 100 hours per annum, the hourly cost of repairs and maintenance is about $6 per hour of use.
B102: These rules of thumb are sufficiently accurate to allow the inclusion of the relative FORM costs in a gross margin analysis.

Sheet Treatments
B2: This worksheet is used to enter data for commonly encountered chemical, fertiliser, seed and contract costs. The number in column C can be entered in later worksheets as part of a lookup function to automatically enter the cost in column J
B3: This worksheet allows a cost item to be recorded once here. It can then be automatically changed in all worksheets where it is subsequently used.
B4: Contract machinery rates used in the gross margin analysis are calculated in the machinery sheet and are summarised after row 366 of this sheet.
B6: INPUTS | C6: No | D6: Name or Product | E6: Description or active ingredients | F6: Concentration | G6: Total price | H6: Unit | I6: Package | J6: $ per unit, kg or litre | K6: Unit | L6: Date | M6: Source
C7: 0 | D7: No treatment | I7: - | J7: 0
B8: Casual Labour | C8: 1 | D8: Casual Labour | I8: /ha | J8: 25 | M8: All prices should be checked for applicability prior to use in the worksheet
B9: Casual Labour | C9: 2
B10: Casual Labour | C10: 3 | M10: The item number shown in Column C can be used in the gross
B11: Contract | C11: 4 | D11: Aerial spraying - broadacre | I11: /ha | J11: 14 | M11: margin calculators to transfer the price data to the gross margin
B12: Contract | C12: 5 | D12: Aerial spraying-cotton EC | I12: /ha | J12: 14
B13: Contract | C13: 6 | D13: Aerial spraying-cotton ULV | I13: /ha | J13: 11
B14: Contract | C14: 7 | D14: Anhydrous ammonia applicator | G14: 41.99 | H14: 1 | I14: ha | J14: =G14/H14 -> 41.99
B15: Contract | C15: 8 | D15: Casual labour/planting & harvest | I15: /hour | J15: 18.5
B16: Contract | C16: 9 | D16: Chickpea scouting | I16: /ha | J16: 20
B17: Contract | C17: 10 | D17: Cotton Consultant | E17: per ha | I17: /ha | J17: 55
B18: Contract | C18: 11 | D18: Cotton Crop Insurance | I18: /ha | J18: 30
B19: Contract | C19: 12 | D19: Cotton Eliminator | I19: /ha | J19: 30
B20: Contract | C20: 13 | D20: Cotton Harvest Solid | I20: /ha | J20: 350
B21: Contract | C21: 14 | D21: Cotton Harvesting Double skip | E21: $170 / hr at 1.36 ha / hour @ 3 bales/ha | I21: /bale | J21: 41.66666667
B22: Contract | C22: 15 | D22: Heavy Offsets - contract | I22: /ha | J22: 0
B23: Contract | C23: 16 | D23: Light Offsets - contract | I23: /ha | J23: 0
B24: Contract | C24: 17 | D24: Peanut chipping | I24: /ha | J24: 40
B25: Contract | C25: 18 | D25: Peanut Scouting | I25: /ha | J25: 55
B26: Contract | C26: 19 | D26: Soil testing | E26: 40 | F26: ha | G26: 240 | H26: 1 | I26: /ha | J26: =G26/E26 -> 6
B27: Contract | C27: 20 | D27: Peanut cutting and pulling | J27: 40
B28: Contract | C28: 21 | D28: Peanut threshing | G28: 83 | H28: 1 | I28: tonne | J28: =G28/H28 -> 83
B29: Contract | C29: 22 | D29: Mungbean scouting | J29: 12
B30: Contract | C30: 23 | D30: High clearance spray rig | J30: 8
B31: Contract | C31: 24 | D31: Leucaena maintenance | J31: 81.51 | K31: per hectare
B32: Contract | C32: 25 | D32: Leucaena fertiliser spreading | J32: 8 | K32: per hectare
B33: Contract | C33: 26 | D33: Butterfly pea amortised development costs
B34: Contract (drying) | C34: 27 | D34: Mungbeans | I34: /t | J34: 18
B35: Contract (drying) | C35: 28 | D35: Navy bean | G35: 20 | H35: 1 | I35: tonne | J35: =G35/H35 -> 20
B36: Contract (drying) | C36: 29 | D36: Peanuts (dry) 14% | I36: /t | J36: 18.7
B37: Contract (drying) | C37: 30 | D37: Peanuts (med) 18% | I37: /t | J37: 29.9
B38: Contract (drying) | C38: 31 | D38: Peanuts (wet) 25% | I38: /t | J38: 80.3
B39: Contract (drying) | C39: 32
B40: Contract (drying) | C40: 33
B41: Contract (fert) | C41: 34 | D41: Gypsum spread on farm | I41: /ton | J41: 72.72
B42: Contract (fert) | C42: 35 | D42: Lime spread on farm | I42: /ton | J42: 65
B43: Contract (fert) | C43: 36
B44: Contract (fert) | C44: 37
B45: Contract (fert) | C45: 38
B46: Contract (plant) | C46: 39 | D46: Plant Sugarcane (contract) | I46: /ha | J46: 350
B47: Contract (plant) | C47: 40 | I47: /ton
B48: Contract (plant) | C48: 41
B49: Contract (plant) | C49: 42
B50: Contract (plant) | C50: 43
B51: Cartage | C51: 44 | D51: Biloela to Kingaroy (navy beans) | I51: /ton
B52: Cartage | C52: 45 | D52: Cotton cartage | G52: 3.2 | H52: 1 | I52: km/module | J52: =G52/H52 -> 3.2
B53: Cartage | C53: 46 | D53: Cotton Pick-up fee | G53: 65 | H53: 1 | I53: module | J53: 65
B54: Cartage | C54: 47 | D54: Downs to Newcastle | G54: 108 | H54: 1 | I54: /ton | J54: 108
B55: Cartage | C55: 48 | D55: Downs to Moree | G55: 42 | H55: 1 | I55: tonne | J55: 42
B56: Cartage | C56: 49 | D56: Farm to Depot | G56: 11 | H56: 1 | I56: /ton | J56: 11
B57: Cartage | C57: 50 | D57: Downs to Toowoomba | G57: 15 | H57: 1 | I57: /ton | J57: 15
B58: Cartage | C58: 51 | D58: Navy beans Freight Rebate (from Biloela) | I58: /ton
B59: Cartage | C59: 52 | D59: Navy beans Freight Rebate (from Emerald) | I59: /ton
B60: Cartage | C60: 53 | D60: Rail (Macalister to Brisbane) | G60: 19.4 | H60: 1 | I60: tonne | J60: =G60/H60 -> 19.4
B61: Cartage | C61: 54 | D61: Rail (Emerald to Gladstone) | I61: /ton
B62: Cartage | C62: 55 | D62: Theodore to Kingaroy (peanuts) | I62: /ton
B63: Defoliant | C63: 56 | D63: Cotton quick | J63: 11
B64: Defoliant | C64: 57 | D64: Dropp Ultra | E64: thidiazuron + diuron | F64: 120 g/L + 60 g/L | G64: 675 | H64: 5 | I64: L | J64: =G64/H64 -> 135
B65: Defoliant | C65: 58 | D65: CottonQuik | E65: ethephon+AMADS | F65: 275 g/L + 873 g/L | G65: 9.2 | H65: 1 | I65: L | J65: =G65/H65 -> 9.2
B66: Defoliant | C66: 59 | D66: Salt Defoliant | I66: /kg | J66: 1.55
B67: Defoliant | C67: 60 | D67: Prep | J67: 23.75
B68: Defoliant | C68: 61
B69: Defoliant | C69: 62
B70: Defoliant | C70: 63
B71: Defoliant | C71: 64
B72: Fertilizer | C72: 65 | D72: Ammonium Sulphate (tech grade) | G72: 1038 | H72: 1000 | I72: tonne | J72: =G72/H72 -> 1.038 | K72: /kg
B73: Fertilizer | C73: 66 | D73: Big N | E73: 82N | J73: 1.1
B74: Fertilizer | C74: 67 | D74: Clear start | E74: 1.8N:22P:7.5K:1Zn | I74: /kg | J74: 3.96
B75: Fertilizer | C75: 68 | D75: CK 700 | E75: 32.3N;5.1P;18.9S | I75: /kg | J75: 0.7
B76: Fertilizer | C76: 69 | D76: CK1 | E76: 14.6P;14.5K;1S;10.6Ca | I76: /kg | J76: 0.6
B77: Fertilizer | C77: 70 | D77: CK600 (s) | E77: 17.9N;5.1P;18.9S | I77: /kg | J77: 0.54
B78: Fertilizer | C78: 71 | D78: DAP | E78: 18N;20P | F78: bulk $528/ton | I78: /kg | J78: 0.75
B79: Fertilizer | C79: 72 | D79: Granam | E79: 20.2N;24S | I79: /kg | J79: 0.477
B80: Fertilizer | C80: 73 | D80: Granulock (Starter Z) | E80: 10.5N;19.5P;2.2S | I80: /kg | J80: 0.61818
B81: Fertilizer | C81: 74 | D81: Gypsum | E81: 14.5S;18.5Ca | G81: 70 | H81: 1000 | I81: per tonne | J81: =G81/H81 -> 0.07 | K81: per kilo
B82: Fertilizer | C82: 75 | D82: Lime | E82: Ca | G82: 110 | H82: 1000 | I82: per tonne | J82: =G82/H82 -> 0.11 | K82: per kilo
B83: Fertilizer | C83: 76 | D83: Liquifert | J83: 2
B84: Fertilizer | C84: 77 | D84: MAP (Starterphos) | E84: 10N;21.9P;1.5S | I84: /kg | J84: 0.88
B85: Fertilizer | C85: 78 | D85: Muriate of Potash (MOP) | E85: 50K | I85: /kg | J85: 0.506
B86: Fertilizer | C86: 79 | D86: Nitram | E86: 34N | I86: /kg | J86: 0.7054
B87: Fertilizer | C87: 80 | D87: Nitram & Sulphur | I87: /kg | J87: 0.1303
B88: Fertilizer | C88: 81 | D88: Phosul | I88: /kg | J88: 0.57
B89: Fertilizer | C89: 82 | D89: Potassium Nitrate | E89: 13N;38.3K | I89: /kg | J89: 0.9509
B90: Fertilizer | C90: 83 | D90: Solubor | E90: 20.5B | I90: /kg | J90: 3.82727
B91: Fertilizer | C91: 84 | D91: Starter Z | I91: /kg | J91: 0.9
B92: Fertilizer | C92: 85 | D92: Starterphos | E92: 10N;21.9P;1.5S | I92: /kg | J92: 0.48
B93: Fertilizer | C93: 86 | D93: Sulphate of Potash | E93: 41K;18S | I93: /kg | J93: 0.6868
B94: Fertilizer | C94: 87 | D94: Supazinc | E94: 7.5Zn | I94: /litre | J94: 4.81727
B95: Fertilizer | C95: 88 | D95: Superphosphate | E95: 8.8P;11S;20Ca | I95: /kg | J95: 0.58
B96: Fertilizer | C96: 89 | D96: Tech Feed | I96: /kg | J96: 0.58
B97: Fertilizer | C97: 90 | D97: Urea | E97: 46N | F97: bulk $1200/ton | I97: /kg | J97: 0.5
B98: Fertilizer | C98: 91 | D98: Zinc Sulphate Heptahydrate | I98: /kg | J98: 0.7229
B99: Fertilizer | C99: 92 | D99: Zinc Sulphate monohydrate | E99: 35Zn;17.2S | I99: /kg | J99: 1.11818
B100: Fertilizer | C100: 93 | D100: Bore track | E100: Boron solution | I100: /litre | J100: 12.07
B101: Fertilizer | C101: 94 | D101: Caltrack | E101: Calcium solution | I101: /litre | J101: 5.2
B102: Fertilizer | C102: 95 | D102: Hydromag | E102: Magnesium solution | I102: /litre | J102: 9.5
B103: Fertilizer | C103: 96 | D103: Hydrophos | E103: Phosphor solution | I103: /litre | J103: 9.64
B104: Fertilizer | C104: 97 | D104: zinktrack | E104: Zink solution | I104: /litre | J104: 15.2
B105: Fertilizer | C105: 98
B106: Fertilizer | C106: 99
B107: Fertilizer | C107: 100
B108: Fertilizer | C108: 101
B109: Fertilizer | C109: 102
B110: Fungicide | C110: 103 | D110: Alto 100SL | E110: cyproconazole | F110: 100 g/L | I110: /litre | J110: 116.9
B111: Fungicide | C111: 104 | D111: Balance | E111: isoxaflutole | F111: 750 k/kg | I111: per kg | J111: =460/1.5 -> 306.6666667
B112: Fungicide | C112: 105 | D112: Bravo | E112: chlorothalonil | I112: /litre | J112: 23
B113: Fungicide | C113: 106 | D113: Confidor | E113: imidacloprid | I113: /litre | J113: 285
B114: Fungicide | C114: 107 | D114: Dithane | E114: mancozeb | F114: 750 g/kg | I114: /kg | J114: 7.25
B115: Fungicide | C115: 108 | D115: Elect 720 (chlorothalonil) | E115: chlorothalonil | F115: 720 g/L | I115: /litre | J115: 18.828
B116: Fungicide | C116: 109 | D116: Falcon | E116: butroxydim (p) | I116: /litre
B117: Fungicide | C117: 110 | D117: Folicur 430 SC | E117: tebuconazole | F117: 430 g/L | I117: /litre | J117: 94
B118: Fungicide | C118: 111 | D118: Fortress 500 | E118: procymidone | F118: 500 g/L | I118: /litre | J118: 58.6
B119: Fungicide | C119: 112 | D119: Prosaro _ Hasten | J119: 85
B120: Fungicide | C120: 113 | D120: Rover | I120: /litre | J120: 14.75
B121: Fungicide | C121: 114 | D121: Rovral Aquaflo | E121: iprodione | F121: 250 g/L | I121: /litre | J121: 55.8181
B122: Fungicide | C122: 115 | D122: Score | E122: difenoconazole | I122: /litre | J122: 148
B123: Fungicide | C123: 116 | D123: Tribase Blue | E123: ?? | I123: /kg | J123: 7.25
B124: Fungicide | C124: 117 | D124: Wallibi | E124: ?? | J124: 31
B125: Fungicide | C125: 118
B126: Fungicide | C126: 119
B127: Fungicide | C127: 120
B128: Fungicide | C128: 121
B129: Fungicide | C129: 122
B130: Fungicide | C130: 123
B131: Herbicide | C131: 124 | D131: Achieve | I131: /kg | J131: 87.818
B132: Herbicide | C132: 125 | D132: Ally | E132: metsulfuron | F132: 600 g/kg | I132: /gram | J132: 0.07
B133: Herbicide | C133: 126 | D133: Amicide 500 | E133: 2,4-D | F133: 500 g/L | I133: /litre | J133: 6.05
B134: Herbicide | C134: 127 | D134: Amicide 625 | J134: 6.82
B135: Herbicide | C135: 128 | D135: Avadex Xtra | E135: tri-allate | F135: 500 g/L | I135: /litre | J135: 14.29
B136: Herbicide | C136: 129 | D136: Barrick | I136: /litre | J136: 120
B137: Herbicide | C137: 130 | D137: Basagran | E137: bentazone | F137: 480 g/L | I137: /litre | J137: 34.272
B138: Herbicide | C138: 131 | D138: Blazer 2L | E138: acifluorfen | F138: 224 g/L | I138: /litre | J138: 43.4545
B139: Herbicide | C139: 132 | D139: Broadstrike | E139: flumetsulam | F139: 800 g/kg | I139: /gram | J139: 0.649
B140: Herbicide | C140: 133 | D140: Bromicide MA | E140: bromicide + MCPA | F140: 200 g/L + 200 g/L | I140: /litre | J140: 13.95
B141: Herbicide | C141: 134 | D141: Buticide | E141: 2,4-DB | F141: 500 g/L | I141: /litre | J141: 12.4545
B142: Herbicide | C142: 135 | D142: Cadence | J142: 60.2
B143: Herbicide | C143: 136 | D143: Cotogard | E143: flurometuron + prometryn | F143: 250 g/L + 250 g/L | I143: /litre | J143: 12.32
B144: Herbicide | C144: 137 | D144: Cotoran | E144: flurometuron | F144: 500 g/L | I144: /litre | J144: 12.3
B145: Herbicide | C145: 138 | D145: Diuron 900 | E145: diuron | F145: 500 g/L | I145: /gram | J145: 12
B146: Herbicide | C146: 139 | D146: Dual Gold | E146: metolachlor | F146: 960 g/L | I146: /litre | J146: 32.227
B147: Herbicide | C147: 140 | D147: Eclipse | E147: metosulam | F147: 714 g/kg | I147: /gram | J147: 1.19
B148: Herbicide | C148: 141 | D148: Eptam | E148: EPTC | I148: /gram | J148: 23.9
B149: Herbicide | C149: 142 | D149: Ester 24D | J149: 7.45
B150: Herbicide | C150: 143 | D150: Express | E150: Express | I150: /gram | J150: 0.48
B151: Herbicide | C151: 144 | D151: Flame | E151: imazapic | I151: /litre | J151: 180.2
B152: Herbicide | C152: 145 | D152: Fusilade | E152: fluazifop-p | F152: 212 g/L | I152: /litre | J152: 69.2727
B153: Herbicide | C153: 146 | D153: Garlon 600 | E153: triclopyr | F153: 600 g/L | I153: /litre | J153: 50.909
B154: Herbicide | C154: 147 | D154: Gesagard 500SC | E154: prometryn | F154: 500 g/L | I154: /litre | J154: 14.227
B155: Herbicide | C155: 148 | D155: Gesaprim | E155: atrazine | F155: 500 g/L | I155: /litre | J155: 7
B156: Herbicide | C156: 149 | D156: Glean | E156: chlorsulfuron | F156: 750 g/kg | I156: /gram | J156: 0.18
B157: Herbicide | C157: 150 | D157: Glyphosate 450 CT | E157: glyphosate IPA salt | F157: 450 g/L | I157: /litre | J157: 4.636
B158: Herbicide | C158: 151 | D158: Gramoxone 250 | E158: paraquat | F158: 250 g/L | I158: /litre | J158: 9.68
B159: Herbicide | C159: 152 | D159: Grazon | J159: 31.25
B160: Herbicide | C160: 153 | D160: Harmony M | E160: thifensulfuron-methyl + metsulfuron-methyl | F160: 682 g/kg + 68 g/kg | I160: /gram | J160: 0.3836
B161: Herbicide | C161: 154 | D161: Hotwire | J161: 6.05
B162: Herbicide | C162: 155 | D162: Jaguar | E162: bromoxynil + diflufenican | F162: 250 g/L + 25 g/L | I162: /litre | J162: 31.2
B163: Herbicide | C163: 156 | D163: Kamba 500 | E163: Dicamba | I163: /litre | J163: 39
B164: Herbicide | C164: 157 | D164: Kamba M | E164: MCPA + dicamba | F164: 340 g/L + 80 g/L | I164: /litre | J164: 10.4
B165: Herbicide | C165: 158 | D165: MCPA LVE | E165: MCPA ester | F165: 500 g/L | I165: /litre | J165: 10.75
B166: Herbicide | C166: 159 | D166: Primextra Gold | E166: metolachlor + atrazine | F166: 290 g/L + 370 g/L | I166: /litre | J166: 14.636
B167: Herbicide | C167: 160 | D167: Promo-mix | E167: fluometuron + prometryn | F167: 250 g/L + 250 g/L | I167: /litre | J167: 11.75
B168: Herbicide | C168: 161 | D168: Reglone | E168: diquat | F168: 200 g/L | I168: /litre | J168: 18.72
B169: Herbicide | C169: 162 | D169: Roundup CT | E169: glyphosate IPA salt | F169: 450 g/L | I169: /litre | J169: 4.5
B170: Herbicide | C170: 163 | D170: Roundup Ready Plant shield | F170: 690 g/kg | I170: /litre | J170: 22
B171: Herbicide | C171: 164 | D171: Select | E171: clethodim | F171: 240 g/L | I171: /litre | J171: 84.5
B172: Herbicide | C172: 165 | D172: Sencor | E172: metribuzin | I172: /litre | J172: 60
B173: Herbicide | C173: 166 | D173: Sertin Plus | E173: sethoxydim | I173: /litre | J173: 22
B174: Herbicide | C174: 167 | D174: Simazine 600 | J174: 7.9
B175: Herbicide | C175: 168 | D175: Simazine 900DF | E175: simazine | F175: 900 g/kg | I175: /gram | J175: 19.5
B176: Herbicide | C176: 169 | D176: Simazine Flowable | E176: simazine | F176: 500 g/L | I176: /litre | J176: 5.65
B177: Herbicide | C177: 170 | D177: S-metolachlor | I177: /litre | J177: 32.14
B178: Herbicide | C178: 171 | D178: Spinnaker | E178: imazethapyr | F178: 700 g/kg | I178: /kilo | J178: 255
B179: Herbicide | C179: 172 | D179: Sprayseed | E179: paraquat + diquat | F179: 135 g/L + 115 g/L | I179: /litre | J179: 10.3181
B180: Herbicide | C180: 173 | D180: Starane | E180: fluroxypyr | F180: 200 g/L | I180: /litre | J180: 16
B181: Herbicide | C181: 174 | D181: Stomp XTRA | E181: pendimethalin | F181: 450 g/L | I181: /litre | J181: 11.41
B182: Herbicide | C182: 175 | D182: Striker | E182: diuron | F182: 500 g/L | I182: /litre | J182: 43.6
B183: Herbicide | C183: 176 | D183: Surpass 300 | E183: 2,4-D IPA salt | I183: /litre | J183: 4.3636
B184: Herbicide | C184: 177 | D184: Tigrex | E184: MCPA + diflufenican | F184: 250 g/L + 25 g/L | I184: /litre | J184: 21.95
B185: Herbicide | C185: 178 | D185: Topik | E185: clodinafop + cloquintocet | F185: 240 g/L + 60 g/L | I185: /litre | J185: 400
B186: Herbicide | C186: 179 | D186: Tordon 242 | E186: MCPA + picloram | F186: 420 g/L + 26 g/L | I186: /litre | J186: 16.818
B187: Herbicide | C187: 180 | D187: Tordon 75D | E187: 2,4-D + picloram | F187: 300 g/L + 75 g/L | I187: /litre | J187: 36.72
B188: Herbicide | C188: 181 | D188: Touchdown | E188: glyphosate-trimesium | I188: /litre | J188: 9.6
B189: Herbicide | C189: 182 | D189: Treflan | E189: Triflur 480 | I189: /litre | J189: 8.6
B190: Herbicide | C190: 183 | D190: Trifluralin 480 | E190: trifluralin | F190: 480 g/L | I190: /litre | J190: 7.818
B191: Herbicide | C191: 184 | D191: Verdict 520 | E191: haloxyfop | F191: 520 g/L | I191: /litre | J191: 240
B192: Herbicide | C192: 185 | D192: Wildcat | I192: /litre | J192: 78.6
B193: Herbicide | C193: 186
B194: Herbicide | C194: 187
B195: Herbicide | C195: 188
B196: Herbicide | C196: 189
B197: Herbicide | C197: 190
B198: Herbicide | C198: 191
B199: Herbicide | C199: 192
B200: Herbicide | C200: 193
B201: Herbicide | C201: 194
B202: Herbicide | C202: 195
... 205 more rows

Sheet Gross margin summary
B2: Gross Margin Summary
C4: This worksheet summarises the gross margins calculated on the next ten worksheets. Changes to input values made to those worksheets are reflected in the summary shown here.
C5: The names of gross margins can be entered in the yellow formatted cells shown below and are transferred to the relevant worksheet
C6: The first block of summaries shows the results of the gross margins calculated on the basis of variable costs and amortised development costs only.
C7: The second block shows the results of the same gross margins calculated on the basis of using the same machinery at a "contract" rate to prepare and plant the forage crops.
B9: Variable costs only - FORM plus labour used to operate machines
B10: These summary gross margins are calculated as if the machinery is owned by the business and include machinery operation labour
D12: Gross margin 1 | E12: Gross margin 2 | F12: Gross margin 3 | G12: Gross margin 4 | H12: Gross margin 5 | I12: Gross margin 6 | J12: Gross margin 7 | K12: Gross margin 8 | L12: Gross margin 9 | M12: Gross margin 10 | N12: Gross margin 11
C15: Gross margin for | D15: Baseline buffel | E15: Leucaena | F15: Butterfly pea | G15: Lablab | H15: Forage sorghum | I15: Oats | J15: GM7 | K15: GM8 | L15: GM9 | M15: GM10 | N15: GM11
D16: per ha per annum | E16: per ha per annum | F16: per ha per annum | G16: per ha per annum | H16: per ha per annum | I16: per ha per annum | J16: per ha per annum | K16: per ha per annum | L16: per ha per annum | M16: per ha per annum | N16: per ha per annum
C17: =Buffel!B206 -> Livestock Sales | D17: =Buffel!J206 -> 115.328928 | E17: =Leucaena!E155 -> 496.119936 | F17: ='Butterfly pea'!E155 -> 707.7594343 | G17: =Lablab!E155 -> 1935.884288 | H17: ='Forage sorghum'!E155 -> 2104.26112 | I17: =Oats!E155 -> 1971.587072 | J17: ='GM7'!E155 -> 0 | K17: ='GM8'!E155 -> 0 | L17: ='GM9'!E155 -> 0 | M17: ='GM10'!E155 -> 0 | N17: ='GM11'!E155 -> 0
C18: Variable costs
C19: =Buffel!B207 -> Livestock Purchases | D19: =Buffel!J207 -> 56.9274 | E19: =Leucaena!E156 -> 307.129488 | F19: ='Butterfly pea'!E156 -> 532.5551758 | G19: =Lablab!E156 -> 1636.5568 | H19: ='Forage sorghum'!E156 -> 1780.8 | I19: =Oats!E156 -> 1580.8576 | J19: ='GM7'!E156 -> 0 | K19: ='GM8'!E156 -> 0 | L19: ='GM9'!E156 -> 0 | M19: ='GM10'!E156 -> 0 | N19: ='GM11'!E156 -> 0
C20: =Buffel!B208 -> Freight In | D20: =Buffel!J208 -> 1.185164583 | E20: =Leucaena!E157 -> 6.432679018 | F20: ='Butterfly pea'!E157 -> 9.88269865 | G20: =Lablab!E157 -> 31.94625455 | H20: ='Forage sorghum'!E157 -> 38.1653 | I20: =Oats!E157 -> 35.78897 | J20: ='GM7'!E157 -> 0 | K20: ='GM8'!E157 -> 0 | L20: ='GM9'!E157 -> 0 | M20: ='GM10'!E157 -> 0 | N20: ='GM11'!E157 -> 0
C21: =Buffel!B209 -> Freight Out | D21: =Buffel!J209 -> 4.7994 | E21: =Leucaena!E158 -> 20.00749875 | F21: ='Butterfly pea'!E158 -> 28.54248534 | G21: =Lablab!E158 -> 78.07024 | H21: ='Forage sorghum'!E158 -> 84.7894 | I21: =Oats!E158 -> 79.51006 | J21: ='GM7'!E158 -> 0 | K21: ='GM8'!E158 -> 0 | L21: ='GM9'!E158 -> 0 | M21: ='GM10'!E158 -> 0 | N21: ='GM11'!E158 -> 0
C22: =Buffel!B210 -> Treatment Expenses | D22: =Buffel!J210 -> 0.04503 | E22: =Leucaena!E159 -> 1.2556275 | F22: ='Butterfly pea'!E159 -> 0.2711875091 | G22: =Lablab!E159 -> 0.74176 | H22: ='Forage sorghum'!E159 -> 0.8056 | I22: =Oats!E159 -> 0.75544 | J22: ='GM7'!E159 -> 0 | K22: ='GM8'!E159 -> 0 | L22: ='GM9'!E159 -> 0 | M22: ='GM10'!E159 -> 0 | N22: ='GM11'!E159 -> 0
C23: =Buffel!B211 -> Selling Expenses | D23: =Buffel!J211 -> 0.6 | E23: =Leucaena!E160 -> 2.50125 | F23: ='Butterfly pea'!E160 -> 3.568256699 | G23: =Lablab!E160 -> 9.76 | H23: ='Forage sorghum'!E160 -> 10.6 | I23: =Oats!E160 -> 9.94 | J23: ='GM7'!E160 -> 0 | K23: ='GM8'!E160 -> 0 | L23: ='GM9'!E160 -> 0 | M23: ='GM10'!E160 -> 0 | N23: ='GM11'!E160 -> 0
C24: =Buffel!B212 -> Forage growing costs | D24: =Buffel!J212 -> 0 | E24: =Leucaena!E161 -> 41.62974027 | F24: ='Butterfly pea'!E161 -> 58.17286235 | G24: =Lablab!E161 -> 152.5625697 | H24: ='Forage sorghum'!E161 -> 171.8539664 | I24: =Oats!E161 -> 160.0550697 | J24: ='GM7'!E161 -> 0 | K24: ='GM8'!E161 -> 0 | L24: ='GM9'!E161 -> 0 | M24: ='GM10'!E161 -> 0 | N24: ='GM11'!E161 -> 0
C25: =Buffel!G213 -> Total Expenses | D25: =SUM(D19:D24) -> 63.55699458 | E25: 378.9562835 | F25: 632.9926664 | G25: 1909.637624 | H25: 2087.014266 | I25: 1866.90714 | J25: 0 | K25: 0 | L25: 0 | M25: 0 | N25: 0
C26: =Buffel!B215 -> Gross Margin | D26: =D17-D25 -> 51.77193342 | E26: 117.1636525 | F26: 74.76676798 | G26: 26.24666371 | H26: 17.24685361 | I26: 104.6799323 | J26: 0 | K26: 0 | L26: 0 | M26: 0 | N26: ='GM11'!E164 -> 0
C27: Gross Margin (after Interest) | D27: =Buffel!E217 -> 48.92556342 | E27: =Leucaena!E166 -> 107.2404249 | F27: ='Butterfly pea'!E166 -> 59.008971 | G27: =Lablab!E166 -> 6.069936035 | H27: ='Forage sorghum'!E166 -> -14.4660231 | I27: =Oats!E166 -> 85.18990705 | J27: ='GM7'!E166 -> 0 | K27: ='GM8'!E166 -> 0 | L27: ='GM9'!E166 -> 0 | M27: ='GM10'!E166 -> 0 | N27: ='GM11'!E166 -> 0
C29: =Buffel!B222 -> Kilograms of liveweight gain per hectare per annum | D29: =Buffel!D222 -> 52.64810345 | E29: =Leucaena!E167 -> 106.19307 | F29: ='Butterfly pea'!E167 -> 92.48921364 | G29: =Lablab!E167 -> 140.544 | H29: ='Forage sorghum'!E167 -> 151.58 | I29: =Oats!E167 -> 196.812 | J29: ='GM7'!E167 -> 0 | K29: ='GM8'!E167 -> 0 | L29: ='GM9'!E167 -> 0 | M29: ='GM10'!E167 -> 0 | N29: ='GM11'!E167 -> 0
C30: Stocking rate (Ha per AE) | D30: =Buffel!E18 -> 3.52885141 | E30: =Leucaena!J100 -> 2.902632496 | F30: ='Butterfly pea'!J100 -> 2.090759322 | G30: =Lablab!J100 -> 1.763291383 | H30: ='Forage sorghum'!J100 -> 1.122874588 | I30: =Oats!J100 -> 1.76333941 | J30: ='GM7'!J100 -> 0 | K30: ='GM8'!J100 -> 0 | L30: ='GM9'!J100 -> 0 | M30: ='GM10'!J100 -> 0 | N30: ='GM11'!J100 -> 0
B34: Contract Rates including labour used to operate machines
B35: These summary gross margins are calculated as if the machinery is not owned by the business (on the basis of contract costs) and include machinery operation labour
D37: Gross margin 1 | E37: Gross margin 2 | F37: Gross margin 3 | G37: Gross margin 4 | H37: Gross margin 5 | I37: Gross margin 6 | J37: Gross margin 7 | K37: Gross margin 8 | L37: Gross margin 9 | M37: Gross margin 10 | N37: Gross margin 11
C40: Gross margin for | D40: =D15 -> Baseline buffel | E40: =E15 -> Leucaena | F40: Butterfly pea | G40: Lablab | H40: Forage sorghum | I40: Oats | J40: GM7 | K40: GM8 | L40: GM9 | M40: GM10 | N40: =N15 -> GM11
D41: per ha per annum | E41: per ha per annum | F41: per ha per annum | G41: per ha per annum | H41: per ha per annum | I41: per ha per annum | J41: per ha per annum | K41: per ha per annum | L41: per ha per annum | M41: per ha per annum | N41: per ha per annum
C42: =C17 -> Livestock Sales | D42: =Buffel!J206 -> 115.328928 | E42: =Leucaena!J155 -> 496.119936 | F42: ='Butterfly pea'!J155 -> 707.7594343 | G42: =Lablab!J155 -> 1935.884288 | H42: ='Forage sorghum'!J155 -> 2104.26112 | I42: =Oats!J155 -> 1971.587072 | J42: ='GM7'!J155 -> 0 | K42: ='GM8'!J155 -> 0 | L42: ='GM9'!J155 -> 0 | M42: ='GM10'!J155 -> 0 | N42: ='GM11'!J155 -> 0
C43: =C18 -> Variable costs
C44: Livestock Purchases | D44: =Buffel!J207 -> 56.9274 | E44: =Leucaena!J156 -> 307.129488 | F44: ='Butterfly pea'!J156 -> 532.5551758 | G44: =Lablab!J156 -> 1636.5568 | H44: ='Forage sorghum'!J156 -> 1780.8 | I44: =Oats!J156 -> 1580.8576 | J44: ='GM7'!J156 -> 0 | K44: ='GM8'!J156 -> 0 | L44: ='GM9'!J156 -> 0 | M44: ='GM10'!J156 -> 0 | N44: ='GM11'!J156 -> 0
C45: Freight In | D45: =Buffel!J208 -> 1.185164583 | E45: =Leucaena!J157 -> 6.432679018 | F45: ='Butterfly pea'!J157 -> 9.88269865 | G45: =Lablab!J157 -> 31.94625455 | H45: ='Forage sorghum'!J157 -> 38.1653 | I45: =Oats!J157 -> 35.78897 | J45: ='GM7'!J157 -> 0 | K45: ='GM8'!J157 -> 0 | L45: ='GM9'!J157 -> 0 | M45: ='GM10'!J157 -> 0 | N45: ='GM11'!J157 -> 0
C46: Freight Out | D46: =Buffel!J209 -> 4.7994 | E46: =Leucaena!J158 -> 20.00749875 | F46: ='Butterfly pea'!J158 -> 28.54248534 | G46: =Lablab!J158 -> 78.07024 | H46: ='Forage sorghum'!J158 -> 84.7894 | I46: =Oats!J158 -> 79.51006 | J46: ='GM7'!J158 -> 0 | K46: ='GM8'!J158 -> 0 | L46: ='GM9'!J158 -> 0 | M46: ='GM10'!J158 -> 0 | N46: ='GM11'!J158 -> 0
C47: Treatment Expenses | D47: =Buffel!J210 -> 0.04503 | E47: =Leucaena!J159 -> 1.2556275 | F47: ='Butterfly pea'!J159 -> 0.2711875091 | G47: =Lablab!J159 -> 0.74176 | H47: ='Forage sorghum'!J159 -> 0.8056 | I47: =Oats!J159 -> 0.75544 | J47: ='GM7'!J159 -> 0 | K47: ='GM8'!J159 -> 0 | L47: ='GM9'!J159 -> 0 | M47: ='GM10'!J159 -> 0 | N47: ='GM11'!J159 -> 0
C48: Selling Expenses | D48: =Buffel!J211 -> 0.6 | E48: =Leucaena!J160 -> 2.50125 | F48: ='Butterfly pea'!J160 -> 3.568256699 | G48: =Lablab!J160 -> 9.76 | H48: ='Forage sorghum'!J160 -> 10.6 | I48: =Oats!J160 -> 9.94 | J48: ='GM7'!J160 -> 0 | K48: ='GM8'!J160 -> 0 | L48: ='GM9'!J160 -> 0 | M48: ='GM10'!J160 -> 0 | N48: ='GM11'!J160 -> 0
C49: Forage growing costs | D49: =Buffel!J212 -> 0 | E49: =Leucaena!J161 -> 45.4658563 | F49: ='Butterfly pea'!J161 -> 83.48589028 | G49: =Lablab!J161 -> 223.4415214 | H49: ='Forage sorghum'!J161 -> 270.3908571 | I49: =Oats!J161 -> 248.7382714 | J49: ='GM7'!J161 -> 0 | K49: ='GM8'!J161 -> 0 | L49: ='GM9'!J161 -> 0 | M49: ='GM10'!J161 -> 0 | N49: ='GM11'!J161 -> 0
C50: Total Expenses | D50: =SUM(D44:D49) -> 63.55699458 | E50: =SUM(E44:E49) -> 382.7923996 | F50: 658.3056943 | G50: 1980.516576 | H50: 2185.551157 | I50: 1955.590341 | J50: 0 | K50: 0 | L50: 0 | M50: 0 | N50: 0
C51: Gross Margin | D51: =D42-D50 -> 51.77193342 | E51: 113.3275364 | F51: 49.45374006 | G51: -44.63228797 | H51: -81.29003714 | I51: 15.99673057 | J51: =J42-J50 -> 0 | K51: =K42-K50 -> 0 | L51: =L42-L50 -> 0 | M51: =M42-M50 -> 0 | N51: =N42-N50 -> 0
C52: Gross Margin (after Interest) | D52: =Buffel!J217 -> 48.92556342 | E52: =Leucaena!J166 -> 103.4043089 | F52: ='Butterfly pea'!J166 -> 33.69594307 | G52: =Lablab!J166 -> -64.80901565 | H52: ='Forage sorghum'!J166 -> -113.0029139 | I52: =Oats!J166 -> -3.493294634 | J52: ='GM7'!J166 -> 0 | K52: ='GM8'!J166 -> 0 | L52: ='GM9'!J166 -> 0 | M52: ='GM10'!J166 -> 0 | N52: ='GM11'!J166 -> 0

Sheet Sheet2 (hidden)
A1: =1 -> 1 | B1: =_xll.RiskCDS1([0]!SummerCropYield,[0]!SummerCropYield,Sheet2!A1) ->  | C1: =_xll.RiskCDS2(Sheet2!B1,1,) ->  | D1: =_xll.RiskCDS1([0]!WinterCropYields,[0]!WinterCropYields,Sheet2!A1) ->  | E1: =_xll.RiskCDS2(Sheet2!D1,1,) ->  | F1: =_xll.RiskCDS1([0]!pricecorrelation,[0]!pricecorrelation,Sheet2!A1) ->  | G1: =_xll.RiskCDS2(Sheet2!F1,1,) ->  | H1: =_xll.RiskCDS2(Sheet2!F1,2,) ->  | I1: =_xll.RiskCDS1([0]!Activity1animalproductivity,[0]!Activity1animalproductivity,Sheet2!A1) ->  | J1: =_xll.RiskCDS2(Sheet2!I1,1,) ->  | K1: =_xll.RiskCDS2(Sheet2!I1,2,) ->  | L1: =_xll.RiskCDS2(Sheet2!I1,3,) ->  | M1: =_xll.RiskCDS1([0]!SummerCropYield,[0]!SummerCropYield,Sheet2!A1) ->  | N1: =_xll.RiskCDS2(Sheet2!M1,2,) ->  | O1: =_xll.RiskCDS1([0]!WinterCropYields,[0]!WinterCropYields,Sheet2!A1) ->  | P1: =_xll.RiskCDS2(Sheet2!O1,2,) ->  | Q1: =_xll.RiskCDS1([0]!pricecorrelation,[0]!pricecorrelation,Sheet2!A1) ->  | R1: =_xll.RiskCDS2(Sheet2!Q1,3,) ->  | S1: =_xll.RiskCDS2(Sheet2!Q1,4,) ->  | T1: =_xll.RiskCDS1([0]!Activity2animalproductivity,[0]!Activity2animalproductivity,Sheet2!A1) ->  | U1: =_xll.RiskCDS2(Sheet2!T1,1,) ->  | V1: =_xll.RiskCDS2(Sheet2!T1,2,) ->  | W1: =_xll.RiskCDS2(Sheet2!T1,3,) ->  | X1: =_xll.RiskCDS1([0]!SummerCropYield,[0]!SummerCropYield,Sheet2!A1) ->  | Y1: =_xll.RiskCDS2(Sheet2!X1,3,) ->  | Z1: =_xll.RiskCDS1([0]!WinterCropYields,[0]!WinterCropYields,Sheet2!A1) ->  | AA1: =_xll.RiskCDS2(Sheet2!Z1,3,) ->  | AB1: =_xll.RiskCDS1([0]!pricecorrelation,[0]!pricecorrelation,Sheet2!A1) ->  | AC1: =_xll.RiskCDS2(Sheet2!AB1,5,) ->  | AD1: =_xll.RiskCDS2(Sheet2!AB1,6,) ->  | AE1: =_xll.RiskCDS1([0]!Activity3animalproductivity,[0]!Activity3animalproductivity,Sheet2!A1) ->  | AF1: =_xll.RiskCDS2(Sheet2!AE1,1,) ->  | AG1: =_xll.RiskCDS2(Sheet2!AE1,2,) ->  | AH1: =_xll.RiskCDS2(Sheet2!AE1,3,) ->  | AI1: =_xll.RiskCDS1([0]!SummerCropYield,[0]!SummerCropYield,Sheet2!A1) ->  | AJ1: =_xll.RiskCDS2(Sheet2!AI1,4,) ->  | AK1: =_xll.RiskCDS1([0]!WinterCropYields,[0]!WinterCropYields,Sheet2!A1) ->  | AL1: =_xll.RiskCDS2(Sheet2!AK1,4,) ->  | AM1: =_xll.RiskCDS1([0]!pricecorrelation,[0]!pricecorrelation,Sheet2!A1) ->  | AN1: =_xll.RiskCDS2(Sheet2!AM1,7,) ->  | AO1: =_xll.RiskCDS2(Sheet2!AM1,8,) ->  | AP1: =_xll.RiskCDS1([0]!Activity4animalproductivity,[0]!Activity4animalproductivity,Sheet2!A1) ->  | AQ1: =_xll.RiskCDS2(Sheet2!AP1,1,) ->  | AR1: =_xll.RiskCDS2(Sheet2!AP1,2,) ->  | AS1: =_xll.RiskCDS2(Sheet2!AP1,3,) ->  | AT1: =_xll.RiskCDS1([0]!SummerCropYield,[0]!SummerCropYield,Sheet2!A1) ->  | AU1: =_xll.RiskCDS2(Sheet2!AT1,5,) ->  | AV1: =_xll.RiskCDS1([0]!WinterCropYields,[0]!WinterCropYields,Sheet2!A1) ->  | AW1: =_xll.RiskCDS2(Sheet2!AV1,5,) ->  | AX1: =_xll.RiskCDS1([0]!pricecorrelation,[0]!pricecorrelation,Sheet2!A1) ->  | AY1: =_xll.RiskCDS2(Sheet2!AX1,9,) ->  | AZ1: =_xll.RiskCDS2(Sheet2!AX1,10,) ->  | BA1: =_xll.RiskCDS1([0]!Activity5animalproductivity,[0]!Activity5animalproductivity,Sheet2!A1) ->  | BB1: =_xll.RiskCDS2(Sheet2!BA1,1,) ->  | BC1: =_xll.RiskCDS2(Sheet2!BA1,2,) ->  | BD1: =_xll.RiskCDS2(Sheet2!BA1,3,) ->  | BE1: =_xll.RiskCDS1([0]!SummerCropYield,[0]!SummerCropYield,Sheet2!A1) ->  | BF1: =_xll.RiskCDS2(Sheet2!BE1,6,) ->  | BG1: =_xll.RiskCDS1([0]!WinterCropYields,[0]!WinterCropYields,Sheet2!A1) ->  | BH1: =_xll.RiskCDS2(Sheet2!BG1,6,) ->  | BI1: =_xll.RiskCDS1([0]!pricecorrelation,[0]!pricecorrelation,Sheet2!A1) ->  | BJ1: =_xll.RiskCDS2(Sheet2!BI1,11,) ->  | BK1: =_xll.RiskCDS2(Sheet2!BI1,12,) ->  | BL1: =_xll.RiskCDS1([0]!Activity6animalproductivity,[0]!Activity6animalproductivity,Sheet2!A1) ->  | BM1: =_xll.RiskCDS2(Sheet2!BL1,1,) ->  | BN1: =_xll.RiskCDS2(Sheet2!BL1,2,) ->  | BO1: =_xll.RiskCDS2(Sheet2!BL1,3,) ->  | BP1: =_xll.RiskCDS1([0]!SummerCropYield,[0]!SummerCropYield,Sheet2!A1) ->  | BQ1: =_xll.RiskCDS2(Sheet2!BP1,7,) ->  | BR1: =_xll.RiskCDS1([0]!WinterCropYields,[0]!WinterCropYields,Sheet2!A1) ->  | BS1: =_xll.RiskCDS2(Sheet2!BR1,7,) ->  | BT1: =_xll.RiskCDS1([0]!pricecorrelation,[0]!pricecorrelation,Sheet2!A1) ->  | BU1: =_xll.RiskCDS2(Sheet2!BT1,13,) ->  | BV1: =_xll.RiskCDS2(Sheet2!BT1,14,) ->  | BW1: =_xll.RiskCDS1([0]!Activity7animalproductivity,[0]!Activity7animalproductivity,Sheet2!A1) ->  | BX1: =_xll.RiskCDS2(Sheet2!BW1,1,) ->  | BY1: =_xll.RiskCDS2(Sheet2!BW1,2,) ->  | BZ1: =_xll.RiskCDS2(Sheet2!BW1,3,) ->  | CA1: =_xll.RiskCDS1([0]!SummerCropYield,[0]!SummerCropYield,Sheet2!A1) ->  | CB1: =_xll.RiskCDS2(Sheet2!CA1,8,) ->  | CC1: =_xll.RiskCDS1([0]!WinterCropYields,[0]!WinterCropYields,Sheet2!A1) ->  | CD1: =_xll.RiskCDS2(Sheet2!CC1,8,) ->  | CE1: =_xll.RiskCDS1([0]!pricecorrelation,[0]!pricecorrelation,Sheet2!A1) ->  | CF1: =_xll.RiskCDS2(Sheet2!CE1,15,) ->  | CG1: =_xll.RiskCDS2(Sheet2!CE1,16,) ->  | CH1: =_xll.RiskCDS1([0]!Activity8animalproductivity,[0]!Activity8animalproductivity,Sheet2!A1) ->  | CI1: =_xll.RiskCDS2(Sheet2!CH1,1,) ->  | CJ1: =_xll.RiskCDS2(Sheet2!CH1,2,) ->  | CK1: =_xll.RiskCDS2(Sheet2!CH1,3,) ->  | CL1: =_xll.RiskCDS1([0]!SummerCropYield,[0]!SummerCropYield,Sheet2!A1) ->  | CM1: =_xll.RiskCDS2(Sheet2!CL1,9,) ->  | CN1: =_xll.RiskCDS1([0]!WinterCropYields,[0]!WinterCropYields,Sheet2!A1) ->  | CO1: =_xll.RiskCDS2(Sheet2!CN1,9,) ->  | CP1: =_xll.RiskCDS1([0]!pricecorrelation,[0]!pricecorrelation,Sheet2!A1) ->  | CQ1: =_xll.RiskCDS2(Sheet2!CP1,17,) ->  | CR1: =_xll.RiskCDS2(Sheet2!CP1,18,) ->  | CS1: =_xll.RiskCDS1([0]!Activity9animalproductivity,[0]!Activity9animalproductivity,Sheet2!A1) ->  | CT1: =_xll.RiskCDS2(Sheet2!CS1,1,) ->  | CU1: =_xll.RiskCDS2(Sheet2!CS1,2,) ->  | CV1: =_xll.RiskCDS2(Sheet2!CS1,3,) ->  | CW1: =_xll.RiskCDS1([0]!SummerCropYield,[0]!SummerCropYield,Sheet2!A1) ->  | CX1: =_xll.RiskCDS2(Sheet2!CW1,10,) ->  | CY1: =_xll.RiskCDS1([0]!WinterCropYields,[0]!WinterCropYields,Sheet2!A1) ->  | CZ1: =_xll.RiskCDS2(Sheet2!CY1,10,) ->  | DA1: =_xll.RiskCDS1([0]!pricecorrelation,[0]!pricecorrelation,Sheet2!A1) ->  | DB1: =_xll.RiskCDS2(Sheet2!DA1,19,) ->  | DC1: =_xll.RiskCDS2(Sheet2!DA1,20,) ->  | DD1: =_xll.RiskCDS1([0]!Activity10animalproductivity,[0]!Activity10animalproductivity,Sheet2!A1) ->  | DE1: =_xll.RiskCDS2(Sheet2!DD1,1,) ->  | DF1: =_xll.RiskCDS2(Sheet2!DD1,2,) ->  | DG1: =_xll.RiskCDS2(Sheet2!DD1,3,) ->  | DI1: =_xll.RiskCDS2(Sheet2!DH1,1,) ->  | DK1: =_xll.RiskCDS2(Sheet2!DJ1,1,) ->  | DM1: =_xll.RiskCDS2(Sheet2!DL1,1,) ->  | DN1: =_xll.RiskCDS2(Sheet2!DL1,2,) ->  | DO1: =_xll.RiskCDS2(Sheet2!DL1,3,) ->  | DQ1: =_xll.RiskCDS2(Sheet2!DP1,2,) ->  | DS1: =_xll.RiskCDS2(Sheet2!DR1,2,) ->  | DU1: =_xll.RiskCDS2(Sheet2!DT1,1,) ->  | DV1: =_xll.RiskCDS2(Sheet2!DT1,2,) ->  | DW1: =_xll.RiskCDS2(Sheet2!DT1,3,) ->  | DY1: =_xll.RiskCDS2(Sheet2!DX1,3,) ->  | EA1: =_xll.RiskCDS2(Sheet2!DZ1,3,) ->  | EC1: =_xll.RiskCDS2(Sheet2!EB1,1,) ->  | ED1: =_xll.RiskCDS2(Sheet2!EB1,2,) ->  | EE1: =_xll.RiskCDS2(Sheet2!EB1,3,) ->  | EG1: =_xll.RiskCDS2(Sheet2!EF1,4,) ->  | EI1: =_xll.RiskCDS2(Sheet2!EH1,4,) ->  | EK1: =_xll.RiskCDS2(Sheet2!EJ1,1,) ->  | EL1: =_xll.RiskCDS2(Sheet2!EJ1,2,) ->  | EM1: =_xll.RiskCDS2(Sheet2!EJ1,3,) ->  | EO1: =_xll.RiskCDS2(Sheet2!EN1,5,) ->  | EQ1: =_xll.RiskCDS2(Sheet2!EP1,5,) ->  | ES1: =_xll.RiskCDS2(Sheet2!ER1,1,) ->  | ET1: =_xll.RiskCDS2(Sheet2!ER1,2,) ->  | EU1: =_xll.RiskCDS2(Sheet2!ER1,3,) ->  | EW1: =_xll.RiskCDS2(Sheet2!EV1,6,) ->  | EY1: =_xll.RiskCDS2(Sheet2!EX1,6,) ->  | FA1: =_xll.RiskCDS2(Sheet2!EZ1,1,) ->  | FB1: =_xll.RiskCDS2(Sheet2!EZ1,2,) ->  | FC1: =_xll.RiskCDS2(Sheet2!EZ1,3,) ->  | FE1: =_xll.RiskCDS2(Sheet2!FD1,7,) ->  | FG1: =_xll.RiskCDS2(Sheet2!FF1,7,) ->  | FI1: =_xll.RiskCDS2(Sheet2!FH1,1,) ->  | FJ1: =_xll.RiskCDS2(Sheet2!FH1,2,) ->  | FK1: =_xll.RiskCDS2(Sheet2!FH1,3,) ->  | FM1: =_xll.RiskCDS2(Sheet2!FL1,8,) ->  | FO1: =_xll.RiskCDS2(Sheet2!FN1,8,) ->  | FQ1: =_xll.RiskCDS2(Sheet2!FP1,1,) ->  | FR1: =_xll.RiskCDS2(Sheet2!FP1,2,) ->  | FS1: =_xll.RiskCDS2(Sheet2!FP1,3,) ->  | FU1: =_xll.RiskCDS2(Sheet2!FT1,9,) ->  | FW1: =_xll.RiskCDS2(Sheet2!FV1,9,) ->  | FY1: =_xll.RiskCDS2(Sheet2!FX1,1,) ->  | FZ1: =_xll.RiskCDS2(Sheet2!FX1,2,) ->  | GA1: =_xll.RiskCDS2(Sheet2!FX1,3,) ->  | GC1: =_xll.RiskCDS2(Sheet2!GB1,10,) ->  | GE1: =_xll.RiskCDS2(Sheet2!GD1,10,) ->  | GG1: =_xll.RiskCDS2(Sheet2!GF1,1,) ->  | GH1: =_xll.RiskCDS2(Sheet2!GF1,2,) ->  | GI1: =_xll.RiskCDS2(Sheet2!GF1,3,) ->  | GK1: =_xll.RiskCDS2(Sheet2!GJ1,1,) ->  | GM1: =_xll.RiskCDS2(Sheet2!GL1,1,) ->  | GO1: =_xll.RiskCDS2(Sheet2!GN1,2,) ->  | GQ1: =_xll.RiskCDS2(Sheet2!GP1,2,) ->  | GS1: =_xll.RiskCDS2(Sheet2!GR1,3,) ->  | GU1: =_xll.RiskCDS2(Sheet2!GT1,3,) ->  | GW1: =_xll.RiskCDS2(Sheet2!GV1,4,) ->  | GY1: =_xll.RiskCDS2(Sheet2!GX1,4,) ->  | HA1: =_xll.RiskCDS2(Sheet2!GZ1,5,) ->  | HC1: =_xll.RiskCDS2(Sheet2!HB1,5,) ->  | HE1: =_xll.RiskCDS2(Sheet2!HD1,6,) ->  | HG1: =_xll.RiskCDS2(Sheet2!HF1,6,) ->  | HI1: =_xll.RiskCDS2(Sheet2!HH1,7,) ->  | HK1: =_xll.RiskCDS2(Sheet2!HJ1,7,) ->  | HM1: =_xll.RiskCDS2(Sheet2!HL1,8,) ->  | HO1: =_xll.RiskCDS2(Sheet2!HN1,8,) ->  | HQ1: =_xll.RiskCDS2(Sheet2!HP1,9,) ->  | HS1: =_xll.RiskCDS2(Sheet2!HR1,9,) ->  | HU1: =_xll.RiskCDS2(Sheet2!HT1,10,) ->  | HW1: =_xll.RiskCDS2(Sheet2!HV1,10,) -> 

Sheet Sheet1 (hidden)
A1: =1 -> 1 | B1: =_xll.RiskCDS1([0]!SummerCropYield,[0]!SummerCropYield,Sheet1!A1) ->  | C1: =_xll.RiskCDS2(Sheet1!B1,1,) ->  | D1: =_xll.RiskCDS1([0]!WinterCropYields,[0]!WinterCropYields,Sheet1!A1) ->  | E1: =_xll.RiskCDS2(Sheet1!D1,1,) ->  | F1: =_xll.RiskCDS1([0]!pricecorrelation,[0]!pricecorrelation,Sheet1!A1) ->  | G1: =_xll.RiskCDS2(Sheet1!F1,1,) ->  | H1: =_xll.RiskCDS2(Sheet1!F1,2,) ->  | I1: =_xll.RiskCDS1([0]!Activity1animalproductivity,[0]!Activity1animalproductivity,Sheet1!A1) ->  | J1: =_xll.RiskCDS2(Sheet1!I1,1,) ->  | K1: =_xll.RiskCDS2(Sheet1!I1,2,) ->  | L1: =_xll.RiskCDS2(Sheet1!I1,3,) ->  | M1: =_xll.RiskCDS1([0]!SummerCropYield,[0]!SummerCropYield,Sheet1!A1) ->  | N1: =_xll.RiskCDS2(Sheet1!M1,2,) ->  | O1: =_xll.RiskCDS1([0]!WinterCropYields,[0]!WinterCropYields,Sheet1!A1) ->  | P1: =_xll.RiskCDS2(Sheet1!O1,2,) ->  | Q1: =_xll.RiskCDS1([0]!pricecorrelation,[0]!pricecorrelation,Sheet1!A1) ->  | R1: =_xll.RiskCDS2(Sheet1!Q1,3,) ->  | S1: =_xll.RiskCDS2(Sheet1!Q1,4,) ->  | T1: =_xll.RiskCDS1([0]!Activity2animalproductivity,[0]!Activity2animalproductivity,Sheet1!A1) ->  | U1: =_xll.RiskCDS2(Sheet1!T1,1,) ->  | V1: =_xll.RiskCDS2(Sheet1!T1,2,) ->  | W1: =_xll.RiskCDS2(Sheet1!T1,3,) ->  | X1: =_xll.RiskCDS1([0]!SummerCropYield,[0]!SummerCropYield,Sheet1!A1) ->  | Y1: =_xll.RiskCDS2(Sheet1!X1,3,) ->  | Z1: =_xll.RiskCDS1([0]!WinterCropYields,[0]!WinterCropYields,Sheet1!A1) ->  | AA1: =_xll.RiskCDS2(Sheet1!Z1,3,) ->  | AB1: =_xll.RiskCDS1([0]!pricecorrelation,[0]!pricecorrelation,Sheet1!A1) ->  | AC1: =_xll.RiskCDS2(Sheet1!AB1,5,) ->  | AD1: =_xll.RiskCDS2(Sheet1!AB1,6,) ->  | AE1: =_xll.RiskCDS1([0]!Activity3animalproductivity,[0]!Activity3animalproductivity,Sheet1!A1) ->  | AF1: =_xll.RiskCDS2(Sheet1!AE1,1,) ->  | AG1: =_xll.RiskCDS2(Sheet1!AE1,2,) ->  | AH1: =_xll.RiskCDS2(Sheet1!AE1,3,) ->  | AI1: =_xll.RiskCDS1([0]!SummerCropYield,[0]!SummerCropYield,Sheet1!A1) ->  | AJ1: =_xll.RiskCDS2(Sheet1!AI1,4,) ->  | AK1: =_xll.RiskCDS1([0]!WinterCropYields,[0]!WinterCropYields,Sheet1!A1) ->  | AL1: =_xll.RiskCDS2(Sheet1!AK1,4,) ->  | AM1: =_xll.RiskCDS1([0]!pricecorrelation,[0]!pricecorrelation,Sheet1!A1) ->  | AN1: =_xll.RiskCDS2(Sheet1!AM1,7,) ->  | AO1: =_xll.RiskCDS2(Sheet1!AM1,8,) ->  | AP1: =_xll.RiskCDS1([0]!Activity4animalproductivity,[0]!Activity4animalproductivity,Sheet1!A1) ->  | AQ1: =_xll.RiskCDS2(Sheet1!AP1,1,) ->  | AR1: =_xll.RiskCDS2(Sheet1!AP1,2,) ->  | AS1: =_xll.RiskCDS2(Sheet1!AP1,3,) ->  | AT1: =_xll.RiskCDS1([0]!SummerCropYield,[0]!SummerCropYield,Sheet1!A1) ->  | AU1: =_xll.RiskCDS2(Sheet1!AT1,5,) ->  | AV1: =_xll.RiskCDS1([0]!WinterCropYields,[0]!WinterCropYields,Sheet1!A1) ->  | AW1: =_xll.RiskCDS2(Sheet1!AV1,5,) ->  | AX1: =_xll.RiskCDS1([0]!pricecorrelation,[0]!pricecorrelation,Sheet1!A1) ->  | AY1: =_xll.RiskCDS2(Sheet1!AX1,9,) ->  | AZ1: =_xll.RiskCDS2(Sheet1!AX1,10,) ->  | BA1: =_xll.RiskCDS1([0]!Activity5animalproductivity,[0]!Activity5animalproductivity,Sheet1!A1) ->  | BB1: =_xll.RiskCDS2(Sheet1!BA1,1,) ->  | BC1: =_xll.RiskCDS2(Sheet1!BA1,2,) ->  | BD1: =_xll.RiskCDS2(Sheet1!BA1,3,) ->  | BE1: =_xll.RiskCDS1([0]!SummerCropYield,[0]!SummerCropYield,Sheet1!A1) ->  | BF1: =_xll.RiskCDS2(Sheet1!BE1,6,) ->  | BG1: =_xll.RiskCDS1([0]!WinterCropYields,[0]!WinterCropYields,Sheet1!A1) ->  | BH1: =_xll.RiskCDS2(Sheet1!BG1,6,) ->  | BI1: =_xll.RiskCDS1([0]!pricecorrelation,[0]!pricecorrelation,Sheet1!A1) ->  | BJ1: =_xll.RiskCDS2(Sheet1!BI1,11,) ->  | BK1: =_xll.RiskCDS2(Sheet1!BI1,12,) ->  | BL1: =_xll.RiskCDS1([0]!Activity6animalproductivity,[0]!Activity6animalproductivity,Sheet1!A1) ->  | BM1: =_xll.RiskCDS2(Sheet1!BL1,1,) ->  | BN1: =_xll.RiskCDS2(Sheet1!BL1,2,) ->  | BO1: =_xll.RiskCDS2(Sheet1!BL1,3,) ->  | BP1: =_xll.RiskCDS1([0]!SummerCropYield,[0]!SummerCropYield,Sheet1!A1) ->  | BQ1: =_xll.RiskCDS2(Sheet1!BP1,7,) ->  | BR1: =_xll.RiskCDS1([0]!WinterCropYields,[0]!WinterCropYields,Sheet1!A1) ->  | BS1: =_xll.RiskCDS2(Sheet1!BR1,7,) ->  | BT1: =_xll.RiskCDS1([0]!pricecorrelation,[0]!pricecorrelation,Sheet1!A1) ->  | BU1: =_xll.RiskCDS2(Sheet1!BT1,13,) ->  | BV1: =_xll.RiskCDS2(Sheet1!BT1,14,) ->  | BW1: =_xll.RiskCDS1([0]!Activity7animalproductivity,[0]!Activity7animalproductivity,Sheet1!A1) ->  | BX1: =_xll.RiskCDS2(Sheet1!BW1,1,) ->  | BY1: =_xll.RiskCDS2(Sheet1!BW1,2,) ->  | BZ1: =_xll.RiskCDS2(Sheet1!BW1,3,) ->  | CA1: =_xll.RiskCDS1([0]!SummerCropYield,[0]!SummerCropYield,Sheet1!A1) ->  | CB1: =_xll.RiskCDS2(Sheet1!CA1,8,) ->  | CC1: =_xll.RiskCDS1([0]!WinterCropYields,[0]!WinterCropYields,Sheet1!A1) ->  | CD1: =_xll.RiskCDS2(Sheet1!CC1,8,) ->  | CE1: =_xll.RiskCDS1([0]!pricecorrelation,[0]!pricecorrelation,Sheet1!A1) ->  | CF1: =_xll.RiskCDS2(Sheet1!CE1,15,) ->  | CG1: =_xll.RiskCDS2(Sheet1!CE1,16,) ->  | CH1: =_xll.RiskCDS1([0]!Activity8animalproductivity,[0]!Activity8animalproductivity,Sheet1!A1) ->  | CI1: =_xll.RiskCDS2(Sheet1!CH1,1,) ->  | CJ1: =_xll.RiskCDS2(Sheet1!CH1,2,) ->  | CK1: =_xll.RiskCDS2(Sheet1!CH1,3,) ->  | CL1: =_xll.RiskCDS1([0]!SummerCropYield,[0]!SummerCropYield,Sheet1!A1) ->  | CM1: =_xll.RiskCDS2(Sheet1!CL1,9,) ->  | CN1: =_xll.RiskCDS1([0]!WinterCropYields,[0]!WinterCropYields,Sheet1!A1) ->  | CO1: =_xll.RiskCDS2(Sheet1!CN1,9,) ->  | CP1: =_xll.RiskCDS1([0]!pricecorrelation,[0]!pricecorrelation,Sheet1!A1) ->  | CQ1: =_xll.RiskCDS2(Sheet1!CP1,17,) ->  | CR1: =_xll.RiskCDS2(Sheet1!CP1,18,) ->  | CS1: =_xll.RiskCDS1([0]!Activity9animalproductivity,[0]!Activity9animalproductivity,Sheet1!A1) ->  | CT1: =_xll.RiskCDS2(Sheet1!CS1,1,) ->  | CU1: =_xll.RiskCDS2(Sheet1!CS1,2,) ->  | CV1: =_xll.RiskCDS2(Sheet1!CS1,3,) ->  | CW1: =_xll.RiskCDS1([0]!SummerCropYield,[0]!SummerCropYield,Sheet1!A1) ->  | CX1: =_xll.RiskCDS2(Sheet1!CW1,10,) ->  | CY1: =_xll.RiskCDS1([0]!WinterCropYields,[0]!WinterCropYields,Sheet1!A1) ->  | CZ1: =_xll.RiskCDS2(Sheet1!CY1,10,) ->  | DA1: =_xll.RiskCDS1([0]!pricecorrelation,[0]!pricecorrelation,Sheet1!A1) ->  | DB1: =_xll.RiskCDS2(Sheet1!DA1,19,) ->  | DC1: =_xll.RiskCDS2(Sheet1!DA1,20,) ->  | DD1: =_xll.RiskCDS1([0]!Activity10animalproductivity,[0]!Activity10animalproductivity,Sheet1!A1) ->  | DE1: =_xll.RiskCDS2(Sheet1!DD1,1,) ->  | DF1: =_xll.RiskCDS2(Sheet1!DD1,2,) ->  | DG1: =_xll.RiskCDS2(Sheet1!DD1,3,) ->  | DI1: =_xll.RiskCDS2(Sheet1!DH1,1,) ->  | DK1: =_xll.RiskCDS2(Sheet1!DJ1,1,) ->  | DM1: =_xll.RiskCDS2(Sheet1!DL1,1,) ->  | DN1: =_xll.RiskCDS2(Sheet1!DL1,2,) ->  | DP1: =_xll.RiskCDS2(Sheet1!DO1,1,) ->  | DQ1: =_xll.RiskCDS2(Sheet1!DO1,2,) ->  | DR1: =_xll.RiskCDS2(Sheet1!DO1,3,) ->  | DT1: =_xll.RiskCDS2(Sheet1!DS1,2,) ->  | DV1: =_xll.RiskCDS2(Sheet1!DU1,2,) ->  | DX1: =_xll.RiskCDS2(Sheet1!DW1,3,) ->  | DY1: =_xll.RiskCDS2(Sheet1!DW1,4,) ->  | EA1: =_xll.RiskCDS2(Sheet1!DZ1,1,) ->  | EB1: =_xll.RiskCDS2(Sheet1!DZ1,2,) ->  | EC1: =_xll.RiskCDS2(Sheet1!DZ1,3,) ->  | EE1: =_xll.RiskCDS2(Sheet1!ED1,3,) ->  | EG1: =_xll.RiskCDS2(Sheet1!EF1,3,) ->  | EI1: =_xll.RiskCDS2(Sheet1!EH1,5,) ->  | EJ1: =_xll.RiskCDS2(Sheet1!EH1,6,) ->  | EL1: =_xll.RiskCDS2(Sheet1!EK1,1,) ->  | EM1: =_xll.RiskCDS2(Sheet1!EK1,2,) ->  | EN1: =_xll.RiskCDS2(Sheet1!EK1,3,) ->  | EP1: =_xll.RiskCDS2(Sheet1!EO1,4,) ->  | ER1: =_xll.RiskCDS2(Sheet1!EQ1,4,) ->  | ET1: =_xll.RiskCDS2(Sheet1!ES1,7,) ->  | EU1: =_xll.RiskCDS2(Sheet1!ES1,8,) ->  | EW1: =_xll.RiskCDS2(Sheet1!EV1,1,) ->  | EX1: =_xll.RiskCDS2(Sheet1!EV1,2,) ->  | EY1: =_xll.RiskCDS2(Sheet1!EV1,3,) ->  | FA1: =_xll.RiskCDS2(Sheet1!EZ1,5,) ->  | FC1: =_xll.RiskCDS2(Sheet1!FB1,5,) ->  | FE1: =_xll.RiskCDS2(Sheet1!FD1,9,) ->  | FF1: =_xll.RiskCDS2(Sheet1!FD1,10,) ->  | FH1: =_xll.RiskCDS2(Sheet1!FG1,1,) ->  | FI1: =_xll.RiskCDS2(Sheet1!FG1,2,) ->  | FJ1: =_xll.RiskCDS2(Sheet1!FG1,3,) ->  | FL1: =_xll.RiskCDS2(Sheet1!FK1,6,) ->  | FN1: =_xll.RiskCDS2(Sheet1!FM1,6,) ->  | FP1: =_xll.RiskCDS2(Sheet1!FO1,11,) ->  | FQ1: =_xll.RiskCDS2(Sheet1!FO1,12,) ->  | FS1: =_xll.RiskCDS2(Sheet1!FR1,1,) ->  | FT1: =_xll.RiskCDS2(Sheet1!FR1,2,) ->  | FU1: =_xll.RiskCDS2(Sheet1!FR1,3,) ->  | FW1: =_xll.RiskCDS2(Sheet1!FV1,7,) ->  | FY1: =_xll.RiskCDS2(Sheet1!FX1,7,) ->  | GA1: =_xll.RiskCDS2(Sheet1!FZ1,13,) ->  | GB1: =_xll.RiskCDS2(Sheet1!FZ1,14,) ->  | GD1: =_xll.RiskCDS2(Sheet1!GC1,1,) ->  | GE1: =_xll.RiskCDS2(Sheet1!GC1,2,) ->  | GF1: =_xll.RiskCDS2(Sheet1!GC1,3,) ->  | GH1: =_xll.RiskCDS2(Sheet1!GG1,8,) ->  | GJ1: =_xll.RiskCDS2(Sheet1!GI1,8,) ->  | GL1: =_xll.RiskCDS2(Sheet1!GK1,15,) ->  | GM1: =_xll.RiskCDS2(Sheet1!GK1,16,) ->  | GO1: =_xll.RiskCDS2(Sheet1!GN1,1,) ->  | GP1: =_xll.RiskCDS2(Sheet1!GN1,2,) ->  | GQ1: =_xll.RiskCDS2(Sheet1!GN1,3,) ->  | GS1: =_xll.RiskCDS2(Sheet1!GR1,9,) ->  | GU1: =_xll.RiskCDS2(Sheet1!GT1,9,) ->  | GW1: =_xll.RiskCDS2(Sheet1!GV1,17,) ->  | GX1: =_xll.RiskCDS2(Sheet1!GV1,18,) ->  | GZ1: =_xll.RiskCDS2(Sheet1!GY1,1,) ->  | HA1: =_xll.RiskCDS2(Sheet1!GY1,2,) ->  | HB1: =_xll.RiskCDS2(Sheet1!GY1,3,) ->  | HD1: =_xll.RiskCDS2(Sheet1!HC1,10,) ->  | HF1: =_xll.RiskCDS2(Sheet1!HE1,10,) ->  | HH1: =_xll.RiskCDS2(Sheet1!HG1,19,) ->  | HI1: =_xll.RiskCDS2(Sheet1!HG1,20,) ->  | HK1: =_xll.RiskCDS2(Sheet1!HJ1,1,) ->  | HL1: =_xll.RiskCDS2(Sheet1!HJ1,2,) ->  | HM1: =_xll.RiskCDS2(Sheet1!HJ1,3,) -> 

Sheet Sheet3 (hidden)
A1: =1 -> 1 | B1: =_xll.RiskCDS1([0]!SummerCropYield,[0]!SummerCropYield,Sheet3!A1) ->  | C1: =_xll.RiskCDS2(Sheet3!B1,1,) ->  | D1: =_xll.RiskCDS1([0]!WinterCropYields,[0]!WinterCropYields,Sheet3!A1) ->  | E1: =_xll.RiskCDS2(Sheet3!D1,1,) ->  | F1: =_xll.RiskCDS1([0]!pricecorrelation,[0]!pricecorrelation,Sheet3!A1) ->  | G1: =_xll.RiskCDS2(Sheet3!F1,1,) ->  | H1: =_xll.RiskCDS2(Sheet3!F1,2,) ->  | I1: =_xll.RiskCDS1([0]!Activity1animalproductivity,[0]!Activity1animalproductivity,Sheet3!A1) ->  | J1: =_xll.RiskCDS2(Sheet3!I1,1,) ->  | K1: =_xll.RiskCDS2(Sheet3!I1,2,) ->  | L1: =_xll.RiskCDS2(Sheet3!I1,3,) ->  | M1: =_xll.RiskCDS1([0]!SummerCropYield,[0]!SummerCropYield,Sheet3!A1) ->  | N1: =_xll.RiskCDS2(Sheet3!M1,2,) ->  | O1: =_xll.RiskCDS1([0]!WinterCropYields,[0]!WinterCropYields,Sheet3!A1) ->  | P1: =_xll.RiskCDS2(Sheet3!O1,2,) ->  | Q1: =_xll.RiskCDS1([0]!pricecorrelation,[0]!pricecorrelation,Sheet3!A1) ->  | R1: =_xll.RiskCDS2(Sheet3!Q1,3,) ->  | S1: =_xll.RiskCDS2(Sheet3!Q1,4,) ->  | T1: =_xll.RiskCDS1([0]!Activity2animalproductivity,[0]!Activity2animalproductivity,Sheet3!A1) ->  | U1: =_xll.RiskCDS2(Sheet3!T1,1,) ->  | V1: =_xll.RiskCDS2(Sheet3!T1,2,) ->  | W1: =_xll.RiskCDS2(Sheet3!T1,3,) ->  | X1: =_xll.RiskCDS1([0]!SummerCropYield,[0]!SummerCropYield,Sheet3!A1) ->  | Y1: =_xll.RiskCDS2(Sheet3!X1,3,) ->  | Z1: =_xll.RiskCDS1([0]!WinterCropYields,[0]!WinterCropYields,Sheet3!A1) ->  | AA1: =_xll.RiskCDS2(Sheet3!Z1,3,) ->  | AB1: =_xll.RiskCDS1([0]!pricecorrelation,[0]!pricecorrelation,Sheet3!A1) ->  | AC1: =_xll.RiskCDS2(Sheet3!AB1,5,) ->  | AD1: =_xll.RiskCDS2(Sheet3!AB1,6,) ->  | AE1: =_xll.RiskCDS1([0]!Activity3animalproductivity,[0]!Activity3animalproductivity,Sheet3!A1) ->  | AF1: =_xll.RiskCDS2(Sheet3!AE1,1,) ->  | AG1: =_xll.RiskCDS2(Sheet3!AE1,2,) ->  | AH1: =_xll.RiskCDS2(Sheet3!AE1,3,) ->  | AI1: =_xll.RiskCDS1([0]!SummerCropYield,[0]!SummerCropYield,Sheet3!A1) ->  | AJ1: =_xll.RiskCDS2(Sheet3!AI1,4,) ->  | AK1: =_xll.RiskCDS1([0]!WinterCropYields,[0]!WinterCropYields,Sheet3!A1) ->  | AL1: =_xll.RiskCDS2(Sheet3!AK1,4,) ->  | AM1: =_xll.RiskCDS1([0]!pricecorrelation,[0]!pricecorrelation,Sheet3!A1) ->  | AN1: =_xll.RiskCDS2(Sheet3!AM1,7,) ->  | AO1: =_xll.RiskCDS2(Sheet3!AM1,8,) ->  | AP1: =_xll.RiskCDS1([0]!Activity4animalproductivity,[0]!Activity4animalproductivity,Sheet3!A1) ->  | AQ1: =_xll.RiskCDS2(Sheet3!AP1,1,) ->  | AR1: =_xll.RiskCDS2(Sheet3!AP1,2,) ->  | AS1: =_xll.RiskCDS2(Sheet3!AP1,3,) ->  | AT1: =_xll.RiskCDS1([0]!SummerCropYield,[0]!SummerCropYield,Sheet3!A1) ->  | AU1: =_xll.RiskCDS2(Sheet3!AT1,5,) ->  | AV1: =_xll.RiskCDS1([0]!WinterCropYields,[0]!WinterCropYields,Sheet3!A1) ->  | AW1: =_xll.RiskCDS2(Sheet3!AV1,5,) ->  | AX1: =_xll.RiskCDS1([0]!pricecorrelation,[0]!pricecorrelation,Sheet3!A1) ->  | AY1: =_xll.RiskCDS2(Sheet3!AX1,9,) ->  | AZ1: =_xll.RiskCDS2(Sheet3!AX1,10,) ->  | BA1: =_xll.RiskCDS1([0]!Activity5animalproductivity,[0]!Activity5animalproductivity,Sheet3!A1) ->  | BB1: =_xll.RiskCDS2(Sheet3!BA1,1,) ->  | BC1: =_xll.RiskCDS2(Sheet3!BA1,2,) ->  | BD1: =_xll.RiskCDS2(Sheet3!BA1,3,) ->  | BE1: =_xll.RiskCDS1([0]!SummerCropYield,[0]!SummerCropYield,Sheet3!A1) ->  | BF1: =_xll.RiskCDS2(Sheet3!BE1,6,) ->  | BG1: =_xll.RiskCDS1([0]!WinterCropYields,[0]!WinterCropYields,Sheet3!A1) ->  | BH1: =_xll.RiskCDS2(Sheet3!BG1,6,) ->  | BI1: =_xll.RiskCDS1([0]!pricecorrelation,[0]!pricecorrelation,Sheet3!A1) ->  | BJ1: =_xll.RiskCDS2(Sheet3!BI1,11,) ->  | BK1: =_xll.RiskCDS2(Sheet3!BI1,12,) ->  | BL1: =_xll.RiskCDS1([0]!Activity6animalproductivity,[0]!Activity6animalproductivity,Sheet3!A1) ->  | BM1: =_xll.RiskCDS2(Sheet3!BL1,1,) ->  | BN1: =_xll.RiskCDS2(Sheet3!BL1,2,) ->  | BO1: =_xll.RiskCDS2(Sheet3!BL1,3,) ->  | BP1: =_xll.RiskCDS1([0]!SummerCropYield,[0]!SummerCropYield,Sheet3!A1) ->  | BQ1: =_xll.RiskCDS2(Sheet3!BP1,7,) ->  | BR1: =_xll.RiskCDS1([0]!WinterCropYields,[0]!WinterCropYields,Sheet3!A1) ->  | BS1: =_xll.RiskCDS2(Sheet3!BR1,7,) ->  | BT1: =_xll.RiskCDS1([0]!pricecorrelation,[0]!pricecorrelation,Sheet3!A1) ->  | BU1: =_xll.RiskCDS2(Sheet3!BT1,13,) ->  | BV1: =_xll.RiskCDS2(Sheet3!BT1,14,) ->  | BW1: =_xll.RiskCDS1([0]!Activity7animalproductivity,[0]!Activity7animalproductivity,Sheet3!A1) ->  | BX1: =_xll.RiskCDS2(Sheet3!BW1,1,) ->  | BY1: =_xll.RiskCDS2(Sheet3!BW1,2,) ->  | BZ1: =_xll.RiskCDS2(Sheet3!BW1,3,) ->  | CA1: =_xll.RiskCDS1([0]!SummerCropYield,[0]!SummerCropYield,Sheet3!A1) ->  | CB1: =_xll.RiskCDS2(Sheet3!CA1,8,) ->  | CC1: =_xll.RiskCDS1([0]!WinterCropYields,[0]!WinterCropYields,Sheet3!A1) ->  | CD1: =_xll.RiskCDS2(Sheet3!CC1,8,) ->  | CE1: =_xll.RiskCDS1([0]!pricecorrelation,[0]!pricecorrelation,Sheet3!A1) ->  | CF1: =_xll.RiskCDS2(Sheet3!CE1,15,) ->  | CG1: =_xll.RiskCDS2(Sheet3!CE1,16,) ->  | CH1: =_xll.RiskCDS1([0]!Activity8animalproductivity,[0]!Activity8animalproductivity,Sheet3!A1) ->  | CI1: =_xll.RiskCDS2(Sheet3!CH1,1,) ->  | CJ1: =_xll.RiskCDS2(Sheet3!CH1,2,) ->  | CK1: =_xll.RiskCDS2(Sheet3!CH1,3,) ->  | CL1: =_xll.RiskCDS1([0]!SummerCropYield,[0]!SummerCropYield,Sheet3!A1) ->  | CM1: =_xll.RiskCDS2(Sheet3!CL1,9,) ->  | CN1: =_xll.RiskCDS1([0]!WinterCropYields,[0]!WinterCropYields,Sheet3!A1) ->  | CO1: =_xll.RiskCDS2(Sheet3!CN1,9,) ->  | CP1: =_xll.RiskCDS1([0]!pricecorrelation,[0]!pricecorrelation,Sheet3!A1) ->  | CQ1: =_xll.RiskCDS2(Sheet3!CP1,17,) ->  | CR1: =_xll.RiskCDS2(Sheet3!CP1,18,) ->  | CS1: =_xll.RiskCDS1([0]!Activity9animalproductivity,[0]!Activity9animalproductivity,Sheet3!A1) ->  | CT1: =_xll.RiskCDS2(Sheet3!CS1,1,) ->  | CU1: =_xll.RiskCDS2(Sheet3!CS1,2,) ->  | CV1: =_xll.RiskCDS2(Sheet3!CS1,3,) ->  | CW1: =_xll.RiskCDS1([0]!SummerCropYield,[0]!SummerCropYield,Sheet3!A1) ->  | CX1: =_xll.RiskCDS2(Sheet3!CW1,10,) ->  | CY1: =_xll.RiskCDS1([0]!WinterCropYields,[0]!WinterCropYields,Sheet3!A1) ->  | CZ1: =_xll.RiskCDS2(Sheet3!CY1,10,) ->  | DA1: =_xll.RiskCDS1([0]!pricecorrelation,[0]!pricecorrelation,Sheet3!A1) ->  | DB1: =_xll.RiskCDS2(Sheet3!DA1,19,) ->  | DC1: =_xll.RiskCDS2(Sheet3!DA1,20,) ->  | DD1: =_xll.RiskCDS1([0]!Activity10animalproductivity,[0]!Activity10animalproductivity,Sheet3!A1) ->  | DE1: =_xll.RiskCDS2(Sheet3!DD1,1,) ->  | DF1: =_xll.RiskCDS2(Sheet3!DD1,2,) ->  | DG1: =_xll.RiskCDS2(Sheet3!DD1,3,) ->  | DI1: =_xll.RiskCDS2(Sheet3!DH1,1,) ->  | DK1: =_xll.RiskCDS2(Sheet3!DJ1,1,) ->  | DM1: =_xll.RiskCDS2(Sheet3!DL1,1,) ->  | DN1: =_xll.RiskCDS2(Sheet3!DL1,2,) ->  | DP1: =_xll.RiskCDS2(Sheet3!DO1,1,) ->  | DQ1: =_xll.RiskCDS2(Sheet3!DO1,2,) ->  | DR1: =_xll.RiskCDS2(Sheet3!DO1,3,) ->  | DT1: =_xll.RiskCDS2(Sheet3!DS1,2,) ->  | DV1: =_xll.RiskCDS2(Sheet3!DU1,2,) ->  | DX1: =_xll.RiskCDS2(Sheet3!DW1,3,) ->  | DY1: =_xll.RiskCDS2(Sheet3!DW1,4,) ->  | EA1: =_xll.RiskCDS2(Sheet3!DZ1,1,) ->  | EB1: =_xll.RiskCDS2(Sheet3!DZ1,2,) ->  | EC1: =_xll.RiskCDS2(Sheet3!DZ1,3,) ->  | EE1: =_xll.RiskCDS2(Sheet3!ED1,3,) ->  | EG1: =_xll.RiskCDS2(Sheet3!EF1,3,) ->  | EI1: =_xll.RiskCDS2(Sheet3!EH1,5,) ->  | EJ1: =_xll.RiskCDS2(Sheet3!EH1,6,) ->  | EL1: =_xll.RiskCDS2(Sheet3!EK1,1,) ->  | EM1: =_xll.RiskCDS2(Sheet3!EK1,2,) ->  | EN1: =_xll.RiskCDS2(Sheet3!EK1,3,) ->  | EP1: =_xll.RiskCDS2(Sheet3!EO1,4,) ->  | ER1: =_xll.RiskCDS2(Sheet3!EQ1,4,) ->  | ET1: =_xll.RiskCDS2(Sheet3!ES1,7,) ->  | EU1: =_xll.RiskCDS2(Sheet3!ES1,8,) ->  | EW1: =_xll.RiskCDS2(Sheet3!EV1,1,) ->  | EX1: =_xll.RiskCDS2(Sheet3!EV1,2,) ->  | EY1: =_xll.RiskCDS2(Sheet3!EV1,3,) ->  | FA1: =_xll.RiskCDS2(Sheet3!EZ1,5,) ->  | FC1: =_xll.RiskCDS2(Sheet3!FB1,5,) ->  | FE1: =_xll.RiskCDS2(Sheet3!FD1,9,) ->  | FF1: =_xll.RiskCDS2(Sheet3!FD1,10,) ->  | FH1: =_xll.RiskCDS2(Sheet3!FG1,1,) ->  | FI1: =_xll.RiskCDS2(Sheet3!FG1,2,) ->  | FJ1: =_xll.RiskCDS2(Sheet3!FG1,3,) ->  | FL1: =_xll.RiskCDS2(Sheet3!FK1,6,) ->  | FN1: =_xll.RiskCDS2(Sheet3!FM1,6,) ->  | FP1: =_xll.RiskCDS2(Sheet3!FO1,11,) ->  | FQ1: =_xll.RiskCDS2(Sheet3!FO1,12,) ->  | FS1: =_xll.RiskCDS2(Sheet3!FR1,1,) ->  | FT1: =_xll.RiskCDS2(Sheet3!FR1,2,) ->  | FU1: =_xll.RiskCDS2(Sheet3!FR1,3,) ->  | FW1: =_xll.RiskCDS2(Sheet3!FV1,7,) ->  | FY1: =_xll.RiskCDS2(Sheet3!FX1,7,) ->  | GA1: =_xll.RiskCDS2(Sheet3!FZ1,13,) ->  | GB1: =_xll.RiskCDS2(Sheet3!FZ1,14,) ->  | GD1: =_xll.RiskCDS2(Sheet3!GC1,1,) ->  | GE1: =_xll.RiskCDS2(Sheet3!GC1,2,) ->  | GF1: =_xll.RiskCDS2(Sheet3!GC1,3,) ->  | GH1: =_xll.RiskCDS2(Sheet3!GG1,8,) ->  | GJ1: =_xll.RiskCDS2(Sheet3!GI1,8,) ->  | GL1: =_xll.RiskCDS2(Sheet3!GK1,15,) ->  | GM1: =_xll.RiskCDS2(Sheet3!GK1,16,) ->  | GO1: =_xll.RiskCDS2(Sheet3!GN1,1,) ->  | GP1: =_xll.RiskCDS2(Sheet3!GN1,2,) ->  | GQ1: =_xll.RiskCDS2(Sheet3!GN1,3,) ->  | GS1: =_xll.RiskCDS2(Sheet3!GR1,9,) ->  | GU1: =_xll.RiskCDS2(Sheet3!GT1,9,) ->  | GW1: =_xll.RiskCDS2(Sheet3!GV1,17,) ->  | GX1: =_xll.RiskCDS2(Sheet3!GV1,18,) ->  | GZ1: =_xll.RiskCDS2(Sheet3!GY1,1,) ->  | HA1: =_xll.RiskCDS2(Sheet3!GY1,2,) ->  | HB1: =_xll.RiskCDS2(Sheet3!GY1,3,) ->  | HD1: =_xll.RiskCDS2(Sheet3!HC1,10,) ->  | HF1: =_xll.RiskCDS2(Sheet3!HE1,10,) ->  | HH1: =_xll.RiskCDS2(Sheet3!HG1,19,) ->  | HI1: =_xll.RiskCDS2(Sheet3!HG1,20,) ->  | HK1: =_xll.RiskCDS2(Sheet3!HJ1,1,) ->  | HL1: =_xll.RiskCDS2(Sheet3!HJ1,2,) ->  | HM1: =_xll.RiskCDS2(Sheet3!HJ1,3,) ->  | HO1: =_xll.RiskCDS2(Sheet3!HN1,1,) ->  | HQ1: =_xll.RiskCDS2(Sheet3!HP1,1,) ->  | HS1: =_xll.RiskCDS2(Sheet3!HR1,1,) ->  | HT1: =_xll.RiskCDS2(Sheet3!HR1,2,) ->  | HV1: =_xll.RiskCDS2(Sheet3!HU1,1,) ->  | HW1: =_xll.RiskCDS2(Sheet3!HU1,2,) ->  | HX1: =_xll.RiskCDS2(Sheet3!HU1,3,) ->  | HZ1: =_xll.RiskCDS2(Sheet3!HY1,2,) ->  | IB1: =_xll.RiskCDS2(Sheet3!IA1,2,) ->  | ID1: =_xll.RiskCDS2(Sheet3!IC1,3,) ->  | IE1: =_xll.RiskCDS2(Sheet3!IC1,4,) ->  | IG1: =_xll.RiskCDS2(Sheet3!IF1,1,) ->  | IH1: =_xll.RiskCDS2(Sheet3!IF1,2,) ->  | II1: =_xll.RiskCDS2(Sheet3!IF1,3,) ->  | IK1: =_xll.RiskCDS2(Sheet3!IJ1,3,) ->  | IM1: =_xll.RiskCDS2(Sheet3!IL1,3,) ->  | IO1: =_xll.RiskCDS2(Sheet3!IN1,5,) ->  | IP1: =_xll.RiskCDS2(Sheet3!IN1,6,) ->  | IR1: =_xll.RiskCDS2(Sheet3!IQ1,1,) ->  | IS1: =_xll.RiskCDS2(Sheet3!IQ1,2,) ->  | IT1: =_xll.RiskCDS2(Sheet3!IQ1,3,) ->  | IV1: =_xll.RiskCDS2(Sheet3!IU1,4,) -> 
B2: =_xll.RiskCDS2(Sheet3!A2,4,) ->  | D2: =_xll.RiskCDS2(Sheet3!C2,7,) ->  | E2: =_xll.RiskCDS2(Sheet3!C2,8,) ->  | G2: =_xll.RiskCDS2(Sheet3!F2,1,) ->  | H2: =_xll.RiskCDS2(Sheet3!F2,2,) ->  | I2: =_xll.RiskCDS2(Sheet3!F2,3,) ->  | K2: =_xll.RiskCDS2(Sheet3!J2,5,) ->  | M2: =_xll.RiskCDS2(Sheet3!L2,5,) ->  | O2: =_xll.RiskCDS2(Sheet3!N2,9,) ->  | P2: =_xll.RiskCDS2(Sheet3!N2,10,) ->  | R2: =_xll.RiskCDS2(Sheet3!Q2,1,) ->  | S2: =_xll.RiskCDS2(Sheet3!Q2,2,) ->  | T2: =_xll.RiskCDS2(Sheet3!Q2,3,) ->  | V2: =_xll.RiskCDS2(Sheet3!U2,6,) ->  | X2: =_xll.RiskCDS2(Sheet3!W2,6,) ->  | Z2: =_xll.RiskCDS2(Sheet3!Y2,11,) ->  | AA2: =_xll.RiskCDS2(Sheet3!Y2,12,) ->  | AC2: =_xll.RiskCDS2(Sheet3!AB2,1,) ->  | AD2: =_xll.RiskCDS2(Sheet3!AB2,2,) ->  | AE2: =_xll.RiskCDS2(Sheet3!AB2,3,) ->  | AG2: =_xll.RiskCDS2(Sheet3!AF2,7,) ->  | AI2: =_xll.RiskCDS2(Sheet3!AH2,7,) ->  | AK2: =_xll.RiskCDS2(Sheet3!AJ2,13,) ->  | AL2: =_xll.RiskCDS2(Sheet3!AJ2,14,) ->  | AN2: =_xll.RiskCDS2(Sheet3!AM2,1,) ->  | AO2: =_xll.RiskCDS2(Sheet3!AM2,2,) ->  | AP2: =_xll.RiskCDS2(Sheet3!AM2,3,) ->  | AR2: =_xll.RiskCDS2(Sheet3!AQ2,8,) ->  | AT2: =_xll.RiskCDS2(Sheet3!AS2,8,) ->  | AV2: =_xll.RiskCDS2(Sheet3!AU2,15,) ->  | AW2: =_xll.RiskCDS2(Sheet3!AU2,16,) ->  | AY2: =_xll.RiskCDS2(Sheet3!AX2,1,) ->  | AZ2: =_xll.RiskCDS2(Sheet3!AX2,2,) ->  | BA2: =_xll.RiskCDS2(Sheet3!AX2,3,) ->  | BC2: =_xll.RiskCDS2(Sheet3!BB2,9,) ->  | BE2: =_xll.RiskCDS2(Sheet3!BD2,9,) ->  | BG2: =_xll.RiskCDS2(Sheet3!BF2,17,) ->  | BH2: =_xll.RiskCDS2(Sheet3!BF2,18,) ->  | BJ2: =_xll.RiskCDS2(Sheet3!BI2,1,) ->  | BK2: =_xll.RiskCDS2(Sheet3!BI2,2,) ->  | BL2: =_xll.RiskCDS2(Sheet3!BI2,3,) ->  | BN2: =_xll.RiskCDS2(Sheet3!BM2,10,) ->  | BP2: =_xll.RiskCDS2(Sheet3!BO2,10,) ->  | BR2: =_xll.RiskCDS2(Sheet3!BQ2,19,) ->  | BS2: =_xll.RiskCDS2(Sheet3!BQ2,20,) ->  | BU2: =_xll.RiskCDS2(Sheet3!BT2,1,) ->  | BV2: =_xll.RiskCDS2(Sheet3!BT2,2,) ->  | BW2: =_xll.RiskCDS2(Sheet3!BT2,3,) -> 

Sheet Buffel
A1: Pasture assessment model - gross margin | D1: (This format should be used to assess the likely average gross margin of a grass pasture. It is a different format to that used to assess an annual forage)
A3: Forage type | B3: ='Gross margin summary'!D15 -> Baseline buffel | C3: Area of forage | D3: 100 | E3: hectares
I6: Calculator - Actual landed cost of a purchased steer (liveweight) | M6: Calculate the paddock value of the owned steer
I7: Travel costs incurred in finding the steers | K7: 500 | M7: Steer weight in the paddock | O7: =C13 -> 240.2
B8: Livestock purchase parameters | I8: Number purchased | K8: =C11 -> 11.85 | M8: weight loss to get to sale yards or works | O8: 0
B9: Average age of purchased steers (months) | C9: 6 | E9: Cohort ID | F9: Start & Finish Age / Cohort | I9: Travel cost per head | K9: =IF(K8=0,0,K7/K8) -> 42.19409283 | M9: Steer weight at saleyards or works | O9: =O7*(1-O8) -> 240.2
B10: Which cohort do the purchased steers refer to? | C10: 1 | D10: (Enter 1 to 5) | E10: 1 | F10: =C9&" Months to "&C9+11&" Months" -> 6 Months to 17 Months | I10: Purchase price $ per kg | K10: 1.95 | M10: Sale price at yards or works
B11: Number of steers purchased | C11: 11.85 | E11: 2 | F11: =G12&" Months to "&G13&" Months" -> 18 Months to 30 Months | I11: Transport cost per head | K11: 10 | M11: Gross sale price $/head | O11: =O10*O9 -> 0
B12: Purchase price steers ($/kg live) | C12: 2 | E12: 3 | F12: =G13+1&" Months to "&G14&" Months" -> 31 Months to 42 Months | G12: =C9+12 -> 18 | I12: Induction cost per head | K12: 0 | M12: Commission & insurance %
B13: Purchase weight steers (kg live) | C13: 240.2 | E13: 4 | F13: =G14+1&" Months to "&G15&" Months" -> 43 Months to 54 Months | G13: =G12+12 -> 30 | I13: Average purchase weight live | K13: =C13 -> 240.2 | M13: Commission & insurance/head | O13: =O12*O11 -> 0
E14: 5 | F14: =G15+1&" Months to "&G16&" Months" -> 55 Months to 66 Months | G14: =G13+12 -> 42 | I14: Steer total cost | K14: =(K10*K13)+K11+K12 -> 478.39 | M14: Transaction levy, yard dues etc
B15: Cost of purchased steers | C15: =C13*C12*C11 -> 5692.74 | G15: =G14+12 -> 54 | I15: Buying cost per kg | K15: =(K9+K11+K12)/K13 -> 0.2172943082 | M15: Transport cost/head
B16: Gross cost of purchased steers (per head) | C16: =C15/C11 -> 480.4 | G16: =G15+12 -> 66 | I16: Landed purchase cost per kilogram | K16: =K14/K13 -> 1.991631973 | M16: Steer value net of selling expenses | O16: =O11-O13-O14-O15 -> 0
B17: Stocking rate (head per hectare) | C17: =C97/D3 -> 0.3525 | D17: Stocking rate (AE per hectare) | E17: =H154/D3 -> 0.2833783245 | M17: Paddock weight | O17: =O7 -> 240.2
B18: Stocking rate (hectare per head) | C18: =D3/C97 -> 2.836879433 | D18: Stocking rate (hectare per AE) | E18: =D3/H154 -> 3.52885141 | M18: Selling cost per kg | O18: =(O13+O14+O15)/O9 -> 0
M19: Net value $/kg in the paddock | O19: =O16/O17 -> 0
B22: Weight gain per day | C22: =(596-240)/C23 -> 0.4091954023 | D22: kilograms per head per day
B23: Total days held | C23: 870 | D23: days
B25: Steer Weight Gains | C25: First Period Held | E25: Second Period Held | G25: Third Period Held | I25: Fourth Period Held | K25: Fifth Period Held
C26: Kilograms Gained | D26: Closing Weight (Kg Live) | E26: Kilograms Gained | F26: Closing Weight (Kg Live) | G26: Kilograms Gained | H26: Closing Weight (Kg Live) | I26: Kilograms Gained | J26: Closing Weight (Kg Live) | K26: Kilograms Gained | L26: Closing Weight (Kg Live)
B27: Weight gain for first sale group (kg) | C27: =365*C22 -> 149.3563218 | D27: =IF(C27=0,0,C27+C13) -> 389.5563218 | E27: =365*C22 -> 149.3563218 | F27: =IF(E27<=0,0,E27+D27) -> 538.9126437 | G27: =(C23-(365*2))*C22 -> 57.28735632 | H27: =IF(G27<=0,0,G27+F27) -> 596.2 | I27: 0 | J27: =IF(I27<=0,0,I27+H27) -> 0 | K27: 0 | L27: =IF(K27<=0,0,K27+J27) -> 0
B28: Weight gain for second sale group (kg) | D28: =IF(C28=0,0,C28+$C$13) -> 0 | F28: =IF(E28<=0,0,E28+D28) -> 0 | H28: =IF(G28<=0,0,G28+F28) -> 0 | I28: 0 | J28: =IF(I28<=0,0,I28+H28) -> 0 | K28: 0 | L28: =IF(K28<=0,0,K28+J28) -> 0
B29: Average weight gain and liveweights | C29: =IF(AND(C27>0,C28>0),(C27+C28)/2,IF(C27=0,C28,IF(C28=0,C27,0))) -> 149.3563218 | D29: 389.5563218 | E29: 149.3563218 | F29: 538.9126437 | G29: 57.28735632 | H29: 596.2 | I29: 0 | J29: 0 | K29: 0 | L29: 0
B31: Steer Losses - Pre Sale
B32: Age Cohort | C32: Steer Losses
B33: =IF(ISERROR(VLOOKUP($C$10,$E$10:$F$14,1,FALSE)=TRUE),"",VLOOKUP($C$10,$E$10:$F$14,2,FALSE)) -> 6 Months to 17 Months | C33: 0
B34: =IF(ISERROR(VLOOKUP($C$10+1,$E$10:$F$14,1,FALSE)=TRUE),"",VLOOKUP($C$10+1,$E$10:$F$14,2,FALSE)) -> 18 Months to 30 Months | C34: 0
B35: =IF(ISERROR(VLOOKUP($C$10+2,$E$10:$F$14,1,FALSE)=TRUE),"",VLOOKUP($C$10+2,$E$10:$F$14,2,FALSE)) -> 31 Months to 42 Months | C35: 0
B36: =IF(ISERROR(VLOOKUP($C$10+3,$E$10:$F$14,1,FALSE)=TRUE),"",VLOOKUP($C$10+3,$E$10:$F$14,2,FALSE)) -> 43 Months to 54 Months | C36: 0
B37: =IF(ISERROR(VLOOKUP($C$10+4,$E$10:$F$14,1,FALSE)=TRUE),"",VLOOKUP($C$10+4,$E$10:$F$14,2,FALSE)) -> 55 Months to 66 Months | C37: 0
B39: Sales Options
B40: Age Cohort | C40: First Sale Group | D40: Second Sale Group | E40: Percentage of Total Sold
B41: =B33 -> 6 Months to 17 Months | C41: 0 | D41: 0 | E41: =D41+C41 -> 0
B42: =B34 -> 18 Months to 30 Months | C42: 0 | D42: 0 | E42: =D42+C42 -> 0
B43: =B35 -> 31 Months to 42 Months | C43: 1 | D43: 0 | E43: =D43+C43 -> 1
B44: =B36 -> 43 Months to 54 Months | C44: 0 | D44: 0 | E44: =D44+C44 -> 0
B45: =B37 -> 55 Months to 66 Months | C45: 0 | D45: 0 | E45: =D45+C45 -> 0
B47: Breakup of Steer Sales
B49: Age Cohort | C49: Opening Number | D49: Losses | E49: Number for Sale | F49: Number Sold | G49: Weight of Sale Steers | H49: Age Sold (months)
B50: =B33 -> 6 Months to 17 Months | C50: =C11 -> 11.85 | D50: =ROUND(C33*C50,0) -> 0 | E50: =C50-D50 -> 11.85 | F50: =IF($C$50>0,ROUND(C41*($E$50),0),0) -> 0 | G50: =IF(F50=0,0,IF(F50>0,D27,0)) -> 0
F51: =IF($C$50>0,ROUND(D41*($E$50),0),0) -> 0 | G51: =IF(F51=0,0,IF(F51>0,D28,0)) -> 0
B53: Age Cohort | C53: Opening Number | D53: Losses | E53: Number for Sale | F53: Number Sold | G53: Weight of Sale Steers | H53: Age Sold (months)
B54: =B34 -> 18 Months to 30 Months | C54: =C50-D50-F50-F51 -> 11.85 | D54: =ROUND(C54*C34,0) -> 0 | E54: =C54-D54 -> 11.85 | F54: =IF($C$54>0,ROUND((C42*($E$54)),0),0) -> 0 | G54: =IF(F54=0,0,F27) -> 0
F55: =IF($C$54>0,ROUND(D42*($E$54),0),0) -> 0 | G55: =IF(F55=0,0,F28) -> 0
B57: Age Cohort | C57: Opening Number | D57: Losses | E57: Number for Sale | F57: Number Sold | G57: Weight of Sale Steers | H57: Age Sold (months)
B58: =B35 -> 31 Months to 42 Months | C58: =C54-D54-F54-F55 -> 11.85 | D58: =ROUND(C58*C35,0) -> 0 | E58: =C58-D58 -> 11.85 | F58: =IF($C$58>0,ROUND(C43*$E$58,0),0) -> 12 | G58: =IF(F58=0,0,H27) -> 596.2 | H58: 36
F59: =IF($C$58>0,ROUND(D43*$E$58,0),0) -> 0 | G59: =IF(F59=0,0,H28) -> 0
B61: Age Cohort | C61: Opening Number | D61: Losses | E61: Number for Sale | F61: Number Sold | G61: Weight of Sale Steers | H61: Age Sold (months)
B62: =B36 -> 43 Months to 54 Months | C62: =C58-D58-F58-F59 -> -0.15 | D62: =ROUND(C62*C36,0) -> 0 | E62: =C62-D62 -> -0.15 | F62: =IF($C$62>0,ROUND(C44*$E$62,0),0) -> 0 | G62: =IF(F62=0,0,J27) -> 0
F63: =IF($C$62>0,ROUND(D44*$E$62,0),0) -> 0 | G63: =IF(F63=0,0,J28) -> 0
B65: Age Cohort | C65: Opening Number | D65: Losses | E65: Number for Sale | F65: Number Sold | G65: Weight of Sale Steers | H65: Age Sold (months)
B66: =B37 -> 55 Months to 66 Months | C66: =C62-D62-F62-F63 -> -0.15 | D66: =ROUND(C66*$C$37,0) -> 0 | E66: =C66-D66 -> -0.15 | F66: =IF($C$66>0,ROUND(C45*$E$66,0),0) -> 0 | G66: =IF(F66=0,0,L27) -> 0
F67: =IF($C$66>0,ROUND(D45*$E$66,0),0) -> 0 | G67: =IF(F67=0,0,L28) -> 0
B69: Steer Selling Prices and Income
B71: Age Cohort | C71: Sale Price ($ per Kg Live) | D71: Estimated Dressing % | E71: Number Sold | F71: Dressed weight (kg) | G71: $ per Kg Dressed | H71: $ per Head (Gross) | I71: Total Sales | J71: Liveweight Kgs Sold | K71: Dressed Weight Sold
B72: =B50 -> 6 Months to 17 Months | E72: =F50 -> 0 | F72: =D72*G50 -> 0 | G72: =IF(D72<=0,0,C72*1/D72) -> 0 | H72: =C72*G50 -> 0 | I72: =H72*F50 -> 0 | J72: =G50*F50 -> 0 | K72: =J72*D72 -> 0
E73: =F51 -> 0 | F73: =D73*G51 -> 0 | G73: =IF(D73<=0,0,C73*1/D73) -> 0 | H73: =C73*G51 -> 0 | I73: =H73*F51 -> 0 | J73: =G51*F51 -> 0 | K73: =J73*D73 -> 0
B75: =B54 -> 18 Months to 30 Months | E75: =F54 -> 0 | F75: =D75*G54 -> 0 | G75: =IF(D75<=0,0,C75*1/D75) -> 0 | H75: =C75*G54 -> 0 | I75: =H75*F54 -> 0 | J75: =G54*F54 -> 0 | K75: =J75*D75 -> 0
E76: =F55 -> 0 | F76: =D76*G55 -> 0 | G76: =IF(D76<=0,0,C76*1/D76) -> 0 | H76: =C76*G55 -> 0 | I76: =H76*F55 -> 0 | J76: =G55*F55 -> 0 | K76: =J76*D76 -> 0
B78: =B58 -> 31 Months to 42 Months | C78: 1.612 | D78: 0.52 | E78: =F58 -> 12 | F78: =D78*G58 -> 310.024 | G78: =IF(D78<=0,0,C78*1/D78) -> 3.1 | H78: =C78*G58 -> 961.0744 | I78: =H78*F58 -> 11532.8928 | J78: =G58*F58 -> 7154.4 | K78: =J78*D78 -> 3720.288
E79: =F59 -> 0 | F79: =D79*G59 -> 0 | G79: =IF(D79<=0,0,C79*1/D79) -> 0 | H79: =C79*G59 -> 0 | I79: =H79*F59 -> 0 | J79: =G59*F59 -> 0 | K79: =J79*D79 -> 0
B81: =B62 -> 43 Months to 54 Months | C81: 0 | D81: 0 | E81: =F62 -> 0 | F81: =D81*G62 -> 0 | G81: =IF(D81<=0,0,C81*1/D81) -> 0 | H81: =C81*G62 -> 0 | I81: =H81*F62 -> 0 | J81: =G62*F62 -> 0 | K81: =J81*D81 -> 0
C82: 0 | D82: 0 | E82: =F63 -> 0 | F82: =D82*G63 -> 0 | G82: =IF(D82<=0,0,C82*1/D82) -> 0 | H82: =C82*G63 -> 0 | I82: =H82*F63 -> 0 | J82: =G63*F63 -> 0 | K82: =J82*D82 -> 0
B84: =B66 -> 55 Months to 66 Months | C84: 0 | D84: 0 | E84: =F66 -> 0 | F84: =D84*G66 -> 0 | G84: =IF(D84<=0,0,C84*1/D84) -> 0 | H84: =C84*G66 -> 0 | I84: =H84*F66 -> 0 | J84: =G66*F66 -> 0 | K84: =J84*D84 -> 0
C85: 0 | D85: 0 | E85: =F67 -> 0 | F85: =D85*G67 -> 0 | G85: =IF(D85<=0,0,C85*1/D85) -> 0 | H85: =C85*G67 -> 0 | I85: =H85*F67 -> 0 | J85: =G67*F67 -> 0 | K85: =J85*D85 -> 0
H86: Total | I86: =SUM(I72:I85) -> 11532.8928 | J86: =SUM(J72:J85) -> 7154.4 | K86: =SUM(K72:K85) -> 3720.288
I87: Kg Beef Purchased | J87: =C13*C11 -> 2846.37 | K87: =J87*(K86/J86) -> 1480.1124
I88: Net Sold | J88: =J86-J87 -> 4308.03 | K88: =K86-K87 -> 2240.1756
B89: Steers herd - Composition and Value
M90: Transport Loading Density Guide
B91: Age Cohort | C91: Opening Number | D91: Avg $ per Head | E91: Value | M91: Source for loading density: Kaus, Lapworth and Dunn "Marketing Cattle to South-East Asia"
B92: =B33 -> 6 Months to 17 Months | C92: =C50 -> 11.85 | D92: 500 | E92: =C92*D92 -> 5925 | M92: Maximum for lighter cattle = 44/deck
B93: =B34 -> 18 Months to 30 Months | C93: =C54 -> 11.85 | E93: =C93*D93 -> 0 | M93: Average | N93: Head Per
B94: =B35 -> 31 Months to 42 Months | C94: =C58 -> 11.85 | E94: =C94*D94 -> 0 | M94: Liveweight | N94: 12.2m deck
B95: =B36 -> 43 Months to 54 Months | C95: =C62 -> -0.15 | D95: 0 | E95: =C95*D95 -> 0 | M95: 250 | N95: 38
B96: =B37 -> 55 Months to 66 Months | C96: =C66 -> -0.15 | D96: 0 | E96: =C96*D96 -> 0 | M96: 300 | N96: 34
B97: Total | C97: =SUM(C92:C96) -> 35.25 | D97: =E97/C97 -> 168.0851064 | E97: =SUM(E92:E96) -> 5925 | M97: 350 | N97: 30
M98: 400 | N98: 28
B99: Freight Costs In | M99: 450 | N99: 26
M100: 500 | N100: 24
B101: Age Cohort | C101: Purchases | D101: Average weight | E101: Distance (Km) | F101: $ per Km | G101: Rate on Truck | H101: Total | I101: Per head | M101: 550 | N101: 22
B102: =B33 -> 6 Months to 17 Months | C102: =C11 -> 11.85 | D102: =C13 -> 240.2 | E102: 189.5 | F102: 1.9 | G102: 36 | H102: =IF(C102<=0,0,C102*E102*F102/G102) -> 118.5164583 | I102: =IF(H102<=0,0,H102/C102) -> 10.00138889 | M102: 600 | N102: 20
M103: 650 | N103: 18
B104: Selling Expenses
B106: Age Cohort | C106: Number Sold | D106: Sales Commission | E106: Total Commission Paid | F106: MLA Levy | G106: Yard Fees | H106: Tags | I106: Total Sundries Paid | J106: Average Sale Weight | K106: Distance (Km) | L106: $ per Km | M106: Rate on Truck | N106: Total | O106: Per Head
B107: =B92 -> 6 Months to 17 Months | C107: =F50 -> 0 | E107: =D107*I72 -> 0 | I107: =(F107+G107+H107)*C107 -> 0 | J107: =G50 -> 0 | N107: =IF(M107=0,0,IF(C107<=0,0,C107*K107*L107/M107)) -> 0 | O107: =IF(N107<=0,0,N107/C107) -> 0
C108: =F51 -> 0 | E108: =D108*I73 -> 0 | I108: =(F108+G108+H108)*C108 -> 0 | J108: =G51 -> 0 | N108: =IF(M108=0,0,IF(C108<=0,0,C108*K108*L108/M108)) -> 0 | O108: =IF(N108<=0,0,N108/C108) -> 0
B110: =B93 -> 18 Months to 30 Months | C110: =F54 -> 0 | E110: =D110*I75 -> 0 | I110: =(F110+G110+H110)*C110 -> 0 | J110: =G54 -> 0 | N110: =IF(M110=0,0,IF(C110<=0,0,C110*K110*L110/M110)) -> 0 | O110: =IF(N110<=0,0,N110/C110) -> 0
C111: =F55 -> 0 | E111: =D111*I76 -> 0 | I111: =(F111+G111+H111)*C111 -> 0 | J111: =G55 -> 0 | N111: =IF(M111=0,0,IF(C111<=0,0,C111*K111*L111/M111)) -> 0 | O111: =IF(N111<=0,0,N111/C111) -> 0
B113: =B94 -> 31 Months to 42 Months | C113: =F58 -> 12 | E113: =D113*I78 -> 0 | F113: 5 | I113: =(F113+G113+H113)*C113 -> 60 | J113: =G58 -> 596.2 | K113: 421 | L113: 1.9 | M113: 20 | N113: =IF(M113=0,0,IF(C113<=0,0,C113*K113*L113/M113)) -> 479.94 | O113: =IF(N113<=0,0,N113/C113) -> 39.995
C114: =F59 -> 0 | E114: =D114*I79 -> 0 | I114: =(F114+G114+H114)*C114 -> 0 | J114: =G59 -> 0 | N114: =IF(M114=0,0,IF(C114<=0,0,C114*K114*L114/M114)) -> 0 | O114: =IF(N114<=0,0,N114/C114) -> 0
B116: =B95 -> 43 Months to 54 Months | C116: =F62 -> 0 | E116: =D116*I81 -> 0 | I116: =(F116+G116+H116)*C116 -> 0 | J116: =G62 -> 0 | N116: =IF(M116=0,0,IF(C116<=0,0,C116*K116*L116/M116)) -> 0 | O116: =IF(N116<=0,0,N116/C116) -> 0
C117: =F63 -> 0 | E117: =D117*I82 -> 0 | I117: =(F117+G117+H117)*C117 -> 0 | J117: =G63 -> 0 | N117: =IF(M117=0,0,IF(C117<=0,0,C117*K117*L117/M117)) -> 0 | O117: =IF(N117<=0,0,N117/C117) -> 0
B119: =B96 -> 55 Months to 66 Months | C119: =F66 -> 0 | E119: =D119*I84 -> 0 | I119: =(F119+G119+H119)*C119 -> 0 | J119: =G66 -> 0 | N119: =IF(M119=0,0,IF(C119<=0,0,C119*K119*L119/M119)) -> 0 | O119: =IF(N119<=0,0,N119/C119) -> 0
C120: =F67 -> 0 | E120: =D120*I85 -> 0 | I120: =(F120+G120+H120)*C120 -> 0 | J120: =G67 -> 0 | N120: =IF(M120=0,0,IF(C120<=0,0,C120*K120*L120/M120)) -> 0 | O120: =IF(N120<=0,0,N120/C120) -> 0
E121: =SUM(E107:E120) -> 0 | I121: =SUM(I107:I120) -> 60 | M121: Freight Out | N121: =SUM(N107:N120) -> 479.94
B122: Treatment Expenses
B124: Age Cohort | C124: Number in Class | D124: Fodder | E124: Ticks | F124: Drench | G124: 5 in 1 | H124: Botulism | I124: Flies | J124: Growth Promotant | K124: Total
B125: =B92 -> 6 Months to 17 Months | C125: =C50 -> 11.85 | G125: 0.38 | K125: =SUM(D125:J125)*C125 -> 4.503
B126: =B93 -> 18 Months to 30 Months | C126: =C54 -> 11.85 | K126: =SUM(D126:J126)*C126 -> 0
B127: =B94 -> 31 Months to 42 Months | C127: =C58 -> 11.85 | K127: =SUM(D127:J127)*C127 -> 0
B128: =B95 -> 43 Months to 54 Months | C128: =C62 -> -0.15 | K128: =SUM(D128:J128)*C128 -> 0
B129: =B96 -> 55 Months to 66 Months | C129: =C66 -> -0.15 | K129: =SUM(D129:J129)*C129 -> 0
B130: Total | C130: =SUM(C125:C129) -> 35.25 | D130: =SUMPRODUCT($C$125:$C$129,D125:D129) -> 0 | E130: 0 | F130: 0 | G130: 4.503 | H130: 0 | I130: 0 | J130: 0 | K130: =SUM(D130:J130) -> 4.503
B132: Adult Equivalent Table
B133: Livestock Cohorts | C133: Number | D133: Average Months Grazing | E133: Average Final Age | F133: Av Final or Sale Kg | G133: Calculated AE rating | H133: Total annual AEs
B134: ="Age Cohort "& $B$125&" Kept" -> Age Cohort 6 Months to 17 Months Kept | C134: =C50-F50-F51-D50 -> 11.85 | D134: 12 | E134: =D134+C9 -> 18 | F134: =C13+C29 -> 389.5563218 | G134: =(POWER(((F134+C13)/2),0.75)/97.7) -> 0.7650896755 | H134: =G134*C134*(D134/12) -> 9.066312655
B135: ="Age Cohort "& $B$125&" First Sales" -> Age Cohort 6 Months to 17 Months First Sales | C135: =F50 -> 0 | D135: =IF(C135<=0,0,H50-C9) -> 0 | E135: =H50 -> 0 | F135: =G50 -> 0 | G135: =(POWER(((F135+C13)/2),0.75)/97.7) -> 0.3713322694 | H135: 0
B136: ="Age Cohort "& $B$125&" Second Sales" -> Age Cohort 6 Months to 17 Months Second Sales | C136: =F51 -> 0 | D136: =IF(C136<=0,0,H51-C9) -> 0 | E136: =H51 -> 0 | F136: =G51 -> 0 | G136: =(POWER(((F136+C13)/2),0.75)/97.7) -> 0.3713322694 | H136: 0
B137: Losses | C137: =D50 -> 0 | D137: 6 | E137: =C9+D137 -> 12 | F137: =IF(C137=0,0,(F134+C13)/2) -> 0 | G137: =(POWER(((F137+C13)/2),0.75)/97.7) -> 0.3713322694 | H137: 0
B138: ="Age Cohort "& $B$126&" Kept" -> Age Cohort 18 Months to 30 Months Kept | C138: =C54-F54-F55-D54 -> 11.85 | D138: =IF(C138<=0,0,12) -> 12 | E138: =E134+12 -> 30 | F138: =F29 -> 538.9126437 | G138: =(POWER(((F138+F134)/2),0.75)/97.7) -> 1.023666482 | H138: 12.13044781
B139: ="Age Cohort "& $B$126&" First Sales" -> Age Cohort 18 Months to 30 Months First Sales | C139: =F54 -> 0 | D139: =IF(C139<=0,0,H54-E134) -> 0 | E139: =H54 -> 0 | F139: =G54 -> 0 | G139: =(POWER(((F139+F134)/2),0.75)/97.7) -> 0.5336550604 | H139: 0
B140: ="Age Cohort "& $B$126&" Second Sales" -> Age Cohort 18 Months to 30 Months Second Sales | C140: =F55 -> 0 | D140: =IF(C140<=0,0,H55-E134) -> 0 | E140: =H55 -> 0 | F140: =G55 -> 0 | G140: =(POWER(((F140+F134)/2),0.75)/97.7) -> 0.5336550604 | H140: 0
B141: Losses | C141: =D54 -> 0 | D141: 6 | E141: =E134+D141 -> 24 | F141: =IF(C141=0,0,(F138+F134)/2) -> 0 | G141: =(POWER(((F141+F134)/2),0.75)/97.7) -> 0.5336550604 | H141: 0
B142: ="Age Cohort "& $B$127&" Kept" -> Age Cohort 31 Months to 42 Months Kept | C142: =C58-F58-F59-D58 -> -0.15 | D142: =IF(C142<=0,0,12) -> 0 | E142: =E138+12 -> 42 | F142: =H29 -> 596.2 | G142: =(POWER(((F142+F138)/2),0.75)/97.7) -> 1.190178664 | H142: 0
B143: ="Age Cohort "& $B$127&" First Sales" -> Age Cohort 31 Months to 42 Months First Sales | C143: =F58 -> 12 | D143: =IF(C143<=0,0,H58-E138) -> 6 | E143: =H58 -> 36 | F143: =G58 -> 596.2 | G143: =(POWER(((F143+F138)/2),0.75)/97.7) -> 1.190178664 | H143: 7.141071982
B144: ="Age Cohort "& $B$127&" Second Sales" -> Age Cohort 31 Months to 42 Months Second Sales | C144: =F59 -> 0 | D144: =IF(C144<=0,0,H59-E138) -> 0 | E144: =H59 -> 0 | F144: =G59 -> 0 | G144: =(POWER(((F144+F138)/2),0.75)/97.7) -> 0.6807250292 | H144: 0
B145: Losses | C145: =D58 -> 0 | D145: 6 | E145: =E138+D145 -> 36 | F145: =IF(C145=0,0,(F142+F138)/2) -> 0 | G145: =(POWER(((F145+F138)/2),0.75)/97.7) -> 0.6807250292 | H145: 0
B146: ="Age Cohort "& $B$128&" Kept" -> Age Cohort 43 Months to 54 Months Kept | C146: =C62-F62-F63-D62 -> -0.15 | D146: =IF(C146<=0,0,12) -> 0 | E146: =E142+12 -> 54 | F146: =J29 -> 0 | G146: =(POWER(((F146+F142)/2),0.75)/97.7) -> 0.734305732 | H146: 0
B147: ="Age Cohort "& $B$128&" First Sales" -> Age Cohort 43 Months to 54 Months First Sales | C147: =F62 -> 0 | D147: =IF(C147<=0,0,H62-E142) -> 0 | E147: =H62 -> 0 | F147: =G62 -> 0 | G147: =(POWER(((F147+F142)/2),0.75)/97.7) -> 0.734305732 | H147: 0 | P147: This side of the worksheet calculates variable costs of the basis of the machinery being owned | Y147: This side of the worksheet automatically calculates costs on the basis of nominal contract rates
B148: ="Age Cohort "& $B$128&" Second Sales" -> Age Cohort 43 Months to 54 Months Second Sales | C148: =F63 -> 0 | D148: =IF(C148<=0,0,H63-E142) -> 0 | E148: =H63 -> 0 | F148: =G63 -> 0 | G148: =(POWER(((F148+F142)/2),0.75)/97.7) -> 0.734305732 | H148: 0
B149: Losses | C149: =D62 -> 0 | D149: 6 | E149: =E142+D149 -> 48 | F149: =IF(C149=0,0,(F146+F142)/2) -> 0 | G149: =(POWER(((F149+F142)/2),0.75)/97.7) -> 0.734305732 | H149: 0
B150: ="Age Cohort "& $B$129&" Kept" -> Age Cohort 55 Months to 66 Months Kept | C150: =C66-F66-F67-D66 -> -0.15 | D150: =IF(C150<=0,0,12) -> 0 | E150: =E146+12 -> 66 | F150: =L29 -> 0 | G150: =(POWER(((F150+F146)/2),0.75)/97.7) -> 0 | H150: 0
B151: ="Age Cohort "& $B$129&" First Sales" -> Age Cohort 55 Months to 66 Months First Sales | C151: =F66 -> 0 | D151: =IF(C151<=0,0,H66-E146) -> 0 | E151: =H66 -> 0 | F151: =G66 -> 0 | G151: =(POWER(((F151+F146)/2),0.75)/97.7) -> 0 | H151: 0
B152: ="Age Cohort "& $B$129&" Second Sales" -> Age Cohort 55 Months to 66 Months Second Sales | C152: =F67 -> 0 | D152: =IF(C152<=0,0,H67-E146) -> 0 | E152: =H67 -> 0 | F152: =G67 -> 0 | G152: =(POWER(((F152+F146)/2),0.75)/97.7) -> 0 | H152: 0
B153: Losses | C153: =D66 -> 0 | D153: 6 | E153: =E146+D153 -> 60 | F153: =IF(C153=0,0,(F150+F146)/2) -> 0 | G153: =(POWER(((F153+F146)/2),0.75)/97.7) -> 0 | H153: 0
B154: Total Number Including Losses | C154: =SUM(C134:C152) -> 35.25 | H154: =SUM(H134:H152) -> 28.33783245
B158: Forage annual variable cost calculator | C158: Machinery FORM + Labour | L158: Forage development cost calculator | N158: Machinery FORM + Labour | Y158: Forage annual variable cost calculator | Z158: Machiney Contract rate | AI158: Forage development cost calculator | AJ158: Machiney Contract rate
B160: Treatment No | C160: Pre planting costs | D160: Rate of application | E160: cost / unit | F160: number of applications | G160: % of area treated | H160: per hectare | I160: total | L160: Treatment No | M160: Pre planting costs | N160: Rate of application | O160: cost / unit | P160: number of applications | R160: % of area treated | S160: per hectare | T160: total | Y160: Treatment No | Z160: Pre planting costs | AA160: Rate of application | AB160: cost / unit | AC160: number of applications | AD160: % of area treated | AE160: per hectare | AF160: total | AI160: Treatment No | AJ160: Pre planting costs | AK160: Rate of application | AL160: cost / unit | AM160: number of applications | AO160: % of area treated | AP160: per hectare | AQ160: total
C161: =IF(B161<=0,"",VLOOKUP(B161,Treatments!$C$7:$J$407,2)) ->  | E161: =VLOOKUP(B161,Treatments!$C$7:$J$407,8) -> 0 | H161: =D161*E161*F161*G161 -> 0 | I161: =H161*$D$3 -> 0 | M161: =VLOOKUP(L161,Treatments!$C$7:$J$407,2) -> No treatment | O161: =VLOOKUP(L161,Treatments!$C$7:$J$407,8) -> 0 | S161: =N161*O161*P161*R161 -> 0 | T161: =S161*$D$3 -> 0 | Y161: =IF(AND(B161>=344,B161<=358),B161+15,B161) -> 0 | Z161: =VLOOKUP(Y161,Treatments!$C$7:$J$407,2) -> No treatment | AA161: =D161 -> 0 | AB161: =VLOOKUP(Y161,Treatments!$C$7:$J$407,8) -> 0 | AC161: =F161 -> 0 | AD161: =G161 -> 0 | AE161: =AA161*AB161*AC161*AD161 -> 0 | AF161: =AE161*$D$3 -> 0 | AI161: =IF(AND(L161>=344,L161<=358),L161+15,L161) -> 0 | AJ161: =VLOOKUP(AI161,Treatments!$C$7:$J$407,2) -> No treatment | AK161: =N161 -> 0 | AL161: =VLOOKUP(AI161,Treatments!$C$7:$J$407,8) -> 0 | AM161: =P161 -> 0 | AO161: =R161 -> 0 | AP161: =AK161*AL161*AM161*AO161 -> 0 | AQ161: =AP161*$D$3 -> 0
C162: =IF(B162<=0,"",VLOOKUP(B162,Treatments!$C$7:$J$407,2)) ->  | E162: =VLOOKUP(B162,Treatments!$C$7:$J$407,8) -> 0 | H162: =D162*E162*F162*G162 -> 0 | I162: =H162*$D$3 -> 0 | M162: =VLOOKUP(L162,Treatments!$C$7:$J$407,2) -> No treatment | O162: =VLOOKUP(L162,Treatments!$C$7:$J$407,8) -> 0 | S162: 0 | T162: 0 | Y162: =IF(AND(B162>=344,B162<=358),B162+15,B162) -> 0 | Z162: =VLOOKUP(Y162,Treatments!$C$7:$J$407,2) -> No treatment | AA162: =D162 -> 0 | AB162: =VLOOKUP(Y162,Treatments!$C$7:$J$407,8) -> 0 | AC162: =F162 -> 0 | AD162: 0 | AE162: =AA162*AB162*AC162*AD162 -> 0 | AF162: =AE162*$D$3 -> 0 | AI162: 0 | AJ162: =VLOOKUP(AI162,Treatments!$C$7:$J$407,2) -> No treatment | AK162: 0 | AL162: =VLOOKUP(AI162,Treatments!$C$7:$J$407,8) -> 0 | AM162: 0 | AO162: 0 | AP162: 0 | AQ162: 0
C163: =IF(B163<=0,"",VLOOKUP(B163,Treatments!$C$7:$J$407,2)) ->  | E163: =VLOOKUP(B163,Treatments!$C$7:$J$407,8) -> 0 | H163: =D163*E163*F163*G163 -> 0 | I163: =H163*$D$3 -> 0 | M163: =VLOOKUP(L163,Treatments!$C$7:$J$407,2) -> No treatment | O163: =VLOOKUP(L163,Treatments!$C$7:$J$407,8) -> 0 | S163: 0 | T163: 0 | Y163: 0 | Z163: =VLOOKUP(Y163,Treatments!$C$7:$J$407,2) -> No treatment | AA163: 0 | AB163: =VLOOKUP(Y163,Treatments!$C$7:$J$407,8) -> 0 | AC163: 0 | AD163: 0 | AE163: =AA163*AB163*AC163*AD163 -> 0 | AF163: =AE163*$D$3 -> 0 | AI163: 0 | AJ163: =VLOOKUP(AI163,Treatments!$C$7:$J$407,2) -> No treatment | AK163: 0 | AL163: =VLOOKUP(AI163,Treatments!$C$7:$J$407,8) -> 0 | AM163: 0 | AO163: 0 | AP163: 0 | AQ163: 0
C164: =IF(B164<=0,"",VLOOKUP(B164,Treatments!$C$7:$J$407,2)) ->  | E164: =VLOOKUP(B164,Treatments!$C$7:$J$407,8) -> 0 | H164: 0 | I164: 0 | M164: =VLOOKUP(L164,Treatments!$C$7:$J$407,2) -> No treatment | O164: =VLOOKUP(L164,Treatments!$C$7:$J$407,8) -> 0 | S164: 0 | T164: 0 | Y164: 0 | Z164: =VLOOKUP(Y164,Treatments!$C$7:$J$407,2) -> No treatment | AA164: 0 | AB164: =VLOOKUP(Y164,Treatments!$C$7:$J$407,8) -> 0 | AC164: 0 | AD164: 0 | AE164: 0 | AF164: 0 | AI164: 0 | AJ164: =VLOOKUP(AI164,Treatments!$C$7:$J$407,2) -> No treatment | AK164: 0 | AL164: =VLOOKUP(AI164,Treatments!$C$7:$J$407,8) -> 0 | AM164: 0 | AO164: 0 | AP164: 0 | AQ164: 0
C165: =IF(B165<=0,"",VLOOKUP(B165,Treatments!$C$7:$J$407,2)) ->  | E165: =VLOOKUP(B165,Treatments!$C$7:$J$407,8) -> 0 | H165: 0 | I165: 0 | M165: =VLOOKUP(L165,Treatments!$C$7:$J$407,2) -> No treatment | O165: =VLOOKUP(L165,Treatments!$C$7:$J$407,8) -> 0 | S165: 0 | T165: 0 | Y165: 0 | Z165: =VLOOKUP(Y165,Treatments!$C$7:$J$407,2) -> No treatment | AA165: 0 | AB165: =VLOOKUP(Y165,Treatments!$C$7:$J$407,8) -> 0 | AC165: 0 | AD165: 0 | AE165: 0 | AF165: 0 | AI165: 0 | AJ165: =VLOOKUP(AI165,Treatments!$C$7:$J$407,2) -> No treatment | AK165: 0 | AL165: =VLOOKUP(AI165,Treatments!$C$7:$J$407,8) -> 0 | AM165: 0 | AO165: 0 | AP165: 0 | AQ165: 0
C166: =IF(B166<=0,"",VLOOKUP(B166,Treatments!$C$7:$J$407,2)) ->  | E166: =VLOOKUP(B166,Treatments!$C$7:$J$407,8) -> 0 | H166: 0 | I166: 0 | M166: =VLOOKUP(L166,Treatments!$C$7:$J$407,2) -> No treatment | O166: =VLOOKUP(L166,Treatments!$C$7:$J$407,8) -> 0 | S166: 0 | T166: 0 | Y166: 0 | Z166: =VLOOKUP(Y166,Treatments!$C$7:$J$407,2) -> No treatment | AA166: 0 | AB166: =VLOOKUP(Y166,Treatments!$C$7:$J$407,8) -> 0 | AC166: 0 | AD166: 0 | AE166: 0 | AF166: 0 | AI166: 0 | AJ166: =VLOOKUP(AI166,Treatments!$C$7:$J$407,2) -> No treatment | AK166: 0 | AL166: =VLOOKUP(AI166,Treatments!$C$7:$J$407,8) -> 0 | AM166: 0 | AO166: 0 | AP166: 0 | AQ166: 0
C167: =IF(B167<=0,"",VLOOKUP(B167,Treatments!$C$7:$J$407,2)) ->  | E167: =VLOOKUP(B167,Treatments!$C$7:$J$407,8) -> 0 | H167: 0 | I167: 0 | Y167: 0 | Z167: =VLOOKUP(Y167,Treatments!$C$7:$J$407,2) -> No treatment | AA167: 0 | AB167: =VLOOKUP(Y167,Treatments!$C$7:$J$407,8) -> 0 | AC167: 0 | AD167: 0 | AE167: 0 | AF167: 0
C168: =IF(B168<=0,"",VLOOKUP(B168,Treatments!$C$7:$J$407,2)) ->  | E168: =VLOOKUP(B168,Treatments!$C$7:$J$407,8) -> 0 | H168: 0 | I168: 0 | L168: Treatment No | M168: Planting Costs | N168: Rate of application | O168: cost / unit | P168: number of applications | R168: % of area treated | Y168: 0 | Z168: =VLOOKUP(Y168,Treatments!$C$7:$J$407,2) -> No treatment | AA168: 0 | AB168: =VLOOKUP(Y168,Treatments!$C$7:$J$407,8) -> 0 | AC168: 0 | AD168: 0 | AE168: 0 | AF168: 0 | AI168: Treatment No | AJ168: Planting Costs | AK168: Rate of application | AL168: cost / unit | AM168: number of applications | AO168: % of area treated
C169: =IF(B169<=0,"",VLOOKUP(B169,Treatments!$C$7:$J$407,2)) ->  | E169: =VLOOKUP(B169,Treatments!$C$7:$J$407,8) -> 0 | H169: 0 | I169: 0 | M169: =VLOOKUP(L169,Treatments!$C$7:$J$407,2) -> No treatment | O169: =VLOOKUP(L169,Treatments!$C$7:$J$407,8) -> 0 | S169: =N169*O169*P169*R169 -> 0 | T169: =S169*$D$3 -> 0 | Y169: 0 | Z169: =VLOOKUP(Y169,Treatments!$C$7:$J$407,2) -> No treatment | AA169: 0 | AB169: =VLOOKUP(Y169,Treatments!$C$7:$J$407,8) -> 0 | AC169: 0 | AD169: 0 | AE169: 0 | AF169: 0 | AI169: =IF(AND(L169>=344,L169<=358),L169+15,L169) -> 0 | AJ169: =VLOOKUP(AI169,Treatments!$C$7:$J$407,2) -> No treatment | AK169: =N169 -> 0 | AL169: =VLOOKUP(AI169,Treatments!$C$7:$J$407,8) -> 0 | AM169: =P169 -> 0 | AO169: =R169 -> 0 | AP169: =AK169*AL169*AM169*AO169 -> 0 | AQ169: =AP169*$D$3 -> 0
C170: =IF(B170<=0,"",VLOOKUP(B170,Treatments!$C$7:$J$407,2)) ->  | E170: =VLOOKUP(B170,Treatments!$C$7:$J$407,8) -> 0 | H170: 0 | I170: 0 | M170: =VLOOKUP(L170,Treatments!$C$7:$J$407,2) -> No treatment | O170: =VLOOKUP(L170,Treatments!$C$7:$J$407,8) -> 0 | S170: =N170*O170*P170*R170 -> 0 | T170: =S170*$D$3 -> 0 | Y170: 0 | Z170: =VLOOKUP(Y170,Treatments!$C$7:$J$407,2) -> No treatment | AA170: 0 | AB170: =VLOOKUP(Y170,Treatments!$C$7:$J$407,8) -> 0 | AC170: 0 | AD170: 0 | AE170: 0 | AF170: 0 | AI170: 0 | AJ170: =VLOOKUP(AI170,Treatments!$C$7:$J$407,2) -> No treatment | AK170: 0 | AL170: =VLOOKUP(AI170,Treatments!$C$7:$J$407,8) -> 0 | AM170: 0 | AO170: 0 | AP170: =AK170*AL170*AM170*AO170 -> 0 | AQ170: =AP170*$D$3 -> 0
C171: =IF(B171<=0,"",VLOOKUP(B171,Treatments!$C$7:$J$407,2)) ->  | E171: =VLOOKUP(B171,Treatments!$C$7:$J$407,8) -> 0 | H171: 0 | I171: 0 | M171: =VLOOKUP(L171,Treatments!$C$7:$J$407,2) -> No treatment | O171: =VLOOKUP(L171,Treatments!$C$7:$J$407,8) -> 0 | S171: 0 | T171: 0 | Y171: 0 | Z171: =VLOOKUP(Y171,Treatments!$C$7:$J$407,2) -> No treatment | AA171: 0 | AB171: =VLOOKUP(Y171,Treatments!$C$7:$J$407,8) -> 0 | AC171: 0 | AD171: 0 | AE171: 0 | AF171: 0 | AI171: 0 | AJ171: =VLOOKUP(AI171,Treatments!$C$7:$J$407,2) -> No treatment | AK171: 0 | AL171: =VLOOKUP(AI171,Treatments!$C$7:$J$407,8) -> 0 | AM171: 0 | AO171: 0 | AP171: 0 | AQ171: 0
C172: =IF(B172<=0,"",VLOOKUP(B172,Treatments!$C$7:$J$407,2)) ->  | E172: =VLOOKUP(B172,Treatments!$C$7:$J$407,8) -> 0 | H172: 0 | I172: 0 | M172: =VLOOKUP(L172,Treatments!$C$7:$J$407,2) -> No treatment | O172: =VLOOKUP(L172,Treatments!$C$7:$J$407,8) -> 0 | S172: 0 | T172: 0 | Y172: 0 | Z172: =VLOOKUP(Y172,Treatments!$C$7:$J$407,2) -> No treatment | AA172: 0 | AB172: =VLOOKUP(Y172,Treatments!$C$7:$J$407,8) -> 0 | AC172: 0 | AD172: 0 | AE172: 0 | AF172: 0 | AI172: 0 | AJ172: =VLOOKUP(AI172,Treatments!$C$7:$J$407,2) -> No treatment | AK172: 0 | AL172: =VLOOKUP(AI172,Treatments!$C$7:$J$407,8) -> 0 | AM172: 0 | AO172: 0 | AP172: 0 | AQ172: 0
C173: =IF(B173<=0,"",VLOOKUP(B173,Treatments!$C$7:$J$407,2)) ->  | E173: =VLOOKUP(B173,Treatments!$C$7:$J$407,8) -> 0 | H173: 0 | I173: 0 | M173: =VLOOKUP(L173,Treatments!$C$7:$J$407,2) -> No treatment | O173: =VLOOKUP(L173,Treatments!$C$7:$J$407,8) -> 0 | S173: 0 | T173: 0 | Y173: 0 | Z173: =VLOOKUP(Y173,Treatments!$C$7:$J$407,2) -> No treatment | AA173: 0 | AB173: =VLOOKUP(Y173,Treatments!$C$7:$J$407,8) -> 0 | AC173: 0 | AD173: 0 | AE173: 0 | AF173: 0 | AI173: 0 | AJ173: =VLOOKUP(AI173,Treatments!$C$7:$J$407,2) -> No treatment | AK173: 0 | AL173: =VLOOKUP(AI173,Treatments!$C$7:$J$407,8) -> 0 | AM173: 0 | AO173: 0 | AP173: 0 | AQ173: 0
C174: =IF(B174<=0,"",VLOOKUP(B174,Treatments!$C$7:$J$407,2)) ->  | E174: =VLOOKUP(B174,Treatments!$C$7:$J$407,8) -> 0 | H174: =D174*E174*F174*G174 -> 0 | I174: =H174*$D$3 -> 0 | M174: =VLOOKUP(L174,Treatments!$C$7:$J$407,2) -> No treatment | O174: =VLOOKUP(L174,Treatments!$C$7:$J$407,8) -> 0 | S174: 0 | T174: 0 | Y174: 0 | Z174: =VLOOKUP(Y174,Treatments!$C$7:$J$407,2) -> No treatment | AA174: 0 | AB174: =VLOOKUP(Y174,Treatments!$C$7:$J$407,8) -> 0 | AC174: 0 | AD174: 0 | AE174: =AA174*AB174*AC174*AD174 -> 0 | AF174: =AE174*$D$3 -> 0 | AI174: 0 | AJ174: =VLOOKUP(AI174,Treatments!$C$7:$J$407,2) -> No treatment | AK174: 0 | AL174: =VLOOKUP(AI174,Treatments!$C$7:$J$407,8) -> 0 | AM174: 0 | AO174: 0 | AP174: 0 | AQ174: 0
C175: =IF(B175<=0,"",VLOOKUP(B175,Treatments!$C$7:$J$407,2)) ->  | E175: =VLOOKUP(B175,Treatments!$C$7:$J$407,8) -> 0 | H175: =D175*E175*F175*G175 -> 0 | I175: =H175*$D$3 -> 0 | M175: =VLOOKUP(L175,Treatments!$C$7:$J$407,2) -> No treatment | O175: =VLOOKUP(L175,Treatments!$C$7:$J$407,8) -> 0 | S175: 0 | T175: 0 | Y175: 0 | Z175: =VLOOKUP(Y175,Treatments!$C$7:$J$407,2) -> No treatment | AA175: 0 | AB175: =VLOOKUP(Y175,Treatments!$C$7:$J$407,8) -> 0 | AC175: 0 | AD175: 0 | AE175: =AA175*AB175*AC175*AD175 -> 0 | AF175: =AE175*$D$3 -> 0 | AI175: 0 | AJ175: =VLOOKUP(AI175,Treatments!$C$7:$J$407,2) -> No treatment | AK175: 0 | AL175: =VLOOKUP(AI175,Treatments!$C$7:$J$407,8) -> 0 | AM175: 0 | AO175: 0 | AP175: 0 | AQ175: 0
M176: =VLOOKUP(L176,Treatments!$C$7:$J$407,2) -> No treatment | O176: =VLOOKUP(L176,Treatments!$C$7:$J$407,8) -> 0 | S176: 0 | T176: 0 | AI176: 0 | AJ176: =VLOOKUP(AI176,Treatments!$C$7:$J$407,2) -> No treatment | AK176: 0 | AL176: =VLOOKUP(AI176,Treatments!$C$7:$J$407,8) -> 0 | AM176: 0 | AO176: 0 | AP176: 0 | AQ176: 0
B177: Treatment No | C177: Planting Costs | D177: Rate of application | E177: cost / unit | F177: number of applications | G177: % of area treated | M177: =VLOOKUP(L177,Treatments!$C$7:$J$407,2) -> No treatment | O177: =VLOOKUP(L177,Treatments!$C$7:$J$407,8) -> 0 | S177: 0 | T177: 0 | Y177: Treatment No | Z177: Planting Costs | AA177: Rate of application | AB177: cost / unit | AC177: number of applications | AD177: % of area treated | AI177: 0 | AJ177: =VLOOKUP(AI177,Treatments!$C$7:$J$407,2) -> No treatment | AK177: 0 | AL177: =VLOOKUP(AI177,Treatments!$C$7:$J$407,8) -> 0 | AM177: 0 | AO177: 0 | AP177: 0 | AQ177: 0
C178: =IF(B178<=0,"",VLOOKUP(B178,Treatments!$C$7:$J$407,2)) ->  | E178: =VLOOKUP(B178,Treatments!$C$7:$J$407,8) -> 0 | H178: =D178*E178*F178*G178 -> 0 | I178: =H178*$D$3 -> 0 | M178: =VLOOKUP(L178,Treatments!$C$7:$J$407,2) -> No treatment | O178: =VLOOKUP(L178,Treatments!$C$7:$J$407,8) -> 0 | S178: 0 | T178: 0 | Y178: =IF(AND(B178>=344,B178<=358),B178+15,B178) -> 0 | Z178: =VLOOKUP(Y178,Treatments!$C$7:$J$407,2) -> No treatment | AA178: =D178 -> 0 | AB178: =VLOOKUP(Y178,Treatments!$C$7:$J$407,8) -> 0 | AC178: =F178 -> 0 | AD178: 0 | AE178: =AA178*AB178*AC178*AD178 -> 0 | AF178: =AE178*$D$3 -> 0 | AI178: 0 | AJ178: =VLOOKUP(AI178,Treatments!$C$7:$J$407,2) -> No treatment | AK178: 0 | AL178: =VLOOKUP(AI178,Treatments!$C$7:$J$407,8) -> 0 | AM178: 0 | AO178: 0 | AP178: 0 | AQ178: 0
C179: =IF(B179<=0,"",VLOOKUP(B179,Treatments!$C$7:$J$407,2)) ->  | E179: =VLOOKUP(B179,Treatments!$C$7:$J$407,8) -> 0 | H179: 0 | I179: =H179*$D$3 -> 0 | M179: =VLOOKUP(L179,Treatments!$C$7:$J$407,2) -> No treatment | O179: =VLOOKUP(L179,Treatments!$C$7:$J$407,8) -> 0 | S179: 0 | T179: 0 | Y179: =IF(AND(B179>=344,B179<=358),B179+15,B179) -> 0 | Z179: =VLOOKUP(Y179,Treatments!$C$7:$J$407,2) -> No treatment | AA179: 0 | AB179: =VLOOKUP(Y179,Treatments!$C$7:$J$407,8) -> 0 | AC179: 0 | AD179: 0 | AE179: 0 | AF179: =AE179*$D$3 -> 0 | AI179: 0 | AJ179: =VLOOKUP(AI179,Treatments!$C$7:$J$407,2) -> No treatment | AK179: 0 | AL179: =VLOOKUP(AI179,Treatments!$C$7:$J$407,8) -> 0 | AM179: 0 | AO179: 0 | AP179: 0 | AQ179: 0
C180: =IF(B180<=0,"",VLOOKUP(B180,Treatments!$C$7:$J$407,2)) ->  | E180: =VLOOKUP(B180,Treatments!$C$7:$J$407,8) -> 0 | H180: 0 | I180: 0 | M180: =VLOOKUP(L180,Treatments!$C$7:$J$407,2) -> No treatment | O180: =VLOOKUP(L180,Treatments!$C$7:$J$407,8) -> 0 | S180: 0 | T180: 0 | Y180: 0 | Z180: =VLOOKUP(Y180,Treatments!$C$7:$J$407,2) -> No treatment | AA180: 0 | AB180: =VLOOKUP(Y180,Treatments!$C$7:$J$407,8) -> 0 | AC180: 0 | AD180: 0 | AE180: 0 | AF180: 0 | AI180: 0 | AJ180: =VLOOKUP(AI180,Treatments!$C$7:$J$407,2) -> No treatment | AK180: 0 | AL180: =VLOOKUP(AI180,Treatments!$C$7:$J$407,8) -> 0 | AM180: 0 | AO180: 0 | AP180: 0 | AQ180: 0
C181: =IF(B181<=0,"",VLOOKUP(B181,Treatments!$C$7:$J$407,2)) ->  | E181: =VLOOKUP(B181,Treatments!$C$7:$J$407,8) -> 0 | H181: 0 | I181: 0 | Y181: 0 | Z181: =VLOOKUP(Y181,Treatments!$C$7:$J$407,2) -> No treatment | AA181: 0 | AB181: =VLOOKUP(Y181,Treatments!$C$7:$J$407,8) -> 0 | AC181: 0 | AD181: 0 | AE181: 0 | AF181: 0
C182: =IF(B182<=0,"",VLOOKUP(B182,Treatments!$C$7:$J$407,2)) ->  | E182: =VLOOKUP(B182,Treatments!$C$7:$J$407,8) -> 0 | H182: 0 | I182: 0 | L182: Treatment No | M182: Post Planting Costs | N182: Rate of application | O182: cost / unit | P182: number of applications | R182: % of area treated | Y182: 0 | Z182: =VLOOKUP(Y182,Treatments!$C$7:$J$407,2) -> No treatment | AA182: 0 | AB182: =VLOOKUP(Y182,Treatments!$C$7:$J$407,8) -> 0 | AC182: 0 | AD182: 0 | AE182: 0 | AF182: 0 | AI182: Treatment No | AJ182: Post Planting Costs | AK182: Rate of application | AL182: cost / unit | AM182: number of applications | AO182: % of area treated
C183: =IF(B183<=0,"",VLOOKUP(B183,Treatments!$C$7:$J$407,2)) ->  | E183: =VLOOKUP(B183,Treatments!$C$7:$J$407,8) -> 0 | H183: 0 | I183: 0 | M183: =VLOOKUP(L183,Treatments!$C$7:$J$407,2) -> No treatment | O183: =VLOOKUP(L183,Treatments!$C$7:$J$407,8) -> 0 | S183: =N183*O183*P183*R183 -> 0 | T183: =S183*$D$3 -> 0 | Y183: 0 | Z183: =VLOOKUP(Y183,Treatments!$C$7:$J$407,2) -> No treatment | AA183: 0 | AB183: =VLOOKUP(Y183,Treatments!$C$7:$J$407,8) -> 0 | AC183: 0 | AD183: 0 | AE183: 0 | AF183: 0 | AI183: =IF(AND(L183>=344,L183<=358),L183+15,L183) -> 0 | AJ183: =VLOOKUP(AI183,Treatments!$C$7:$J$407,2) -> No treatment | AK183: =N183 -> 0 | AL183: =VLOOKUP(AI183,Treatments!$C$7:$J$407,8) -> 0 | AM183: =P183 -> 0 | AO183: =R183 -> 0 | AP183: =AK183*AL183*AM183*AO183 -> 0 | AQ183: =AP183*$D$3 -> 0
C184: =IF(B184<=0,"",VLOOKUP(B184,Treatments!$C$7:$J$407,2)) ->  | E184: =VLOOKUP(B184,Treatments!$C$7:$J$407,8) -> 0 | H184: 0 | I184: 0 | M184: =VLOOKUP(L184,Treatments!$C$7:$J$407,2) -> No treatment | O184: =VLOOKUP(L184,Treatments!$C$7:$J$407,8) -> 0 | S184: 0 | T184: 0 | Y184: 0 | Z184: =VLOOKUP(Y184,Treatments!$C$7:$J$407,2) -> No treatment | AA184: 0 | AB184: =VLOOKUP(Y184,Treatments!$C$7:$J$407,8) -> 0 | AC184: 0 | AD184: 0 | AE184: 0 | AF184: 0 | AI184: 0 | AJ184: =VLOOKUP(AI184,Treatments!$C$7:$J$407,2) -> No treatment | AK184: 0 | AL184: =VLOOKUP(AI184,Treatments!$C$7:$J$407,8) -> 0 | AM184: 0 | AO184: 0 | AP184: 0 | AQ184: 0
C185: =IF(B185<=0,"",VLOOKUP(B185,Treatments!$C$7:$J$407,2)) ->  | E185: =VLOOKUP(B185,Treatments!$C$7:$J$407,8) -> 0 | H185: 0 | I185: 0 | M185: =VLOOKUP(L185,Treatments!$C$7:$J$407,2) -> No treatment | O185: =VLOOKUP(L185,Treatments!$C$7:$J$407,8) -> 0 | S185: 0 | T185: 0 | Y185: 0 | Z185: =VLOOKUP(Y185,Treatments!$C$7:$J$407,2) -> No treatment | AA185: 0 | AB185: =VLOOKUP(Y185,Treatments!$C$7:$J$407,8) -> 0 | AC185: 0 | AD185: 0 | AE185: 0 | AF185: 0 | AI185: 0 | AJ185: =VLOOKUP(AI185,Treatments!$C$7:$J$407,2) -> No treatment | AK185: 0 | AL185: =VLOOKUP(AI185,Treatments!$C$7:$J$407,8) -> 0 | AM185: 0 | AO185: 0 | AP185: 0 | AQ185: 0
C186: =IF(B186<=0,"",VLOOKUP(B186,Treatments!$C$7:$J$407,2)) ->  | E186: =VLOOKUP(B186,Treatments!$C$7:$J$407,8) -> 0 | H186: 0 | I186: 0 | M186: =VLOOKUP(L186,Treatments!$C$7:$J$407,2) -> No treatment | O186: =VLOOKUP(L186,Treatments!$C$7:$J$407,8) -> 0 | S186: 0 | T186: 0 | Y186: 0 | Z186: =VLOOKUP(Y186,Treatments!$C$7:$J$407,2) -> No treatment | AA186: 0 | AB186: =VLOOKUP(Y186,Treatments!$C$7:$J$407,8) -> 0 | AC186: 0 | AD186: 0 | AE186: 0 | AF186: 0 | AI186: 0 | AJ186: =VLOOKUP(AI186,Treatments!$C$7:$J$407,2) -> No treatment | AK186: 0 | AL186: =VLOOKUP(AI186,Treatments!$C$7:$J$407,8) -> 0 | AM186: 0 | AO186: 0 | AP186: 0 | AQ186: 0
C187: =IF(B187<=0,"",VLOOKUP(B187,Treatments!$C$7:$J$407,2)) ->  | E187: =VLOOKUP(B187,Treatments!$C$7:$J$407,8) -> 0 | H187: 0 | I187: 0 | M187: =VLOOKUP(L187,Treatments!$C$7:$J$407,2) -> No treatment | O187: =VLOOKUP(L187,Treatments!$C$7:$J$407,8) -> 0 | S187: 0 | T187: 0 | Y187: 0 | Z187: =VLOOKUP(Y187,Treatments!$C$7:$J$407,2) -> No treatment | AA187: 0 | AB187: =VLOOKUP(Y187,Treatments!$C$7:$J$407,8) -> 0 | AC187: 0 | AD187: 0 | AE187: 0 | AF187: 0 | AI187: 0 | AJ187: =VLOOKUP(AI187,Treatments!$C$7:$J$407,2) -> No treatment | AK187: 0 | AL187: =VLOOKUP(AI187,Treatments!$C$7:$J$407,8) -> 0 | AM187: 0 | AO187: 0 | AP187: 0 | AQ187: 0
C188: =IF(B188<=0,"",VLOOKUP(B188,Treatments!$C$7:$J$407,2)) ->  | E188: =VLOOKUP(B188,Treatments!$C$7:$J$407,8) -> 0 | H188: 0 | I188: 0 | M188: =VLOOKUP(L188,Treatments!$C$7:$J$407,2) -> No treatment | O188: =VLOOKUP(L188,Treatments!$C$7:$J$407,8) -> 0 | S188: 0 | T188: 0 | Y188: 0 | Z188: =VLOOKUP(Y188,Treatments!$C$7:$J$407,2) -> No treatment | AA188: 0 | AB188: =VLOOKUP(Y188,Treatments!$C$7:$J$407,8) -> 0 | AC188: 0 | AD188: 0 | AE188: 0 | AF188: 0 | AI188: 0 | AJ188: =VLOOKUP(AI188,Treatments!$C$7:$J$407,2) -> No treatment | AK188: 0 | AL188: =VLOOKUP(AI188,Treatments!$C$7:$J$407,8) -> 0 | AM188: 0 | AO188: 0 | AP188: 0 | AQ188: 0
C189: =IF(B189<=0,"",VLOOKUP(B189,Treatments!$C$7:$J$407,2)) ->  | E189: =VLOOKUP(B189,Treatments!$C$7:$J$407,8) -> 0 | H189: 0 | I189: 0 | N189: Total direct development costs | S189: =SUM(S161:S188) -> 0 | T189: =SUM(T161:T188) -> 0 | Y189: 0 | Z189: =VLOOKUP(Y189,Treatments!$C$7:$J$407,2) -> No treatment | AA189: 0 | AB189: =VLOOKUP(Y189,Treatments!$C$7:$J$407,8) -> 0 | AC189: 0 | AD189: 0 | AE189: 0 | AF189: 0 | AK189: Total direct development costs | AP189: =SUM(AP161:AP188) -> 0 | AQ189: =SUM(AQ161:AQ188) -> 0
B191: Treatment No | C191: Post Planting Costs | D191: Rate of application | E191: cost / unit | F191: number of applications | G191: % of area treated | Y191: Treatment No | Z191: Post Planting Costs | AA191: Rate of application | AB191: cost / unit | AC191: number of applications | AD191: % of area treated
C192: =IF(B192<=0,"",VLOOKUP(B192,Treatments!$C$7:$J$407,2)) ->  | E192: =VLOOKUP(B192,Treatments!$C$7:$J$407,8) -> 0 | H192: =D192*E192*F192*G192 -> 0 | I192: =H192*$D$3 -> 0 | R192: Grazing foregone for development (buffel grass gross margin) | T192: =S192*$D$3 -> 0 | Y192: =IF(AND(B192>=344,B192<=358),B192+15,B192) -> 0 | Z192: =VLOOKUP(Y192,Treatments!$C$7:$J$407,2) -> No treatment | AA192: =D192 -> 0 | AB192: =VLOOKUP(Y192,Treatments!$C$7:$J$407,8) -> 0 | AC192: =F192 -> 0 | AD192: =G192 -> 0 | AE192: =AA192*AB192*AC192*AD192 -> 0 | AF192: =AE192*$D$3 -> 0 | AO192: Grazing foregone for development (buffel grass gross margin) | AP192: =S192 -> 0 | AQ192: =AP192*$D$3 -> 0
C193: =IF(B193<=0,"",VLOOKUP(B193,Treatments!$C$7:$J$407,2)) ->  | E193: =VLOOKUP(B193,Treatments!$C$7:$J$407,8) -> 0 | H193: 0 | I193: =H193*$D$3 -> 0 | Q193: Opportunity cost of development capital | R193: 0.05 | S193: =S192+S191+S189 -> 0 | T193: =T192+T191+T189 -> 0 | Y193: 0 | Z193: =VLOOKUP(Y193,Treatments!$C$7:$J$407,2) -> No treatment | AA193: =D193 -> 0 | AB193: =VLOOKUP(Y193,Treatments!$C$7:$J$407,8) -> 0 | AC193: =F193 -> 0 | AD193: 0 | AE193: 0 | AF193: =AE193*$D$3 -> 0 | AN193: Opportunity cost of development capital | AO193: =R193 -> 0.05 | AP193: =AP192+AP191+AP189 -> 0 | AQ193: =AQ192+AQ191+AQ189 -> 0
C194: =IF(B194<=0,"",VLOOKUP(B194,Treatments!$C$7:$J$407,2)) ->  | E194: =VLOOKUP(B194,Treatments!$C$7:$J$407,8) -> 0 | H194: 0 | I194: 0 | O194: Amortised development costs | P194: life of forage | Q194: 30 | R194: years | S194: =PMT(R193,Q194,S193)*-1 -> 0 | T194: per hectare per annum | Y194: 0 | Z194: =VLOOKUP(Y194,Treatments!$C$7:$J$407,2) -> No treatment | AA194: 0 | AB194: =VLOOKUP(Y194,Treatments!$C$7:$J$407,8) -> 0 | AC194: 0 | AD194: 0 | AE194: 0 | AF194: 0 | AL194: Amortised development costs | AM194: life of forage | AN194: =Q194 -> 30 | AO194: years | AP194: =PMT(AO193,AN194,AP193)*-1 -> 0 | AQ194: per hectare per annum
C195: =IF(B195<=0,"",VLOOKUP(B195,Treatments!$C$7:$J$407,2)) ->  | E195: =VLOOKUP(B195,Treatments!$C$7:$J$407,8) -> 0 | H195: 0 | I195: 0 | Y195: 0 | Z195: =VLOOKUP(Y195,Treatments!$C$7:$J$407,2) -> No treatment | AA195: 0 | AB195: =VLOOKUP(Y195,Treatments!$C$7:$J$407,8) -> 0 | AC195: 0 | AD195: 0 | AE195: 0 | AF195: 0
C196: =IF(B196<=0,"",VLOOKUP(B196,Treatments!$C$7:$J$407,2)) ->  | E196: =VLOOKUP(B196,Treatments!$C$7:$J$407,8) -> 0 | H196: 0 | I196: 0 | Y196: 0 | Z196: =VLOOKUP(Y196,Treatments!$C$7:$J$407,2) -> No treatment | AA196: 0 | AB196: =VLOOKUP(Y196,Treatments!$C$7:$J$407,8) -> 0 | AC196: 0 | AD196: 0 | AE196: 0 | AF196: 0
C197: =IF(B197<=0,"",VLOOKUP(B197,Treatments!$C$7:$J$407,2)) ->  | E197: =VLOOKUP(B197,Treatments!$C$7:$J$407,8) -> 0 | H197: 0 | I197: 0 | Y197: 0 | Z197: =VLOOKUP(Y197,Treatments!$C$7:$J$407,2) -> No treatment | AA197: 0 | AB197: =VLOOKUP(Y197,Treatments!$C$7:$J$407,8) -> 0 | AC197: 0 | AD197: 0 | AE197: 0 | AF197: 0
C198: Amortised development costs | E198: =S194 -> 0 | H198: 0 | I198: 0 | Z198: Amortised development costs | AA198: 0 | AB198: =AP194 -> 0 | AC198: 0 | AD198: 0 | AE198: 0 | AF198: 0
F199: Total forage annual costs | H199: =SUM(H161:H198) -> 0 | I199: =SUM(I161:I198) -> 0 | L199: Development costs are added to the estimate of forage variable costs as amortised costs | AC199: Total forage annual costs | AE199: =SUM(AE161:AE198) -> 0 | AF199: =SUM(AF161:AF198) -> 0
L200: Machinery costs incurred during the development phase can be added from the Treatments worksheet - see rows 350 to 380
B202: Opportunity cost of interest on steer purchases | C202: 0.05 | L202: The expected life of the forage and the opportunity cost of development capital are used to calculate the amortised cost of the forage developemnt phase.
L204: Where a period of grazing is forgone during the development phase, an amount equal to the annual Buffel grass gross margin can be added to the costs of developing the forage.
B205: Gross margin calculation | C205: Machinery FORM + Labour | D205: Total | E205: per ha per annum | G205: Gross margin calculation | H205: Machiney Contract rate | I205: Total | J205: per ha per annum | L205: See the Leucaena and Butterfly pea gross margins to see how development costs can be incorporated in the analysis of relative profitability
B206: Livestock Sales | D206: =I86 -> 11532.8928 | E206: =D206/$D$3 -> 115.328928 | G206: Livestock Sales | I206: =I86 -> 11532.8928 | J206: =I206/$D$3 -> 115.328928 | L206: More detailed investment analysis techniques should be applied prior to an investment in long lived forage crops before a final decision is made to commit resources to their production.
B207: Livestock Purchases | D207: =C15 -> 5692.74 | E207: =D207/$D$3 -> 56.9274 | G207: Livestock Purchases | I207: =C15 -> 5692.74 | J207: =I207/$D$3 -> 56.9274
B208: Freight In | D208: =H102 -> 118.5164583 | E208: 1.185164583 | G208: Freight In | I208: =H102 -> 118.5164583 | J208: 1.185164583
B209: Freight Out | D209: =N121 -> 479.94 | E209: 4.7994 | G209: Freight Out | I209: =N121 -> 479.94 | J209: 4.7994
B210: Treatment Expenses | D210: =K130 -> 4.503 | E210: 0.04503 | G210: Treatment Expenses | I210: =K130 -> 4.503 | J210: 0.04503
B211: Selling Expenses | D211: =E121+I121 -> 60 | E211: 0.6 | G211: Selling Expenses | I211: =E121+I121 -> 60 | J211: 0.6
B212: Forage growing costs | D212: =I199 -> 0 | E212: 0 | G212: Forage annual contract costs | I212: =AF199 -> 0 | J212: 0
B213: Total Expenses | D213: =SUM(D207:D212) -> 6355.699458 | E213: =D213/$D$3 -> 63.55699458 | G213: Total Expenses | I213: =SUM(I207:I212) -> 6355.699458 | J213: =I213/$D$3 -> 63.55699458
B215: Gross Margin | D215: =D206-D213 -> 5177.193342 | E215: =D215/$D$3 -> 51.77193342 | G215: Gross Margin | I215: =I206-I213 -> 5177.193342 | J215: =I215/$D$3 -> 51.77193342
B217: Gross Margin per annum (after Interest) | D217: =IF($C$23>365,$D$215-($C$15*$C$202),$D$215-($C$15*$C$202*$C$23/365)) -> 4892.556342 | E217: =D217/D3 -> 48.92556342 | G217: Gross Margin (after Interest) | I217: =IF($C$23>365,$I$215-($C$15*$C$202),$I$215-($C$15*$C$202*$C$23/365)) -> 4892.556342 | J217: =I217/D3 -> 48.92556342
B222: Kilograms of liveweight gain per hectare per annum | D222: =IF(C23>365,C23*C22*C97/D3*365/C23,C23*C22*C97/D3) -> 52.64810345
B230: Forage production estimate | C230: Factor | G230: Annual forages | J230: Perennial forages
B231: Expected carrying capacity in AE | C231: =H154 -> 28.33783245 | G231: Oats | H231: Forage Sorghum | I231: Lablab | J231: Butterfly pea | K231: Buffel grass | L231: Native pasture (Open Downs)
B232: Consumption per AE per annum | C232: 3650 | D232: kg/AE/yr | F232: Residual (kg DM/ha) | G232: 1000 | H232: 1000 | I232: 1000 | J232: 1000 | K232: 1000 | L232: 1000
B233: Kgs consumed by livestock | C233: =C232*C231 -> 103433.0884 | D233: kg dry matter | F233: Utilisation (0.3-0.5) | G233: 0.4 | H233: 0.3 | I233: 0.4 | J233: 0.3 | K233: 0.3 | L233: 0.3
B234: Expected utilisation | C234: 0.3
B235: Forage available for consumption | C235: =C233*1/C234 -> 344776.9615 | D235: kg dry matter
B236: Area of paddock | C236: =D3 -> 100 | D236: hectares
B237: Forage available for consumption per hectare | C237: =C235/C236 -> 3447.769615 | D237: kg dry matter /hectare
B238: Residual required | C238: 1000 | D238: kg dry matter /hectare
B239: Expected annual forage growth | C239: =C238+C237 -> 4447.769615 | D239: kg dry matter /hectare

Sheet Leucaena
B2: Forage assessment model - gross margin | F2: Leucaena is assumed to have a life of 30 years
F3: Account for lag in production by
F4: * Yr 1: no production
B5: Forage type | C5: ='Gross margin summary'!E15 -> Leucaena | F5: * Yr 2: grazing days halved
C8: Total size of the paddock | D8: 100 | E8: hectares
C9: Area of paddock planted to forage | D9: 100 | E9: hectares | Q9: Calculate the paddock value of the owned steer
C10: % of paddock planted to forage | D10: =IF(D9<=0,0,D9/D8) -> 1
S11: Mob 1 | T11: Mob 2 | U11: Mob 3 | V11: Mob 4 | W11: Mob 5 | X11: Mob 6 | Z11: Transport Loading Density Guide
Q12: Steer weight in the paddock | S12: =F16 -> 383.72 | T12: =F17 -> 0 | U12: =F18 -> 0 | V12: =F19 -> 0 | W12: =F20 -> 0 | X12: =F21 -> 0 | Z12: Source for loading density: Kaus, Lapworth and Dunn "Marketing Cattle to South-East Asia"
B13: Livestock entering the paddock | D13: ( use the tables to the right to calculate the price going into the paddock if the cattle are already owned) | Q13: weight loss to get to sale yards or works | S13: 0 | T13: 0 | U13: 0 | V13: 0 | W13: 0 | X13: 0 | Z13: Maximum for lighter cattle = 44/deck
Q14: Steer weight at saleyards or works | S14: =S12*(1-S13) -> 383.72 | T14: 0 | U14: 0 | V14: 0 | W14: 0 | X14: 0 | Z14: Average | AA14: Head Per
C15: Date the mob enters the paddock | D15: Number entering the paddock | E15: Purchase price ($ per kg) | F15: Average purchase weight (Kg live) | G15: Cost of stock per head into paddock | H15: Total cost of stock | I15: Paddock stocking rate (head per hectare) | J15: Paddock stocking rate (hectare per head) | K15: Forage area stocking rate (head per hectare) | L15: Forage area stocking rate (hectare per head) | Q15: Sale price at yards or works ($ /kg live) | Z15: Liveweight | AA15: 12.2m deck
B16: Mob 1 | C16: 2014-02-25 | D16: 50.025 | E16: 1.6 | F16: 383.72 | G16: =F16*E16 -> 613.952 | H16: =G16*D16 -> 30712.9488 | I16: =D16/$D$8 -> 0.50025 | J16: =IF(D16<=0,0,$D$8/D16) -> 1.9990005 | K16: =D16/$D$9 -> 0.50025 | L16: =IF(D16<=0,0,$D$9/D16) -> 1.9990005 | Q16: Gross sale price ($/head) | S16: =S15*S14 -> 0 | T16: 0 | U16: 0 | V16: 0 | W16: 0 | X16: 0 | Z16: 250 | AA16: 38
B17: Mob 2 | G17: 0 | H17: 0 | I17: 0 | J17: 0 | K17: 0 | L17: 0 | Q17: Commission & insurance % | S17: 0.035 | Z17: 300 | AA17: 34
B18: Mob 3 | G18: 0 | H18: 0 | I18: 0 | J18: 0 | K18: 0 | L18: 0 | Q18: Commission & insurance ($/head) | S18: =S17*S16 -> 0 | T18: 0 | U18: 0 | V18: 0 | W18: 0 | X18: 0 | Z18: 350 | AA18: 30
B19: Mob 4 | G19: 0 | H19: 0 | I19: 0 | J19: 0 | K19: 0 | L19: 0 | Q19: Transaction levy, yard dues etc | Z19: 400 | AA19: 28
B20: Mob 5 | G20: 0 | H20: 0 | I20: 0 | J20: 0 | K20: 0 | L20: 0 | Q20: Transport cost ($/head) | Z20: 450 | AA20: 26
B21: Mob 6 | G21: 0 | H21: 0 | I21: 0 | J21: 0 | K21: 0 | L21: 0 | Q21: Steer value net of selling expenses | S21: =S16-S18-S19-S20 -> 0 | T21: 0 | U21: 0 | V21: 0 | W21: 0 | X21: 0 | Z21: 500 | AA21: 24
F22: =SUMPRODUCT(D16:D21,F16:F21) -> 19195.593 | H22: =SUM(H16:H21) -> 30712.9488 | Q22: Paddock weight | S22: =S12 -> 383.72 | T22: 0 | U22: 0 | V22: 0 | W22: 0 | X22: 0 | Z22: 550 | AA22: 22
Q23: Selling cost ($ per kg) | S23: =IF(S14>0,(S18+S19+S20)/S14,0) -> 0 | T23: 0 | U23: 0 | V23: 0 | W23: 0 | X23: 0 | Z23: 600 | AA23: 20
Q24: Net value in the paddock ($/kg) | S24: =IF(S22>0,S21/S22,0) -> 0 | T24: 0 | U24: 0 | V24: 0 | W24: 0 | X24: 0 | Z24: 650 | AA24: 18
B26: Costs associated with purchasing steers (complete if stock are specifically purchased to graze the forage)
C28: Purchases | D28: Average weight | E28: Trucking distance inwards (Km) | F28: $ per Km per deck | G28: Rate per deck | H28: Total freight in | I28: Cost per head | J28: Travel costs incurred in finding the mob ($ per mob) | K28: Induction cost ($ per head) | L28: Total induction costs | Z28: Transport cost per head calculator
B29: Mob 1 | C29: =D16 -> 50.025 | D29: =F16 -> 383.72 | E29: 189.5 | F29: 1.9 | G29: 28 | H29: =IF(C29>0,C29*E29*F29/G29,0) -> 643.2679018 | I29: =IF(C29>0,H29/C29,0) -> 12.85892857 | J29: 0 | K29: 0 | L29: =K29*C29 -> 0
B30: Mob 2 | C30: 0 | D30: 0 | H30: 0 | I30: 0 | J30: 0 | K30: 0 | L30: 0 | Z30: Number transported | AA30: =D16 -> 50.025
B31: Mob 3 | C31: 0 | D31: 0 | H31: 0 | I31: 0 | J31: 0 | K31: 0 | L31: 0 | Z31: Distance (Km) | AA31: 200
B32: Mob 4 | C32: 0 | D32: 0 | H32: 0 | I32: 0 | J32: 0 | K32: 0 | L32: 0 | Z32: $ per Km | AA32: 2
B33: Mob 5 | C33: 0 | D33: 0 | H33: 0 | I33: 0 | J33: 0 | K33: 0 | L33: 0 | Z33: Rate on Truck | AA33: 28
B34: Mob 6 | C34: 0 | D34: 0 | H34: 0 | I34: 0 | J34: 0 | K34: 0 | L34: 0 | Z34: Total | AA34: =IF(AA30>0,AA30*AA31*AA32/AA33,0) -> 714.6428571
H35: =SUM(H29:H34) -> 643.2679018 | J35: =SUM(J29:J34) -> 0 | L35: =SUM(L29:L34) -> 0 | Z35: Per head | AA35: =IF(AA30>0,AA34/AA30,0) -> 14.28571429
B38: Livestock health and other costs incurred by stock grazing the forage ($ per head)
C40: Number in the mob | D40: Fodder | E40: Ticks | F40: Drench | G40: 5 in 1 | H40: Botulism | I40: Flies | J40: Growth Promotant | K40: Leucaena inoculum | L40: Other | M40: Total
B41: Mob 1 | C41: =D16 -> 50.025 | G41: 0.38 | K41: 2.13 | M41: =SUM(D41:L41)*C41 -> 125.56275
B42: Mob 2 | C42: 0 | M42: 0
B43: Mob 3 | C43: 0 | M43: 0
B44: Mob 4 | C44: 0 | M44: 0
B45: Mob 5 | C45: 0 | M45: 0
B46: Mob 6 | C46: 0 | M46: 0
D47: =SUMPRODUCT($C$41:$C$46,D41:D46) -> 0 | E47: 0 | F47: 0 | G47: 19.0095 | H47: 0 | I47: 0 | J47: 0 | K47: 106.55325 | L47: 0 | M47: =SUM(M41:M46) -> 125.56275
B51: Livestock weight and value leaving the paddock
C53: Date leaving the paddock | D53: Total days held | E53: Average weight leaving the paddock (kg /head) | F53: Gain per head (kg) | G53: Gain per day (kg /head /day) | H53: Number leaving the paddock | I53: Calculated Loss percentage | J53: Sale Price ($ per Kg Live) | K53: Gross value per head | L53: Gross value of mob | M53: Liveweight Kgs Sold | N53: Estimated Dressing % | O53: Dressed Weight Sold
B54: Mob 1 | C54: =C16+235.86 -> 2014-10-18T20:38:24 | D54: =C54-C16 -> 235.86 | E54: 596 | F54: =E54-F16 -> 212.28 | G54: =IF(F54<=0,0,F54/D54) -> 0.9000254388 | H54: =D16 -> 50.025 | I54: =IF(H54<=0,0,(H54-D16)/D16) -> 0 | J54: 1.664 | K54: =J54*E54 -> 991.744 | L54: =K54*H54 -> 49611.9936 | M54: =E54*H54 -> 29814.9 | N54: 0.52 | O54: =N54*M54 -> 15503.748
B55: Mob 2 | D55: 0 | F55: 0 | G55: 0 | I55: 0 | K55: 0 | L55: 0 | M55: 0 | N55: 0.52 | O55: 0
B56: Mob 3 | D56: 0 | F56: 0 | G56: 0 | I56: 0 | K56: 0 | L56: 0 | M56: 0 | N56: 0.52 | O56: 0
B57: Mob 4 | D57: 0 | F57: 0 | G57: 0 | I57: 0 | K57: 0 | L57: 0 | M57: 0 | N57: 0.52 | O57: 0
B58: Mob 5 | D58: 0 | F58: 0 | G58: 0 | I58: 0 | K58: 0 | L58: 0 | M58: 0 | N58: 0.52 | O58: 0
B59: Mob 6 | D59: 0 | F59: 0 | G59: 0 | I59: 0 | K59: 0 | L59: 0 | M59: 0 | N59: 0.52 | O59: 0
E60: =SUMPRODUCT(E54:E59,H54:H59) -> 29814.9 | K60: Total | L60: =SUM(L54:L59) -> 49611.9936 | M60: =SUM(M54:M59) -> 29814.9 | O60: =SUM(O54:O59) -> 15503.748
L61: Kilograms of beef purchased | M61: =F22 -> 19195.593 | O61: =M61*O60/M60 -> 9981.70836
L62: Net beef produced | M62: =M60-M61 -> 10619.307 | N62: kg live | O62: =O60-O61 -> 5522.03964 | P62: kg dressed
B66: Selling costs
C68: Sales commission (%) | D68: Commission paid | E68: MLA levy ($ per head) | F68: Yard fees ($ per head) | G68: Sale tags (total for mob) | H68: Total sundry selling costs | I68: Trucking distance (Km) | J68: $ per Km per deck | K68: Rate on deck (head) | L68: Total trucking costs | M68: Trucking cost ($ per head)
B69: =B54 -> Mob 1 | D69: =C69*L54 -> 0 | E69: 5 | H69: =(E69*H54)+(F69*H54)+G69 -> 250.125 | I69: 421 | J69: 1.9 | K69: 20 | L69: =IF(K69=0,0,IF(H54<=0,0,H54*I69*J69/K69)) -> 2000.749875 | M69: =IF(L69<=0,0,L69/H54) -> 39.995
B70: Mob 2 | D70: 0 | H70: 0 | L70: 0 | M70: 0
B71: Mob 3 | D71: 0 | H71: 0 | L71: 0 | M71: 0
B72: Mob 4 | D72: 0 | H72: 0 | L72: 0 | M72: 0
B73: Mob 5 | D73: 0 | H73: 0 | L73: 0 | M73: 0
B74: Mob 6 | D74: 0 | H74: 0 | L74: 0 | M74: 0
D75: =SUM(D69:D74) -> 0 | H75: =SUM(H69:H74) -> 250.125 | L75: =SUM(L69:L74) -> 2000.749875
B79: Opportunity cost of livestock capital calculator
C81: Number | D81: Days grazing | E81: Opening value (per head) | F81: Funds invested | G81: Interest rate | H81: Opportunity cost of livestock
B82: Mob 1 | C82: =C41 -> 50.025 | D82: =D54 -> 235.86 | E82: =G16 -> 613.952 | F82: =E82*C82 -> 30712.9488 | G82: 0.05 | H82: =F82*G82*D82/365 -> 992.322754
B83: Mob 2 | C83: 0 | D83: 0 | E83: 0 | F83: 0 | G83: 0.05 | H83: 0
B84: Mob 3 | C84: 0 | D84: 0 | E84: 0 | F84: 0 | G84: 0.05 | H84: 0
B85: Mob 4 | C85: 0 | D85: 0 | E85: 0 | F85: 0 | G85: 0.05 | H85: 0
B86: Mob 5 | C86: 0 | D86: 0 | E86: 0 | F86: 0 | G86: 0.05 | H86: 0
B87: Mob 6 | C87: 0 | D87: 0 | E87: 0 | F87: 0 | G87: 0.05 | H87: 0
F88: Total interest forgone | H88: =SUM(H82:H87) -> 992.322754
B91: Adult Equivalent calculator
C93: Number | D93: Days grazing | E93: Opening weight | F93: Av Final or Sale Kg | G93: Calculated AE rating | H93: Total AEs | I93: Stocking rate (AE per hectare) | J93: (Stocking rate Hectare per AE)
B94: Mob 1 | C94: =C41 -> 50.025 | D94: =D54 -> 235.86 | E94: =F16 -> 383.72 | F94: =E54 -> 596 | G94: =(POWER(((F94+E94)/2),0.75)/97.7) -> 1.065760009 | H94: =D94/365*G94*C94 -> 34.45148503 | I94: =IF(D8<=0,0,H94/$D$8) -> 0.3445148503 | J94: =IF(H94<=0,0,$D$8/H94) -> 2.902632496
B95: Mob 2 | C95: 0 | D95: 0 | E95: 0 | F95: 0 | G95: 0 | H95: 0 | I95: =IF(D8<=0,0,H95/$D$8) -> 0 | J95: 0
B96: Mob 3 | C96: 0 | D96: 0 | E96: 0 | F96: 0 | G96: 0 | H96: 0 | I96: =IF(D8<=0,0,H96/$D$8) -> 0 | J96: 0
B97: Mob 4 | C97: 0 | D97: 0 | E97: 0 | F97: 0 | G97: 0 | H97: 0 | I97: =IF(D8<=0,0,H97/$D$8) -> 0 | J97: 0
B98: Mob 5 | C98: 0 | D98: 0 | E98: 0 | F98: 0 | G98: 0 | H98: 0 | I98: =IF(D8<=0,0,H98/$D$8) -> 0 | J98: 0
B99: Mob 6 | C99: 0 | D99: 0 | E99: 0 | F99: 0 | G99: 0 | H99: 0 | I99: =IF(D8<=0,0,H99/$D$8) -> 0 | J99: 0
G100: Total AE's | H100: =SUM(H94:H99) -> 34.45148503 | I100: =IF(D8<=0,0,H100/$D$8) -> 0.3445148503 | J100: 2.902632496
R102: This side of the worksheet calculates variable costs of the basis of the machinery being owned | Y102: This side of the worksheet automatically calculates costs on the basis of nominal contract rates
B105: Forage variable cost calculator (use to identify growing and maintenance costs of forage)
C107: Machinery FORM + Labour | D107: (use treatments sheet to identify costs) | L107: Forage development cost calculator | N107: Machinery FORM + Labour | Y107: Forage annual variable cost calculator | Z107: Machinery Contract rate | AI107: Forage development cost calculator | AJ107: Machinery Contract rate
B109: Treatment No | C109: Pre planting costs | D109: Rate of application | E109: cost / unit | F109: number of applications | G109: % of forage area treated | H109: per hectare | I109: total | L109: Treatment No | M109: Pre planting costs | N109: Rate of application | O109: cost / unit | P109: number of applications | R109: % of forage area treated | S109: per hectare | T109: total | Y109: Treatment No | Z109: Pre planting costs | AA109: Rate of application | AB109: cost / unit | AC109: number of applications | AD109: % of area treated | AE109: per hectare | AF109: total | AI109: Treatment No | AJ109: Pre planting costs | AK109: Rate of application | AL109: cost / unit | AM109: number of applications | AO109: % of area treated | AP109: per hectare | AQ109: total
C110: =IF(B110<=0,"",VLOOKUP(B110,Treatments!$C$7:$J$407,2)) ->  | E110: =VLOOKUP(B110,Treatments!$C$7:$J$407,8) -> 0 | H110: =D110*E110*F110*G110 -> 0 | I110: =H110*$D$9 -> 0 | L110: 347 | M110: =VLOOKUP(L110,Treatments!$C$7:$J$407,2) -> Chisel plough | N110: 1 | O110: =VLOOKUP(L110,Treatments!$C$7:$J$407,8) -> 30.25714286 | P110: 1 | R110: 1 | S110: =N110*O110*P110*R110 -> 30.25714286 | T110: =S110*$D$9 -> 3025.714286 | Y110: =IF(AND(B110>=344,B110<=358),B110+15,B110) -> 0 | Z110: =VLOOKUP(Y110,Treatments!$C$7:$J$407,2) -> No treatment | AA110: =D110 -> 0 | AB110: =VLOOKUP(Y110,Treatments!$C$7:$J$407,8) -> 0 | AC110: =F110 -> 0 | AD110: =G110 -> 0 | AE110: =AA110*AB110*AC110*AD110 -> 0 | AF110: =AE110*$D$9 -> 0 | AI110: =IF(AND(L110>=344,L110<=358),L110+15,L110) -> 362 | AJ110: =VLOOKUP(AI110,Treatments!$C$7:$J$407,2) -> Chisel plough | AK110: =N110 -> 1 | AL110: =VLOOKUP(AI110,Treatments!$C$7:$J$407,8) -> 56.46285714 | AM110: =P110 -> 1 | AO110: =R110 -> 1 | AP110: =AK110*AL110*AM110*AO110 -> 56.46285714 | AQ110: =AP110*$D$9 -> 5646.285714
C111: =IF(B111<=0,"",VLOOKUP(B111,Treatments!$C$7:$J$407,2)) ->  | E111: =VLOOKUP(B111,Treatments!$C$7:$J$407,8) -> 0 | H111: =D111*E111*F111*G111 -> 0 | I111: =H111*$D$9 -> 0 | L111: 344 | M111: =VLOOKUP(L111,Treatments!$C$7:$J$407,2) -> Linkage spray rig | N111: 1 | O111: =VLOOKUP(L111,Treatments!$C$7:$J$407,8) -> 3.377941176 | P111: 3 | R111: 1 | S111: 10.13382353 | T111: 1013.382353 | Y111: =IF(AND(B111>=344,B111<=358),B111+15,B111) -> 0 | Z111: =VLOOKUP(Y111,Treatments!$C$7:$J$407,2) -> No treatment | AA111: =D111 -> 0 | AB111: =VLOOKUP(Y111,Treatments!$C$7:$J$407,8) -> 0 | AC111: =F111 -> 0 | AD111: 0 | AE111: =AA111*AB111*AC111*AD111 -> 0 | AF111: 0 | AI111: 359 | AJ111: =VLOOKUP(AI111,Treatments!$C$7:$J$407,2) -> Linkage spray rig | AK111: 1 | AL111: =VLOOKUP(AI111,Treatments!$C$7:$J$407,8) -> 8.01 | AM111: 3 | AO111: 1 | AP111: 24.03 | AQ111: 2403
C112: =IF(B112<=0,"",VLOOKUP(B112,Treatments!$C$7:$J$407,2)) ->  | E112: =VLOOKUP(B112,Treatments!$C$7:$J$407,8) -> 0 | H112: =D112*E112*F112*G112 -> 0 | I112: 0 | L112: 162 | M112: =VLOOKUP(L112,Treatments!$C$7:$J$407,2) -> Roundup CT | N112: 1.5 | O112: =VLOOKUP(L112,Treatments!$C$7:$J$407,8) -> 4.5 | P112: 3 | R112: 1 | S112: 20.25 | T112: 2025 | Y112: 0 | Z112: =VLOOKUP(Y112,Treatments!$C$7:$J$407,2) -> No treatment | AA112: 0 | AB112: =VLOOKUP(Y112,Treatments!$C$7:$J$407,8) -> 0 | AC112: 0 | AD112: 0 | AE112: =AA112*AB112*AC112*AD112 -> 0 | AF112: 0 | AI112: 162 | AJ112: =VLOOKUP(AI112,Treatments!$C$7:$J$407,2) -> Roundup CT | AK112: 1.5 | AL112: =VLOOKUP(AI112,Treatments!$C$7:$J$407,8) -> 4.5 | AM112: 3 | AO112: 1 | AP112: 20.25 | AQ112: 2025
C113: =IF(B113<=0,"",VLOOKUP(B113,Treatments!$C$7:$J$407,2)) ->  | E113: =VLOOKUP(B113,Treatments!$C$7:$J$407,8) -> 0 | H113: 0 | I113: 0 | L113: 127 | M113: =VLOOKUP(L113,Treatments!$C$7:$J$407,2) -> Amicide 625 | N113: 0.5 | O113: =VLOOKUP(L113,Treatments!$C$7:$J$407,8) -> 6.82 | P113: 3 | R113: 1 | S113: 10.23 | T113: 1023 | Y113: 0 | Z113: =VLOOKUP(Y113,Treatments!$C$7:$J$407,2) -> No treatment | AA113: 0 | AB113: =VLOOKUP(Y113,Treatments!$C$7:$J$407,8) -> 0 | AC113: 0 | AD113: 0 | AE113: 0 | AF113: 0 | AI113: 127 | AJ113: =VLOOKUP(AI113,Treatments!$C$7:$J$407,2) -> Amicide 625 | AK113: 0.5 | AL113: =VLOOKUP(AI113,Treatments!$C$7:$J$407,8) -> 6.82 | AM113: 3 | AO113: 1 | AP113: 10.23 | AQ113: 1023
C114: =IF(B114<=0,"",VLOOKUP(B114,Treatments!$C$7:$J$407,2)) ->  | E114: =VLOOKUP(B114,Treatments!$C$7:$J$407,8) -> 0 | H114: 0 | I114: 0 | M114: =VLOOKUP(L114,Treatments!$C$7:$J$407,2) -> No treatment | O114: =VLOOKUP(L114,Treatments!$C$7:$J$407,8) -> 0 | R114: 1 | S114: 0 | T114: 0 | Y114: 0 | Z114: =VLOOKUP(Y114,Treatments!$C$7:$J$407,2) -> No treatment | AA114: 0 | AB114: =VLOOKUP(Y114,Treatments!$C$7:$J$407,8) -> 0 | AC114: 0 | AD114: 0 | AE114: 0 | AF114: 0 | AI114: 0 | AJ114: =VLOOKUP(AI114,Treatments!$C$7:$J$407,2) -> No treatment | AK114: 0 | AL114: =VLOOKUP(AI114,Treatments!$C$7:$J$407,8) -> 0 | AM114: 0 | AO114: 1 | AP114: 0 | AQ114: 0
C115: =IF(B115<=0,"",VLOOKUP(B115,Treatments!$C$7:$J$407,2)) ->  | E115: =VLOOKUP(B115,Treatments!$C$7:$J$407,8) -> 0 | H115: 0 | I115: 0 | M115: =VLOOKUP(L115,Treatments!$C$7:$J$407,2) -> No treatment | O115: =VLOOKUP(L115,Treatments!$C$7:$J$407,8) -> 0 | R115: 1 | S115: 0 | T115: 0 | Y115: 0 | Z115: =VLOOKUP(Y115,Treatments!$C$7:$J$407,2) -> No treatment | AA115: 0 | AB115: =VLOOKUP(Y115,Treatments!$C$7:$J$407,8) -> 0 | AC115: 0 | AD115: 0 | AE115: 0 | AF115: 0 | AI115: 0 | AJ115: =VLOOKUP(AI115,Treatments!$C$7:$J$407,2) -> No treatment | AK115: 0 | AL115: =VLOOKUP(AI115,Treatments!$C$7:$J$407,8) -> 0 | AM115: 0 | AO115: 1 | AP115: 0 | AQ115: 0
C116: =IF(B116<=0,"",VLOOKUP(B116,Treatments!$C$7:$J$407,2)) ->  | E116: =VLOOKUP(B116,Treatments!$C$7:$J$407,8) -> 0 | H116: 0 | I116: 0 | Y116: 0 | Z116: =VLOOKUP(Y116,Treatments!$C$7:$J$407,2) -> No treatment | AA116: 0 | AB116: =VLOOKUP(Y116,Treatments!$C$7:$J$407,8) -> 0 | AC116: 0 | AD116: 0 | AE116: 0 | AF116: 0
C117: =IF(B117<=0,"",VLOOKUP(B117,Treatments!$C$7:$J$407,2)) ->  | E117: =VLOOKUP(B117,Treatments!$C$7:$J$407,8) -> 0 | H117: 0 | I117: 0 | L117: Treatment No | M117: Planting Costs | N117: Rate of application | O117: cost / unit | P117: number of applications | R117: % of area treated | Y117: 0 | Z117: =VLOOKUP(Y117,Treatments!$C$7:$J$407,2) -> No treatment | AA117: 0 | AB117: =VLOOKUP(Y117,Treatments!$C$7:$J$407,8) -> 0 | AC117: 0 | AD117: 0 | AE117: 0 | AF117: 0 | AI117: Treatment No | AJ117: Planting Costs | AK117: Rate of application | AL117: cost / unit | AM117: number of applications | AO117: % of area treated
C118: =IF(B118<=0,"",VLOOKUP(B118,Treatments!$C$7:$J$407,2)) ->  | E118: =VLOOKUP(B118,Treatments!$C$7:$J$407,8) -> 0 | H118: 0 | I118: 0 | L118: 349 | M118: =VLOOKUP(L118,Treatments!$C$7:$J$407,2) -> Leucaena planter | N118: 1 | O118: =VLOOKUP(L118,Treatments!$C$7:$J$407,8) -> 9.645454545 | P118: 1 | R118: 1 | S118: =N118*O118*P118*R118 -> 9.645454545 | T118: =S118*$D$9 -> 964.5454545 | Y118: 0 | Z118: =VLOOKUP(Y118,Treatments!$C$7:$J$407,2) -> No treatment | AA118: 0 | AB118: =VLOOKUP(Y118,Treatments!$C$7:$J$407,8) -> 0 | AC118: 0 | AD118: 0 | AE118: 0 | AF118: 0 | AI118: =IF(AND(L118>=344,L118<=358),L118+15,L118) -> 364 | AJ118: =VLOOKUP(AI118,Treatments!$C$7:$J$407,2) -> Leucaena planter | AK118: =N118 -> 1 | AL118: =VLOOKUP(AI118,Treatments!$C$7:$J$407,8) -> 20.17636364 | AM118: =P118 -> 1 | AO118: =R118 -> 1 | AP118: =AK118*AL118*AM118*AO118 -> 20.17636364 | AQ118: =AP118*$D$9 -> 2017.636364
C119: =IF(B119<=0,"",VLOOKUP(B119,Treatments!$C$7:$J$407,2)) ->  | E119: =VLOOKUP(B119,Treatments!$C$7:$J$407,8) -> 0 | H119: 0 | I119: 0 | L119: 308 | M119: =VLOOKUP(L119,Treatments!$C$7:$J$407,2) -> Leucaena seed | N119: 2.5 | O119: =VLOOKUP(L119,Treatments!$C$7:$J$407,8) -> 20 | P119: 1 | R119: 1 | S119: =N119*O119*P119*R119 -> 50 | T119: =S119*$D$9 -> 5000 | Y119: 0 | Z119: =VLOOKUP(Y119,Treatments!$C$7:$J$407,2) -> No treatment | AA119: 0 | AB119: =VLOOKUP(Y119,Treatments!$C$7:$J$407,8) -> 0 | AC119: 0 | AD119: 0 | AE119: 0 | AF119: 0 | AI119: 308 | AJ119: =VLOOKUP(AI119,Treatments!$C$7:$J$407,2) -> Leucaena seed | AK119: 2.5 | AL119: =VLOOKUP(AI119,Treatments!$C$7:$J$407,8) -> 20 | AM119: 1 | AO119: 1 | AP119: =AK119*AL119*AM119*AO119 -> 50 | AQ119: 5000
C120: =IF(B120<=0,"",VLOOKUP(B120,Treatments!$C$7:$J$407,2)) ->  | E120: =VLOOKUP(B120,Treatments!$C$7:$J$407,8) -> 0 | H120: 0 | I120: 0 | L120: 309 | M120: =VLOOKUP(L120,Treatments!$C$7:$J$407,2) -> Leucaena inoculant | N120: 1 | O120: =VLOOKUP(L120,Treatments!$C$7:$J$407,8) -> 0.24 | P120: 1 | R120: 1 | S120: 0.24 | T120: 24 | Y120: 0 | Z120: =VLOOKUP(Y120,Treatments!$C$7:$J$407,2) -> No treatment | AA120: 0 | AB120: =VLOOKUP(Y120,Treatments!$C$7:$J$407,8) -> 0 | AC120: 0 | AD120: 0 | AE120: 0 | AF120: 0 | AI120: 309 | AJ120: =VLOOKUP(AI120,Treatments!$C$7:$J$407,2) -> Leucaena inoculant | AK120: 1 | AL120: =VLOOKUP(AI120,Treatments!$C$7:$J$407,8) -> 0.24 | AM120: 1 | AO120: 1 | AP120: 0.24 | AQ120: 24
C121: =IF(B121<=0,"",VLOOKUP(B121,Treatments!$C$7:$J$407,2)) ->  | E121: =VLOOKUP(B121,Treatments!$C$7:$J$407,8) -> 0 | H121: 0 | I121: 0 | L121: 77 | M121: =VLOOKUP(L121,Treatments!$C$7:$J$407,2) -> MAP (Starterphos) | N121: 60 | O121: =VLOOKUP(L121,Treatments!$C$7:$J$407,8) -> 0.88 | P121: 1 | R121: 1 | S121: 52.8 | T121: 5280 | Y121: 0 | Z121: =VLOOKUP(Y121,Treatments!$C$7:$J$407,2) -> No treatment | AA121: 0 | AB121: =VLOOKUP(Y121,Treatments!$C$7:$J$407,8) -> 0 | AC121: 0 | AD121: 0 | AE121: 0 | AF121: 0 | AI121: 77 | AJ121: =VLOOKUP(AI121,Treatments!$C$7:$J$407,2) -> MAP (Starterphos) | AK121: 60 | AL121: =VLOOKUP(AI121,Treatments!$C$7:$J$407,8) -> 0.88 | AM121: 1 | AO121: 1 | AP121: 52.8 | AQ121: 5280
C122: =IF(B122<=0,"",VLOOKUP(B122,Treatments!$C$7:$J$407,2)) ->  | E122: =VLOOKUP(B122,Treatments!$C$7:$J$407,8) -> 0 | H122: 0 | I122: 0 | M122: =VLOOKUP(L122,Treatments!$C$7:$J$407,2) -> No treatment | O122: =VLOOKUP(L122,Treatments!$C$7:$J$407,8) -> 0 | S122: 0 | T122: 0 | Y122: 0 | Z122: =VLOOKUP(Y122,Treatments!$C$7:$J$407,2) -> No treatment | AA122: 0 | AB122: =VLOOKUP(Y122,Treatments!$C$7:$J$407,8) -> 0 | AC122: 0 | AD122: 0 | AE122: 0 | AF122: 0 | AI122: 0 | AJ122: =VLOOKUP(AI122,Treatments!$C$7:$J$407,2) -> No treatment | AK122: 0 | AL122: =VLOOKUP(AI122,Treatments!$C$7:$J$407,8) -> 0 | AM122: 0 | AO122: 0 | AP122: 0 | AQ122: 0
C123: =IF(B123<=0,"",VLOOKUP(B123,Treatments!$C$7:$J$407,2)) ->  | E123: =VLOOKUP(B123,Treatments!$C$7:$J$407,8) -> 0 | H123: =D123*E123*F123*G123 -> 0 | I123: 0 | L123: 242 | M123: =VLOOKUP(L123,Treatments!$C$7:$J$407,2) -> Beetle bait | N123: 1 | O123: =VLOOKUP(L123,Treatments!$C$7:$J$407,8) -> 7 | P123: 1 | R123: 1 | S123: 7 | T123: 700 | Y123: 0 | Z123: =VLOOKUP(Y123,Treatments!$C$7:$J$407,2) -> No treatment | AA123: 0 | AB123: =VLOOKUP(Y123,Treatments!$C$7:$J$407,8) -> 0 | AC123: 0 | AD123: 0 | AE123: =AA123*AB123*AC123*AD123 -> 0 | AF123: 0 | AI123: 242 | AJ123: =VLOOKUP(AI123,Treatments!$C$7:$J$407,2) -> Beetle bait | AK123: 1 | AL123: =VLOOKUP(AI123,Treatments!$C$7:$J$407,8) -> 7 | AM123: 1 | AO123: 1 | AP123: 7 | AQ123: 700
C124: =IF(B124<=0,"",VLOOKUP(B124,Treatments!$C$7:$J$407,2)) ->  | E124: =VLOOKUP(B124,Treatments!$C$7:$J$407,8) -> 0 | H124: =D124*E124*F124*G124 -> 0 | I124: 0 | M124: =VLOOKUP(L124,Treatments!$C$7:$J$407,2) -> No treatment | O124: =VLOOKUP(L124,Treatments!$C$7:$J$407,8) -> 0 | S124: 0 | T124: 0 | Y124: 0 | Z124: =VLOOKUP(Y124,Treatments!$C$7:$J$407,2) -> No treatment | AA124: 0 | AB124: =VLOOKUP(Y124,Treatments!$C$7:$J$407,8) -> 0 | AC124: 0 | AD124: 0 | AE124: =AA124*AB124*AC124*AD124 -> 0 | AF124: 0 | AI124: 0 | AJ124: =VLOOKUP(AI124,Treatments!$C$7:$J$407,2) -> No treatment | AK124: 0 | AL124: =VLOOKUP(AI124,Treatments!$C$7:$J$407,8) -> 0 | AM124: 0 | AO124: 0 | AP124: 0 | AQ124: 0
L125: 344 | M125: =VLOOKUP(L125,Treatments!$C$7:$J$407,2) -> Linkage spray rig | N125: 1 | O125: =VLOOKUP(L125,Treatments!$C$7:$J$407,8) -> 3.377941176 | P125: 1 | R125: 1 | S125: 3.377941176 | T125: 337.7941176 | AI125: 359 | AJ125: =VLOOKUP(AI125,Treatments!$C$7:$J$407,2) -> Linkage spray rig | AK125: 1 | AL125: =VLOOKUP(AI125,Treatments!$C$7:$J$407,8) -> 8.01 | AM125: 1 | AO125: 1 | AP125: 8.01 | AQ125: 801
B126: Treatment No | C126: Planting Costs | D126: Rate of application | E126: cost / unit | F126: number of applications | G126: % of area treated | L126: 171 | M126: =VLOOKUP(L126,Treatments!$C$7:$J$407,2) -> Spinnaker | N126: 0.14 | O126: =VLOOKUP(L126,Treatments!$C$7:$J$407,8) -> 255 | P126: 1 | R126: 0.5 | S126: 17.85 | T126: 1785 | Y126: Treatment No | Z126: Planting Costs | AA126: Rate of application | AB126: cost / unit | AC126: number of applications | AD126: % of area treated | AI126: 171 | AJ126: =VLOOKUP(AI126,Treatments!$C$7:$J$407,2) -> Spinnaker | AK126: 0.14 | AL126: =VLOOKUP(AI126,Treatments!$C$7:$J$407,8) -> 255 | AM126: 1 | AO126: 0.5 | AP126: 17.85 | AQ126: 1785
C127: =IF(B127<=0,"",VLOOKUP(B127,Treatments!$C$7:$J$407,2)) ->  | E127: =VLOOKUP(B127,Treatments!$C$7:$J$407,8) -> 0 | H127: =D127*E127*F127*G127 -> 0 | I127: =H127*$D$9 -> 0 | L127: 162 | M127: =VLOOKUP(L127,Treatments!$C$7:$J$407,2) -> Roundup CT | N127: 1.5 | O127: =VLOOKUP(L127,Treatments!$C$7:$J$407,8) -> 4.5 | P127: 1 | R127: 0.5 | S127: 3.375 | T127: 337.5 | Y127: =IF(AND(B127>=344,B127<=358),B127+15,B127) -> 0 | Z127: =VLOOKUP(Y127,Treatments!$C$7:$J$407,2) -> No treatment | AA127: =D127 -> 0 | AB127: =VLOOKUP(Y127,Treatments!$C$7:$J$407,8) -> 0 | AC127: =F127 -> 0 | AD127: 0 | AE127: =AA127*AB127*AC127*AD127 -> 0 | AF127: =AE127*$D$9 -> 0 | AI127: 162 | AJ127: =VLOOKUP(AI127,Treatments!$C$7:$J$407,2) -> Roundup CT | AK127: 1.5 | AL127: =VLOOKUP(AI127,Treatments!$C$7:$J$407,8) -> 4.5 | AM127: 1 | AO127: 0.5 | AP127: 3.375 | AQ127: 337.5
C128: =IF(B128<=0,"",VLOOKUP(B128,Treatments!$C$7:$J$407,2)) ->  | E128: =VLOOKUP(B128,Treatments!$C$7:$J$407,8) -> 0 | H128: 0 | I128: =H128*$D$9 -> 0 | M128: =VLOOKUP(L128,Treatments!$C$7:$J$407,2) -> No treatment | O128: =VLOOKUP(L128,Treatments!$C$7:$J$407,8) -> 0 | S128: 0 | T128: 0 | Y128: =IF(AND(B128>=344,B128<=358),B128+15,B128) -> 0 | Z128: =VLOOKUP(Y128,Treatments!$C$7:$J$407,2) -> No treatment | AA128: 0 | AB128: =VLOOKUP(Y128,Treatments!$C$7:$J$407,8) -> 0 | AC128: 0 | AD128: 0 | AE128: 0 | AF128: 0 | AI128: 0 | AJ128: =VLOOKUP(AI128,Treatments!$C$7:$J$407,2) -> No treatment | AK128: 0 | AL128: =VLOOKUP(AI128,Treatments!$C$7:$J$407,8) -> 0 | AM128: 0 | AO128: 0 | AP128: 0 | AQ128: 0
C129: =IF(B129<=0,"",VLOOKUP(B129,Treatments!$C$7:$J$407,2)) ->  | E129: =VLOOKUP(B129,Treatments!$C$7:$J$407,8) -> 0 | H129: 0 | I129: 0 | M129: =VLOOKUP(L129,Treatments!$C$7:$J$407,2) -> No treatment | O129: =VLOOKUP(L129,Treatments!$C$7:$J$407,8) -> 0 | S129: 0 | T129: 0 | Y129: 0 | Z129: =VLOOKUP(Y129,Treatments!$C$7:$J$407,2) -> No treatment | AA129: 0 | AB129: =VLOOKUP(Y129,Treatments!$C$7:$J$407,8) -> 0 | AC129: 0 | AD129: 0 | AE129: 0 | AF129: 0 | AI129: 0 | AJ129: =VLOOKUP(AI129,Treatments!$C$7:$J$407,2) -> No treatment | AK129: 0 | AL129: =VLOOKUP(AI129,Treatments!$C$7:$J$407,8) -> 0 | AM129: 0 | AO129: 0 | AP129: 0 | AQ129: 0
C130: =IF(B130<=0,"",VLOOKUP(B130,Treatments!$C$7:$J$407,2)) ->  | E130: =VLOOKUP(B130,Treatments!$C$7:$J$407,8) -> 0 | H130: 0 | I130: 0 | Y130: 0 | Z130: =VLOOKUP(Y130,Treatments!$C$7:$J$407,2) -> No treatment | AA130: 0 | AB130: =VLOOKUP(Y130,Treatments!$C$7:$J$407,8) -> 0 | AC130: 0 | AD130: 0 | AE130: 0 | AF130: 0
C131: =IF(B131<=0,"",VLOOKUP(B131,Treatments!$C$7:$J$407,2)) ->  | E131: =VLOOKUP(B131,Treatments!$C$7:$J$407,8) -> 0 | H131: 0 | I131: 0 | L131: Treatment No | M131: Post Planting Costs | N131: Rate of application | O131: cost / unit | P131: number of applications | R131: % of area treated | Y131: 0 | Z131: =VLOOKUP(Y131,Treatments!$C$7:$J$407,2) -> No treatment | AA131: 0 | AB131: =VLOOKUP(Y131,Treatments!$C$7:$J$407,8) -> 0 | AC131: 0 | AD131: 0 | AE131: 0 | AF131: 0 | AI131: Treatment No | AJ131: Post Planting Costs | AK131: Rate of application | AL131: cost / unit | AM131: number of applications | AO131: % of area treated
C132: =IF(B132<=0,"",VLOOKUP(B132,Treatments!$C$7:$J$407,2)) ->  | E132: =VLOOKUP(B132,Treatments!$C$7:$J$407,8) -> 0 | H132: 0 | I132: 0 | L132: 344 | M132: =VLOOKUP(L132,Treatments!$C$7:$J$407,2) -> Linkage spray rig | N132: 1 | O132: =VLOOKUP(L132,Treatments!$C$7:$J$407,8) -> 3.377941176 | P132: 1 | R132: 0.8 | S132: =N132*O132*P132*R132 -> 2.702352941 | T132: =S132*$D$9 -> 270.2352941 | Y132: 0 | Z132: =VLOOKUP(Y132,Treatments!$C$7:$J$407,2) -> No treatment | AA132: 0 | AB132: =VLOOKUP(Y132,Treatments!$C$7:$J$407,8) -> 0 | AC132: 0 | AD132: 0 | AE132: 0 | AF132: 0 | AI132: =IF(AND(L132>=344,L132<=358),L132+15,L132) -> 359 | AJ132: =VLOOKUP(AI132,Treatments!$C$7:$J$407,2) -> Linkage spray rig | AK132: =N132 -> 1 | AL132: =VLOOKUP(AI132,Treatments!$C$7:$J$407,8) -> 8.01 | AM132: =P132 -> 1 | AO132: =R132 -> 0.8 | AP132: =AK132*AL132*AM132*AO132 -> 6.408 | AQ132: =AP132*$D$9 -> 640.8
C133: =IF(B133<=0,"",VLOOKUP(B133,Treatments!$C$7:$J$407,2)) ->  | E133: =VLOOKUP(B133,Treatments!$C$7:$J$407,8) -> 0 | H133: 0 | I133: 0 | L133: 145 | M133: =VLOOKUP(L133,Treatments!$C$7:$J$407,2) -> Fusilade | N133: 1.5 | O133: =VLOOKUP(L133,Treatments!$C$7:$J$407,8) -> 69.2727 | P133: 1 | R133: 0.8 | S133: 83.12724 | T133: 8312.724 | Y133: 0 | Z133: =VLOOKUP(Y133,Treatments!$C$7:$J$407,2) -> No treatment | AA133: 0 | AB133: =VLOOKUP(Y133,Treatments!$C$7:$J$407,8) -> 0 | AC133: 0 | AD133: 0 | AE133: 0 | AF133: 0 | AI133: 145 | AJ133: =VLOOKUP(AI133,Treatments!$C$7:$J$407,2) -> Fusilade | AK133: 1.5 | AL133: =VLOOKUP(AI133,Treatments!$C$7:$J$407,8) -> 69.2727 | AM133: 1 | AO133: 0.8 | AP133: 83.12724 | AQ133: 8312.724
C134: =IF(B134<=0,"",VLOOKUP(B134,Treatments!$C$7:$J$407,2)) ->  | E134: =VLOOKUP(B134,Treatments!$C$7:$J$407,8) -> 0 | H134: 0 | I134: 0 | L134: 365 | M134: =VLOOKUP(L134,Treatments!$C$7:$J$407,2) -> Grass planter | N134: 1 | O134: =VLOOKUP(L134,Treatments!$C$7:$J$407,8) -> 11.097 | P134: 1 | R134: 0.8 | S134: 8.8776 | T134: 887.76 | Y134: 0 | Z134: =VLOOKUP(Y134,Treatments!$C$7:$J$407,2) -> No treatment | AA134: 0 | AB134: =VLOOKUP(Y134,Treatments!$C$7:$J$407,8) -> 0 | AC134: 0 | AD134: 0 | AE134: 0 | AF134: 0 | AI134: 365 | AJ134: =VLOOKUP(AI134,Treatments!$C$7:$J$407,2) -> Grass planter | AK134: 1 | AL134: =VLOOKUP(AI134,Treatments!$C$7:$J$407,8) -> 11.097 | AM134: 1 | AO134: 0.8 | AP134: 8.8776 | AQ134: 887.76
C135: =IF(B135<=0,"",VLOOKUP(B135,Treatments!$C$7:$J$407,2)) ->  | E135: =VLOOKUP(B135,Treatments!$C$7:$J$407,8) -> 0 | H135: 0 | I135: 0 | L135: 286 | M135: =VLOOKUP(L135,Treatments!$C$7:$J$407,2) -> Grass seed | N135: 4 | O135: =VLOOKUP(L135,Treatments!$C$7:$J$407,8) -> 17 | P135: 1 | R135: 0.8 | S135: 54.4 | T135: 5440 | Y135: 0 | Z135: =VLOOKUP(Y135,Treatments!$C$7:$J$407,2) -> No treatment | AA135: 0 | AB135: =VLOOKUP(Y135,Treatments!$C$7:$J$407,8) -> 0 | AC135: 0 | AD135: 0 | AE135: 0 | AF135: 0 | AI135: 286 | AJ135: =VLOOKUP(AI135,Treatments!$C$7:$J$407,2) -> Grass seed | AK135: 4 | AL135: =VLOOKUP(AI135,Treatments!$C$7:$J$407,8) -> 17 | AM135: 1 | AO135: 0.8 | AP135: 54.4 | AQ135: 5440
C136: =IF(B136<=0,"",VLOOKUP(B136,Treatments!$C$7:$J$407,2)) ->  | E136: =VLOOKUP(B136,Treatments!$C$7:$J$407,8) -> 0 | H136: 0 | I136: 0 | M136: =VLOOKUP(L136,Treatments!$C$7:$J$407,2) -> No treatment | O136: =VLOOKUP(L136,Treatments!$C$7:$J$407,8) -> 0 | S136: 0 | T136: 0 | Y136: 0 | Z136: =VLOOKUP(Y136,Treatments!$C$7:$J$407,2) -> No treatment | AA136: 0 | AB136: =VLOOKUP(Y136,Treatments!$C$7:$J$407,8) -> 0 | AC136: 0 | AD136: 0 | AE136: 0 | AF136: 0 | AI136: 0 | AJ136: =VLOOKUP(AI136,Treatments!$C$7:$J$407,2) -> No treatment | AK136: 0 | AL136: =VLOOKUP(AI136,Treatments!$C$7:$J$407,8) -> 0 | AM136: 0 | AO136: 0 | AP136: 0 | AQ136: 0
C137: =IF(B137<=0,"",VLOOKUP(B137,Treatments!$C$7:$J$407,2)) ->  | E137: =VLOOKUP(B137,Treatments!$C$7:$J$407,8) -> 0 | H137: 0 | I137: 0 | M137: =VLOOKUP(L137,Treatments!$C$7:$J$407,2) -> No treatment | O137: =VLOOKUP(L137,Treatments!$C$7:$J$407,8) -> 0 | S137: 0 | T137: 0 | Y137: 0 | Z137: =VLOOKUP(Y137,Treatments!$C$7:$J$407,2) -> No treatment | AA137: 0 | AB137: =VLOOKUP(Y137,Treatments!$C$7:$J$407,8) -> 0 | AC137: 0 | AD137: 0 | AE137: 0 | AF137: 0 | AI137: 0 | AJ137: =VLOOKUP(AI137,Treatments!$C$7:$J$407,2) -> No treatment | AK137: 0 | AL137: =VLOOKUP(AI137,Treatments!$C$7:$J$407,8) -> 0 | AM137: 0 | AO137: 0 | AP137: 0 | AQ137: 0
C138: =IF(B138<=0,"",VLOOKUP(B138,Treatments!$C$7:$J$407,2)) ->  | E138: =VLOOKUP(B138,Treatments!$C$7:$J$407,8) -> 0 | H138: 0 | I138: 0 | N138: Total direct development costs | S138: =SUM(S110:S137) -> 364.266555 | T138: 36426.6555 | Y138: 0 | Z138: =VLOOKUP(Y138,Treatments!$C$7:$J$407,2) -> No treatment | AA138: 0 | AB138: =VLOOKUP(Y138,Treatments!$C$7:$J$407,8) -> 0 | AC138: 0 | AD138: 0 | AE138: 0 | AF138: 0 | AK138: Total direct development costs | AP138: =SUM(AP110:AP137) -> 423.2370608 | AQ138: =SUM(AQ110:AQ137) -> 42323.70608
B140: Treatment No | C140: Post Planting Costs | D140: Rate of application | E140: cost / unit | F140: number of applications | G140: % of area treated | Y140: Treatment No | Z140: Post Planting Costs | AA140: Rate of application | AB140: cost / unit | AC140: number of applications | AD140: % of area treated
B141: 88 | C141: =IF(B141<=0,"",VLOOKUP(B141,Treatments!$C$7:$J$407,2)) -> Superphosphate | D141: 100 | E141: =VLOOKUP(B141,Treatments!$C$7:$J$407,8) -> 0.58 | F141: 0.1 | G141: 1 | H141: =D141*E141*F141*G141 -> 5.8 | I141: =H141*$D$9 -> 580 | R141: Grazing foregone for development (buffel grass gross margin) | S141: =Buffel!E217 -> 48.92556342 | T141: =S141*$D$9 -> 4892.556342 | Y141: =IF(AND(B141>=344,B141<=358),B141+15,B141) -> 88 | Z141: =VLOOKUP(Y141,Treatments!$C$7:$J$407,2) -> Superphosphate | AA141: =D141 -> 100 | AB141: =VLOOKUP(Y141,Treatments!$C$7:$J$407,8) -> 0.58 | AC141: =F141 -> 0.1 | AD141: =G141 -> 1 | AE141: =AA141*AB141*AC141*AD141 -> 5.8 | AF141: =AE141*$D$9 -> 580 | AO141: Grazing foregone for development (buffel grass gross margin) | AP141: =S141 -> 48.92556342 | AQ141: =AP141*$D$9 -> 4892.556342
B142: 24 | C142: =IF(B142<=0,"",VLOOKUP(B142,Treatments!$C$7:$J$407,2)) -> Leucaena maintenance | D142: 1 | E142: =VLOOKUP(B142,Treatments!$C$7:$J$407,8) -> 81.51 | F142: 0.1 | G142: 1 | H142: 8.151 | I142: =H142*$D$9 -> 815.1 | Q142: Opportunity cost of development capital | R142: 0.05 | S142: =S141+S140+S138 -> 413.1921185 | T142: =T141+T140+T138 -> 41319.21185 | Y142: 24 | Z142: =VLOOKUP(Y142,Treatments!$C$7:$J$407,2) -> Leucaena maintenance | AA142: =D142 -> 1 | AB142: =VLOOKUP(Y142,Treatments!$C$7:$J$407,8) -> 81.51 | AC142: =F142 -> 0.1 | AD142: 1 | AE142: 8.151 | AF142: 815.1 | AN142: Opportunity cost of development capital | AO142: =R142 -> 0.05 | AP142: =AP141+AP140+AP138 -> 472.1626242 | AQ142: =AQ141+AQ140+AQ138 -> 47216.26242
B143: 25 | C143: =IF(B143<=0,"",VLOOKUP(B143,Treatments!$C$7:$J$407,2)) -> Leucaena fertiliser spreading | D143: 1 | E143: =VLOOKUP(B143,Treatments!$C$7:$J$407,8) -> 8 | F143: 0.1 | G143: 1 | H143: 0.8 | I143: 80 | O143: Amortised development costs | P143: life of forage | Q143: 30 | R143: years | S143: =PMT(R142,Q143,S142)*-1 -> 26.87874027 | T143: per hectare per annum | Y143: 25 | Z143: =VLOOKUP(Y143,Treatments!$C$7:$J$407,2) -> Leucaena fertiliser spreading | AA143: 1 | AB143: =VLOOKUP(Y143,Treatments!$C$7:$J$407,8) -> 8 | AC143: 0.1 | AD143: 1 | AE143: 0.8 | AF143: 80 | AL143: Amortised development costs | AM143: life of forage | AN143: =Q143 -> 30 | AO143: years | AP143: =PMT(AO142,AN143,AP142)*-1 -> 30.7148563 | AQ143: per hectare per annum
C144: =IF(B144<=0,"",VLOOKUP(B144,Treatments!$C$7:$J$407,2)) ->  | E144: =VLOOKUP(B144,Treatments!$C$7:$J$407,8) -> 0 | H144: 0 | I144: 0 | Y144: 0 | Z144: =VLOOKUP(Y144,Treatments!$C$7:$J$407,2) -> No treatment | AA144: 0 | AB144: =VLOOKUP(Y144,Treatments!$C$7:$J$407,8) -> 0 | AC144: 0 | AD144: 0 | AE144: 0 | AF144: 0
C145: =IF(B145<=0,"",VLOOKUP(B145,Treatments!$C$7:$J$407,2)) ->  | E145: =VLOOKUP(B145,Treatments!$C$7:$J$407,8) -> 0 | H145: 0 | I145: 0 | Y145: 0 | Z145: =VLOOKUP(Y145,Treatments!$C$7:$J$407,2) -> No treatment | AA145: 0 | AB145: =VLOOKUP(Y145,Treatments!$C$7:$J$407,8) -> 0 | AC145: 0 | AD145: 0 | AE145: 0 | AF145: 0
C146: =IF(B146<=0,"",VLOOKUP(B146,Treatments!$C$7:$J$407,2)) ->  | E146: =VLOOKUP(B146,Treatments!$C$7:$J$407,8) -> 0 | H146: 0 | I146: 0 | Y146: 0 | Z146: =VLOOKUP(Y146,Treatments!$C$7:$J$407,2) -> No treatment | AA146: 0 | AB146: =VLOOKUP(Y146,Treatments!$C$7:$J$407,8) -> 0 | AC146: 0 | AD146: 0 | AE146: 0 | AF146: 0
C147: Amortised development costs | D147: 1 | E147: =S143 -> 26.87874027 | F147: 1 | G147: 1 | H147: 26.87874027 | I147: 2687.874027 | Z147: Amortised development costs | AA147: 1 | AB147: =AP143 -> 30.7148563 | AC147: 1 | AD147: 1 | AE147: 30.7148563 | AF147: 3071.48563
F148: Total forage annual costs | H148: =SUM(H110:H147) -> 41.62974027 | I148: =SUM(I110:I147) -> 4162.974027 | L148: Development costs are added to the estimate of forage variable costs as amortised costs | AC148: Total forage annual costs | AE148: =SUM(AE110:AE147) -> 45.4658563 | AF148: =SUM(AF110:AF147) -> 4546.58563
L149: Machinery costs incurred during the development phase can be added from the Treatments worksheet - see rows 350 to 380
L151: The expected life of the forage and the opportunity cost of development capital are used to calculate the amortised cost of the forage development phase.
B153: Gross margin calculation | G153: Gross margin calculation | L153: Where a period of grazing is forgone during the development phase, an amount equal to the annual Buffel grass gross margin can be added to the costs of developing the forage.
B154: Owner rate | D154: Total | E154: per ha per annum | G154: Machinery Contract rate | I154: Total | J154: per ha per annum | L154: See the Leucaena and Butterfly pea gross margins to see how development costs can be incorporated in the analysis of relative profitability
B155: Livestock Sales | D155: =L60 -> 49611.9936 | E155: =D155/$D$8 -> 496.119936 | G155: Livestock Sales | I155: =D155 -> 49611.9936 | J155: 496.119936 | L155: More detailed investment analysis techniques should be applied prior to an investment in long lived forage crops before a final decision is made to commit resources to their production.
B156: Livestock Purchases | D156: =H22 -> 30712.9488 | E156: =D156/$D$8 -> 307.129488 | G156: Livestock Purchases | I156: 30712.9488 | J156: 307.129488
B157: Freight In, purchase costs | D157: =H35+J35+L35 -> 643.2679018 | E157: 6.432679018 | G157: Freight In | I157: 643.2679018 | J157: 6.432679018
B158: Freight Out | D158: =L75 -> 2000.749875 | E158: 20.00749875 | G158: Freight Out | I158: 2000.749875 | J158: 20.00749875
B159: Treatment Expenses | D159: =M47 -> 125.56275 | E159: 1.2556275 | G159: Treatment Expenses | I159: 125.56275 | J159: 1.2556275
B160: Selling Expenses | D160: =D75+H75 -> 250.125 | E160: 2.50125 | G160: Selling Expenses | I160: 250.125 | J160: 2.50125
B161: Forage growing costs | D161: =I148 -> 4162.974027 | E161: 41.62974027 | G161: Forage annual contract costs | I161: =AF148 -> 4546.58563 | J161: =I161/$D$8 -> 45.4658563
B162: Total Expenses | D162: =SUM(D156:D161) -> 37895.62835 | E162: 378.9562835 | G162: Total Expenses | I162: =SUM(I156:I161) -> 38279.23996 | J162: =I162/D8 -> 382.7923996
B164: Gross Margin | D164: =D155-D162 -> 11716.36525 | E164: =D164/D8 -> 117.1636525 | G164: Gross Margin | I164: =I155-I162 -> 11332.75364 | J164: =I164/$D$8 -> 113.3275364
B165: Interest foregone on livestock capital | D165: =H88 -> 992.322754 | E165: =D165/D8 -> 9.92322754 | G165: Interest foregone on livestock capital | I165: =H88 -> 992.322754
B166: Gross Margin per annum (after Interest) | D166: =D164-D165 -> 10724.04249 | E166: =D166/$D$8 -> 107.2404249 | G166: Gross Margin (after Interest) | I166: =I164-I165 -> 10340.43089 | J166: =I166/$D$8 -> 103.4043089
B167: Kilograms of liveweight gain per hectare | E167: =(E60-F22)/$D$8 -> 106.19307
C173: Forage production estimate | D173: Factor | H173: Annual forages | K173: Perennial forages
C174: Expected carrying capacity in AE | D174: =H100 -> 34.45148503 | H174: Oats | I174: Forage Sorghum | J174: Lablab | K174: Butterfly pea | L174: Buffel grass | M174: Native pasture (Open Downs)
C175: Consumption per AE per annum | D175: 3650 | E175: kg/AE/yr | G175: Residual (kg DM/ha) | H175: 1000 | I175: 1000 | J175: 1000 | K175: 1000 | L175: 1000 | M175: 1000
C176: Kgs consumed by livestock | D176: =D175*D174 -> 125747.9204 | E176: kg dry matter | G176: Utilisation (0.3-0.5) | H176: 0.4 | I176: 0.3 | J176: 0.4 | K176: 0.3 | L176: 0.3 | M176: 0.3
C177: Expected utilisation | D177: 0.35
C178: Forage available for consumption | D178: =D176*1/D177 -> 359279.7725 | E178: kg dry matter
C179: Area of paddock | D179: =D8 -> 100 | E179: hectares
C180: Forage available for consumption per hectare | D180: =D178/D179 -> 3592.797725 | E180: kg dry matter /hectare
C181: Residual required | D181: 1000 | E181: kg dry matter /hectare
C182: Expected annual forage growth | D182: =D181+D180 -> 4592.797725 | E182: kg dry matter /hectare

Sheet Butterfly pea
B2: Forage assessment model - gross margin | F2: Butterfly pea is assumed to have a life of 5 years
F3: Account for lag in production by
F4: * Yr 1: halving grazing days
B5: Forage type | C5: ='Gross margin summary'!F15 -> Butterfly pea
C8: Total size of the paddock | D8: 100 | E8: hectares
C9: Area of paddock planted to forage | D9: 100 | E9: hectares | Q9: Calculate the paddock value of the owned steer
C10: % of paddock planted to forage | D10: =IF(D9<=0,0,D9/D8) -> 1
S11: Mob 1 | T11: Mob 2 | U11: Mob 3 | V11: Mob 4 | W11: Mob 5 | X11: Mob 6 | Z11: Transport Loading Density Guide
Q12: Steer weight in the paddock | S12: =F16 -> 466.4 | T12: =F17 -> 0 | U12: =F18 -> 0 | V12: =F19 -> 0 | W12: =F20 -> 0 | X12: =F21 -> 0 | Z12: Source for loading density: Kaus, Lapworth and Dunn "Marketing Cattle to South-East Asia"
B13: Livestock entering the paddock | D13: ( use the tables to the right to calculate the price going into the paddock if the cattle are already owned) | Q13: weight loss to get to sale yards or works | S13: 0 | T13: 0 | U13: 0 | V13: 0 | W13: 0 | X13: 0 | Z13: Maximum for lighter cattle = 44/deck
Q14: Steer weight at saleyards or works | S14: =S12*(1-S13) -> 466.4 | T14: 0 | U14: 0 | V14: 0 | W14: 0 | X14: 0 | Z14: Average | AA14: Head Per
C15: Date the mob enters the paddock | D15: Number entering the paddock | E15: Purchase price ($ per kg) | F15: Average purchase weight (Kg live) | G15: Cost of stock per head into paddock | H15: Total cost of stock | I15: Paddock stocking rate (head per hectare) | J15: Paddock stocking rate (hectare per head) | K15: Forage area stocking rate (head per hectare) | L15: Forage area stocking rate (hectare per head) | Q15: Sale price at yards or works ($ /kg live) | Z15: Liveweight | AA15: 12.2m deck
B16: Mob 1 | C16: 2014-01-01 | D16: 71.36513398 | E16: 1.6 | F16: 466.4 | G16: =F16*E16 -> 746.24 | H16: =G16*D16 -> 53255.51758 | I16: =D16/$D$8 -> 0.7136513398 | J16: =IF(D16<=0,0,$D$8/D16) -> 1.401244479 | K16: =D16/$D$9 -> 0.7136513398 | L16: =IF(D16<=0,0,$D$9/D16) -> 1.401244479 | Q16: Gross sale price ($/head) | S16: =S15*S14 -> 0 | T16: 0 | U16: 0 | V16: 0 | W16: 0 | X16: 0 | Z16: 250 | AA16: 38
B17: Mob 2 | G17: 0 | H17: 0 | I17: 0 | J17: 0 | K17: 0 | L17: 0 | Q17: Commission & insurance % | S17: 0.035 | Z17: 300 | AA17: 34
B18: Mob 3 | G18: 0 | H18: 0 | I18: 0 | J18: 0 | K18: 0 | L18: 0 | Q18: Commission & insurance ($/head) | S18: =S17*S16 -> 0 | T18: 0 | U18: 0 | V18: 0 | W18: 0 | X18: 0 | Z18: 350 | AA18: 30
B19: Mob 4 | G19: 0 | H19: 0 | I19: 0 | J19: 0 | K19: 0 | L19: 0 | Q19: Transaction levy, yard dues etc | Z19: 400 | AA19: 28
B20: Mob 5 | G20: 0 | H20: 0 | I20: 0 | J20: 0 | K20: 0 | L20: 0 | Q20: Transport cost ($/head) | Z20: 450 | AA20: 26
B21: Mob 6 | G21: 0 | H21: 0 | I21: 0 | J21: 0 | K21: 0 | L21: 0 | Q21: Steer value net of selling expenses | S21: =S16-S18-S19-S20 -> 0 | T21: 0 | U21: 0 | V21: 0 | W21: 0 | X21: 0 | Z21: 500 | AA21: 24
F22: =SUMPRODUCT(D16:D21,F16:F21) -> 33284.69849 | H22: =SUM(H16:H21) -> 53255.51758 | Q22: Paddock weight | S22: =S12 -> 466.4 | T22: 0 | U22: 0 | V22: 0 | W22: 0 | X22: 0 | Z22: 550 | AA22: 22
Q23: Selling cost ($ per kg) | S23: =IF(S14>0,(S18+S19+S20)/S14,0) -> 0 | T23: 0 | U23: 0 | V23: 0 | W23: 0 | X23: 0 | Z23: 600 | AA23: 20
Q24: Net value in the paddock ($/kg) | S24: =IF(S22>0,S21/S22,0) -> 0 | T24: 0 | U24: 0 | V24: 0 | W24: 0 | X24: 0 | Z24: 650 | AA24: 18
B26: Costs associated with purchasing steers (complete if stock are specifically purchased to graze the forage)
C28: Purchases | D28: Average weight | E28: Trucking distance inwards (Km) | F28: $ per Km per deck | G28: Rate per deck | H28: Total freight in | I28: Cost per head | J28: Travel costs incurred in finding the mob ($ per mob) | K28: Induction cost ($ per head) | L28: Total induction costs | Z28: Transport cost per head calculator
B29: Mob 1 | C29: =D16 -> 71.36513398 | D29: =F16 -> 466.4 | E29: 189.5 | F29: 1.9 | G29: 26 | H29: =IF(C29>0,C29*E29*F29/G29,0) -> 988.269865 | I29: =IF(C29>0,H29/C29,0) -> 13.84807692 | J29: 0 | K29: 0 | L29: =K29*C29 -> 0
B30: Mob 2 | C30: 0 | D30: 0 | H30: 0 | I30: 0 | J30: 0 | K30: 0 | L30: 0 | Z30: Number transported | AA30: =D16 -> 71.36513398
B31: Mob 3 | C31: 0 | D31: 0 | H31: 0 | I31: 0 | J31: 0 | K31: 0 | L31: 0 | Z31: Distance (Km) | AA31: 200
B32: Mob 4 | C32: 0 | D32: 0 | H32: 0 | I32: 0 | J32: 0 | K32: 0 | L32: 0 | Z32: $ per Km | AA32: 2
B33: Mob 5 | C33: 0 | D33: 0 | H33: 0 | I33: 0 | J33: 0 | K33: 0 | L33: 0 | Z33: Rate on Truck | AA33: 28
B34: Mob 6 | C34: 0 | D34: 0 | H34: 0 | I34: 0 | J34: 0 | K34: 0 | L34: 0 | Z34: Total | AA34: =IF(AA30>0,AA30*AA31*AA32/AA33,0) -> 1019.501914
H35: =SUM(H29:H34) -> 988.269865 | J35: =SUM(J29:J34) -> 0 | L35: =SUM(L29:L34) -> 0 | Z35: Per head | AA35: =IF(AA30>0,AA34/AA30,0) -> 14.28571429
B38: Livestock health and other costs incurred by stock grazing the forage ($ per head)
C40: Number in the mob | D40: Fodder | E40: Ticks | F40: Drench | G40: 5 in 1 | H40: Botulism | I40: Flies | J40: Growth Promotant | K40: Leucaena inoculum | L40: Other | M40: Total
B41: Mob 1 | C41: =D16 -> 71.36513398 | G41: 0.38 | M41: =SUM(D41:L41)*C41 -> 27.11875091
B42: Mob 2 | C42: 0 | M42: 0
B43: Mob 3 | C43: 0 | M43: 0
B44: Mob 4 | C44: 0 | M44: 0
B45: Mob 5 | C45: 0 | M45: 0
B46: Mob 6 | C46: 0 | M46: 0
D47: =SUMPRODUCT($C$41:$C$46,D41:D46) -> 0 | E47: 0 | F47: 0 | G47: 27.11875091 | H47: 0 | I47: 0 | J47: 0 | K47: 0 | L47: 0 | M47: =SUM(M41:M46) -> 27.11875091
B51: Livestock weight and value leaving the paddock
C53: Date leaving the paddock | D53: Total days held | E53: Average weight leaving the paddock (kg /head) | F53: Gain per head (kg) | G53: Gain per day (kg /head /day) | H53: Number leaving the paddock | I53: Calculated Loss percentage | J53: Sale Price ($ per Kg Live) | K53: Gross value per head | L53: Gross value of mob | M53: Liveweight Kgs Sold | N53: Estimated Dressing % | O53: Dressed Weight Sold
B54: Mob 1 | C54: =C16+216 -> 2014-08-05 | D54: =C54-C16 -> 216 | E54: 596 | F54: =E54-F16 -> 129.6 | G54: =IF(F54<=0,0,F54/D54) -> 0.6 | H54: =D16 -> 71.36513398 | I54: =IF(H54<=0,0,(H54-D16)/D16) -> 0 | J54: 1.664 | K54: =J54*E54 -> 991.744 | L54: =K54*H54 -> 70775.94343 | M54: =E54*H54 -> 42533.61985 | N54: 0.52 | O54: =N54*M54 -> 22117.48232
B55: Mob 2 | D55: 0 | F55: 0 | G55: 0 | I55: 0 | K55: 0 | L55: 0 | M55: 0 | N55: 0.52 | O55: 0
B56: Mob 3 | D56: 0 | F56: 0 | G56: 0 | I56: 0 | K56: 0 | L56: 0 | M56: 0 | N56: 0.52 | O56: 0
B57: Mob 4 | D57: 0 | F57: 0 | G57: 0 | I57: 0 | K57: 0 | L57: 0 | M57: 0 | N57: 0.52 | O57: 0
B58: Mob 5 | D58: 0 | F58: 0 | G58: 0 | I58: 0 | K58: 0 | L58: 0 | M58: 0 | N58: 0.52 | O58: 0
B59: Mob 6 | D59: 0 | F59: 0 | G59: 0 | I59: 0 | K59: 0 | L59: 0 | M59: 0 | N59: 0.52 | O59: 0
E60: =SUMPRODUCT(E54:E59,H54:H59) -> 42533.61985 | K60: Total | L60: =SUM(L54:L59) -> 70775.94343 | M60: =SUM(M54:M59) -> 42533.61985 | O60: =SUM(O54:O59) -> 22117.48232
L61: Kilograms of beef purchased | M61: =F22 -> 33284.69849 | O61: =M61*O60/M60 -> 17308.04321
L62: Net beef produced | M62: =M60-M61 -> 9248.921364 | N62: kg live | O62: =O60-O61 -> 4809.439109 | P62: kg dressed
B66: Selling costs
C68: Sales commission (%) | D68: Commission paid | E68: MLA levy ($ per head) | F68: Yard fees ($ per head) | G68: Sale tags (total for mob) | H68: Total sundry selling costs | I68: Trucking distance (Km) | J68: $ per Km per deck | K68: Rate on deck (head) | L68: Total trucking costs | M68: Trucking cost ($ per head)
B69: =B54 -> Mob 1 | D69: =C69*L54 -> 0 | E69: 5 | H69: =(E69*H54)+(F69*H54)+G69 -> 356.8256699 | I69: 421 | J69: 1.9 | K69: 20 | L69: =IF(K69=0,0,IF(H54<=0,0,H54*I69*J69/K69)) -> 2854.248534 | M69: =IF(L69<=0,0,L69/H54) -> 39.995
B70: Mob 2 | D70: 0 | H70: 0 | L70: 0 | M70: 0
B71: Mob 3 | D71: 0 | H71: 0 | L71: 0 | M71: 0
B72: Mob 4 | D72: 0 | H72: 0 | L72: 0 | M72: 0
B73: Mob 5 | D73: 0 | H73: 0 | L73: 0 | M73: 0
B74: Mob 6 | D74: 0 | H74: 0 | L74: 0 | M74: 0
D75: =SUM(D69:D74) -> 0 | H75: =SUM(H69:H74) -> 356.8256699 | L75: =SUM(L69:L74) -> 2854.248534
B79: Opportunity cost of livestock capital calculator
C81: Number | D81: Days grazing | E81: Opening value (per head) | F81: Funds invested | G81: Interest rate | H81: Opportunity cost of livestock
B82: Mob 1 | C82: =C41 -> 71.36513398 | D82: =D54 -> 216 | E82: =G16 -> 746.24 | F82: =E82*C82 -> 53255.51758 | G82: 0.05 | H82: =F82*G82*D82/365 -> 1575.779698
B83: Mob 2 | C83: 0 | D83: 0 | E83: 0 | F83: 0 | G83: 0.05 | H83: 0
B84: Mob 3 | C84: 0 | D84: 0 | E84: 0 | F84: 0 | G84: 0.05 | H84: 0
B85: Mob 4 | C85: 0 | D85: 0 | E85: 0 | F85: 0 | G85: 0.05 | H85: 0
B86: Mob 5 | C86: 0 | D86: 0 | E86: 0 | F86: 0 | G86: 0.05 | H86: 0
B87: Mob 6 | C87: 0 | D87: 0 | E87: 0 | F87: 0 | G87: 0.05 | H87: 0
F88: Total interest forgone | H88: =SUM(H82:H87) -> 1575.779698
B91: Adult Equivalent calculator
C93: Number | D93: Days grazing | E93: Opening weight | F93: Av Final or Sale Kg | G93: Calculated AE rating | H93: Total AEs | I93: Stocking rate (AE per hectare) | J93: (Stocking rate Hectare per AE)
B94: Mob 1 | C94: =C41 -> 71.36513398 | D94: =D54 -> 216 | E94: =F16 -> 466.4 | F94: =E54 -> 596 | G94: =(POWER(((F94+E94)/2),0.75)/97.7) -> 1.132528099 | H94: =D94/365*G94*C94 -> 47.82951292 | I94: =IF(D8<=0,0,H94/$D$8) -> 0.4782951292 | J94: =IF(H94<=0,0,$D$8/H94) -> 2.090759322
B95: Mob 2 | C95: 0 | D95: 0 | E95: 0 | F95: 0 | G95: 0 | H95: 0 | I95: =IF(D8<=0,0,H95/$D$8) -> 0 | J95: 0
B96: Mob 3 | C96: 0 | D96: 0 | E96: 0 | F96: 0 | G96: 0 | H96: 0 | I96: =IF(D8<=0,0,H96/$D$8) -> 0 | J96: 0
B97: Mob 4 | C97: 0 | D97: 0 | E97: 0 | F97: 0 | G97: 0 | H97: 0 | I97: =IF(D8<=0,0,H97/$D$8) -> 0 | J97: 0
B98: Mob 5 | C98: 0 | D98: 0 | E98: 0 | F98: 0 | G98: 0 | H98: 0 | I98: =IF(D8<=0,0,H98/$D$8) -> 0 | J98: 0
B99: Mob 6 | C99: 0 | D99: 0 | E99: 0 | F99: 0 | G99: 0 | H99: 0 | I99: =IF(D8<=0,0,H99/$D$8) -> 0 | J99: 0
G100: Total AE's | H100: =SUM(H94:H99) -> 47.82951292 | I100: =IF(D8<=0,0,H100/$D$8) -> 0.4782951292 | J100: 2.090759322
R102: This side of the worksheet calculates variable costs of the basis of the machinery being owned | Y102: This side of the worksheet automatically calculates costs on the basis of nominal contract rates
B105: Forage variable cost calculator (use to identify growing and maintenance costs of forage)
C107: Machinery FORM + Labour | D107: (use treatments sheet to identify costs) | L107: Forage development cost calculator | N107: Machinery FORM + Labour | Y107: Forage annual variable cost calculator | Z107: Machinery Contract rate | AI107: Forage development cost calculator | AJ107: Machinery Contract rate
B109: Treatment No | C109: Pre planting costs | D109: Rate of application | E109: cost / unit | F109: number of applications | G109: % of forage area treated | H109: per hectare | I109: total | L109: Treatment No | M109: Pre planting costs | N109: Rate of application | O109: cost / unit | P109: number of applications | R109: % of forage area treated | S109: per hectare | T109: total | Y109: Treatment No | Z109: Pre planting costs | AA109: Rate of application | AB109: cost / unit | AC109: number of applications | AD109: % of area treated | AE109: per hectare | AF109: total | AI109: Treatment No | AJ109: Pre planting costs | AK109: Rate of application | AL109: cost / unit | AM109: number of applications | AO109: % of area treated | AP109: per hectare | AQ109: total
C110: =IF(B110<=0,"",VLOOKUP(B110,Treatments!$C$7:$J$407,2)) ->  | E110: =VLOOKUP(B110,Treatments!$C$7:$J$407,8) -> 0 | H110: =D110*E110*F110*G110 -> 0 | I110: =H110*$D$9 -> 0 | L110: 344 | M110: =VLOOKUP(L110,Treatments!$C$7:$J$407,2) -> Linkage spray rig | N110: 1 | O110: =VLOOKUP(L110,Treatments!$C$7:$J$407,8) -> 3.377941176 | P110: 3 | R110: 1 | S110: =N110*O110*P110*R110 -> 10.13382353 | T110: =S110*$D$9 -> 1013.382353 | Y110: =IF(AND(B110>=344,B110<=358),B110+15,B110) -> 0 | Z110: =VLOOKUP(Y110,Treatments!$C$7:$J$407,2) -> No treatment | AA110: =D110 -> 0 | AB110: =VLOOKUP(Y110,Treatments!$C$7:$J$407,8) -> 0 | AC110: =F110 -> 0 | AD110: =G110 -> 0 | AE110: =AA110*AB110*AC110*AD110 -> 0 | AF110: =AE110*$D$9 -> 0 | AI110: =IF(AND(L110>=344,L110<=358),L110+15,L110) -> 359 | AJ110: =VLOOKUP(AI110,Treatments!$C$7:$J$407,2) -> Linkage spray rig | AK110: =N110 -> 1 | AL110: =VLOOKUP(AI110,Treatments!$C$7:$J$407,8) -> 8.01 | AM110: =P110 -> 3 | AO110: =R110 -> 1 | AP110: =AK110*AL110*AM110*AO110 -> 24.03 | AQ110: =AP110*$D$9 -> 2403
C111: =IF(B111<=0,"",VLOOKUP(B111,Treatments!$C$7:$J$407,2)) ->  | E111: =VLOOKUP(B111,Treatments!$C$7:$J$407,8) -> 0 | H111: =D111*E111*F111*G111 -> 0 | I111: =H111*$D$9 -> 0 | L111: 162 | M111: =VLOOKUP(L111,Treatments!$C$7:$J$407,2) -> Roundup CT | N111: 1.5 | O111: =VLOOKUP(L111,Treatments!$C$7:$J$407,8) -> 4.5 | P111: 3 | R111: 1 | S111: 20.25 | T111: 2025 | Y111: =IF(AND(B111>=344,B111<=358),B111+15,B111) -> 0 | Z111: =VLOOKUP(Y111,Treatments!$C$7:$J$407,2) -> No treatment | AA111: =D111 -> 0 | AB111: =VLOOKUP(Y111,Treatments!$C$7:$J$407,8) -> 0 | AC111: =F111 -> 0 | AD111: 0 | AE111: =AA111*AB111*AC111*AD111 -> 0 | AF111: 0 | AI111: 162 | AJ111: =VLOOKUP(AI111,Treatments!$C$7:$J$407,2) -> Roundup CT | AK111: 1.5 | AL111: =VLOOKUP(AI111,Treatments!$C$7:$J$407,8) -> 4.5 | AM111: 3 | AO111: 1 | AP111: 20.25 | AQ111: 2025
C112: =IF(B112<=0,"",VLOOKUP(B112,Treatments!$C$7:$J$407,2)) ->  | E112: =VLOOKUP(B112,Treatments!$C$7:$J$407,8) -> 0 | H112: =D112*E112*F112*G112 -> 0 | I112: 0 | L112: 127 | M112: =VLOOKUP(L112,Treatments!$C$7:$J$407,2) -> Amicide 625 | N112: 0.5 | O112: =VLOOKUP(L112,Treatments!$C$7:$J$407,8) -> 6.82 | P112: 3 | R112: 1 | S112: 10.23 | T112: 1023 | Y112: 0 | Z112: =VLOOKUP(Y112,Treatments!$C$7:$J$407,2) -> No treatment | AA112: 0 | AB112: =VLOOKUP(Y112,Treatments!$C$7:$J$407,8) -> 0 | AC112: 0 | AD112: 0 | AE112: =AA112*AB112*AC112*AD112 -> 0 | AF112: 0 | AI112: 127 | AJ112: =VLOOKUP(AI112,Treatments!$C$7:$J$407,2) -> Amicide 625 | AK112: 0.5 | AL112: =VLOOKUP(AI112,Treatments!$C$7:$J$407,8) -> 6.82 | AM112: 3 | AO112: 1 | AP112: 10.23 | AQ112: 1023
C113: =IF(B113<=0,"",VLOOKUP(B113,Treatments!$C$7:$J$407,2)) ->  | E113: =VLOOKUP(B113,Treatments!$C$7:$J$407,8) -> 0 | H113: 0 | I113: 0 | L113: 346 | M113: =VLOOKUP(L113,Treatments!$C$7:$J$407,2) -> Tyne cultivator | N113: 1 | O113: =VLOOKUP(L113,Treatments!$C$7:$J$407,8) -> 16.225 | P113: 1 | R113: 1 | S113: 16.225 | T113: 1622.5 | Y113: 0 | Z113: =VLOOKUP(Y113,Treatments!$C$7:$J$407,2) -> No treatment | AA113: 0 | AB113: =VLOOKUP(Y113,Treatments!$C$7:$J$407,8) -> 0 | AC113: 0 | AD113: 0 | AE113: 0 | AF113: 0 | AI113: 361 | AJ113: =VLOOKUP(AI113,Treatments!$C$7:$J$407,2) -> Tyne cultivator | AK113: 1 | AL113: =VLOOKUP(AI113,Treatments!$C$7:$J$407,8) -> 35.095 | AM113: 1 | AO113: 1 | AP113: 35.095 | AQ113: 3509.5
C114: =IF(B114<=0,"",VLOOKUP(B114,Treatments!$C$7:$J$407,2)) ->  | E114: =VLOOKUP(B114,Treatments!$C$7:$J$407,8) -> 0 | H114: 0 | I114: 0 | L114: 347 | M114: =VLOOKUP(L114,Treatments!$C$7:$J$407,2) -> Chisel plough | N114: 1 | O114: =VLOOKUP(L114,Treatments!$C$7:$J$407,8) -> 30.25714286 | P114: 2 | R114: 1 | S114: 60.51428571 | T114: 6051.428571 | Y114: 0 | Z114: =VLOOKUP(Y114,Treatments!$C$7:$J$407,2) -> No treatment | AA114: 0 | AB114: =VLOOKUP(Y114,Treatments!$C$7:$J$407,8) -> 0 | AC114: 0 | AD114: 0 | AE114: 0 | AF114: 0 | AI114: 362 | AJ114: =VLOOKUP(AI114,Treatments!$C$7:$J$407,2) -> Chisel plough | AK114: 1 | AL114: =VLOOKUP(AI114,Treatments!$C$7:$J$407,8) -> 56.46285714 | AM114: 2 | AO114: 1 | AP114: 112.9257143 | AQ114: 11292.57143
C115: =IF(B115<=0,"",VLOOKUP(B115,Treatments!$C$7:$J$407,2)) ->  | E115: =VLOOKUP(B115,Treatments!$C$7:$J$407,8) -> 0 | H115: 0 | I115: 0 | M115: =VLOOKUP(L115,Treatments!$C$7:$J$407,2) -> No treatment | O115: =VLOOKUP(L115,Treatments!$C$7:$J$407,8) -> 0 | R115: 1 | S115: 0 | T115: 0 | Y115: 0 | Z115: =VLOOKUP(Y115,Treatments!$C$7:$J$407,2) -> No treatment | AA115: 0 | AB115: =VLOOKUP(Y115,Treatments!$C$7:$J$407,8) -> 0 | AC115: 0 | AD115: 0 | AE115: 0 | AF115: 0 | AI115: 0 | AJ115: =VLOOKUP(AI115,Treatments!$C$7:$J$407,2) -> No treatment | AK115: 0 | AL115: =VLOOKUP(AI115,Treatments!$C$7:$J$407,8) -> 0 | AM115: 0 | AO115: 1 | AP115: 0 | AQ115: 0
C116: =IF(B116<=0,"",VLOOKUP(B116,Treatments!$C$7:$J$407,2)) ->  | E116: =VLOOKUP(B116,Treatments!$C$7:$J$407,8) -> 0 | H116: 0 | I116: 0 | Y116: 0 | Z116: =VLOOKUP(Y116,Treatments!$C$7:$J$407,2) -> No treatment | AA116: 0 | AB116: =VLOOKUP(Y116,Treatments!$C$7:$J$407,8) -> 0 | AC116: 0 | AD116: 0 | AE116: 0 | AF116: 0
C117: =IF(B117<=0,"",VLOOKUP(B117,Treatments!$C$7:$J$407,2)) ->  | E117: =VLOOKUP(B117,Treatments!$C$7:$J$407,8) -> 0 | H117: 0 | I117: 0 | L117: Treatment No | M117: Planting Costs | N117: Rate of application | O117: cost / unit | P117: number of applications | R117: % of area treated | Y117: 0 | Z117: =VLOOKUP(Y117,Treatments!$C$7:$J$407,2) -> No treatment | AA117: 0 | AB117: =VLOOKUP(Y117,Treatments!$C$7:$J$407,8) -> 0 | AC117: 0 | AD117: 0 | AE117: 0 | AF117: 0 | AI117: Treatment No | AJ117: Planting Costs | AK117: Rate of application | AL117: cost / unit | AM117: number of applications | AO117: % of area treated
C118: =IF(B118<=0,"",VLOOKUP(B118,Treatments!$C$7:$J$407,2)) ->  | E118: =VLOOKUP(B118,Treatments!$C$7:$J$407,8) -> 0 | H118: 0 | I118: 0 | L118: 345 | M118: =VLOOKUP(L118,Treatments!$C$7:$J$407,2) -> No till seeder | N118: 1 | O118: =VLOOKUP(L118,Treatments!$C$7:$J$407,8) -> 12.3 | P118: 1 | R118: 1 | S118: =N118*O118*P118*R118 -> 12.3 | T118: =S118*$D$9 -> 1230 | Y118: 0 | Z118: =VLOOKUP(Y118,Treatments!$C$7:$J$407,2) -> No treatment | AA118: 0 | AB118: =VLOOKUP(Y118,Treatments!$C$7:$J$407,8) -> 0 | AC118: 0 | AD118: 0 | AE118: 0 | AF118: 0 | AI118: =IF(AND(L118>=344,L118<=358),L118+15,L118) -> 360 | AJ118: =VLOOKUP(AI118,Treatments!$C$7:$J$407,2) -> No till seeder | AK118: =N118 -> 1 | AL118: =VLOOKUP(AI118,Treatments!$C$7:$J$407,8) -> 32.0825 | AM118: =P118 -> 1 | AO118: =R118 -> 1 | AP118: =AK118*AL118*AM118*AO118 -> 32.0825 | AQ118: =AP118*$D$9 -> 3208.25
C119: =IF(B119<=0,"",VLOOKUP(B119,Treatments!$C$7:$J$407,2)) ->  | E119: =VLOOKUP(B119,Treatments!$C$7:$J$407,8) -> 0 | H119: 0 | I119: 0 | L119: 279 | M119: =VLOOKUP(L119,Treatments!$C$7:$J$407,2) -> Butterfly pea seed | N119: 10 | O119: =VLOOKUP(L119,Treatments!$C$7:$J$407,8) -> 3.5 | P119: 1 | R119: 1 | S119: =N119*O119*P119*R119 -> 35 | T119: =S119*$D$9 -> 3500 | Y119: 0 | Z119: =VLOOKUP(Y119,Treatments!$C$7:$J$407,2) -> No treatment | AA119: 0 | AB119: =VLOOKUP(Y119,Treatments!$C$7:$J$407,8) -> 0 | AC119: 0 | AD119: 0 | AE119: 0 | AF119: 0 | AI119: 279 | AJ119: =VLOOKUP(AI119,Treatments!$C$7:$J$407,2) -> Butterfly pea seed | AK119: 10 | AL119: =VLOOKUP(AI119,Treatments!$C$7:$J$407,8) -> 3.5 | AM119: 1 | AO119: 1 | AP119: =AK119*AL119*AM119*AO119 -> 35 | AQ119: 3500
C120: =IF(B120<=0,"",VLOOKUP(B120,Treatments!$C$7:$J$407,2)) ->  | E120: =VLOOKUP(B120,Treatments!$C$7:$J$407,8) -> 0 | H120: 0 | I120: 0 | M120: =VLOOKUP(L120,Treatments!$C$7:$J$407,2) -> No treatment | O120: =VLOOKUP(L120,Treatments!$C$7:$J$407,8) -> 0 | S120: 0 | T120: 0 | Y120: 0 | Z120: =VLOOKUP(Y120,Treatments!$C$7:$J$407,2) -> No treatment | AA120: 0 | AB120: =VLOOKUP(Y120,Treatments!$C$7:$J$407,8) -> 0 | AC120: 0 | AD120: 0 | AE120: 0 | AF120: 0 | AI120: 0 | AJ120: =VLOOKUP(AI120,Treatments!$C$7:$J$407,2) -> No treatment | AK120: 0 | AL120: =VLOOKUP(AI120,Treatments!$C$7:$J$407,8) -> 0 | AM120: 0 | AO120: 0 | AP120: 0 | AQ120: 0
C121: =IF(B121<=0,"",VLOOKUP(B121,Treatments!$C$7:$J$407,2)) ->  | E121: =VLOOKUP(B121,Treatments!$C$7:$J$407,8) -> 0 | H121: 0 | I121: 0 | M121: =VLOOKUP(L121,Treatments!$C$7:$J$407,2) -> No treatment | O121: =VLOOKUP(L121,Treatments!$C$7:$J$407,8) -> 0 | S121: 0 | T121: 0 | Y121: 0 | Z121: =VLOOKUP(Y121,Treatments!$C$7:$J$407,2) -> No treatment | AA121: 0 | AB121: =VLOOKUP(Y121,Treatments!$C$7:$J$407,8) -> 0 | AC121: 0 | AD121: 0 | AE121: 0 | AF121: 0 | AI121: 0 | AJ121: =VLOOKUP(AI121,Treatments!$C$7:$J$407,2) -> No treatment | AK121: 0 | AL121: =VLOOKUP(AI121,Treatments!$C$7:$J$407,8) -> 0 | AM121: 0 | AO121: 0 | AP121: 0 | AQ121: 0
C122: =IF(B122<=0,"",VLOOKUP(B122,Treatments!$C$7:$J$407,2)) ->  | E122: =VLOOKUP(B122,Treatments!$C$7:$J$407,8) -> 0 | H122: 0 | I122: 0 | M122: =VLOOKUP(L122,Treatments!$C$7:$J$407,2) -> No treatment | O122: =VLOOKUP(L122,Treatments!$C$7:$J$407,8) -> 0 | S122: 0 | T122: 0 | Y122: 0 | Z122: =VLOOKUP(Y122,Treatments!$C$7:$J$407,2) -> No treatment | AA122: 0 | AB122: =VLOOKUP(Y122,Treatments!$C$7:$J$407,8) -> 0 | AC122: 0 | AD122: 0 | AE122: 0 | AF122: 0 | AI122: 0 | AJ122: =VLOOKUP(AI122,Treatments!$C$7:$J$407,2) -> No treatment | AK122: 0 | AL122: =VLOOKUP(AI122,Treatments!$C$7:$J$407,8) -> 0 | AM122: 0 | AO122: 0 | AP122: 0 | AQ122: 0
C123: =IF(B123<=0,"",VLOOKUP(B123,Treatments!$C$7:$J$407,2)) ->  | E123: =VLOOKUP(B123,Treatments!$C$7:$J$407,8) -> 0 | H123: =D123*E123*F123*G123 -> 0 | I123: 0 | L123: 344 | M123: =VLOOKUP(L123,Treatments!$C$7:$J$407,2) -> Linkage spray rig | N123: 1 | O123: =VLOOKUP(L123,Treatments!$C$7:$J$407,8) -> 3.377941176 | P123: 1 | R123: 1 | S123: 3.377941176 | T123: 337.7941176 | Y123: 0 | Z123: =VLOOKUP(Y123,Treatments!$C$7:$J$407,2) -> No treatment | AA123: 0 | AB123: =VLOOKUP(Y123,Treatments!$C$7:$J$407,8) -> 0 | AC123: 0 | AD123: 0 | AE123: =AA123*AB123*AC123*AD123 -> 0 | AF123: 0 | AI123: 359 | AJ123: =VLOOKUP(AI123,Treatments!$C$7:$J$407,2) -> Linkage spray rig | AK123: 1 | AL123: =VLOOKUP(AI123,Treatments!$C$7:$J$407,8) -> 8.01 | AM123: 1 | AO123: 1 | AP123: 8.01 | AQ123: 801
C124: =IF(B124<=0,"",VLOOKUP(B124,Treatments!$C$7:$J$407,2)) ->  | E124: =VLOOKUP(B124,Treatments!$C$7:$J$407,8) -> 0 | H124: =D124*E124*F124*G124 -> 0 | I124: 0 | L124: 171 | M124: =VLOOKUP(L124,Treatments!$C$7:$J$407,2) -> Spinnaker | N124: 0.15 | O124: =VLOOKUP(L124,Treatments!$C$7:$J$407,8) -> 255 | P124: 1 | R124: 1 | S124: 38.25 | T124: 3825 | Y124: 0 | Z124: =VLOOKUP(Y124,Treatments!$C$7:$J$407,2) -> No treatment | AA124: 0 | AB124: =VLOOKUP(Y124,Treatments!$C$7:$J$407,8) -> 0 | AC124: 0 | AD124: 0 | AE124: =AA124*AB124*AC124*AD124 -> 0 | AF124: 0 | AI124: 171 | AJ124: =VLOOKUP(AI124,Treatments!$C$7:$J$407,2) -> Spinnaker | AK124: 0.15 | AL124: =VLOOKUP(AI124,Treatments!$C$7:$J$407,8) -> 255 | AM124: 1 | AO124: 1 | AP124: 38.25 | AQ124: 3825
M125: =VLOOKUP(L125,Treatments!$C$7:$J$407,2) -> No treatment | O125: =VLOOKUP(L125,Treatments!$C$7:$J$407,8) -> 0 | S125: 0 | T125: 0 | AI125: 0 | AJ125: =VLOOKUP(AI125,Treatments!$C$7:$J$407,2) -> No treatment | AK125: 0 | AL125: =VLOOKUP(AI125,Treatments!$C$7:$J$407,8) -> 0 | AM125: 0 | AO125: 0 | AP125: 0 | AQ125: 0
B126: Treatment No | C126: Planting Costs | D126: Rate of application | E126: cost / unit | F126: number of applications | G126: % of area treated | M126: =VLOOKUP(L126,Treatments!$C$7:$J$407,2) -> No treatment | N126: 1 | O126: =VLOOKUP(L126,Treatments!$C$7:$J$407,8) -> 0 | P126: 1 | R126: 1 | S126: 0 | T126: 0 | Y126: Treatment No | Z126: Planting Costs | AA126: Rate of application | AB126: cost / unit | AC126: number of applications | AD126: % of area treated | AI126: 0 | AJ126: =VLOOKUP(AI126,Treatments!$C$7:$J$407,2) -> No treatment | AK126: 1 | AL126: =VLOOKUP(AI126,Treatments!$C$7:$J$407,8) -> 0 | AM126: 1 | AO126: 1 | AP126: 0 | AQ126: 0
C127: =IF(B127<=0,"",VLOOKUP(B127,Treatments!$C$7:$J$407,2)) ->  | E127: =VLOOKUP(B127,Treatments!$C$7:$J$407,8) -> 0 | H127: =D127*E127*F127*G127 -> 0 | I127: =H127*$D$9 -> 0 | M127: =VLOOKUP(L127,Treatments!$C$7:$J$407,2) -> No treatment | O127: =VLOOKUP(L127,Treatments!$C$7:$J$407,8) -> 0 | R127: 0 | S127: 0 | T127: 0 | Y127: =IF(AND(B127>=344,B127<=358),B127+15,B127) -> 0 | Z127: =VLOOKUP(Y127,Treatments!$C$7:$J$407,2) -> No treatment | AA127: =D127 -> 0 | AB127: =VLOOKUP(Y127,Treatments!$C$7:$J$407,8) -> 0 | AC127: =F127 -> 0 | AD127: 0 | AE127: =AA127*AB127*AC127*AD127 -> 0 | AF127: =AE127*$D$9 -> 0 | AI127: 0 | AJ127: =VLOOKUP(AI127,Treatments!$C$7:$J$407,2) -> No treatment | AK127: 0 | AL127: =VLOOKUP(AI127,Treatments!$C$7:$J$407,8) -> 0 | AM127: 0 | AO127: 0 | AP127: 0 | AQ127: 0
C128: =IF(B128<=0,"",VLOOKUP(B128,Treatments!$C$7:$J$407,2)) ->  | E128: =VLOOKUP(B128,Treatments!$C$7:$J$407,8) -> 0 | H128: 0 | I128: =H128*$D$9 -> 0 | L128: 310 | M128: =VLOOKUP(L128,Treatments!$C$7:$J$407,2) -> Butterfly pea inoculant | N128: 1 | O128: =VLOOKUP(L128,Treatments!$C$7:$J$407,8) -> 0.48 | P128: 1 | R128: 1 | S128: 0.48 | T128: 48 | Y128: =IF(AND(B128>=344,B128<=358),B128+15,B128) -> 0 | Z128: =VLOOKUP(Y128,Treatments!$C$7:$J$407,2) -> No treatment | AA128: 0 | AB128: =VLOOKUP(Y128,Treatments!$C$7:$J$407,8) -> 0 | AC128: 0 | AD128: 0 | AE128: 0 | AF128: 0 | AI128: 310 | AJ128: =VLOOKUP(AI128,Treatments!$C$7:$J$407,2) -> Butterfly pea inoculant | AK128: 1 | AL128: =VLOOKUP(AI128,Treatments!$C$7:$J$407,8) -> 0.48 | AM128: 1 | AO128: 1 | AP128: 0.48 | AQ128: 48
C129: =IF(B129<=0,"",VLOOKUP(B129,Treatments!$C$7:$J$407,2)) ->  | E129: =VLOOKUP(B129,Treatments!$C$7:$J$407,8) -> 0 | H129: 0 | I129: 0 | M129: =VLOOKUP(L129,Treatments!$C$7:$J$407,2) -> No treatment | O129: =VLOOKUP(L129,Treatments!$C$7:$J$407,8) -> 0 | R129: 0 | S129: 0 | T129: 0 | Y129: 0 | Z129: =VLOOKUP(Y129,Treatments!$C$7:$J$407,2) -> No treatment | AA129: 0 | AB129: =VLOOKUP(Y129,Treatments!$C$7:$J$407,8) -> 0 | AC129: 0 | AD129: 0 | AE129: 0 | AF129: 0 | AI129: 0 | AJ129: =VLOOKUP(AI129,Treatments!$C$7:$J$407,2) -> No treatment | AK129: 0 | AL129: =VLOOKUP(AI129,Treatments!$C$7:$J$407,8) -> 0 | AM129: 0 | AO129: 0 | AP129: 0 | AQ129: 0
C130: =IF(B130<=0,"",VLOOKUP(B130,Treatments!$C$7:$J$407,2)) ->  | E130: =VLOOKUP(B130,Treatments!$C$7:$J$407,8) -> 0 | H130: 0 | I130: 0 | Y130: 0 | Z130: =VLOOKUP(Y130,Treatments!$C$7:$J$407,2) -> No treatment | AA130: 0 | AB130: =VLOOKUP(Y130,Treatments!$C$7:$J$407,8) -> 0 | AC130: 0 | AD130: 0 | AE130: 0 | AF130: 0
C131: =IF(B131<=0,"",VLOOKUP(B131,Treatments!$C$7:$J$407,2)) ->  | E131: =VLOOKUP(B131,Treatments!$C$7:$J$407,8) -> 0 | H131: 0 | I131: 0 | L131: Treatment No | M131: Post Planting Costs | N131: Rate of application | O131: cost / unit | P131: number of applications | R131: % of area treated | Y131: 0 | Z131: =VLOOKUP(Y131,Treatments!$C$7:$J$407,2) -> No treatment | AA131: 0 | AB131: =VLOOKUP(Y131,Treatments!$C$7:$J$407,8) -> 0 | AC131: 0 | AD131: 0 | AE131: 0 | AF131: 0 | AI131: Treatment No | AJ131: Post Planting Costs | AK131: Rate of application | AL131: cost / unit | AM131: number of applications | AO131: % of area treated
C132: =IF(B132<=0,"",VLOOKUP(B132,Treatments!$C$7:$J$407,2)) ->  | E132: =VLOOKUP(B132,Treatments!$C$7:$J$407,8) -> 0 | H132: 0 | I132: 0 | M132: =VLOOKUP(L132,Treatments!$C$7:$J$407,2) -> No treatment | O132: =VLOOKUP(L132,Treatments!$C$7:$J$407,8) -> 0 | R132: 0 | S132: =N132*O132*P132*R132 -> 0 | T132: =S132*$D$9 -> 0 | Y132: 0 | Z132: =VLOOKUP(Y132,Treatments!$C$7:$J$407,2) -> No treatment | AA132: 0 | AB132: =VLOOKUP(Y132,Treatments!$C$7:$J$407,8) -> 0 | AC132: 0 | AD132: 0 | AE132: 0 | AF132: 0 | AI132: =IF(AND(L132>=344,L132<=358),L132+15,L132) -> 0 | AJ132: =VLOOKUP(AI132,Treatments!$C$7:$J$407,2) -> No treatment | AK132: =N132 -> 0 | AL132: =VLOOKUP(AI132,Treatments!$C$7:$J$407,8) -> 0 | AM132: =P132 -> 0 | AO132: =R132 -> 0 | AP132: =AK132*AL132*AM132*AO132 -> 0 | AQ132: =AP132*$D$9 -> 0
C133: =IF(B133<=0,"",VLOOKUP(B133,Treatments!$C$7:$J$407,2)) ->  | E133: =VLOOKUP(B133,Treatments!$C$7:$J$407,8) -> 0 | H133: 0 | I133: 0 | L133: 286 | M133: =VLOOKUP(L133,Treatments!$C$7:$J$407,2) -> Grass seed | N133: 2 | O133: =VLOOKUP(L133,Treatments!$C$7:$J$407,8) -> 17 | P133: 1 | R133: 1 | S133: 34 | T133: 3400 | Y133: 0 | Z133: =VLOOKUP(Y133,Treatments!$C$7:$J$407,2) -> No treatment | AA133: 0 | AB133: =VLOOKUP(Y133,Treatments!$C$7:$J$407,8) -> 0 | AC133: 0 | AD133: 0 | AE133: 0 | AF133: 0 | AI133: 286 | AJ133: =VLOOKUP(AI133,Treatments!$C$7:$J$407,2) -> Grass seed | AK133: 2 | AL133: =VLOOKUP(AI133,Treatments!$C$7:$J$407,8) -> 17 | AM133: 1 | AO133: 1 | AP133: 34 | AQ133: 3400
C134: =IF(B134<=0,"",VLOOKUP(B134,Treatments!$C$7:$J$407,2)) ->  | E134: =VLOOKUP(B134,Treatments!$C$7:$J$407,8) -> 0 | H134: 0 | I134: 0 | L134: 365 | M134: =VLOOKUP(L134,Treatments!$C$7:$J$407,2) -> Grass planter | N134: 1 | O134: =VLOOKUP(L134,Treatments!$C$7:$J$407,8) -> 11.097 | P134: 1 | R134: 1 | S134: 11.097 | T134: 1109.7 | Y134: 0 | Z134: =VLOOKUP(Y134,Treatments!$C$7:$J$407,2) -> No treatment | AA134: 0 | AB134: =VLOOKUP(Y134,Treatments!$C$7:$J$407,8) -> 0 | AC134: 0 | AD134: 0 | AE134: 0 | AF134: 0 | AI134: 365 | AJ134: =VLOOKUP(AI134,Treatments!$C$7:$J$407,2) -> Grass planter | AK134: 1 | AL134: =VLOOKUP(AI134,Treatments!$C$7:$J$407,8) -> 11.097 | AM134: 1 | AO134: 1 | AP134: 11.097 | AQ134: 1109.7
C135: =IF(B135<=0,"",VLOOKUP(B135,Treatments!$C$7:$J$407,2)) ->  | E135: =VLOOKUP(B135,Treatments!$C$7:$J$407,8) -> 0 | H135: 0 | I135: 0 | M135: =VLOOKUP(L135,Treatments!$C$7:$J$407,2) -> No treatment | O135: =VLOOKUP(L135,Treatments!$C$7:$J$407,8) -> 0 | R135: 0.8 | S135: 0 | T135: 0 | Y135: 0 | Z135: =VLOOKUP(Y135,Treatments!$C$7:$J$407,2) -> No treatment | AA135: 0 | AB135: =VLOOKUP(Y135,Treatments!$C$7:$J$407,8) -> 0 | AC135: 0 | AD135: 0 | AE135: 0 | AF135: 0 | AI135: 0 | AJ135: =VLOOKUP(AI135,Treatments!$C$7:$J$407,2) -> No treatment | AK135: 0 | AL135: =VLOOKUP(AI135,Treatments!$C$7:$J$407,8) -> 0 | AM135: 0 | AO135: 0.8 | AP135: 0 | AQ135: 0
C136: =IF(B136<=0,"",VLOOKUP(B136,Treatments!$C$7:$J$407,2)) ->  | E136: =VLOOKUP(B136,Treatments!$C$7:$J$407,8) -> 0 | H136: 0 | I136: 0 | M136: =VLOOKUP(L136,Treatments!$C$7:$J$407,2) -> No treatment | O136: =VLOOKUP(L136,Treatments!$C$7:$J$407,8) -> 0 | S136: 0 | T136: 0 | Y136: 0 | Z136: =VLOOKUP(Y136,Treatments!$C$7:$J$407,2) -> No treatment | AA136: 0 | AB136: =VLOOKUP(Y136,Treatments!$C$7:$J$407,8) -> 0 | AC136: 0 | AD136: 0 | AE136: 0 | AF136: 0 | AI136: 0 | AJ136: =VLOOKUP(AI136,Treatments!$C$7:$J$407,2) -> No treatment | AK136: 0 | AL136: =VLOOKUP(AI136,Treatments!$C$7:$J$407,8) -> 0 | AM136: 0 | AO136: 0 | AP136: 0 | AQ136: 0
C137: =IF(B137<=0,"",VLOOKUP(B137,Treatments!$C$7:$J$407,2)) ->  | E137: =VLOOKUP(B137,Treatments!$C$7:$J$407,8) -> 0 | H137: 0 | I137: 0 | M137: =VLOOKUP(L137,Treatments!$C$7:$J$407,2) -> No treatment | O137: =VLOOKUP(L137,Treatments!$C$7:$J$407,8) -> 0 | S137: 0 | T137: 0 | Y137: 0 | Z137: =VLOOKUP(Y137,Treatments!$C$7:$J$407,2) -> No treatment | AA137: 0 | AB137: =VLOOKUP(Y137,Treatments!$C$7:$J$407,8) -> 0 | AC137: 0 | AD137: 0 | AE137: 0 | AF137: 0 | AI137: 0 | AJ137: =VLOOKUP(AI137,Treatments!$C$7:$J$407,2) -> No treatment | AK137: 0 | AL137: =VLOOKUP(AI137,Treatments!$C$7:$J$407,8) -> 0 | AM137: 0 | AO137: 0 | AP137: 0 | AQ137: 0
C138: =IF(B138<=0,"",VLOOKUP(B138,Treatments!$C$7:$J$407,2)) ->  | E138: =VLOOKUP(B138,Treatments!$C$7:$J$407,8) -> 0 | H138: 0 | I138: 0 | N138: Total direct development costs | S138: =SUM(S110:S137) -> 251.8580504 | T138: 25185.80504 | Y138: 0 | Z138: =VLOOKUP(Y138,Treatments!$C$7:$J$407,2) -> No treatment | AA138: 0 | AB138: =VLOOKUP(Y138,Treatments!$C$7:$J$407,8) -> 0 | AC138: 0 | AD138: 0 | AE138: 0 | AF138: 0 | AK138: Total direct development costs | AP138: =SUM(AP110:AP137) -> 361.4502143 | AQ138: =SUM(AQ110:AQ137) -> 36145.02143
B140: Treatment No | C140: Post Planting Costs | D140: Rate of application | E140: cost / unit | F140: number of applications | G140: % of area treated | Y140: Treatment No | Z140: Post Planting Costs | AA140: Rate of application | AB140: cost / unit | AC140: number of applications | AD140: % of area treated
C141: =IF(B141<=0,"",VLOOKUP(B141,Treatments!$C$7:$J$407,2)) ->  | E141: =VLOOKUP(B141,Treatments!$C$7:$J$407,8) -> 0 | H141: =D141*E141*F141*G141 -> 0 | I141: =H141*$D$9 -> 0 | R141: Grazing foregone for development (buffel grass gross margin) | T141: =S141*$D$9 -> 0 | Y141: =IF(AND(B141>=344,B141<=358),B141+15,B141) -> 0 | Z141: =VLOOKUP(Y141,Treatments!$C$7:$J$407,2) -> No treatment | AA141: =D141 -> 0 | AB141: =VLOOKUP(Y141,Treatments!$C$7:$J$407,8) -> 0 | AC141: =F141 -> 0 | AD141: =G141 -> 0 | AE141: =AA141*AB141*AC141*AD141 -> 0 | AF141: =AE141*$D$9 -> 0 | AO141: Grazing foregone for development (buffel grass gross margin) | AP141: =S141 -> 0 | AQ141: =AP141*$D$9 -> 0
C142: =IF(B142<=0,"",VLOOKUP(B142,Treatments!$C$7:$J$407,2)) ->  | E142: =VLOOKUP(B142,Treatments!$C$7:$J$407,8) -> 0 | H142: 0 | I142: =H142*$D$9 -> 0 | Q142: Opportunity cost of development capital | R142: 0.05 | S142: =S141+S140+S138 -> 251.8580504 | T142: =T141+T140+T138 -> 25185.80504 | Y142: 0 | Z142: =VLOOKUP(Y142,Treatments!$C$7:$J$407,2) -> No treatment | AA142: =D142 -> 0 | AB142: =VLOOKUP(Y142,Treatments!$C$7:$J$407,8) -> 0 | AC142: =F142 -> 0 | AD142: 0 | AE142: 0 | AF142: 0 | AN142: Opportunity cost of development capital | AO142: =R142 -> 0.05 | AP142: =AP141+AP140+AP138 -> 361.4502143 | AQ142: =AQ141+AQ140+AQ138 -> 36145.02143
C143: =IF(B143<=0,"",VLOOKUP(B143,Treatments!$C$7:$J$407,2)) ->  | E143: =VLOOKUP(B143,Treatments!$C$7:$J$407,8) -> 0 | H143: 0 | I143: 0 | O143: Amortised development costs | P143: life of forage | Q143: 5 | R143: years | S143: =PMT(R142,Q143,S142)*-1 -> 58.17286235 | T143: per hectare per annum | Y143: 0 | Z143: =VLOOKUP(Y143,Treatments!$C$7:$J$407,2) -> No treatment | AA143: 0 | AB143: =VLOOKUP(Y143,Treatments!$C$7:$J$407,8) -> 0 | AC143: 0 | AD143: 0 | AE143: 0 | AF143: 0 | AL143: Amortised development costs | AM143: life of forage | AN143: =Q143 -> 5 | AO143: years | AP143: =PMT(AO142,AN143,AP142)*-1 -> 83.48589028 | AQ143: per hectare per annum
C144: =IF(B144<=0,"",VLOOKUP(B144,Treatments!$C$7:$J$407,2)) ->  | E144: =VLOOKUP(B144,Treatments!$C$7:$J$407,8) -> 0 | H144: 0 | I144: 0 | Y144: 0 | Z144: =VLOOKUP(Y144,Treatments!$C$7:$J$407,2) -> No treatment | AA144: 0 | AB144: =VLOOKUP(Y144,Treatments!$C$7:$J$407,8) -> 0 | AC144: 0 | AD144: 0 | AE144: 0 | AF144: 0
C145: =IF(B145<=0,"",VLOOKUP(B145,Treatments!$C$7:$J$407,2)) ->  | E145: =VLOOKUP(B145,Treatments!$C$7:$J$407,8) -> 0 | H145: 0 | I145: 0 | Y145: 0 | Z145: =VLOOKUP(Y145,Treatments!$C$7:$J$407,2) -> No treatment | AA145: 0 | AB145: =VLOOKUP(Y145,Treatments!$C$7:$J$407,8) -> 0 | AC145: 0 | AD145: 0 | AE145: 0 | AF145: 0
C146: =IF(B146<=0,"",VLOOKUP(B146,Treatments!$C$7:$J$407,2)) ->  | E146: =VLOOKUP(B146,Treatments!$C$7:$J$407,8) -> 0 | H146: 0 | I146: 0 | Y146: 0 | Z146: =VLOOKUP(Y146,Treatments!$C$7:$J$407,2) -> No treatment | AA146: 0 | AB146: =VLOOKUP(Y146,Treatments!$C$7:$J$407,8) -> 0 | AC146: 0 | AD146: 0 | AE146: 0 | AF146: 0
C147: Amortised development costs | D147: 1 | E147: =S143 -> 58.17286235 | F147: 1 | G147: 1 | H147: 58.17286235 | I147: 5817.286235 | Z147: Amortised development costs | AA147: 1 | AB147: =AP143 -> 83.48589028 | AC147: 1 | AD147: 1 | AE147: 83.48589028 | AF147: 8348.589028
F148: Total forage annual costs | H148: =SUM(H110:H147) -> 58.17286235 | I148: =SUM(I110:I147) -> 5817.286235 | L148: Development costs are added to the estimate of forage variable costs as amortised costs | AC148: Total forage annual costs | AE148: =SUM(AE110:AE147) -> 83.48589028 | AF148: =SUM(AF110:AF147) -> 8348.589028
L149: Machinery costs incurred during the development phase can be added from the Treatments worksheet - see rows 350 to 380
L151: The expected life of the forage and the opportunity cost of development capital are used to calculate the amortised cost of the forage development phase.
B153: Gross margin calculation | G153: Gross margin calculation | L153: Where a period of grazing is forgone during the development phase, an amount equal to the annual Buffel grass gross margin can be added to the costs of developing the forage.
B154: Owner rate | D154: Total | E154: per ha per annum | G154: Machinery Contract rate | I154: Total | J154: per ha per annum | L154: See the Leucaena and Butterfly pea gross margins to see how development costs can be incorporated in the analysis of relative profitability
B155: Livestock Sales | D155: =L60 -> 70775.94343 | E155: =D155/$D$8 -> 707.7594343 | G155: Livestock Sales | I155: =D155 -> 70775.94343 | J155: 707.7594343 | L155: More detailed investment analysis techniques should be applied prior to an investment in long lived forage crops before a final decision is made to commit resources to their production.
B156: Livestock Purchases | D156: =H22 -> 53255.51758 | E156: =D156/$D$8 -> 532.5551758 | G156: Livestock Purchases | I156: 53255.51758 | J156: 532.5551758
B157: Freight In, purchase costs | D157: =H35+J35+L35 -> 988.269865 | E157: 9.88269865 | G157: Freight In | I157: 988.269865 | J157: 9.88269865
B158: Freight Out | D158: =L75 -> 2854.248534 | E158: 28.54248534 | G158: Freight Out | I158: 2854.248534 | J158: 28.54248534
B159: Treatment Expenses | D159: =M47 -> 27.11875091 | E159: 0.2711875091 | G159: Treatment Expenses | I159: 27.11875091 | J159: 0.2711875091
B160: Selling Expenses | D160: =D75+H75 -> 356.8256699 | E160: 3.568256699 | G160: Selling Expenses | I160: 356.8256699 | J160: 3.568256699
B161: Forage growing costs | D161: =I148 -> 5817.286235 | E161: 58.17286235 | G161: Forage annual contract costs | I161: =AF148 -> 8348.589028 | J161: =I161/$D$8 -> 83.48589028
B162: Total Expenses | D162: =SUM(D156:D161) -> 63299.26664 | E162: 632.9926664 | G162: Total Expenses | I162: =SUM(I156:I161) -> 65830.56943 | J162: =I162/D8 -> 658.3056943
B164: Gross Margin | D164: =D155-D162 -> 7476.676798 | E164: =D164/D8 -> 74.76676798 | G164: Gross Margin | I164: =I155-I162 -> 4945.374006 | J164: =I164/$D$8 -> 49.45374006
B165: Interest foregone on livestock capital | D165: =H88 -> 1575.779698 | E165: =D165/D8 -> 15.75779698 | G165: Interest foregone on livestock capital | I165: =H88 -> 1575.779698
B166: Gross Margin per annum (after Interest) | D166: =D164-D165 -> 5900.8971 | E166: =D166/$D$8 -> 59.008971 | G166: Gross Margin (after Interest) | I166: =I164-I165 -> 3369.594307 | J166: =I166/$D$8 -> 33.69594307
B167: Kilograms of liveweight gain per hectare | E167: =(E60-F22)/$D$8 -> 92.48921364
C173: Forage production estimate | D173: Factor | H173: Annual forages | K173: Perennial forages
C174: Expected carrying capacity in AE | D174: =H100 -> 47.82951292 | H174: Oats | I174: Forage Sorghum | J174: Lablab | K174: Butterfly pea | L174: Buffel grass | M174: Native pasture (Open Downs)
C175: Consumption per AE per annum | D175: 3650 | E175: kg/AE/yr | G175: Residual (kg DM/ha) | H175: 1000 | I175: 1000 | J175: 1000 | K175: 1000 | L175: 1000 | M175: 1000
C176: Kgs consumed by livestock | D176: =D175*D174 -> 174577.7222 | E176: kg dry matter | G176: Utilisation (0.3-0.5) | H176: 0.4 | I176: 0.3 | J176: 0.4 | K176: 0.3 | L176: 0.3 | M176: 0.3
C177: Expected utilisation | D177: 0.3
C178: Forage available for consumption | D178: =D176*1/D177 -> 581925.7406 | E178: kg dry matter
C179: Area of paddock | D179: =D8 -> 100 | E179: hectares
C180: Forage available for consumption per hectare | D180: =D178/D179 -> 5819.257406 | E180: kg dry matter /hectare
C181: Residual required | D181: 1000 | E181: kg dry matter /hectare
C182: Expected annual forage growth | D182: =D181+D180 -> 6819.257406 | E182: kg dry matter /hectare

Sheet Lablab
B2: Forage assessment model - gross margin
B5: Forage type | C5: ='Gross margin summary'!G15 -> Lablab
C8: Total size of the paddock | D8: 100 | E8: hectares
C9: Area of paddock planted to forage | D9: 90 | E9: hectares | Q9: Calculate the paddock value of the owned steer
C10: % of paddock planted to forage | D10: =IF(D9<=0,0,D9/D8) -> 0.9
S11: Mob 1 | T11: Mob 2 | U11: Mob 3 | V11: Mob 4 | W11: Mob 5 | X11: Mob 6 | Z11: Transport Loading Density Guide
Q12: Steer weight in the paddock | S12: =F16 -> 524 | T12: =F17 -> 0 | U12: =F18 -> 0 | V12: =F19 -> 0 | W12: =F20 -> 0 | X12: =F21 -> 0 | Z12: Source for loading density: Kaus, Lapworth and Dunn "Marketing Cattle to South-East Asia"
B13: Livestock entering the paddock | D13: ( use the tables to the right to calculate the price going into the paddock if the cattle are already owned) | Q13: weight loss to get to sale yards or works | S13: 0 | T13: 0 | U13: 0 | V13: 0 | W13: 0 | X13: 0 | Z13: Maximum for lighter cattle = 44/deck
Q14: Steer weight at saleyards or works | S14: =S12*(1-S13) -> 524 | T14: 0 | U14: 0 | V14: 0 | W14: 0 | X14: 0 | Z14: Average | AA14: Head Per
C15: Date the mob enters the paddock | D15: Number entering the paddock | E15: Purchase price ($ per kg) | F15: Average purchase weight (Kg live) | G15: Cost of stock per head into paddock | H15: Total cost of stock | I15: Paddock stocking rate (head per hectare) | J15: Paddock stocking rate (hectare per head) | K15: Forage area stocking rate (head per hectare) | L15: Forage area stocking rate (hectare per head) | Q15: Sale price at yards or works ($ /kg live) | Z15: Liveweight | AA15: 12.2m deck
B16: Mob 1 | C16: 2014-02-01 | D16: 195.2 | E16: 1.6 | F16: 524 | G16: =F16*E16 -> 838.4 | H16: =G16*D16 -> 163655.68 | I16: =D16/$D$8 -> 1.952 | J16: =IF(D16<=0,0,$D$8/D16) -> 0.512295082 | K16: =D16/$D$9 -> 2.168888889 | L16: =IF(D16<=0,0,$D$9/D16) -> 0.4610655738 | Q16: Gross sale price ($/head) | S16: =S15*S14 -> 0 | T16: 0 | U16: 0 | V16: 0 | W16: 0 | X16: 0 | Z16: 250 | AA16: 38
B17: Mob 2 | G17: 0 | H17: 0 | I17: 0 | J17: 0 | K17: 0 | L17: 0 | Q17: Commission & insurance % | S17: 0.035 | Z17: 300 | AA17: 34
B18: Mob 3 | G18: 0 | H18: 0 | I18: 0 | J18: 0 | K18: 0 | L18: 0 | Q18: Commission & insurance ($/head) | S18: =S17*S16 -> 0 | T18: 0 | U18: 0 | V18: 0 | W18: 0 | X18: 0 | Z18: 350 | AA18: 30
B19: Mob 4 | G19: 0 | H19: 0 | I19: 0 | J19: 0 | K19: 0 | L19: 0 | Q19: Transaction levy, yard dues etc | Z19: 400 | AA19: 28
B20: Mob 5 | G20: 0 | H20: 0 | I20: 0 | J20: 0 | K20: 0 | L20: 0 | Q20: Transport cost ($/head) | Z20: 450 | AA20: 26
B21: Mob 6 | G21: 0 | H21: 0 | I21: 0 | J21: 0 | K21: 0 | L21: 0 | Q21: Steer value net of selling expenses | S21: =S16-S18-S19-S20 -> 0 | T21: 0 | U21: 0 | V21: 0 | W21: 0 | X21: 0 | Z21: 500 | AA21: 24
F22: =SUMPRODUCT(D16:D21,F16:F21) -> 102284.8 | H22: =SUM(H16:H21) -> 163655.68 | Q22: Paddock weight | S22: =S12 -> 524 | T22: 0 | U22: 0 | V22: 0 | W22: 0 | X22: 0 | Z22: 550 | AA22: 22
Q23: Selling cost ($ per kg) | S23: =IF(S14>0,(S18+S19+S20)/S14,0) -> 0 | T23: 0 | U23: 0 | V23: 0 | W23: 0 | X23: 0 | Z23: 600 | AA23: 20
Q24: Net value in the paddock ($/kg) | S24: =IF(S22>0,S21/S22,0) -> 0 | T24: 0 | U24: 0 | V24: 0 | W24: 0 | X24: 0 | Z24: 650 | AA24: 18
B26: Costs associated with purchasing steers (complete if stock are specifically purchased to graze the forage)
C28: Purchases | D28: Average weight | E28: Trucking distance inwards (Km) | F28: $ per Km per deck | G28: Rate per deck | H28: Total freight in | I28: Cost per head | J28: Travel costs incurred in finding the mob ($ per mob) | K28: Induction cost ($ per head) | L28: Total induction costs | Z28: Transport cost per head calculator
B29: Mob 1 | C29: =D16 -> 195.2 | D29: =F16 -> 524 | E29: 189.5 | F29: 1.9 | G29: 22 | H29: =IF(C29>0,C29*E29*F29/G29,0) -> 3194.625455 | I29: =IF(C29>0,H29/C29,0) -> 16.36590909 | J29: 0 | K29: 0 | L29: =K29*C29 -> 0
B30: Mob 2 | C30: 0 | D30: 0 | H30: 0 | I30: 0 | J30: 0 | K30: 0 | L30: 0 | Z30: Number transported | AA30: =D16 -> 195.2
B31: Mob 3 | C31: 0 | D31: 0 | H31: 0 | I31: 0 | J31: 0 | K31: 0 | L31: 0 | Z31: Distance (Km) | AA31: 200
B32: Mob 4 | C32: 0 | D32: 0 | H32: 0 | I32: 0 | J32: 0 | K32: 0 | L32: 0 | Z32: $ per Km | AA32: 2
B33: Mob 5 | C33: 0 | D33: 0 | H33: 0 | I33: 0 | J33: 0 | K33: 0 | L33: 0 | Z33: Rate on Truck | AA33: 28
B34: Mob 6 | C34: 0 | D34: 0 | H34: 0 | I34: 0 | J34: 0 | K34: 0 | L34: 0 | Z34: Total | AA34: =IF(AA30>0,AA30*AA31*AA32/AA33,0) -> 2788.571429
H35: =SUM(H29:H34) -> 3194.625455 | J35: =SUM(J29:J34) -> 0 | L35: =SUM(L29:L34) -> 0 | Z35: Per head | AA35: =IF(AA30>0,AA34/AA30,0) -> 14.28571429
B38: Livestock health and other costs incurred by stock grazing the forage ($ per head)
C40: Number in the mob | D40: Fodder | E40: Ticks | F40: Drench | G40: 5 in 1 | H40: Botulism | I40: Flies | J40: Growth Promotant | K40: Leucaena inoculum | L40: Other | M40: Total
B41: Mob 1 | C41: =D16 -> 195.2 | G41: 0.38 | M41: =SUM(D41:L41)*C41 -> 74.176
B42: Mob 2 | C42: 0 | M42: 0
B43: Mob 3 | C43: 0 | M43: 0
B44: Mob 4 | C44: 0 | M44: 0
B45: Mob 5 | C45: 0 | M45: 0
B46: Mob 6 | C46: 0 | M46: 0
D47: =SUMPRODUCT($C$41:$C$46,D41:D46) -> 0 | E47: 0 | F47: 0 | G47: 74.176 | H47: 0 | I47: 0 | J47: 0 | K47: 0 | L47: 0 | M47: =SUM(M41:M46) -> 74.176
B51: Livestock weight and value leaving the paddock
C53: Date leaving the paddock | D53: Total days held | E53: Average weight leaving the paddock (kg /head) | F53: Gain per head (kg) | G53: Gain per day (kg /head /day) | H53: Number leaving the paddock | I53: Calculated Loss percentage | J53: Sale Price ($ per Kg Live) | K53: Gross value per head | L53: Gross value of mob | M53: Liveweight Kgs Sold | N53: Estimated Dressing % | O53: Dressed Weight Sold
B54: Mob 1 | C54: =C16+90 -> 2014-05-02 | D54: =C54-C16 -> 90 | E54: 596 | F54: =E54-F16 -> 72 | G54: =IF(F54<=0,0,F54/D54) -> 0.8 | H54: =D16 -> 195.2 | I54: =IF(H54<=0,0,(H54-D16)/D16) -> 0 | J54: 1.664 | K54: =J54*E54 -> 991.744 | L54: =K54*H54 -> 193588.4288 | M54: =E54*H54 -> 116339.2 | N54: 0.52 | O54: =N54*M54 -> 60496.384
B55: Mob 2 | D55: 0 | F55: 0 | G55: 0 | I55: 0 | K55: 0 | L55: 0 | M55: 0 | N55: 0.52 | O55: 0
B56: Mob 3 | D56: 0 | F56: 0 | G56: 0 | I56: 0 | K56: 0 | L56: 0 | M56: 0 | N56: 0.52 | O56: 0
B57: Mob 4 | D57: 0 | F57: 0 | G57: 0 | I57: 0 | K57: 0 | L57: 0 | M57: 0 | N57: 0.52 | O57: 0
B58: Mob 5 | D58: 0 | F58: 0 | G58: 0 | I58: 0 | K58: 0 | L58: 0 | M58: 0 | N58: 0.52 | O58: 0
B59: Mob 6 | D59: 0 | F59: 0 | G59: 0 | I59: 0 | K59: 0 | L59: 0 | M59: 0 | N59: 0.52 | O59: 0
E60: =SUMPRODUCT(E54:E59,H54:H59) -> 116339.2 | K60: Total | L60: =SUM(L54:L59) -> 193588.4288 | M60: =SUM(M54:M59) -> 116339.2 | O60: =SUM(O54:O59) -> 60496.384
L61: Kilograms of beef purchased | M61: =F22 -> 102284.8 | O61: =M61*O60/M60 -> 53188.096
L62: Net beef produced | M62: =M60-M61 -> 14054.4 | N62: kg live | O62: =O60-O61 -> 7308.288 | P62: kg dressed
B66: Selling costs
C68: Sales commission (%) | D68: Commission paid | E68: MLA levy ($ per head) | F68: Yard fees ($ per head) | G68: Sale tags (total for mob) | H68: Total sundry selling costs | I68: Trucking distance (Km) | J68: $ per Km per deck | K68: Rate on deck (head) | L68: Total trucking costs | M68: Trucking cost ($ per head)
B69: =B54 -> Mob 1 | D69: =C69*L54 -> 0 | E69: 5 | H69: =(E69*H54)+(F69*H54)+G69 -> 976 | I69: 421 | J69: 1.9 | K69: 20 | L69: =IF(K69=0,0,IF(H54<=0,0,H54*I69*J69/K69)) -> 7807.024 | M69: =IF(L69<=0,0,L69/H54) -> 39.995
B70: Mob 2 | D70: 0 | H70: 0 | L70: 0 | M70: 0
B71: Mob 3 | D71: 0 | H71: 0 | L71: 0 | M71: 0
B72: Mob 4 | D72: 0 | H72: 0 | L72: 0 | M72: 0
B73: Mob 5 | D73: 0 | H73: 0 | L73: 0 | M73: 0
B74: Mob 6 | D74: 0 | H74: 0 | L74: 0 | M74: 0
D75: =SUM(D69:D74) -> 0 | H75: =SUM(H69:H74) -> 976 | L75: =SUM(L69:L74) -> 7807.024
B79: Opportunity cost of livestock capital calculator
C81: Number | D81: Days grazing | E81: Opening value (per head) | F81: Funds invested | G81: Interest rate | H81: Opportunity cost of livestock
B82: Mob 1 | C82: =C41 -> 195.2 | D82: =D54 -> 90 | E82: =G16 -> 838.4 | F82: =E82*C82 -> 163655.68 | G82: 0.05 | H82: =F82*G82*D82/365 -> 2017.672767
B83: Mob 2 | C83: 0 | D83: 0 | E83: 0 | F83: 0 | G83: 0.05 | H83: 0
B84: Mob 3 | C84: 0 | D84: 0 | E84: 0 | F84: 0 | G84: 0.05 | H84: 0
B85: Mob 4 | C85: 0 | D85: 0 | E85: 0 | F85: 0 | G85: 0.05 | H85: 0
B86: Mob 5 | C86: 0 | D86: 0 | E86: 0 | F86: 0 | G86: 0.05 | H86: 0
B87: Mob 6 | C87: 0 | D87: 0 | E87: 0 | F87: 0 | G87: 0.05 | H87: 0
F88: Total interest forgone | H88: =SUM(H82:H87) -> 2017.672767
B91: Adult Equivalent calculator
C93: Number | D93: Days grazing | E93: Opening weight | F93: Av Final or Sale Kg | G93: Calculated AE rating | H93: Total AEs | I93: Stocking rate (AE per hectare) | J93: (Stocking rate Hectare per AE)
B94: Mob 1 | C94: =C41 -> 195.2 | D94: =D54 -> 90 | E94: =F16 -> 524 | F94: =E54 -> 596 | G94: =(POWER(((F94+E94)/2),0.75)/97.7) -> 1.178274439 | H94: =D94/365*G94*C94 -> 56.71212425 | I94: =IF(D8<=0,0,H94/$D$8) -> 0.5671212425 | J94: =IF(H94<=0,0,$D$8/H94) -> 1.763291383
B95: Mob 2 | C95: 0 | D95: 0 | E95: 0 | F95: 0 | G95: 0 | H95: 0 | I95: =IF(D8<=0,0,H95/$D$8) -> 0 | J95: 0
B96: Mob 3 | C96: 0 | D96: 0 | E96: 0 | F96: 0 | G96: 0 | H96: 0 | I96: =IF(D8<=0,0,H96/$D$8) -> 0 | J96: 0
B97: Mob 4 | C97: 0 | D97: 0 | E97: 0 | F97: 0 | G97: 0 | H97: 0 | I97: =IF(D8<=0,0,H97/$D$8) -> 0 | J97: 0
B98: Mob 5 | C98: 0 | D98: 0 | E98: 0 | F98: 0 | G98: 0 | H98: 0 | I98: =IF(D8<=0,0,H98/$D$8) -> 0 | J98: 0
B99: Mob 6 | C99: 0 | D99: 0 | E99: 0 | F99: 0 | G99: 0 | H99: 0 | I99: =IF(D8<=0,0,H99/$D$8) -> 0 | J99: 0
G100: Total AE's | H100: =SUM(H94:H99) -> 56.71212425 | I100: =IF(D8<=0,0,H100/$D$8) -> 0.5671212425 | J100: 1.763291383
R102: This side of the worksheet calculates variable costs of the basis of the machinery being owned | Y102: This side of the worksheet automatically calculates costs on the basis of nominal contract rates
B105: Forage variable cost calculator (use to identify growing and maintenance costs of forage)
C107: Machinery FORM + Labour | D107: (use treatments sheet to identify costs) | L107: Forage development cost calculator | N107: Machinery FORM + Labour | Y107: Forage annual variable cost calculator | Z107: Machinery Contract rate | AI107: Forage development cost calculator | AJ107: Machinery Contract rate
B109: Treatment No | C109: Pre planting costs | D109: Rate of application | E109: cost / unit | F109: number of applications | G109: % of forage area treated | H109: per hectare | I109: total | L109: Treatment No | M109: Pre planting costs | N109: Rate of application | O109: cost / unit | P109: number of applications | R109: % of forage area treated | S109: per hectare | T109: total | Y109: Treatment No | Z109: Pre planting costs | AA109: Rate of application | AB109: cost / unit | AC109: number of applications | AD109: % of area treated | AE109: per hectare | AF109: total | AI109: Treatment No | AJ109: Pre planting costs | AK109: Rate of application | AL109: cost / unit | AM109: number of applications | AO109: % of area treated | AP109: per hectare | AQ109: total
B110: 347 | C110: =IF(B110<=0,"",VLOOKUP(B110,Treatments!$C$7:$J$407,2)) -> Chisel plough | D110: 1 | E110: =VLOOKUP(B110,Treatments!$C$7:$J$407,8) -> 30.25714286 | F110: 1 | G110: 1 | H110: =D110*E110*F110*G110 -> 30.25714286 | I110: =H110*$D$9 -> 2723.142857 | M110: =VLOOKUP(L110,Treatments!$C$7:$J$407,2) -> No treatment | O110: =VLOOKUP(L110,Treatments!$C$7:$J$407,8) -> 0 | S110: =N110*O110*P110*R110 -> 0 | T110: =S110*$D$9 -> 0 | Y110: =IF(AND(B110>=344,B110<=358),B110+15,B110) -> 362 | Z110: =VLOOKUP(Y110,Treatments!$C$7:$J$407,2) -> Chisel plough | AA110: =D110 -> 1 | AB110: =VLOOKUP(Y110,Treatments!$C$7:$J$407,8) -> 56.46285714 | AC110: =F110 -> 1 | AD110: =G110 -> 1 | AE110: =AA110*AB110*AC110*AD110 -> 56.46285714 | AF110: =AE110*$D$9 -> 5081.657143 | AI110: =IF(AND(L110>=344,L110<=358),L110+15,L110) -> 0 | AJ110: =VLOOKUP(AI110,Treatments!$C$7:$J$407,2) -> No treatment | AK110: =N110 -> 0 | AL110: =VLOOKUP(AI110,Treatments!$C$7:$J$407,8) -> 0 | AM110: =P110 -> 0 | AO110: =R110 -> 0 | AP110: =AK110*AL110*AM110*AO110 -> 0 | AQ110: =AP110*$D$9 -> 0
B111: 346 | C111: =IF(B111<=0,"",VLOOKUP(B111,Treatments!$C$7:$J$407,2)) -> Tyne cultivator | D111: 1 | E111: =VLOOKUP(B111,Treatments!$C$7:$J$407,8) -> 16.225 | F111: 1 | G111: 1 | H111: =D111*E111*F111*G111 -> 16.225 | I111: =H111*$D$9 -> 1460.25 | M111: =VLOOKUP(L111,Treatments!$C$7:$J$407,2) -> No treatment | O111: =VLOOKUP(L111,Treatments!$C$7:$J$407,8) -> 0 | S111: 0 | T111: 0 | Y111: =IF(AND(B111>=344,B111<=358),B111+15,B111) -> 361 | Z111: =VLOOKUP(Y111,Treatments!$C$7:$J$407,2) -> Tyne cultivator | AA111: =D111 -> 1 | AB111: =VLOOKUP(Y111,Treatments!$C$7:$J$407,8) -> 35.095 | AC111: =F111 -> 1 | AD111: 1 | AE111: =AA111*AB111*AC111*AD111 -> 35.095 | AF111: 3158.55 | AI111: 0 | AJ111: =VLOOKUP(AI111,Treatments!$C$7:$J$407,2) -> No treatment | AK111: 0 | AL111: =VLOOKUP(AI111,Treatments!$C$7:$J$407,8) -> 0 | AM111: 0 | AO111: 0 | AP111: 0 | AQ111: 0
B112: 344 | C112: =IF(B112<=0,"",VLOOKUP(B112,Treatments!$C$7:$J$407,2)) -> Linkage spray rig | D112: 1 | E112: =VLOOKUP(B112,Treatments!$C$7:$J$407,8) -> 3.377941176 | F112: 2 | G112: 1 | H112: =D112*E112*F112*G112 -> 6.755882353 | I112: 608.0294118 | M112: =VLOOKUP(L112,Treatments!$C$7:$J$407,2) -> No treatment | O112: =VLOOKUP(L112,Treatments!$C$7:$J$407,8) -> 0 | S112: 0 | T112: 0 | Y112: 359 | Z112: =VLOOKUP(Y112,Treatments!$C$7:$J$407,2) -> Linkage spray rig | AA112: 1 | AB112: =VLOOKUP(Y112,Treatments!$C$7:$J$407,8) -> 8.01 | AC112: 2 | AD112: 1 | AE112: =AA112*AB112*AC112*AD112 -> 16.02 | AF112: 1441.8 | AI112: 0 | AJ112: =VLOOKUP(AI112,Treatments!$C$7:$J$407,2) -> No treatment | AK112: 0 | AL112: =VLOOKUP(AI112,Treatments!$C$7:$J$407,8) -> 0 | AM112: 0 | AO112: 0 | AP112: 0 | AQ112: 0
C113: =IF(B113<=0,"",VLOOKUP(B113,Treatments!$C$7:$J$407,2)) ->  | E113: =VLOOKUP(B113,Treatments!$C$7:$J$407,8) -> 0 | H113: 0 | I113: 0 | M113: =VLOOKUP(L113,Treatments!$C$7:$J$407,2) -> No treatment | O113: =VLOOKUP(L113,Treatments!$C$7:$J$407,8) -> 0 | S113: 0 | T113: 0 | Y113: 0 | Z113: =VLOOKUP(Y113,Treatments!$C$7:$J$407,2) -> No treatment | AA113: 0 | AB113: =VLOOKUP(Y113,Treatments!$C$7:$J$407,8) -> 0 | AC113: 0 | AD113: 0 | AE113: 0 | AF113: 0 | AI113: 0 | AJ113: =VLOOKUP(AI113,Treatments!$C$7:$J$407,2) -> No treatment | AK113: 0 | AL113: =VLOOKUP(AI113,Treatments!$C$7:$J$407,8) -> 0 | AM113: 0 | AO113: 0 | AP113: 0 | AQ113: 0
B114: 127 | C114: =IF(B114<=0,"",VLOOKUP(B114,Treatments!$C$7:$J$407,2)) -> Amicide 625 | D114: 0.75 | E114: =VLOOKUP(B114,Treatments!$C$7:$J$407,8) -> 6.82 | F114: 2 | G114: 1 | H114: 10.23 | I114: 920.7 | M114: =VLOOKUP(L114,Treatments!$C$7:$J$407,2) -> No treatment | O114: =VLOOKUP(L114,Treatments!$C$7:$J$407,8) -> 0 | S114: 0 | T114: 0 | Y114: 127 | Z114: =VLOOKUP(Y114,Treatments!$C$7:$J$407,2) -> Amicide 625 | AA114: 0.75 | AB114: =VLOOKUP(Y114,Treatments!$C$7:$J$407,8) -> 6.82 | AC114: 2 | AD114: 1 | AE114: 10.23 | AF114: 920.7 | AI114: 0 | AJ114: =VLOOKUP(AI114,Treatments!$C$7:$J$407,2) -> No treatment | AK114: 0 | AL114: =VLOOKUP(AI114,Treatments!$C$7:$J$407,8) -> 0 | AM114: 0 | AO114: 0 | AP114: 0 | AQ114: 0
B115: 150 | C115: =IF(B115<=0,"",VLOOKUP(B115,Treatments!$C$7:$J$407,2)) -> Glyphosate 450 CT | D115: 1.5 | E115: =VLOOKUP(B115,Treatments!$C$7:$J$407,8) -> 4.636 | F115: 2 | G115: 1 | H115: 13.908 | I115: 1251.72 | M115: =VLOOKUP(L115,Treatments!$C$7:$J$407,2) -> No treatment | O115: =VLOOKUP(L115,Treatments!$C$7:$J$407,8) -> 0 | S115: 0 | T115: 0 | Y115: 150 | Z115: =VLOOKUP(Y115,Treatments!$C$7:$J$407,2) -> Glyphosate 450 CT | AA115: 1.5 | AB115: =VLOOKUP(Y115,Treatments!$C$7:$J$407,8) -> 4.636 | AC115: 2 | AD115: 1 | AE115: 13.908 | AF115: 1251.72 | AI115: 0 | AJ115: =VLOOKUP(AI115,Treatments!$C$7:$J$407,2) -> No treatment | AK115: 0 | AL115: =VLOOKUP(AI115,Treatments!$C$7:$J$407,8) -> 0 | AM115: 0 | AO115: 0 | AP115: 0 | AQ115: 0
C116: =IF(B116<=0,"",VLOOKUP(B116,Treatments!$C$7:$J$407,2)) ->  | E116: =VLOOKUP(B116,Treatments!$C$7:$J$407,8) -> 0 | H116: 0 | I116: 0 | Y116: 0 | Z116: =VLOOKUP(Y116,Treatments!$C$7:$J$407,2) -> No treatment | AA116: 0 | AB116: =VLOOKUP(Y116,Treatments!$C$7:$J$407,8) -> 0 | AC116: 0 | AD116: 0 | AE116: 0 | AF116: 0
C117: =IF(B117<=0,"",VLOOKUP(B117,Treatments!$C$7:$J$407,2)) ->  | E117: =VLOOKUP(B117,Treatments!$C$7:$J$407,8) -> 0 | H117: 0 | I117: 0 | L117: Treatment No | M117: Planting Costs | N117: Rate of application | O117: cost / unit | P117: number of applications | R117: % of area treated | Y117: 0 | Z117: =VLOOKUP(Y117,Treatments!$C$7:$J$407,2) -> No treatment | AA117: 0 | AB117: =VLOOKUP(Y117,Treatments!$C$7:$J$407,8) -> 0 | AC117: 0 | AD117: 0 | AE117: 0 | AF117: 0 | AI117: Treatment No | AJ117: Planting Costs | AK117: Rate of application | AL117: cost / unit | AM117: number of applications | AO117: % of area treated
C118: =IF(B118<=0,"",VLOOKUP(B118,Treatments!$C$7:$J$407,2)) ->  | E118: =VLOOKUP(B118,Treatments!$C$7:$J$407,8) -> 0 | H118: 0 | I118: 0 | M118: =VLOOKUP(L118,Treatments!$C$7:$J$407,2) -> No treatment | O118: =VLOOKUP(L118,Treatments!$C$7:$J$407,8) -> 0 | S118: =N118*O118*P118*R118 -> 0 | T118: =S118*$D$9 -> 0 | Y118: 0 | Z118: =VLOOKUP(Y118,Treatments!$C$7:$J$407,2) -> No treatment | AA118: 0 | AB118: =VLOOKUP(Y118,Treatments!$C$7:$J$407,8) -> 0 | AC118: 0 | AD118: 0 | AE118: 0 | AF118: 0 | AI118: =IF(AND(L118>=344,L118<=358),L118+15,L118) -> 0 | AJ118: =VLOOKUP(AI118,Treatments!$C$7:$J$407,2) -> No treatment | AK118: =N118 -> 0 | AL118: =VLOOKUP(AI118,Treatments!$C$7:$J$407,8) -> 0 | AM118: =P118 -> 0 | AO118: =R118 -> 0 | AP118: =AK118*AL118*AM118*AO118 -> 0 | AQ118: =AP118*$D$9 -> 0
C119: =IF(B119<=0,"",VLOOKUP(B119,Treatments!$C$7:$J$407,2)) ->  | E119: =VLOOKUP(B119,Treatments!$C$7:$J$407,8) -> 0 | H119: 0 | I119: 0 | M119: =VLOOKUP(L119,Treatments!$C$7:$J$407,2) -> No treatment | O119: =VLOOKUP(L119,Treatments!$C$7:$J$407,8) -> 0 | S119: =N119*O119*P119*R119 -> 0 | T119: =S119*$D$9 -> 0 | Y119: 0 | Z119: =VLOOKUP(Y119,Treatments!$C$7:$J$407,2) -> No treatment | AA119: 0 | AB119: =VLOOKUP(Y119,Treatments!$C$7:$J$407,8) -> 0 | AC119: 0 | AD119: 0 | AE119: 0 | AF119: 0 | AI119: 0 | AJ119: =VLOOKUP(AI119,Treatments!$C$7:$J$407,2) -> No treatment | AK119: 0 | AL119: =VLOOKUP(AI119,Treatments!$C$7:$J$407,8) -> 0 | AM119: 0 | AO119: 0 | AP119: =AK119*AL119*AM119*AO119 -> 0 | AQ119: 0
C120: =IF(B120<=0,"",VLOOKUP(B120,Treatments!$C$7:$J$407,2)) ->  | E120: =VLOOKUP(B120,Treatments!$C$7:$J$407,8) -> 0 | H120: 0 | I120: 0 | M120: =VLOOKUP(L120,Treatments!$C$7:$J$407,2) -> No treatment | O120: =VLOOKUP(L120,Treatments!$C$7:$J$407,8) -> 0 | S120: 0 | T120: 0 | Y120: 0 | Z120: =VLOOKUP(Y120,Treatments!$C$7:$J$407,2) -> No treatment | AA120: 0 | AB120: =VLOOKUP(Y120,Treatments!$C$7:$J$407,8) -> 0 | AC120: 0 | AD120: 0 | AE120: 0 | AF120: 0 | AI120: 0 | AJ120: =VLOOKUP(AI120,Treatments!$C$7:$J$407,2) -> No treatment | AK120: 0 | AL120: =VLOOKUP(AI120,Treatments!$C$7:$J$407,8) -> 0 | AM120: 0 | AO120: 0 | AP120: 0 | AQ120: 0
C121: =IF(B121<=0,"",VLOOKUP(B121,Treatments!$C$7:$J$407,2)) ->  | E121: =VLOOKUP(B121,Treatments!$C$7:$J$407,8) -> 0 | H121: 0 | I121: 0 | M121: =VLOOKUP(L121,Treatments!$C$7:$J$407,2) -> No treatment | O121: =VLOOKUP(L121,Treatments!$C$7:$J$407,8) -> 0 | S121: 0 | T121: 0 | Y121: 0 | Z121: =VLOOKUP(Y121,Treatments!$C$7:$J$407,2) -> No treatment | AA121: 0 | AB121: =VLOOKUP(Y121,Treatments!$C$7:$J$407,8) -> 0 | AC121: 0 | AD121: 0 | AE121: 0 | AF121: 0 | AI121: 0 | AJ121: =VLOOKUP(AI121,Treatments!$C$7:$J$407,2) -> No treatment | AK121: 0 | AL121: =VLOOKUP(AI121,Treatments!$C$7:$J$407,8) -> 0 | AM121: 0 | AO121: 0 | AP121: 0 | AQ121: 0
C122: =IF(B122<=0,"",VLOOKUP(B122,Treatments!$C$7:$J$407,2)) ->  | E122: =VLOOKUP(B122,Treatments!$C$7:$J$407,8) -> 0 | H122: 0 | I122: 0 | M122: =VLOOKUP(L122,Treatments!$C$7:$J$407,2) -> No treatment | O122: =VLOOKUP(L122,Treatments!$C$7:$J$407,8) -> 0 | S122: 0 | T122: 0 | Y122: 0 | Z122: =VLOOKUP(Y122,Treatments!$C$7:$J$407,2) -> No treatment | AA122: 0 | AB122: =VLOOKUP(Y122,Treatments!$C$7:$J$407,8) -> 0 | AC122: 0 | AD122: 0 | AE122: 0 | AF122: 0 | AI122: 0 | AJ122: =VLOOKUP(AI122,Treatments!$C$7:$J$407,2) -> No treatment | AK122: 0 | AL122: =VLOOKUP(AI122,Treatments!$C$7:$J$407,8) -> 0 | AM122: 0 | AO122: 0 | AP122: 0 | AQ122: 0
C123: =IF(B123<=0,"",VLOOKUP(B123,Treatments!$C$7:$J$407,2)) ->  | E123: =VLOOKUP(B123,Treatments!$C$7:$J$407,8) -> 0 | H123: =D123*E123*F123*G123 -> 0 | I123: 0 | M123: =VLOOKUP(L123,Treatments!$C$7:$J$407,2) -> No treatment | O123: =VLOOKUP(L123,Treatments!$C$7:$J$407,8) -> 0 | S123: 0 | T123: 0 | Y123: 0 | Z123: =VLOOKUP(Y123,Treatments!$C$7:$J$407,2) -> No treatment | AA123: 0 | AB123: =VLOOKUP(Y123,Treatments!$C$7:$J$407,8) -> 0 | AC123: 0 | AD123: 0 | AE123: =AA123*AB123*AC123*AD123 -> 0 | AF123: 0 | AI123: 0 | AJ123: =VLOOKUP(AI123,Treatments!$C$7:$J$407,2) -> No treatment | AK123: 0 | AL123: =VLOOKUP(AI123,Treatments!$C$7:$J$407,8) -> 0 | AM123: 0 | AO123: 0 | AP123: 0 | AQ123: 0
C124: =IF(B124<=0,"",VLOOKUP(B124,Treatments!$C$7:$J$407,2)) ->  | E124: =VLOOKUP(B124,Treatments!$C$7:$J$407,8) -> 0 | H124: =D124*E124*F124*G124 -> 0 | I124: 0 | M124: =VLOOKUP(L124,Treatments!$C$7:$J$407,2) -> No treatment | O124: =VLOOKUP(L124,Treatments!$C$7:$J$407,8) -> 0 | S124: 0 | T124: 0 | Y124: 0 | Z124: =VLOOKUP(Y124,Treatments!$C$7:$J$407,2) -> No treatment | AA124: 0 | AB124: =VLOOKUP(Y124,Treatments!$C$7:$J$407,8) -> 0 | AC124: 0 | AD124: 0 | AE124: =AA124*AB124*AC124*AD124 -> 0 | AF124: 0 | AI124: 0 | AJ124: =VLOOKUP(AI124,Treatments!$C$7:$J$407,2) -> No treatment | AK124: 0 | AL124: =VLOOKUP(AI124,Treatments!$C$7:$J$407,8) -> 0 | AM124: 0 | AO124: 0 | AP124: 0 | AQ124: 0
M125: =VLOOKUP(L125,Treatments!$C$7:$J$407,2) -> No treatment | O125: =VLOOKUP(L125,Treatments!$C$7:$J$407,8) -> 0 | S125: 0 | T125: 0 | AI125: 0 | AJ125: =VLOOKUP(AI125,Treatments!$C$7:$J$407,2) -> No treatment | AK125: 0 | AL125: =VLOOKUP(AI125,Treatments!$C$7:$J$407,8) -> 0 | AM125: 0 | AO125: 0 | AP125: 0 | AQ125: 0
B126: Treatment No | C126: Planting Costs | D126: Rate of application | E126: cost / unit | F126: number of applications | G126: % of area treated | M126: =VLOOKUP(L126,Treatments!$C$7:$J$407,2) -> No treatment | O126: =VLOOKUP(L126,Treatments!$C$7:$J$407,8) -> 0 | S126: 0 | T126: 0 | Y126: Treatment No | Z126: Planting Costs | AA126: Rate of application | AB126: cost / unit | AC126: number of applications | AD126: % of area treated | AI126: 0 | AJ126: =VLOOKUP(AI126,Treatments!$C$7:$J$407,2) -> No treatment | AK126: 0 | AL126: =VLOOKUP(AI126,Treatments!$C$7:$J$407,8) -> 0 | AM126: 0 | AO126: 0 | AP126: 0 | AQ126: 0
C127: =IF(B127<=0,"",VLOOKUP(B127,Treatments!$C$7:$J$407,2)) ->  | E127: =VLOOKUP(B127,Treatments!$C$7:$J$407,8) -> 0 | H127: =D127*E127*F127*G127 -> 0 | I127: =H127*$D$9 -> 0 | M127: =VLOOKUP(L127,Treatments!$C$7:$J$407,2) -> No treatment | O127: =VLOOKUP(L127,Treatments!$C$7:$J$407,8) -> 0 | S127: 0 | T127: 0 | Y127: =IF(AND(B127>=344,B127<=358),B127+15,B127) -> 0 | Z127: =VLOOKUP(Y127,Treatments!$C$7:$J$407,2) -> No treatment | AA127: =D127 -> 0 | AB127: =VLOOKUP(Y127,Treatments!$C$7:$J$407,8) -> 0 | AC127: =F127 -> 0 | AD127: 0 | AE127: =AA127*AB127*AC127*AD127 -> 0 | AF127: =AE127*$D$9 -> 0 | AI127: 0 | AJ127: =VLOOKUP(AI127,Treatments!$C$7:$J$407,2) -> No treatment | AK127: 0 | AL127: =VLOOKUP(AI127,Treatments!$C$7:$J$407,8) -> 0 | AM127: 0 | AO127: 0 | AP127: 0 | AQ127: 0
C128: =IF(B128<=0,"",VLOOKUP(B128,Treatments!$C$7:$J$407,2)) ->  | E128: =VLOOKUP(B128,Treatments!$C$7:$J$407,8) -> 0 | H128: 0 | I128: =H128*$D$9 -> 0 | M128: =VLOOKUP(L128,Treatments!$C$7:$J$407,2) -> No treatment | O128: =VLOOKUP(L128,Treatments!$C$7:$J$407,8) -> 0 | S128: 0 | T128: 0 | Y128: =IF(AND(B128>=344,B128<=358),B128+15,B128) -> 0 | Z128: =VLOOKUP(Y128,Treatments!$C$7:$J$407,2) -> No treatment | AA128: 0 | AB128: =VLOOKUP(Y128,Treatments!$C$7:$J$407,8) -> 0 | AC128: 0 | AD128: 0 | AE128: 0 | AF128: 0 | AI128: 0 | AJ128: =VLOOKUP(AI128,Treatments!$C$7:$J$407,2) -> No treatment | AK128: 0 | AL128: =VLOOKUP(AI128,Treatments!$C$7:$J$407,8) -> 0 | AM128: 0 | AO128: 0 | AP128: 0 | AQ128: 0
B129: 345 | C129: =IF(B129<=0,"",VLOOKUP(B129,Treatments!$C$7:$J$407,2)) -> No till seeder | D129: 1 | E129: =VLOOKUP(B129,Treatments!$C$7:$J$407,8) -> 12.3 | F129: 1 | G129: 1 | H129: 12.3 | I129: 1107 | M129: =VLOOKUP(L129,Treatments!$C$7:$J$407,2) -> No treatment | O129: =VLOOKUP(L129,Treatments!$C$7:$J$407,8) -> 0 | S129: 0 | T129: 0 | Y129: 360 | Z129: =VLOOKUP(Y129,Treatments!$C$7:$J$407,2) -> No till seeder | AA129: 1 | AB129: =VLOOKUP(Y129,Treatments!$C$7:$J$407,8) -> 32.0825 | AC129: 1 | AD129: 1 | AE129: 32.0825 | AF129: 2887.425 | AI129: 0 | AJ129: =VLOOKUP(AI129,Treatments!$C$7:$J$407,2) -> No treatment | AK129: 0 | AL129: =VLOOKUP(AI129,Treatments!$C$7:$J$407,8) -> 0 | AM129: 0 | AO129: 0 | AP129: 0 | AQ129: 0
B130: 284 | C130: =IF(B130<=0,"",VLOOKUP(B130,Treatments!$C$7:$J$407,2)) -> Dolichos | D130: 25 | E130: =VLOOKUP(B130,Treatments!$C$7:$J$407,8) -> 2 | F130: 1 | G130: 1 | H130: 50 | I130: 4500 | Y130: 284 | Z130: =VLOOKUP(Y130,Treatments!$C$7:$J$407,2) -> Dolichos | AA130: 25 | AB130: =VLOOKUP(Y130,Treatments!$C$7:$J$407,8) -> 2 | AC130: 1 | AD130: 1 | AE130: 50 | AF130: 4500
B131: 311 | C131: =IF(B131<=0,"",VLOOKUP(B131,Treatments!$C$7:$J$407,2)) -> Lablab inoculant | D131: 1 | E131: =VLOOKUP(B131,Treatments!$C$7:$J$407,8) -> 0.96 | F131: 1 | G131: 1 | H131: 0.96 | I131: 86.4 | L131: Treatment No | M131: Post Planting Costs | N131: Rate of application | O131: cost / unit | P131: number of applications | R131: % of area treated | Y131: 311 | Z131: =VLOOKUP(Y131,Treatments!$C$7:$J$407,2) -> Lablab inoculant | AA131: 1 | AB131: =VLOOKUP(Y131,Treatments!$C$7:$J$407,8) -> 0.96 | AC131: 1 | AD131: 1 | AE131: 0.96 | AF131: 86.4 | AI131: Treatment No | AJ131: Post Planting Costs | AK131: Rate of application | AL131: cost / unit | AM131: number of applications | AO131: % of area treated
C132: =IF(B132<=0,"",VLOOKUP(B132,Treatments!$C$7:$J$407,2)) ->  | E132: =VLOOKUP(B132,Treatments!$C$7:$J$407,8) -> 0 | H132: 0 | I132: 0 | M132: =VLOOKUP(L132,Treatments!$C$7:$J$407,2) -> No treatment | O132: =VLOOKUP(L132,Treatments!$C$7:$J$407,8) -> 0 | S132: =N132*O132*P132*R132 -> 0 | T132: =S132*$D$9 -> 0 | Y132: 0 | Z132: =VLOOKUP(Y132,Treatments!$C$7:$J$407,2) -> No treatment | AA132: 0 | AB132: =VLOOKUP(Y132,Treatments!$C$7:$J$407,8) -> 0 | AC132: 0 | AD132: 0 | AE132: 0 | AF132: 0 | AI132: =IF(AND(L132>=344,L132<=358),L132+15,L132) -> 0 | AJ132: =VLOOKUP(AI132,Treatments!$C$7:$J$407,2) -> No treatment | AK132: =N132 -> 0 | AL132: =VLOOKUP(AI132,Treatments!$C$7:$J$407,8) -> 0 | AM132: =P132 -> 0 | AO132: =R132 -> 0 | AP132: =AK132*AL132*AM132*AO132 -> 0 | AQ132: =AP132*$D$9 -> 0
C133: =IF(B133<=0,"",VLOOKUP(B133,Treatments!$C$7:$J$407,2)) ->  | E133: =VLOOKUP(B133,Treatments!$C$7:$J$407,8) -> 0 | H133: 0 | I133: 0 | M133: =VLOOKUP(L133,Treatments!$C$7:$J$407,2) -> No treatment | O133: =VLOOKUP(L133,Treatments!$C$7:$J$407,8) -> 0 | S133: 0 | T133: 0 | Y133: 0 | Z133: =VLOOKUP(Y133,Treatments!$C$7:$J$407,2) -> No treatment | AA133: 0 | AB133: =VLOOKUP(Y133,Treatments!$C$7:$J$407,8) -> 0 | AC133: 0 | AD133: 0 | AE133: 0 | AF133: 0 | AI133: 0 | AJ133: =VLOOKUP(AI133,Treatments!$C$7:$J$407,2) -> No treatment | AK133: 0 | AL133: =VLOOKUP(AI133,Treatments!$C$7:$J$407,8) -> 0 | AM133: 0 | AO133: 0 | AP133: 0 | AQ133: 0
C134: =IF(B134<=0,"",VLOOKUP(B134,Treatments!$C$7:$J$407,2)) ->  | E134: =VLOOKUP(B134,Treatments!$C$7:$J$407,8) -> 0 | H134: 0 | I134: 0 | M134: =VLOOKUP(L134,Treatments!$C$7:$J$407,2) -> No treatment | O134: =VLOOKUP(L134,Treatments!$C$7:$J$407,8) -> 0 | S134: 0 | T134: 0 | Y134: 0 | Z134: =VLOOKUP(Y134,Treatments!$C$7:$J$407,2) -> No treatment | AA134: 0 | AB134: =VLOOKUP(Y134,Treatments!$C$7:$J$407,8) -> 0 | AC134: 0 | AD134: 0 | AE134: 0 | AF134: 0 | AI134: 0 | AJ134: =VLOOKUP(AI134,Treatments!$C$7:$J$407,2) -> No treatment | AK134: 0 | AL134: =VLOOKUP(AI134,Treatments!$C$7:$J$407,8) -> 0 | AM134: 0 | AO134: 0 | AP134: 0 | AQ134: 0
C135: =IF(B135<=0,"",VLOOKUP(B135,Treatments!$C$7:$J$407,2)) ->  | E135: =VLOOKUP(B135,Treatments!$C$7:$J$407,8) -> 0 | H135: 0 | I135: 0 | M135: =VLOOKUP(L135,Treatments!$C$7:$J$407,2) -> No treatment | O135: =VLOOKUP(L135,Treatments!$C$7:$J$407,8) -> 0 | S135: 0 | T135: 0 | Y135: 0 | Z135: =VLOOKUP(Y135,Treatments!$C$7:$J$407,2) -> No treatment | AA135: 0 | AB135: =VLOOKUP(Y135,Treatments!$C$7:$J$407,8) -> 0 | AC135: 0 | AD135: 0 | AE135: 0 | AF135: 0 | AI135: 0 | AJ135: =VLOOKUP(AI135,Treatments!$C$7:$J$407,2) -> No treatment | AK135: 0 | AL135: =VLOOKUP(AI135,Treatments!$C$7:$J$407,8) -> 0 | AM135: 0 | AO135: 0 | AP135: 0 | AQ135: 0
C136: =IF(B136<=0,"",VLOOKUP(B136,Treatments!$C$7:$J$407,2)) ->  | E136: =VLOOKUP(B136,Treatments!$C$7:$J$407,8) -> 0 | H136: 0 | I136: 0 | M136: =VLOOKUP(L136,Treatments!$C$7:$J$407,2) -> No treatment | O136: =VLOOKUP(L136,Treatments!$C$7:$J$407,8) -> 0 | S136: 0 | T136: 0 | Y136: 0 | Z136: =VLOOKUP(Y136,Treatments!$C$7:$J$407,2) -> No treatment | AA136: 0 | AB136: =VLOOKUP(Y136,Treatments!$C$7:$J$407,8) -> 0 | AC136: 0 | AD136: 0 | AE136: 0 | AF136: 0 | AI136: 0 | AJ136: =VLOOKUP(AI136,Treatments!$C$7:$J$407,2) -> No treatment | AK136: 0 | AL136: =VLOOKUP(AI136,Treatments!$C$7:$J$407,8) -> 0 | AM136: 0 | AO136: 0 | AP136: 0 | AQ136: 0
C137: =IF(B137<=0,"",VLOOKUP(B137,Treatments!$C$7:$J$407,2)) ->  | E137: =VLOOKUP(B137,Treatments!$C$7:$J$407,8) -> 0 | H137: 0 | I137: 0 | M137: =VLOOKUP(L137,Treatments!$C$7:$J$407,2) -> No treatment | O137: =VLOOKUP(L137,Treatments!$C$7:$J$407,8) -> 0 | S137: 0 | T137: 0 | Y137: 0 | Z137: =VLOOKUP(Y137,Treatments!$C$7:$J$407,2) -> No treatment | AA137: 0 | AB137: =VLOOKUP(Y137,Treatments!$C$7:$J$407,8) -> 0 | AC137: 0 | AD137: 0 | AE137: 0 | AF137: 0 | AI137: 0 | AJ137: =VLOOKUP(AI137,Treatments!$C$7:$J$407,2) -> No treatment | AK137: 0 | AL137: =VLOOKUP(AI137,Treatments!$C$7:$J$407,8) -> 0 | AM137: 0 | AO137: 0 | AP137: 0 | AQ137: 0
C138: =IF(B138<=0,"",VLOOKUP(B138,Treatments!$C$7:$J$407,2)) ->  | E138: =VLOOKUP(B138,Treatments!$C$7:$J$407,8) -> 0 | H138: 0 | I138: 0 | N138: Total direct development costs | S138: =SUM(S110:S137) -> 0 | T138: 0 | Y138: 0 | Z138: =VLOOKUP(Y138,Treatments!$C$7:$J$407,2) -> No treatment | AA138: 0 | AB138: =VLOOKUP(Y138,Treatments!$C$7:$J$407,8) -> 0 | AC138: 0 | AD138: 0 | AE138: 0 | AF138: 0 | AK138: Total direct development costs | AP138: =SUM(AP110:AP137) -> 0 | AQ138: =SUM(AQ110:AQ137) -> 0
B140: Treatment No | C140: Post Planting Costs | D140: Rate of application | E140: cost / unit | F140: number of applications | G140: % of area treated | Y140: Treatment No | Z140: Post Planting Costs | AA140: Rate of application | AB140: cost / unit | AC140: number of applications | AD140: % of area treated
C141: =IF(B141<=0,"",VLOOKUP(B141,Treatments!$C$7:$J$407,2)) ->  | E141: =VLOOKUP(B141,Treatments!$C$7:$J$407,8) -> 0 | H141: =D141*E141*F141*G141 -> 0 | I141: =H141*$D$9 -> 0 | R141: Grazing foregone for development (buffel grass gross margin) | T141: =S141*$D$9 -> 0 | Y141: =IF(AND(B141>=344,B141<=358),B141+15,B141) -> 0 | Z141: =VLOOKUP(Y141,Treatments!$C$7:$J$407,2) -> No treatment | AA141: =D141 -> 0 | AB141: =VLOOKUP(Y141,Treatments!$C$7:$J$407,8) -> 0 | AC141: =F141 -> 0 | AD141: =G141 -> 0 | AE141: =AA141*AB141*AC141*AD141 -> 0 | AF141: =AE141*$D$9 -> 0 | AO141: Grazing foregone for development (buffel grass gross margin) | AP141: =S141 -> 0 | AQ141: =AP141*$D$9 -> 0
B142: 344 | C142: =IF(B142<=0,"",VLOOKUP(B142,Treatments!$C$7:$J$407,2)) -> Linkage spray rig | D142: 1 | E142: =VLOOKUP(B142,Treatments!$C$7:$J$407,8) -> 3.377941176 | F142: 1 | G142: 1 | H142: 3.377941176 | I142: =H142*$D$9 -> 304.0147059 | Q142: Opportunity cost of development capital | R142: 0.05 | S142: =S141+S140+S138 -> 0 | T142: =T141+T140+T138 -> 0 | Y142: 359 | Z142: =VLOOKUP(Y142,Treatments!$C$7:$J$407,2) -> Linkage spray rig | AA142: =D142 -> 1 | AB142: =VLOOKUP(Y142,Treatments!$C$7:$J$407,8) -> 8.01 | AC142: =F142 -> 1 | AD142: 1 | AE142: 8.01 | AF142: 720.9 | AN142: Opportunity cost of development capital | AO142: =R142 -> 0.05 | AP142: =AP141+AP140+AP138 -> 0 | AQ142: =AQ141+AQ140+AQ138 -> 0
B143: 171 | C143: =IF(B143<=0,"",VLOOKUP(B143,Treatments!$C$7:$J$407,2)) -> Spinnaker | D143: 0.1 | E143: =VLOOKUP(B143,Treatments!$C$7:$J$407,8) -> 255 | F143: 1 | G143: 1 | H143: 25.5 | I143: 2295 | O143: Amortised development costs | P143: life of forage | Q143: 30 | R143: years | S143: =PMT(R142,Q143,S142)*-1 -> 0 | T143: per hectare per annum | Y143: 171 | Z143: =VLOOKUP(Y143,Treatments!$C$7:$J$407,2) -> Spinnaker | AA143: 0.1 | AB143: =VLOOKUP(Y143,Treatments!$C$7:$J$407,8) -> 255 | AC143: 1 | AD143: 1 | AE143: 25.5 | AF143: 2295 | AL143: Amortised development costs | AM143: life of forage | AN143: =Q143 -> 30 | AO143: years | AP143: =PMT(AO142,AN143,AP142)*-1 -> 0 | AQ143: per hectare per annum
C144: =IF(B144<=0,"",VLOOKUP(B144,Treatments!$C$7:$J$407,2)) ->  | E144: =VLOOKUP(B144,Treatments!$C$7:$J$407,8) -> 0 | H144: 0 | I144: 0 | Y144: 0 | Z144: =VLOOKUP(Y144,Treatments!$C$7:$J$407,2) -> No treatment | AA144: 0 | AB144: =VLOOKUP(Y144,Treatments!$C$7:$J$407,8) -> 0 | AC144: 0 | AD144: 0 | AE144: 0 | AF144: 0
C145: =IF(B145<=0,"",VLOOKUP(B145,Treatments!$C$7:$J$407,2)) ->  | E145: =VLOOKUP(B145,Treatments!$C$7:$J$407,8) -> 0 | H145: 0 | I145: 0 | Y145: 0 | Z145: =VLOOKUP(Y145,Treatments!$C$7:$J$407,2) -> No treatment | AA145: 0 | AB145: =VLOOKUP(Y145,Treatments!$C$7:$J$407,8) -> 0 | AC145: 0 | AD145: 0 | AE145: 0 | AF145: 0
C146: =IF(B146<=0,"",VLOOKUP(B146,Treatments!$C$7:$J$407,2)) ->  | E146: =VLOOKUP(B146,Treatments!$C$7:$J$407,8) -> 0 | H146: 0 | I146: 0 | Y146: 0 | Z146: =VLOOKUP(Y146,Treatments!$C$7:$J$407,2) -> No treatment | AA146: 0 | AB146: =VLOOKUP(Y146,Treatments!$C$7:$J$407,8) -> 0 | AC146: 0 | AD146: 0 | AE146: 0 | AF146: 0
C147: Amortised development costs | E147: =S143 -> 0 | H147: 0 | I147: 0 | Z147: Amortised development costs | AA147: 0 | AB147: =AP143 -> 0 | AC147: 0 | AD147: 0 | AE147: 0 | AF147: 0
F148: Total forage annual costs | H148: =SUM(H110:H147) -> 169.5139664 | I148: =SUM(I110:I147) -> 15256.25697 | L148: Development costs are added to the estimate of forage variable costs as amortised costs | AC148: Total forage annual costs | AE148: =SUM(AE110:AE147) -> 248.2683571 | AF148: =SUM(AF110:AF147) -> 22344.15214
L149: Machinery costs incurred during the development phase can be added from the Treatments worksheet - see rows 350 to 380
L151: The expected life of the forage and the opportunity cost of development capital are used to calculate the amortised cost of the forage development phase.
B153: Gross margin calculation | G153: Gross margin calculation | L153: Where a period of grazing is forgone during the development phase, an amount equal to the annual Buffel grass gross margin can be added to the costs of developing the forage.
B154: Owner rate | D154: Total | E154: per ha per annum | G154: Machinery Contract rate | I154: Total | J154: per ha per annum | L154: See the Leucaena and Butterfly pea gross margins to see how development costs can be incorporated in the analysis of relative profitability
B155: Livestock Sales | D155: =L60 -> 193588.4288 | E155: =D155/$D$8 -> 1935.884288 | G155: Livestock Sales | I155: =D155 -> 193588.4288 | J155: 1935.884288 | L155: More detailed investment analysis techniques should be applied prior to an investment in long lived forage crops before a final decision is made to commit resources to their production.
B156: Livestock Purchases | D156: =H22 -> 163655.68 | E156: =D156/$D$8 -> 1636.5568 | G156: Livestock Purchases | I156: 163655.68 | J156: 1636.5568
B157: Freight In, purchase costs | D157: =H35+J35+L35 -> 3194.625455 | E157: 31.94625455 | G157: Freight In | I157: 3194.625455 | J157: 31.94625455
B158: Freight Out | D158: =L75 -> 7807.024 | E158: 78.07024 | G158: Freight Out | I158: 7807.024 | J158: 78.07024
B159: Treatment Expenses | D159: =M47 -> 74.176 | E159: 0.74176 | G159: Treatment Expenses | I159: 74.176 | J159: 0.74176
B160: Selling Expenses | D160: =D75+H75 -> 976 | E160: 9.76 | G160: Selling Expenses | I160: 976 | J160: 9.76
B161: Forage growing costs | D161: =I148 -> 15256.25697 | E161: 152.5625697 | G161: Forage annual contract costs | I161: =AF148 -> 22344.15214 | J161: =I161/$D$8 -> 223.4415214
B162: Total Expenses | D162: =SUM(D156:D161) -> 190963.7624 | E162: 1909.637624 | G162: Total Expenses | I162: =SUM(I156:I161) -> 198051.6576 | J162: =I162/D8 -> 1980.516576
B164: Gross Margin | D164: =D155-D162 -> 2624.666371 | E164: =D164/D8 -> 26.24666371 | G164: Gross Margin | I164: =I155-I162 -> -4463.228797 | J164: =I164/$D$8 -> -44.63228797
B165: Interest foregone on livestock capital | D165: =H88 -> 2017.672767 | E165: =D165/D8 -> 20.17672767 | G165: Interest foregone on livestock capital | I165: =H88 -> 2017.672767
B166: Gross Margin per annum (after Interest) | D166: =D164-D165 -> 606.9936035 | E166: =D166/$D$8 -> 6.069936035 | G166: Gross Margin (after Interest) | I166: =I164-I165 -> -6480.901565 | J166: =I166/$D$8 -> -64.80901565
B167: Kilograms of liveweight gain per hectare | E167: =(E60-F22)/$D$8 -> 140.544
C173: Forage production estimate | D173: Factor | H173: Annual forages | K173: Perennial forages
C174: Expected carrying capacity in AE | D174: =H100 -> 56.71212425 | H174: Oats | I174: Forage Sorghum | J174: Lablab | K174: Butterfly pea | L174: Buffel grass | M174: Native pasture (Open Downs)
C175: Consumption per AE per annum | D175: 3650 | E175: kg/AE/yr | G175: Residual (kg DM/ha) | H175: 1000 | I175: 1000 | J175: 1000 | K175: 1000 | L175: 1000 | M175: 1000
C176: Kgs consumed by livestock | D176: =D175*D174 -> 206999.2535 | E176: kg dry matter | G176: Utilisation (0.3-0.5) | H176: 0.4 | I176: 0.3 | J176: 0.4 | K176: 0.3 | L176: 0.3 | M176: 0.3
C177: Expected utilisation | D177: 0.4
C178: Forage available for consumption | D178: =D176*1/D177 -> 517498.1338 | E178: kg dry matter
C179: Area of paddock | D179: =D8 -> 100 | E179: hectares
C180: Forage available for consumption per hectare | D180: =D178/D179 -> 5174.981338 | E180: kg dry matter /hectare
C181: Residual required | D181: 1000 | E181: kg dry matter /hectare
C182: Expected annual forage growth | D182: =D181+D180 -> 6174.981338 | E182: kg dry matter /hectare

Sheet Forage sorghum
B2: Forage assessment model - gross margin
B5: Forage type | C5: ='Gross margin summary'!H15 -> Forage sorghum
C8: Total size of the paddock | D8: 100 | E8: hectares
C9: Area of paddock planted to forage | D9: 100 | E9: hectares | Q9: Calculate the paddock value of the owned steer
C10: % of paddock planted to forage | D10: =IF(D9<=0,0,D9/D8) -> 1
S11: Mob 1 | T11: Mob 2 | U11: Mob 3 | V11: Mob 4 | W11: Mob 5 | X11: Mob 6 | Z11: Transport Loading Density Guide
Q12: Steer weight in the paddock | S12: =F16 -> 525 | T12: =F17 -> 0 | U12: =F18 -> 0 | V12: =F19 -> 0 | W12: =F20 -> 0 | X12: =F21 -> 0 | Z12: Source for loading density: Kaus, Lapworth and Dunn "Marketing Cattle to South-East Asia"
B13: Livestock entering the paddock | D13: ( use the tables to the right to calculate the price going into the paddock if the cattle are already owned) | Q13: weight loss to get to sale yards or works | S13: 0 | T13: 0 | U13: 0 | V13: 0 | W13: 0 | X13: 0 | Z13: Maximum for lighter cattle = 44/deck
Q14: Steer weight at saleyards or works | S14: =S12*(1-S13) -> 525 | T14: 0 | U14: 0 | V14: 0 | W14: 0 | X14: 0 | Z14: Average | AA14: Head Per
C15: Date the mob enters the paddock | D15: Number entering the paddock | E15: Purchase price ($ per kg) | F15: Average purchase weight (Kg live) | G15: Cost of stock per head into paddock | H15: Total cost of stock | I15: Paddock stocking rate (head per hectare) | J15: Paddock stocking rate (hectare per head) | K15: Forage area stocking rate (head per hectare) | L15: Forage area stocking rate (hectare per head) | Q15: Sale price at yards or works ($ /kg live) | Z15: Liveweight | AA15: 12.2m deck
B16: Mob 1 | C16: 2014-02-01 | D16: 212 | E16: 1.6 | F16: 525 | G16: =F16*E16 -> 840 | H16: =G16*D16 -> 178080 | I16: =D16/$D$8 -> 2.12 | J16: =IF(D16<=0,0,$D$8/D16) -> 0.4716981132 | K16: =D16/$D$9 -> 2.12 | L16: =IF(D16<=0,0,$D$9/D16) -> 0.4716981132 | Q16: Gross sale price ($/head) | S16: =S15*S14 -> 0 | T16: 0 | U16: 0 | V16: 0 | W16: 0 | X16: 0 | Z16: 250 | AA16: 38
B17: Mob 2 | G17: 0 | H17: 0 | I17: 0 | J17: 0 | K17: 0 | L17: 0 | Q17: Commission & insurance % | S17: 0.035 | Z17: 300 | AA17: 34
B18: Mob 3 | G18: 0 | H18: 0 | I18: 0 | J18: 0 | K18: 0 | L18: 0 | Q18: Commission & insurance ($/head) | S18: =S17*S16 -> 0 | T18: 0 | U18: 0 | V18: 0 | W18: 0 | X18: 0 | Z18: 350 | AA18: 30
B19: Mob 4 | G19: 0 | H19: 0 | I19: 0 | J19: 0 | K19: 0 | L19: 0 | Q19: Transaction levy, yard dues etc | Z19: 400 | AA19: 28
B20: Mob 5 | G20: 0 | H20: 0 | I20: 0 | J20: 0 | K20: 0 | L20: 0 | Q20: Transport cost ($/head) | Z20: 450 | AA20: 26
B21: Mob 6 | G21: 0 | H21: 0 | I21: 0 | J21: 0 | K21: 0 | L21: 0 | Q21: Steer value net of selling expenses | S21: =S16-S18-S19-S20 -> 0 | T21: 0 | U21: 0 | V21: 0 | W21: 0 | X21: 0 | Z21: 500 | AA21: 24
F22: =SUMPRODUCT(D16:D21,F16:F21) -> 111300 | H22: =SUM(H16:H21) -> 178080 | Q22: Paddock weight | S22: =S12 -> 525 | T22: 0 | U22: 0 | V22: 0 | W22: 0 | X22: 0 | Z22: 550 | AA22: 22
Q23: Selling cost ($ per kg) | S23: =IF(S14>0,(S18+S19+S20)/S14,0) -> 0 | T23: 0 | U23: 0 | V23: 0 | W23: 0 | X23: 0 | Z23: 600 | AA23: 20
Q24: Net value in the paddock ($/kg) | S24: =IF(S22>0,S21/S22,0) -> 0 | T24: 0 | U24: 0 | V24: 0 | W24: 0 | X24: 0 | Z24: 650 | AA24: 18
B26: Costs associated with purchasing steers (complete if stock are specifically purchased to graze the forage)
C28: Purchases | D28: Average weight | E28: Trucking distance inwards (Km) | F28: $ per Km per deck | G28: Rate per deck | H28: Total freight in | I28: Cost per head | J28: Travel costs incurred in finding the mob ($ per mob) | K28: Induction cost ($ per head) | L28: Total induction costs | Z28: Transport cost per head calculator
B29: Mob 1 | C29: =D16 -> 212 | D29: =F16 -> 525 | E29: 189.5 | F29: 1.9 | G29: 20 | H29: =IF(C29>0,C29*E29*F29/G29,0) -> 3816.53 | I29: =IF(C29>0,H29/C29,0) -> 18.0025 | J29: 0 | K29: 0 | L29: =K29*C29 -> 0
B30: Mob 2 | C30: 0 | D30: 0 | H30: 0 | I30: 0 | J30: 0 | K30: 0 | L30: 0 | Z30: Number transported | AA30: =D16 -> 212
B31: Mob 3 | C31: 0 | D31: 0 | H31: 0 | I31: 0 | J31: 0 | K31: 0 | L31: 0 | Z31: Distance (Km) | AA31: 200
B32: Mob 4 | C32: 0 | D32: 0 | H32: 0 | I32: 0 | J32: 0 | K32: 0 | L32: 0 | Z32: $ per Km | AA32: 2
B33: Mob 5 | C33: 0 | D33: 0 | H33: 0 | I33: 0 | J33: 0 | K33: 0 | L33: 0 | Z33: Rate on Truck | AA33: 28
B34: Mob 6 | C34: 0 | D34: 0 | H34: 0 | I34: 0 | J34: 0 | K34: 0 | L34: 0 | Z34: Total | AA34: =IF(AA30>0,AA30*AA31*AA32/AA33,0) -> 3028.571429
H35: =SUM(H29:H34) -> 3816.53 | J35: =SUM(J29:J34) -> 0 | L35: =SUM(L29:L34) -> 0 | Z35: Per head | AA35: =IF(AA30>0,AA34/AA30,0) -> 14.28571429
B38: Livestock health and other costs incurred by stock grazing the forage ($ per head)
C40: Number in the mob | D40: Fodder | E40: Ticks | F40: Drench | G40: 5 in 1 | H40: Botulism | I40: Flies | J40: Growth Promotant | K40: Leucaena inoculum | L40: Other | M40: Total
B41: Mob 1 | C41: =D16 -> 212 | G41: 0.38 | M41: =SUM(D41:L41)*C41 -> 80.56
B42: Mob 2 | C42: 0 | M42: 0
B43: Mob 3 | C43: 0 | M43: 0
B44: Mob 4 | C44: 0 | M44: 0
B45: Mob 5 | C45: 0 | M45: 0
B46: Mob 6 | C46: 0 | M46: 0
D47: =SUMPRODUCT($C$41:$C$46,D41:D46) -> 0 | E47: 0 | F47: 0 | G47: 80.56 | H47: 0 | I47: 0 | J47: 0 | K47: 0 | L47: 0 | M47: =SUM(M41:M46) -> 80.56
B51: Livestock weight and value leaving the paddock
C53: Date leaving the paddock | D53: Total days held | E53: Average weight leaving the paddock (kg /head) | F53: Gain per head (kg) | G53: Gain per day (kg /head /day) | H53: Number leaving the paddock | I53: Calculated Loss percentage | J53: Sale Price ($ per Kg Live) | K53: Gross value per head | L53: Gross value of mob | M53: Liveweight Kgs Sold | N53: Estimated Dressing % | O53: Dressed Weight Sold
B54: Mob 1 | C54: =C16+130 -> 2014-06-11 | D54: =C54-C16 -> 130 | E54: 596.5 | F54: =E54-F16 -> 71.5 | G54: =IF(F54<=0,0,F54/D54) -> 0.55 | H54: =D16 -> 212 | I54: =IF(H54<=0,0,(H54-D16)/D16) -> 0 | J54: 1.664 | K54: =J54*E54 -> 992.576 | L54: =K54*H54 -> 210426.112 | M54: =E54*H54 -> 126458 | N54: 0.52 | O54: =N54*M54 -> 65758.16
B55: Mob 2 | D55: 0 | F55: 0 | G55: 0 | I55: 0 | K55: 0 | L55: 0 | M55: 0 | N55: 0.52 | O55: 0
B56: Mob 3 | D56: 0 | F56: 0 | G56: 0 | I56: 0 | K56: 0 | L56: 0 | M56: 0 | N56: 0.52 | O56: 0
B57: Mob 4 | D57: 0 | F57: 0 | G57: 0 | I57: 0 | K57: 0 | L57: 0 | M57: 0 | N57: 0.52 | O57: 0
B58: Mob 5 | D58: 0 | F58: 0 | G58: 0 | I58: 0 | K58: 0 | L58: 0 | M58: 0 | N58: 0.52 | O58: 0
B59: Mob 6 | D59: 0 | F59: 0 | G59: 0 | I59: 0 | K59: 0 | L59: 0 | M59: 0 | N59: 0.52 | O59: 0
E60: =SUMPRODUCT(E54:E59,H54:H59) -> 126458 | K60: Total | L60: =SUM(L54:L59) -> 210426.112 | M60: =SUM(M54:M59) -> 126458 | O60: =SUM(O54:O59) -> 65758.16
L61: Kilograms of beef purchased | M61: =F22 -> 111300 | O61: =M61*O60/M60 -> 57876
L62: Net beef produced | M62: =M60-M61 -> 15158 | N62: kg live | O62: =O60-O61 -> 7882.16 | P62: kg dressed
B66: Selling costs
C68: Sales commission (%) | D68: Commission paid | E68: MLA levy ($ per head) | F68: Yard fees ($ per head) | G68: Sale tags (total for mob) | H68: Total sundry selling costs | I68: Trucking distance (Km) | J68: $ per Km per deck | K68: Rate on deck (head) | L68: Total trucking costs | M68: Trucking cost ($ per head)
B69: =B54 -> Mob 1 | D69: =C69*L54 -> 0 | E69: 5 | H69: =(E69*H54)+(F69*H54)+G69 -> 1060 | I69: 421 | J69: 1.9 | K69: 20 | L69: =IF(K69=0,0,IF(H54<=0,0,H54*I69*J69/K69)) -> 8478.94 | M69: =IF(L69<=0,0,L69/H54) -> 39.995
B70: Mob 2 | D70: 0 | H70: 0 | L70: 0 | M70: 0
B71: Mob 3 | D71: 0 | H71: 0 | L71: 0 | M71: 0
B72: Mob 4 | D72: 0 | H72: 0 | L72: 0 | M72: 0
B73: Mob 5 | D73: 0 | H73: 0 | L73: 0 | M73: 0
B74: Mob 6 | D74: 0 | H74: 0 | L74: 0 | M74: 0
D75: =SUM(D69:D74) -> 0 | H75: =SUM(H69:H74) -> 1060 | L75: =SUM(L69:L74) -> 8478.94
B79: Opportunity cost of livestock capital calculator
C81: Number | D81: Days grazing | E81: Opening value (per head) | F81: Funds invested | G81: Interest rate | H81: Opportunity cost of livestock
B82: Mob 1 | C82: =C41 -> 212 | D82: =D54 -> 130 | E82: =G16 -> 840 | F82: =E82*C82 -> 178080 | G82: 0.05 | H82: =F82*G82*D82/365 -> 3171.287671
B83: Mob 2 | C83: 0 | D83: 0 | E83: 0 | F83: 0 | G83: 0.05 | H83: 0
B84: Mob 3 | C84: 0 | D84: 0 | E84: 0 | F84: 0 | G84: 0.05 | H84: 0
B85: Mob 4 | C85: 0 | D85: 0 | E85: 0 | F85: 0 | G85: 0.05 | H85: 0
B86: Mob 5 | C86: 0 | D86: 0 | E86: 0 | F86: 0 | G86: 0.05 | H86: 0
B87: Mob 6 | C87: 0 | D87: 0 | E87: 0 | F87: 0 | G87: 0.05 | H87: 0
F88: Total interest forgone | H88: =SUM(H82:H87) -> 3171.287671
B91: Adult Equivalent calculator
C93: Number | D93: Days grazing | E93: Opening weight | F93: Av Final or Sale Kg | G93: Calculated AE rating | H93: Total AEs | I93: Stocking rate (AE per hectare) | J93: (Stocking rate Hectare per AE)
B94: Mob 1 | C94: =C41 -> 212 | D94: =D54 -> 130 | E94: =F16 -> 525 | F94: =E54 -> 596.5 | G94: =(POWER(((F94+E94)/2),0.75)/97.7) -> 1.179457776 | H94: =D94/365*G94*C94 -> 89.05714057 | I94: =IF(D8<=0,0,H94/$D$8) -> 0.8905714057 | J94: =IF(H94<=0,0,$D$8/H94) -> 1.122874588
B95: Mob 2 | C95: 0 | D95: 0 | E95: 0 | F95: 0 | G95: 0 | H95: 0 | I95: =IF(D8<=0,0,H95/$D$8) -> 0 | J95: 0
B96: Mob 3 | C96: 0 | D96: 0 | E96: 0 | F96: 0 | G96: 0 | H96: 0 | I96: =IF(D8<=0,0,H96/$D$8) -> 0 | J96: 0
B97: Mob 4 | C97: 0 | D97: 0 | E97: 0 | F97: 0 | G97: 0 | H97: 0 | I97: =IF(D8<=0,0,H97/$D$8) -> 0 | J97: 0
B98: Mob 5 | C98: 0 | D98: 0 | E98: 0 | F98: 0 | G98: 0 | H98: 0 | I98: =IF(D8<=0,0,H98/$D$8) -> 0 | J98: 0
B99: Mob 6 | C99: 0 | D99: 0 | E99: 0 | F99: 0 | G99: 0 | H99: 0 | I99: =IF(D8<=0,0,H99/$D$8) -> 0 | J99: 0
G100: Total AE's | H100: =SUM(H94:H99) -> 89.05714057 | I100: =IF(D8<=0,0,H100/$D$8) -> 0.8905714057 | J100: 1.122874588
R102: This side of the worksheet calculates variable costs of the basis of the machinery being owned | Y102: This side of the worksheet automatically calculates costs on the basis of nominal contract rates
B105: Forage variable cost calculator (use to identify growing and maintenance costs of forage)
C107: Machinery FORM + Labour | D107: (use treatments sheet to identify costs) | L107: Forage development cost calculator | N107: Machinery FORM + Labour | Y107: Forage annual variable cost calculator | Z107: Machinery Contract rate | AI107: Forage development cost calculator | AJ107: Machinery Contract rate
B109: Treatment No | C109: Pre planting costs | D109: Rate of application | E109: cost / unit | F109: number of applications | G109: % of forage area treated | H109: per hectare | I109: total | L109: Treatment No | M109: Pre planting costs | N109: Rate of application | O109: cost / unit | P109: number of applications | R109: % of forage area treated | S109: per hectare | T109: total | Y109: Treatment No | Z109: Pre planting costs | AA109: Rate of application | AB109: cost / unit | AC109: number of applications | AD109: % of area treated | AE109: per hectare | AF109: total | AI109: Treatment No | AJ109: Pre planting costs | AK109: Rate of application | AL109: cost / unit | AM109: number of applications | AO109: % of area treated | AP109: per hectare | AQ109: total
B110: 347 | C110: =IF(B110<=0,"",VLOOKUP(B110,Treatments!$C$7:$J$407,2)) -> Chisel plough | D110: 1 | E110: =VLOOKUP(B110,Treatments!$C$7:$J$407,8) -> 30.25714286 | F110: 1 | G110: 1 | H110: =D110*E110*F110*G110 -> 30.25714286 | I110: =H110*$D$9 -> 3025.714286 | M110: =VLOOKUP(L110,Treatments!$C$7:$J$407,2) -> No treatment | O110: =VLOOKUP(L110,Treatments!$C$7:$J$407,8) -> 0 | S110: =N110*O110*P110*R110 -> 0 | T110: =S110*$D$9 -> 0 | Y110: =IF(AND(B110>=344,B110<=358),B110+15,B110) -> 362 | Z110: =VLOOKUP(Y110,Treatments!$C$7:$J$407,2) -> Chisel plough | AA110: =D110 -> 1 | AB110: =VLOOKUP(Y110,Treatments!$C$7:$J$407,8) -> 56.46285714 | AC110: =F110 -> 1 | AD110: =G110 -> 1 | AE110: =AA110*AB110*AC110*AD110 -> 56.46285714 | AF110: =AE110*$D$9 -> 5646.285714 | AI110: =IF(AND(L110>=344,L110<=358),L110+15,L110) -> 0 | AJ110: =VLOOKUP(AI110,Treatments!$C$7:$J$407,2) -> No treatment | AK110: =N110 -> 0 | AL110: =VLOOKUP(AI110,Treatments!$C$7:$J$407,8) -> 0 | AM110: =P110 -> 0 | AO110: =R110 -> 0 | AP110: =AK110*AL110*AM110*AO110 -> 0 | AQ110: =AP110*$D$9 -> 0
B111: 346 | C111: =IF(B111<=0,"",VLOOKUP(B111,Treatments!$C$7:$J$407,2)) -> Tyne cultivator | D111: 1 | E111: =VLOOKUP(B111,Treatments!$C$7:$J$407,8) -> 16.225 | F111: 1 | G111: 1 | H111: =D111*E111*F111*G111 -> 16.225 | I111: =H111*$D$9 -> 1622.5 | M111: =VLOOKUP(L111,Treatments!$C$7:$J$407,2) -> No treatment | O111: =VLOOKUP(L111,Treatments!$C$7:$J$407,8) -> 0 | S111: 0 | T111: 0 | Y111: =IF(AND(B111>=344,B111<=358),B111+15,B111) -> 361 | Z111: =VLOOKUP(Y111,Treatments!$C$7:$J$407,2) -> Tyne cultivator | AA111: =D111 -> 1 | AB111: =VLOOKUP(Y111,Treatments!$C$7:$J$407,8) -> 35.095 | AC111: =F111 -> 1 | AD111: 1 | AE111: =AA111*AB111*AC111*AD111 -> 35.095 | AF111: 3509.5 | AI111: 0 | AJ111: =VLOOKUP(AI111,Treatments!$C$7:$J$407,2) -> No treatment | AK111: 0 | AL111: =VLOOKUP(AI111,Treatments!$C$7:$J$407,8) -> 0 | AM111: 0 | AO111: 0 | AP111: 0 | AQ111: 0
B112: 344 | C112: =IF(B112<=0,"",VLOOKUP(B112,Treatments!$C$7:$J$407,2)) -> Linkage spray rig | D112: 1 | E112: =VLOOKUP(B112,Treatments!$C$7:$J$407,8) -> 3.377941176 | F112: 2 | G112: 1 | H112: =D112*E112*F112*G112 -> 6.755882353 | I112: 675.5882353 | M112: =VLOOKUP(L112,Treatments!$C$7:$J$407,2) -> No treatment | O112: =VLOOKUP(L112,Treatments!$C$7:$J$407,8) -> 0 | S112: 0 | T112: 0 | Y112: 359 | Z112: =VLOOKUP(Y112,Treatments!$C$7:$J$407,2) -> Linkage spray rig | AA112: 1 | AB112: =VLOOKUP(Y112,Treatments!$C$7:$J$407,8) -> 8.01 | AC112: 2 | AD112: 1 | AE112: =AA112*AB112*AC112*AD112 -> 16.02 | AF112: 1602 | AI112: 0 | AJ112: =VLOOKUP(AI112,Treatments!$C$7:$J$407,2) -> No treatment | AK112: 0 | AL112: =VLOOKUP(AI112,Treatments!$C$7:$J$407,8) -> 0 | AM112: 0 | AO112: 0 | AP112: 0 | AQ112: 0
C113: =IF(B113<=0,"",VLOOKUP(B113,Treatments!$C$7:$J$407,2)) ->  | E113: =VLOOKUP(B113,Treatments!$C$7:$J$407,8) -> 0 | H113: 0 | I113: 0 | M113: =VLOOKUP(L113,Treatments!$C$7:$J$407,2) -> No treatment | O113: =VLOOKUP(L113,Treatments!$C$7:$J$407,8) -> 0 | S113: 0 | T113: 0 | Y113: 0 | Z113: =VLOOKUP(Y113,Treatments!$C$7:$J$407,2) -> No treatment | AA113: 0 | AB113: =VLOOKUP(Y113,Treatments!$C$7:$J$407,8) -> 0 | AC113: 0 | AD113: 0 | AE113: 0 | AF113: 0 | AI113: 0 | AJ113: =VLOOKUP(AI113,Treatments!$C$7:$J$407,2) -> No treatment | AK113: 0 | AL113: =VLOOKUP(AI113,Treatments!$C$7:$J$407,8) -> 0 | AM113: 0 | AO113: 0 | AP113: 0 | AQ113: 0
B114: 127 | C114: =IF(B114<=0,"",VLOOKUP(B114,Treatments!$C$7:$J$407,2)) -> Amicide 625 | D114: 0.75 | E114: =VLOOKUP(B114,Treatments!$C$7:$J$407,8) -> 6.82 | F114: 2 | G114: 1 | H114: 10.23 | I114: 1023 | M114: =VLOOKUP(L114,Treatments!$C$7:$J$407,2) -> No treatment | O114: =VLOOKUP(L114,Treatments!$C$7:$J$407,8) -> 0 | S114: 0 | T114: 0 | Y114: 127 | Z114: =VLOOKUP(Y114,Treatments!$C$7:$J$407,2) -> Amicide 625 | AA114: 0.75 | AB114: =VLOOKUP(Y114,Treatments!$C$7:$J$407,8) -> 6.82 | AC114: 2 | AD114: 1 | AE114: 10.23 | AF114: 1023 | AI114: 0 | AJ114: =VLOOKUP(AI114,Treatments!$C$7:$J$407,2) -> No treatment | AK114: 0 | AL114: =VLOOKUP(AI114,Treatments!$C$7:$J$407,8) -> 0 | AM114: 0 | AO114: 0 | AP114: 0 | AQ114: 0
B115: 150 | C115: =IF(B115<=0,"",VLOOKUP(B115,Treatments!$C$7:$J$407,2)) -> Glyphosate 450 CT | D115: 1.5 | E115: =VLOOKUP(B115,Treatments!$C$7:$J$407,8) -> 4.636 | F115: 2 | G115: 1 | H115: 13.908 | I115: 1390.8 | M115: =VLOOKUP(L115,Treatments!$C$7:$J$407,2) -> No treatment | O115: =VLOOKUP(L115,Treatments!$C$7:$J$407,8) -> 0 | S115: 0 | T115: 0 | Y115: 150 | Z115: =VLOOKUP(Y115,Treatments!$C$7:$J$407,2) -> Glyphosate 450 CT | AA115: 1.5 | AB115: =VLOOKUP(Y115,Treatments!$C$7:$J$407,8) -> 4.636 | AC115: 2 | AD115: 1 | AE115: 13.908 | AF115: 1390.8 | AI115: 0 | AJ115: =VLOOKUP(AI115,Treatments!$C$7:$J$407,2) -> No treatment | AK115: 0 | AL115: =VLOOKUP(AI115,Treatments!$C$7:$J$407,8) -> 0 | AM115: 0 | AO115: 0 | AP115: 0 | AQ115: 0
C116: =IF(B116<=0,"",VLOOKUP(B116,Treatments!$C$7:$J$407,2)) ->  | E116: =VLOOKUP(B116,Treatments!$C$7:$J$407,8) -> 0 | H116: 0 | I116: 0 | Y116: 0 | Z116: =VLOOKUP(Y116,Treatments!$C$7:$J$407,2) -> No treatment | AA116: 0 | AB116: =VLOOKUP(Y116,Treatments!$C$7:$J$407,8) -> 0 | AC116: 0 | AD116: 0 | AE116: 0 | AF116: 0
C117: =IF(B117<=0,"",VLOOKUP(B117,Treatments!$C$7:$J$407,2)) ->  | E117: =VLOOKUP(B117,Treatments!$C$7:$J$407,8) -> 0 | H117: 0 | I117: 0 | L117: Treatment No | M117: Planting Costs | N117: Rate of application | O117: cost / unit | P117: number of applications | R117: % of area treated | Y117: 0 | Z117: =VLOOKUP(Y117,Treatments!$C$7:$J$407,2) -> No treatment | AA117: 0 | AB117: =VLOOKUP(Y117,Treatments!$C$7:$J$407,8) -> 0 | AC117: 0 | AD117: 0 | AE117: 0 | AF117: 0 | AI117: Treatment No | AJ117: Planting Costs | AK117: Rate of application | AL117: cost / unit | AM117: number of applications | AO117: % of area treated
C118: =IF(B118<=0,"",VLOOKUP(B118,Treatments!$C$7:$J$407,2)) ->  | E118: =VLOOKUP(B118,Treatments!$C$7:$J$407,8) -> 0 | H118: 0 | I118: 0 | M118: =VLOOKUP(L118,Treatments!$C$7:$J$407,2) -> No treatment | O118: =VLOOKUP(L118,Treatments!$C$7:$J$407,8) -> 0 | S118: =N118*O118*P118*R118 -> 0 | T118: =S118*$D$9 -> 0 | Y118: 0 | Z118: =VLOOKUP(Y118,Treatments!$C$7:$J$407,2) -> No treatment | AA118: 0 | AB118: =VLOOKUP(Y118,Treatments!$C$7:$J$407,8) -> 0 | AC118: 0 | AD118: 0 | AE118: 0 | AF118: 0 | AI118: =IF(AND(L118>=344,L118<=358),L118+15,L118) -> 0 | AJ118: =VLOOKUP(AI118,Treatments!$C$7:$J$407,2) -> No treatment | AK118: =N118 -> 0 | AL118: =VLOOKUP(AI118,Treatments!$C$7:$J$407,8) -> 0 | AM118: =P118 -> 0 | AO118: =R118 -> 0 | AP118: =AK118*AL118*AM118*AO118 -> 0 | AQ118: =AP118*$D$9 -> 0
C119: =IF(B119<=0,"",VLOOKUP(B119,Treatments!$C$7:$J$407,2)) ->  | E119: =VLOOKUP(B119,Treatments!$C$7:$J$407,8) -> 0 | H119: 0 | I119: 0 | M119: =VLOOKUP(L119,Treatments!$C$7:$J$407,2) -> No treatment | O119: =VLOOKUP(L119,Treatments!$C$7:$J$407,8) -> 0 | S119: =N119*O119*P119*R119 -> 0 | T119: =S119*$D$9 -> 0 | Y119: 0 | Z119: =VLOOKUP(Y119,Treatments!$C$7:$J$407,2) -> No treatment | AA119: 0 | AB119: =VLOOKUP(Y119,Treatments!$C$7:$J$407,8) -> 0 | AC119: 0 | AD119: 0 | AE119: 0 | AF119: 0 | AI119: 0 | AJ119: =VLOOKUP(AI119,Treatments!$C$7:$J$407,2) -> No treatment | AK119: 0 | AL119: =VLOOKUP(AI119,Treatments!$C$7:$J$407,8) -> 0 | AM119: 0 | AO119: 0 | AP119: =AK119*AL119*AM119*AO119 -> 0 | AQ119: 0
C120: =IF(B120<=0,"",VLOOKUP(B120,Treatments!$C$7:$J$407,2)) ->  | E120: =VLOOKUP(B120,Treatments!$C$7:$J$407,8) -> 0 | H120: 0 | I120: 0 | M120: =VLOOKUP(L120,Treatments!$C$7:$J$407,2) -> No treatment | O120: =VLOOKUP(L120,Treatments!$C$7:$J$407,8) -> 0 | S120: 0 | T120: 0 | Y120: 0 | Z120: =VLOOKUP(Y120,Treatments!$C$7:$J$407,2) -> No treatment | AA120: 0 | AB120: =VLOOKUP(Y120,Treatments!$C$7:$J$407,8) -> 0 | AC120: 0 | AD120: 0 | AE120: 0 | AF120: 0 | AI120: 0 | AJ120: =VLOOKUP(AI120,Treatments!$C$7:$J$407,2) -> No treatment | AK120: 0 | AL120: =VLOOKUP(AI120,Treatments!$C$7:$J$407,8) -> 0 | AM120: 0 | AO120: 0 | AP120: 0 | AQ120: 0
C121: =IF(B121<=0,"",VLOOKUP(B121,Treatments!$C$7:$J$407,2)) ->  | E121: =VLOOKUP(B121,Treatments!$C$7:$J$407,8) -> 0 | H121: 0 | I121: 0 | M121: =VLOOKUP(L121,Treatments!$C$7:$J$407,2) -> No treatment | O121: =VLOOKUP(L121,Treatments!$C$7:$J$407,8) -> 0 | S121: 0 | T121: 0 | Y121: 0 | Z121: =VLOOKUP(Y121,Treatments!$C$7:$J$407,2) -> No treatment | AA121: 0 | AB121: =VLOOKUP(Y121,Treatments!$C$7:$J$407,8) -> 0 | AC121: 0 | AD121: 0 | AE121: 0 | AF121: 0 | AI121: 0 | AJ121: =VLOOKUP(AI121,Treatments!$C$7:$J$407,2) -> No treatment | AK121: 0 | AL121: =VLOOKUP(AI121,Treatments!$C$7:$J$407,8) -> 0 | AM121: 0 | AO121: 0 | AP121: 0 | AQ121: 0
C122: =IF(B122<=0,"",VLOOKUP(B122,Treatments!$C$7:$J$407,2)) ->  | E122: =VLOOKUP(B122,Treatments!$C$7:$J$407,8) -> 0 | H122: 0 | I122: 0 | M122: =VLOOKUP(L122,Treatments!$C$7:$J$407,2) -> No treatment | O122: =VLOOKUP(L122,Treatments!$C$7:$J$407,8) -> 0 | S122: 0 | T122: 0 | Y122: 0 | Z122: =VLOOKUP(Y122,Treatments!$C$7:$J$407,2) -> No treatment | AA122: 0 | AB122: =VLOOKUP(Y122,Treatments!$C$7:$J$407,8) -> 0 | AC122: 0 | AD122: 0 | AE122: 0 | AF122: 0 | AI122: 0 | AJ122: =VLOOKUP(AI122,Treatments!$C$7:$J$407,2) -> No treatment | AK122: 0 | AL122: =VLOOKUP(AI122,Treatments!$C$7:$J$407,8) -> 0 | AM122: 0 | AO122: 0 | AP122: 0 | AQ122: 0
C123: =IF(B123<=0,"",VLOOKUP(B123,Treatments!$C$7:$J$407,2)) ->  | E123: =VLOOKUP(B123,Treatments!$C$7:$J$407,8) -> 0 | H123: =D123*E123*F123*G123 -> 0 | I123: 0 | M123: =VLOOKUP(L123,Treatments!$C$7:$J$407,2) -> No treatment | O123: =VLOOKUP(L123,Treatments!$C$7:$J$407,8) -> 0 | S123: 0 | T123: 0 | Y123: 0 | Z123: =VLOOKUP(Y123,Treatments!$C$7:$J$407,2) -> No treatment | AA123: 0 | AB123: =VLOOKUP(Y123,Treatments!$C$7:$J$407,8) -> 0 | AC123: 0 | AD123: 0 | AE123: =AA123*AB123*AC123*AD123 -> 0 | AF123: 0 | AI123: 0 | AJ123: =VLOOKUP(AI123,Treatments!$C$7:$J$407,2) -> No treatment | AK123: 0 | AL123: =VLOOKUP(AI123,Treatments!$C$7:$J$407,8) -> 0 | AM123: 0 | AO123: 0 | AP123: 0 | AQ123: 0
C124: =IF(B124<=0,"",VLOOKUP(B124,Treatments!$C$7:$J$407,2)) ->  | E124: =VLOOKUP(B124,Treatments!$C$7:$J$407,8) -> 0 | H124: =D124*E124*F124*G124 -> 0 | I124: 0 | M124: =VLOOKUP(L124,Treatments!$C$7:$J$407,2) -> No treatment | O124: =VLOOKUP(L124,Treatments!$C$7:$J$407,8) -> 0 | S124: 0 | T124: 0 | Y124: 0 | Z124: =VLOOKUP(Y124,Treatments!$C$7:$J$407,2) -> No treatment | AA124: 0 | AB124: =VLOOKUP(Y124,Treatments!$C$7:$J$407,8) -> 0 | AC124: 0 | AD124: 0 | AE124: =AA124*AB124*AC124*AD124 -> 0 | AF124: 0 | AI124: 0 | AJ124: =VLOOKUP(AI124,Treatments!$C$7:$J$407,2) -> No treatment | AK124: 0 | AL124: =VLOOKUP(AI124,Treatments!$C$7:$J$407,8) -> 0 | AM124: 0 | AO124: 0 | AP124: 0 | AQ124: 0
M125: =VLOOKUP(L125,Treatments!$C$7:$J$407,2) -> No treatment | O125: =VLOOKUP(L125,Treatments!$C$7:$J$407,8) -> 0 | S125: 0 | T125: 0 | AI125: 0 | AJ125: =VLOOKUP(AI125,Treatments!$C$7:$J$407,2) -> No treatment | AK125: 0 | AL125: =VLOOKUP(AI125,Treatments!$C$7:$J$407,8) -> 0 | AM125: 0 | AO125: 0 | AP125: 0 | AQ125: 0
B126: Treatment No | C126: Planting Costs | D126: Rate of application | E126: cost / unit | F126: number of applications | G126: % of area treated | M126: =VLOOKUP(L126,Treatments!$C$7:$J$407,2) -> No treatment | O126: =VLOOKUP(L126,Treatments!$C$7:$J$407,8) -> 0 | S126: 0 | T126: 0 | Y126: Treatment No | Z126: Planting Costs | AA126: Rate of application | AB126: cost / unit | AC126: number of applications | AD126: % of area treated | AI126: 0 | AJ126: =VLOOKUP(AI126,Treatments!$C$7:$J$407,2) -> No treatment | AK126: 0 | AL126: =VLOOKUP(AI126,Treatments!$C$7:$J$407,8) -> 0 | AM126: 0 | AO126: 0 | AP126: 0 | AQ126: 0
C127: =IF(B127<=0,"",VLOOKUP(B127,Treatments!$C$7:$J$407,2)) ->  | E127: =VLOOKUP(B127,Treatments!$C$7:$J$407,8) -> 0 | H127: =D127*E127*F127*G127 -> 0 | I127: =H127*$D$9 -> 0 | M127: =VLOOKUP(L127,Treatments!$C$7:$J$407,2) -> No treatment | O127: =VLOOKUP(L127,Treatments!$C$7:$J$407,8) -> 0 | S127: 0 | T127: 0 | Y127: =IF(AND(B127>=344,B127<=358),B127+15,B127) -> 0 | Z127: =VLOOKUP(Y127,Treatments!$C$7:$J$407,2) -> No treatment | AA127: =D127 -> 0 | AB127: =VLOOKUP(Y127,Treatments!$C$7:$J$407,8) -> 0 | AC127: =F127 -> 0 | AD127: 0 | AE127: =AA127*AB127*AC127*AD127 -> 0 | AF127: =AE127*$D$9 -> 0 | AI127: 0 | AJ127: =VLOOKUP(AI127,Treatments!$C$7:$J$407,2) -> No treatment | AK127: 0 | AL127: =VLOOKUP(AI127,Treatments!$C$7:$J$407,8) -> 0 | AM127: 0 | AO127: 0 | AP127: 0 | AQ127: 0
B128: 345 | C128: =IF(B128<=0,"",VLOOKUP(B128,Treatments!$C$7:$J$407,2)) -> No till seeder | D128: 1 | E128: =VLOOKUP(B128,Treatments!$C$7:$J$407,8) -> 12.3 | F128: 1 | G128: 1 | H128: 12.3 | I128: =H128*$D$9 -> 1230 | M128: =VLOOKUP(L128,Treatments!$C$7:$J$407,2) -> No treatment | O128: =VLOOKUP(L128,Treatments!$C$7:$J$407,8) -> 0 | S128: 0 | T128: 0 | Y128: =IF(AND(B128>=344,B128<=358),B128+15,B128) -> 360 | Z128: =VLOOKUP(Y128,Treatments!$C$7:$J$407,2) -> No till seeder | AA128: 1 | AB128: =VLOOKUP(Y128,Treatments!$C$7:$J$407,8) -> 32.0825 | AC128: 1 | AD128: 1 | AE128: 32.0825 | AF128: 3208.25 | AI128: 0 | AJ128: =VLOOKUP(AI128,Treatments!$C$7:$J$407,2) -> No treatment | AK128: 0 | AL128: =VLOOKUP(AI128,Treatments!$C$7:$J$407,8) -> 0 | AM128: 0 | AO128: 0 | AP128: 0 | AQ128: 0
B129: 285 | C129: =IF(B129<=0,"",VLOOKUP(B129,Treatments!$C$7:$J$407,2)) -> Forage sorghum | D129: 4 | E129: =VLOOKUP(B129,Treatments!$C$7:$J$407,8) -> 6 | F129: 1 | G129: 1 | H129: 24 | I129: 2400 | M129: =VLOOKUP(L129,Treatments!$C$7:$J$407,2) -> No treatment | O129: =VLOOKUP(L129,Treatments!$C$7:$J$407,8) -> 0 | S129: 0 | T129: 0 | Y129: 285 | Z129: =VLOOKUP(Y129,Treatments!$C$7:$J$407,2) -> Forage sorghum | AA129: 4 | AB129: =VLOOKUP(Y129,Treatments!$C$7:$J$407,8) -> 6 | AC129: 1 | AD129: 1 | AE129: 24 | AF129: 2400 | AI129: 0 | AJ129: =VLOOKUP(AI129,Treatments!$C$7:$J$407,2) -> No treatment | AK129: 0 | AL129: =VLOOKUP(AI129,Treatments!$C$7:$J$407,8) -> 0 | AM129: 0 | AO129: 0 | AP129: 0 | AQ129: 0
C130: =IF(B130<=0,"",VLOOKUP(B130,Treatments!$C$7:$J$407,2)) ->  | E130: =VLOOKUP(B130,Treatments!$C$7:$J$407,8) -> 0 | H130: 0 | I130: 0 | Y130: 0 | Z130: =VLOOKUP(Y130,Treatments!$C$7:$J$407,2) -> No treatment | AA130: 0 | AB130: =VLOOKUP(Y130,Treatments!$C$7:$J$407,8) -> 0 | AC130: 0 | AD130: 0 | AE130: 0 | AF130: 0
B131: 345 | C131: =IF(B131<=0,"",VLOOKUP(B131,Treatments!$C$7:$J$407,2)) -> No till seeder | D131: 1 | E131: =VLOOKUP(B131,Treatments!$C$7:$J$407,8) -> 12.3 | F131: 1 | G131: 1 | H131: 12.3 | I131: 1230 | L131: Treatment No | M131: Post Planting Costs | N131: Rate of application | O131: cost / unit | P131: number of applications | R131: % of area treated | Y131: 360 | Z131: =VLOOKUP(Y131,Treatments!$C$7:$J$407,2) -> No till seeder | AA131: 1 | AB131: =VLOOKUP(Y131,Treatments!$C$7:$J$407,8) -> 32.0825 | AC131: 1 | AD131: 1 | AE131: 32.0825 | AF131: 3208.25 | AI131: Treatment No | AJ131: Post Planting Costs | AK131: Rate of application | AL131: cost / unit | AM131: number of applications | AO131: % of area treated
B132: 90 | C132: =IF(B132<=0,"",VLOOKUP(B132,Treatments!$C$7:$J$407,2)) -> Urea | D132: 43 | E132: =VLOOKUP(B132,Treatments!$C$7:$J$407,8) -> 0.5 | F132: 1 | G132: 1 | H132: 21.5 | I132: 2150 | M132: =VLOOKUP(L132,Treatments!$C$7:$J$407,2) -> No treatment | O132: =VLOOKUP(L132,Treatments!$C$7:$J$407,8) -> 0 | S132: =N132*O132*P132*R132 -> 0 | T132: =S132*$D$9 -> 0 | Y132: 90 | Z132: =VLOOKUP(Y132,Treatments!$C$7:$J$407,2) -> Urea | AA132: 43 | AB132: =VLOOKUP(Y132,Treatments!$C$7:$J$407,8) -> 0.5 | AC132: 1 | AD132: 1 | AE132: 21.5 | AF132: 2150 | AI132: =IF(AND(L132>=344,L132<=358),L132+15,L132) -> 0 | AJ132: =VLOOKUP(AI132,Treatments!$C$7:$J$407,2) -> No treatment | AK132: =N132 -> 0 | AL132: =VLOOKUP(AI132,Treatments!$C$7:$J$407,8) -> 0 | AM132: =P132 -> 0 | AO132: =R132 -> 0 | AP132: =AK132*AL132*AM132*AO132 -> 0 | AQ132: =AP132*$D$9 -> 0
C133: =IF(B133<=0,"",VLOOKUP(B133,Treatments!$C$7:$J$407,2)) ->  | E133: =VLOOKUP(B133,Treatments!$C$7:$J$407,8) -> 0 | H133: 0 | I133: 0 | M133: =VLOOKUP(L133,Treatments!$C$7:$J$407,2) -> No treatment | O133: =VLOOKUP(L133,Treatments!$C$7:$J$407,8) -> 0 | S133: 0 | T133: 0 | Y133: 0 | Z133: =VLOOKUP(Y133,Treatments!$C$7:$J$407,2) -> No treatment | AA133: 0 | AB133: =VLOOKUP(Y133,Treatments!$C$7:$J$407,8) -> 0 | AC133: 0 | AD133: 0 | AE133: 0 | AF133: 0 | AI133: 0 | AJ133: =VLOOKUP(AI133,Treatments!$C$7:$J$407,2) -> No treatment | AK133: 0 | AL133: =VLOOKUP(AI133,Treatments!$C$7:$J$407,8) -> 0 | AM133: 0 | AO133: 0 | AP133: 0 | AQ133: 0
C134: =IF(B134<=0,"",VLOOKUP(B134,Treatments!$C$7:$J$407,2)) ->  | E134: =VLOOKUP(B134,Treatments!$C$7:$J$407,8) -> 0 | H134: 0 | I134: 0 | M134: =VLOOKUP(L134,Treatments!$C$7:$J$407,2) -> No treatment | O134: =VLOOKUP(L134,Treatments!$C$7:$J$407,8) -> 0 | S134: 0 | T134: 0 | Y134: 0 | Z134: =VLOOKUP(Y134,Treatments!$C$7:$J$407,2) -> No treatment | AA134: 0 | AB134: =VLOOKUP(Y134,Treatments!$C$7:$J$407,8) -> 0 | AC134: 0 | AD134: 0 | AE134: 0 | AF134: 0 | AI134: 0 | AJ134: =VLOOKUP(AI134,Treatments!$C$7:$J$407,2) -> No treatment | AK134: 0 | AL134: =VLOOKUP(AI134,Treatments!$C$7:$J$407,8) -> 0 | AM134: 0 | AO134: 0 | AP134: 0 | AQ134: 0
C135: =IF(B135<=0,"",VLOOKUP(B135,Treatments!$C$7:$J$407,2)) ->  | E135: =VLOOKUP(B135,Treatments!$C$7:$J$407,8) -> 0 | H135: 0 | I135: 0 | M135: =VLOOKUP(L135,Treatments!$C$7:$J$407,2) -> No treatment | O135: =VLOOKUP(L135,Treatments!$C$7:$J$407,8) -> 0 | S135: 0 | T135: 0 | Y135: 0 | Z135: =VLOOKUP(Y135,Treatments!$C$7:$J$407,2) -> No treatment | AA135: 0 | AB135: =VLOOKUP(Y135,Treatments!$C$7:$J$407,8) -> 0 | AC135: 0 | AD135: 0 | AE135: 0 | AF135: 0 | AI135: 0 | AJ135: =VLOOKUP(AI135,Treatments!$C$7:$J$407,2) -> No treatment | AK135: 0 | AL135: =VLOOKUP(AI135,Treatments!$C$7:$J$407,8) -> 0 | AM135: 0 | AO135: 0 | AP135: 0 | AQ135: 0
C136: =IF(B136<=0,"",VLOOKUP(B136,Treatments!$C$7:$J$407,2)) ->  | E136: =VLOOKUP(B136,Treatments!$C$7:$J$407,8) -> 0 | H136: 0 | I136: 0 | M136: =VLOOKUP(L136,Treatments!$C$7:$J$407,2) -> No treatment | O136: =VLOOKUP(L136,Treatments!$C$7:$J$407,8) -> 0 | S136: 0 | T136: 0 | Y136: 0 | Z136: =VLOOKUP(Y136,Treatments!$C$7:$J$407,2) -> No treatment | AA136: 0 | AB136: =VLOOKUP(Y136,Treatments!$C$7:$J$407,8) -> 0 | AC136: 0 | AD136: 0 | AE136: 0 | AF136: 0 | AI136: 0 | AJ136: =VLOOKUP(AI136,Treatments!$C$7:$J$407,2) -> No treatment | AK136: 0 | AL136: =VLOOKUP(AI136,Treatments!$C$7:$J$407,8) -> 0 | AM136: 0 | AO136: 0 | AP136: 0 | AQ136: 0
C137: =IF(B137<=0,"",VLOOKUP(B137,Treatments!$C$7:$J$407,2)) ->  | E137: =VLOOKUP(B137,Treatments!$C$7:$J$407,8) -> 0 | H137: 0 | I137: 0 | M137: =VLOOKUP(L137,Treatments!$C$7:$J$407,2) -> No treatment | O137: =VLOOKUP(L137,Treatments!$C$7:$J$407,8) -> 0 | S137: 0 | T137: 0 | Y137: 0 | Z137: =VLOOKUP(Y137,Treatments!$C$7:$J$407,2) -> No treatment | AA137: 0 | AB137: =VLOOKUP(Y137,Treatments!$C$7:$J$407,8) -> 0 | AC137: 0 | AD137: 0 | AE137: 0 | AF137: 0 | AI137: 0 | AJ137: =VLOOKUP(AI137,Treatments!$C$7:$J$407,2) -> No treatment | AK137: 0 | AL137: =VLOOKUP(AI137,Treatments!$C$7:$J$407,8) -> 0 | AM137: 0 | AO137: 0 | AP137: 0 | AQ137: 0
C138: =IF(B138<=0,"",VLOOKUP(B138,Treatments!$C$7:$J$407,2)) ->  | E138: =VLOOKUP(B138,Treatments!$C$7:$J$407,8) -> 0 | H138: 0 | I138: 0 | N138: Total direct development costs | S138: =SUM(S110:S137) -> 0 | T138: 0 | Y138: 0 | Z138: =VLOOKUP(Y138,Treatments!$C$7:$J$407,2) -> No treatment | AA138: 0 | AB138: =VLOOKUP(Y138,Treatments!$C$7:$J$407,8) -> 0 | AC138: 0 | AD138: 0 | AE138: 0 | AF138: 0 | AK138: Total direct development costs | AP138: =SUM(AP110:AP137) -> 0 | AQ138: =SUM(AQ110:AQ137) -> 0
B140: Treatment No | C140: Post Planting Costs | D140: Rate of application | E140: cost / unit | F140: number of applications | G140: % of area treated | Y140: Treatment No | Z140: Post Planting Costs | AA140: Rate of application | AB140: cost / unit | AC140: number of applications | AD140: % of area treated
